Workbook

Sheet Notes
A2: Maternity Friends and Family Test (FFT) Data - October 2022

Sheet Summary
B7: FFT | C7: Number of organisations submitting | D7: Total responses to date | E7: Responses | G7: Percentage Positive | I7: Percentage Negative
C8: =[1]Instructions!$D$1 -> 2022-10-01 | D8: =[1]Instructions!$D$1 -> 2022-10-01 | E8: =[1]Instructions!$D$1 -> 2022-10-01 | F8: =[1]Instructions!$D$1-5 -> 2022-09-26 | G8: =[1]Instructions!$D$1 -> 2022-10-01 | H8: =[1]Instructions!$D$1-5 -> 2022-09-26 | I8: =[1]Instructions!$D$1 -> 2022-10-01 | J8: =[1]Instructions!$D$1-5 -> 2022-09-26
B9: Maternity Total | C9: NA | D9: 3057378 | E9: 17904 | F9: 16513 | G9: 0.9145442359 | H9: 0.9144916127 | I9: 0.04825737265 | J9: 0.04741718646
B10: Maternity NHS Total | C10: NA | D10: 3053975 | E10: 17904 | F10: 16513 | G10: 0.9145442359 | H10: 0.9144916127 | I10: 0.04825737265 | J10: 0.04741718646
B11: Maternity IS Total | C11: NA | D11: 3403 | E11: 0 | F11: 0 | G11: NA | H11: NA | I11: NA | J11: NA
B12: Antenatal Total | C12: 112 | D12: 628915 | E12: 4892 | F12: 4576 | G12: 0.9045380213 | H12: 0.9086538462 | I12: 0.05621422731 | J12: 0.05769230769
B13: Antenatal NHS | C13: 112 | D13: 627731 | E13: 4892 | F13: 4576 | G13: 0.9045380213 | H13: 0.9086538462 | I13: 0.05621422731 | J13: 0.05769230769
B14: Antenatal IS | C14: 0 | D14: 1184 | E14: 0 | F14: 0 | G14: NA | H14: NA | I14: NA | J14: NA
B15: Birth Total | C15: 117 | D15: 950977 | E15: 5494 | F15: 5010 | G15: 0.9251911176 | H15: 0.922754491 | I15: 0.04368401893 | J15: 0.04311377246
B16: Birth NHS | C16: 117 | D16: 950553 | E16: 5494 | F16: 5010 | G16: 0.9251911176 | H16: 0.922754491 | I16: 0.04368401893 | J16: 0.04311377246
B17: Birth IS | C17: 0 | D17: 424 | E17: 0 | F17: 0 | G17: NA | H17: NA | I17: NA | J17: NA
B18: Postnatal Ward Total | C18: 111 | D18: 1044581 | E18: 6214 | F18: 5545 | G18: 0.9169616994 | H18: 0.9163210099 | I18: 0.04409398133 | J18: 0.04147880974
B19: Postnatal Ward Total NHS | C19: 111 | D19: 1044581 | E19: 6214 | F19: 5545 | G19: 0.9169616994 | H19: 0.9163210099 | I19: 0.04409398133 | J19: 0.04147880974
B20: Postnatal Ward Total IS | C20: NA | D20: NA | E20: NA | F20: NA | G20: NA | H20: NA | I20: NA | J20: NA
B21: Postnatal Community Total | C21: 119 | D21: 432905 | E21: 1304 | F21: 1382 | G21: 0.8957055215 | H21: 0.8965267728 | I21: 0.05751533742 | J21: 0.05282199711
B22: Postnatal Community NHS | C22: 119 | D22: 431110 | E22: 1304 | F22: 1382 | G22: 0.8957055215 | H22: 0.8965267728 | I22: 0.05751533742 | J22: 0.05282199711
B23: Postnatal Community IS | C23: 0 | D23: 1795 | E23: 0 | F23: 0 | G23: NA | H23: NA | I23: NA | J23: NA

Sheet ICB Q1
B6: Sort data by:
A9: ICB Code | B9: ICB Name | C9: Total Responses | D9: Percentage Positive | E9: Percentage Negative | F9: Breakdown of Responses
F10: Very Good | G10: Good | H10: Neither Good nor Poor | I10: Poor | J10: Very Poor | K10: Don't Know
B11: England (including Independent Sector providers) | C11: 4892 | D11: 0.9045380213 | E11: 0.05621422731 | F11: 3438 | G11: 987 | H11: 156 | I11: 125 | J11: 150 | K11: 36
B12: England (excluding Independent Sector providers) | C12: 4892 | D12: 0.9045380213 | E12: 0.05621422731 | F12: 3438 | G12: 987 | H12: 156 | I12: 125 | J12: 150 | K12: 36
B13: Selection (excluding suppressed data) | C13: =SUBTOTAL(9,C14:C55) -> 4892 | D13: =IFERROR((F13+G13)/SUM(F13:K13), "-") -> 0.9045081967 | E13: =IFERROR((I13+J13)/SUM(F13:K13), "-") -> 0.05614754098 | F13: =SUBTOTAL(9,F14:F55) -> 3431 | G13: =SUBTOTAL(9,G14:G55) -> 983 | H13: 156 | I13: 124 | J13: 150 | K13: 36
A14: QE1 | B14: LANCASHIRE AND SOUTH CUMBRIA ICB | C14: 123 | D14: 0.8943089431 | E14: 0.07317073171 | F14: 86 | G14: 24 | H14: 3 | I14: 2 | J14: 7 | K14: 1
A15: QF7 | B15: SOUTH YORKSHIRE ICB | C15: 79 | D15: 0.8607594937 | E15: 0.07594936709 | F15: 57 | G15: 11 | H15: 4 | I15: 4 | J15: 2 | K15: 1
A16: QGH | B16: HEREFORDSHIRE AND WORCESTERSHIRE ICB | C16: 0 | D16: NA | E16: NA | F16: 0 | G16: 0 | H16: 0 | I16: 0 | J16: 0 | K16: 0
A17: QH8 | B17: MID AND SOUTH ESSEX ICB | C17: 1 | D17: * | E17: * | F17: * | G17: * | H17: * | I17: * | J17: * | K17: *
A18: QHG | B18: BEDFORDSHIRE, LUTON AND MILTON KEYNES ICB | C18: 248 | D18: 0.9072580645 | E18: 0.03225806452 | F18: 161 | G18: 64 | H18: 13 | I18: 2 | J18: 6 | K18: 2
A19: QHL | B19: BIRMINGHAM AND SOLIHULL ICB | C19: 297 | D19: 0.8518518519 | E19: 0.08754208754 | F19: 189 | G19: 64 | H19: 9 | I19: 11 | J19: 15 | K19: 9
A20: QHM | B20: NORTH EAST AND NORTH CUMBRIA ICB | C20: 33 | D20: 0.8484848485 | E20: 0.1212121212 | F20: 25 | G20: 3 | H20: 1 | I20: 3 | J20: 1 | K20: 0
A21: QJ2 | B21: DERBY AND DERBYSHIRE ICB | C21: 95 | D21: 0.8105263158 | E21: 0.1157894737 | F21: 49 | G21: 28 | H21: 7 | I21: 5 | J21: 6 | K21: 0
A22: QJG | B22: SUFFOLK AND NORTH EAST ESSEX ICB | C22: 25 | D22: 0.96 | E22: 0 | F22: 18 | G22: 6 | H22: 1 | I22: 0 | J22: 0 | K22: 0
A23: QJK | B23: DEVON ICB | C23: 24 | D23: 0.6666666667 | E23: 0 | F23: 13 | G23: 3 | H23: 8 | I23: 0 | J23: 0 | K23: 0
A24: QJM | B24: LINCOLNSHIRE ICB | C24: 0 | D24: NA | E24: NA | F24: 0 | G24: 0 | H24: 0 | I24: 0 | J24: 0 | K24: 0
A25: QK1 | B25: LEICESTER, LEICESTERSHIRE AND RUTLAND ICB | C25: 76 | D25: 0.9605263158 | E25: 0.01315789474 | F25: 56 | G25: 17 | H25: 2 | I25: 0 | J25: 1 | K25: 0
A26: QKK | B26: SOUTH EAST LONDON ICB | C26: 112 | D26: 0.8660714286 | E26: 0.0625 | F26: 63 | G26: 34 | H26: 8 | I26: 2 | J26: 5 | K26: 0
A27: QKS | B27: KENT AND MEDWAY ICB | C27: 384 | D27: 0.9427083333 | E27: 0.0390625 | F27: 279 | G27: 83 | H27: 7 | I27: 7 | J27: 8 | K27: 0
A28: QM7 | B28: HERTFORDSHIRE AND WEST ESSEX ICB | C28: 6 | D28: 1 | E28: 0 | F28: * | G28: * | H28: * | I28: * | J28: * | K28: *
A29: QMF | B29: NORTH EAST LONDON ICB | C29: 130 | D29: 0.8307692308 | E29: 0.1076923077 | F29: 77 | G29: 31 | H29: 7 | I29: 6 | J29: 8 | K29: 1
A30: QMJ | B30: NORTH CENTRAL LONDON ICB | C30: 52 | D30: 0.8076923077 | E30: 0.1346153846 | F30: 32 | G30: 10 | H30: 3 | I30: 3 | J30: 4 | K30: 0
A31: QMM | B31: NORFOLK AND WAVENEY ICB | C31: 79 | D31: 0.9493670886 | E31: 0.01265822785 | F31: 62 | G31: 13 | H31: 3 | I31: 0 | J31: 1 | K31: 0
A32: QNC | B32: STAFFORDSHIRE AND STOKE-ON-TRENT ICB | C32: 1 | D32: * | E32: * | F32: * | G32: * | H32: * | I32: * | J32: * | K32: *
A33: QNQ | B33: FRIMLEY ICB | C33: 7 | D33: 1 | E33: 0 | F33: 4 | G33: 3 | H33: 0 | I33: 0 | J33: 0 | K33: 0
A34: QNX | B34: SUSSEX ICB | C34: 1 | D34: * | E34: * | F34: * | G34: * | H34: * | I34: * | J34: * | K34: *
A35: QOC | B35: SHROPSHIRE, TELFORD AND WREKIN ICB | C35: 69 | D35: 0.9565217391 | E35: 0.01449275362 | F35: 59 | G35: 7 | H35: 2 | I35: 1 | J35: 0 | K35: 0
A36: QOP | B36: GREATER MANCHESTER ICB | C36: 228 | D36: 0.7236842105 | E36: 0.1885964912 | F36: 99 | G36: 66 | H36: 17 | I36: 21 | J36: 22 | K36: 3
A37: QOQ | B37: HUMBER AND NORTH YORKSHIRE ICB | C37: 21 | D37: 0.8095238095 | E37: 0.1904761905 | F37: 15 | G37: 2 | H37: 0 | I37: 3 | J37: 1 | K37: 0
A38: QOX | B38: BATH AND NORTH EAST SOMERSET, SWINDON AND WILTSHIRE ICB | C38: 42 | D38: 0.9523809524 | E38: 0.04761904762 | F38: 37 | G38: 3 | H38: 0 | I38: 2 | J38: 0 | K38: 0
A39: QPM | B39: NORTHAMPTONSHIRE ICB | C39: 3 | D39: * | E39: * | F39: * | G39: * | H39: * | I39: * | J39: * | K39: *
A40: QR1 | B40: GLOUCESTERSHIRE ICB | C40: 0 | D40: NA | E40: NA | F40: 0 | G40: 0 | H40: 0 | I40: 0 | J40: 0 | K40: 0
A41: QRL | B41: HAMPSHIRE AND ISLE OF WIGHT ICB | C41: 199 | D41: 0.9698492462 | E41: 0.01005025126 | F41: 134 | G41: 59 | H41: 3 | I41: 2 | J41: 0 | K41: 1
A42: QRV | B42: NORTH WEST LONDON ICB | C42: 240 | D42: 0.8791666667 | E42: 0.07083333333 | F42: 169 | G42: 42 | H42: 12 | I42: 4 | J42: 13 | K42: 0
A43: QSL | B43: SOMERSET ICB | C43: 23 | D43: 0.9130434783 | E43: 0.08695652174 | F43: 17 | G43: 4 | H43: 0 | I43: 1 | J43: 1 | K43: 0
A44: QT1 | B44: NOTTINGHAM AND NOTTINGHAMSHIRE ICB | C44: 241 | D44: 0.9377593361 | E44: 0.02074688797 | F44: 182 | G44: 44 | H44: 9 | I44: 3 | J44: 2 | K44: 1
A45: QT6 | B45: CORNWALL AND THE ISLES OF SCILLY ICB | C45: 35 | D45: 0.9714285714 | E45: 0.02857142857 | F45: 23 | G45: 11 | H45: 0 | I45: 0 | J45: 1 | K45: 0
A46: QU9 | B46: BUCKINGHAMSHIRE, OXFORDSHIRE AND BERKSHIRE WEST ICB | C46: 148 | D46: 0.8378378378 | E46: 0.1148648649 | F46: 101 | G46: 23 | H46: 7 | I46: 13 | J46: 4 | K46: 0
A47: QUA | B47: BLACK COUNTRY ICB | C47: 202 | D47: 0.9059405941 | E47: 0.06930693069 | F47: 147 | G47: 36 | H47: 2 | I47: 8 | J47: 6 | K47: 3
A48: QUE | B48: CAMBRIDGESHIRE AND PETERBOROUGH ICB | C48: 403 | D48: 0.9602977667 | E48: 0.009925558313 | F48: 327 | G48: 60 | H48: 5 | I48: 2 | J48: 2 | K48: 7
A49: QUY | B49: BRISTOL, NORTH SOMERSET AND SOUTH GLOUCESTERSHIRE ICB | C49: 17 | D49: 1 | E49: 0 | F49: 16 | G49: 1 | H49: 0 | I49: 0 | J49: 0 | K49: 0
A50: QVV | B50: DORSET ICB | C50: 47 | D50: 0.9574468085 | E50: 0 | F50: 32 | G50: 13 | H50: 2 | I50: 0 | J50: 0 | K50: 0
A51: QWE | B51: SOUTH WEST LONDON ICB | C51: 116 | D51: 0.8362068966 | E51: 0.1034482759 | F51: 77 | G51: 20 | H51: 3 | I51: 5 | J51: 7 | K51: 4
A52: QWO | B52: WEST YORKSHIRE ICB | C52: 705 | D52: 0.9602836879 | E52: 0.02127659574 | F52: 563 | G52: 114 | H52: 12 | I52: 6 | J52: 9 | K52: 1
A53: QWU | B53: COVENTRY AND WARWICKSHIRE ICB | C53: 234 | D53: 0.9102564103 | E53: 0.07264957265 | F53: 148 | G53: 65 | H53: 3 | I53: 2 | J53: 15 | K53: 1
A54: QXU | B54: SURREY HEARTLANDS ICB | C54: 26 | D54: 1 | E54: 0 | F54: 23 | G54: 3 | H54: 0 | I54: 0 | J54: 0 | K54: 0
A55: QYG | B55: CHESHIRE AND MERSEYSIDE ICB | C55: 120 | D55: 0.8916666667 | E55: 0.075 | F55: 91 | G55: 16 | H55: 3 | I55: 6 | J55: 3 | K55: 1

Sheet Trusts Q1
B6: Sort data by:
A9: ICB Code | B9: Trust Code | C9: Trust Name | D9: Total Responses | E9: Percentage Positive | F9: Percentage Negative | G9: Breakdown of Responses | M9: Mode of Collection
G10: Very Good | H10: Good | I10: Neither Good nor Poor | J10: Poor | K10: Very Poor | L10: Don't Know | M10: Mode SMS | N10: Mode Electronic Discharge | O10: Mode Electronic Home | P10: Mode Paper Discharge | Q10: Mode Paper Home | R10: Mode Telephone | S10: Mode Online | T10: Mode Other
C11: England (including Independent Sector providers) | D11: 4892 | E11: 0.9045380213 | F11: 0.05621422731 | G11: 3438 | H11: 987 | I11: 156 | J11: 125 | K11: 150 | L11: 36 | M11: 1696 | N11: 558 | O11: 0 | P11: 1694 | Q11: 250 | R11: 1 | S11: 663 | T11: 30
C12: England (excluding Independent Sector providers) | D12: 4892 | E12: 0.9045380213 | F12: 0.05621422731 | G12: 3438 | H12: 987 | I12: 156 | J12: 125 | K12: 150 | L12: 36 | M12: 1696 | N12: 558 | O12: 0 | P12: 1694 | Q12: 250 | R12: 1 | S12: 663 | T12: 30
C13: Selection (excluding suppressed data) | D13: =SUBTOTAL(9,D14:D298) -> 4892 | E13: =IFERROR((G13+H13)/SUM(G13:L13), "-") -> 0.9096477795 | F13: =IFERROR((J13+K13)/SUM(G13:L13), "-") -> 0.05184861081 | G13: =SUBTOTAL(9,G14:G298) -> 3230 | H13: 928 | I13: 141 | J13: 105 | K13: 132 | L13: 35 | M13: 1495 | N13: 541 | O13: 0 | P13: 1668 | Q13: 249 | R13: 1 | S13: 616 | T13: 1
A14: QE1 | B14: RTX | C14: UNIVERSITY HOSPITALS OF MORECAMBE BAY NHS FOUNDATION TRUST | D14: 6 | E14: 1 | F14: 0 | G14: 5 | H14: 1 | I14: 0 | J14: 0 | K14: 0 | L14: 0 | M14: 0 | N14: 0 | O14: 0 | P14: 0 | Q14: 0 | R14: 0 | S14: 6 | T14: 0
A15: QE1 | B15: RXL | C15: BLACKPOOL TEACHING HOSPITALS NHS FOUNDATION TRUST | D15: 17 | E15: 0.7647058824 | F15: 0.1176470588 | G15: 9 | H15: 4 | I15: 2 | J15: 0 | K15: 2 | L15: 0 | M15: 17 | N15: 0 | O15: 0 | P15: 0 | Q15: 0 | R15: 0 | S15: 0 | T15: 0
A16: QE1 | B16: RXN | C16: LANCASHIRE TEACHING HOSPITALS NHS FOUNDATION TRUST | D16: 17 | E16: 0.7058823529 | F16: 0.2352941176 | G16: 6 | H16: 6 | I16: 1 | J16: 1 | K16: 3 | L16: 0 | M16: 17 | N16: 0 | O16: 0 | P16: 0 | Q16: 0 | R16: 0 | S16: 0 | T16: 0
A17: QE1 | B17: RXR | C17: EAST LANCASHIRE HOSPITALS NHS TRUST | D17: 83 | E17: 0.9518072289 | F17: 0.03614457831 | G17: 66 | H17: 13 | I17: 0 | J17: 1 | K17: 2 | L17: 1 | M17: 55 | N17: 0 | O17: 0 | P17: 28 | Q17: 0 | R17: 0 | S17: 0 | T17: 0
A18: QF7 | B18: RFF | C18: BARNSLEY HOSPITAL NHS FOUNDATION TRUST | D18: 1 | E18: * | F18: * | G18: * | H18: * | I18: * | J18: * | K18: * | L18: * | M18: * | N18: * | O18: * | P18: * | Q18: * | R18: * | S18: * | T18: *
A19: QF7 | B19: RP5 | C19: DONCASTER AND BASSETLAW TEACHING HOSPITALS NHS FOUNDATION TRUST | D19: 7 | E19: 0.8571428571 | F19: 0.1428571429 | G19: * | H19: * | I19: * | J19: * | K19: * | L19: * | M19: * | N19: * | O19: * | P19: * | Q19: * | R19: * | S19: * | T19: *
A20: QF7 | B20: RFR | C20: THE ROTHERHAM NHS FOUNDATION TRUST | D20: 18 | E20: 0.9444444444 | F20: 0 | G20: 15 | H20: 2 | I20: 1 | J20: 0 | K20: 0 | L20: 0 | M20: 0 | N20: 0 | O20: 0 | P20: 18 | Q20: 0 | R20: 0 | S20: 0 | T20: 0
A21: QF7 | B21: RHQ | C21: SHEFFIELD TEACHING HOSPITALS NHS FOUNDATION TRUST | D21: 53 | E21: 0.8490566038 | F21: 0.09433962264 | G21: 37 | H21: 8 | I21: 3 | J21: 3 | K21: 2 | L21: 0 | M21: 25 | N21: 0 | O21: 0 | P21: 28 | Q21: 0 | R21: 0 | S21: 0 | T21: 0
A22: QGH | B22: RLQ | C22: WYE VALLEY NHS TRUST | D22: 0 | E22: NA | F22: NA | G22: 0 | H22: 0 | I22: 0 | J22: 0 | K22: 0 | L22: 0 | M22: 0 | N22: 0 | O22: 0 | P22: 0 | Q22: 0 | R22: 0 | S22: 0 | T22: 0
A23: QGH | B23: RWP | C23: WORCESTERSHIRE ACUTE HOSPITALS NHS TRUST | D23: 0 | E23: NA | F23: NA | G23: 0 | H23: 0 | I23: 0 | J23: 0 | K23: 0 | L23: 0 | M23: 0 | N23: 0 | O23: 0 | P23: 0 | Q23: 0 | R23: 0 | S23: 0 | T23: 0
A24: QH8 | B24: RAJ | C24: MID AND SOUTH ESSEX NHS FOUNDATION TRUST | D24: 1 | E24: * | F24: * | G24: * | H24: * | I24: * | J24: * | K24: * | L24: * | M24: * | N24: * | O24: * | P24: * | Q24: * | R24: * | S24: * | T24: *
A25: QHG | B25: RC9 | C25: BEDFORDSHIRE HOSPITALS NHS FOUNDATION TRUST | D25: 28 | E25: 0.7142857143 | F25: 0.1071428571 | G25: 7 | H25: 13 | I25: 5 | J25: 1 | K25: 2 | L25: 0 | M25: 0 | N25: 27 | O25: 0 | P25: 0 | Q25: 0 | R25: 0 | S25: 1 | T25: 0
A26: QHG | B26: RD8 | C26: MILTON KEYNES UNIVERSITY HOSPITAL NHS FOUNDATION TRUST | D26: 220 | E26: 0.9318181818 | F26: 0.02272727273 | G26: 154 | H26: 51 | I26: 8 | J26: 1 | K26: 4 | L26: 2 | M26: 195 | N26: 0 | O26: 0 | P26: 22 | Q26: 0 | R26: 0 | S26: 3 | T26: 0
A27: QHL | B27: RRK | C27: UNIVERSITY HOSPITALS BIRMINGHAM NHS FOUNDATION TRUST | D27: 0 | E27: NA | F27: NA | G27: 0 | H27: 0 | I27: 0 | J27: 0 | K27: 0 | L27: 0 | M27: 0 | N27: 0 | O27: 0 | P27: 0 | Q27: 0 | R27: 0 | S27: 0 | T27: 0
A28: QHL | B28: RQ3 | C28: BIRMINGHAM WOMEN'S AND CHILDREN'S NHS FOUNDATION TRUST | D28: 137 | E28: 0.9124087591 | F28: 0.06569343066 | G28: 93 | H28: 32 | I28: 3 | J28: 6 | K28: 3 | L28: 0 | M28: 0 | N28: 137 | O28: 0 | P28: 0 | Q28: 0 | R28: 0 | S28: 0 | T28: 0
A29: QHL | B29: RXK | C29: SANDWELL AND WEST BIRMINGHAM HOSPITALS NHS TRUST | D29: 160 | E29: 0.8 | F29: 0.10625 | G29: 96 | H29: 32 | I29: 6 | J29: 5 | K29: 12 | L29: 9 | M29: 160 | N29: 0 | O29: 0 | P29: 0 | Q29: 0 | R29: 0 | S29: 0 | T29: 0
A30: QHM | B30: RTD | C30: THE NEWCASTLE UPON TYNE HOSPITALS NHS FOUNDATION TRUST | D30: 0 | E30: NA | F30: NA | G30: 0 | H30: 0 | I30: 0 | J30: 0 | K30: 0 | L30: 0 | M30: 0 | N30: 0 | O30: 0 | P30: 0 | Q30: 0 | R30: 0 | S30: 0 | T30: 0
A31: QHM | B31: RTF | C31: NORTHUMBRIA HEALTHCARE NHS FOUNDATION TRUST | D31: 0 | E31: NA | F31: NA | G31: 0 | H31: 0 | I31: 0 | J31: 0 | K31: 0 | L31: 0 | M31: 0 | N31: 0 | O31: 0 | P31: 0 | Q31: 0 | R31: 0 | S31: 0 | T31: 0
A32: QHM | B32: RR7 | C32: GATESHEAD HEALTH NHS FOUNDATION TRUST | D32: 2 | E32: * | F32: * | G32: * | H32: * | I32: * | J32: * | K32: * | L32: * | M32: * | N32: * | O32: * | P32: * | Q32: * | R32: * | S32: * | T32: *
A33: QHM | B33: R0B | C33: SOUTH TYNESIDE AND SUNDERLAND NHS FOUNDATION TRUST | D33: 6 | E33: 0.8333333333 | F33: 0.1666666667 | G33: * | H33: * | I33: * | J33: * | K33: * | L33: * | M33: * | N33: * | O33: * | P33: * | Q33: * | R33: * | S33: * | T33: *
A34: QHM | B34: RVW | C34: NORTH TEES AND HARTLEPOOL NHS FOUNDATION TRUST | D34: 7 | E34: 0.5714285714 | F34: 0.2857142857 | G34: 4 | H34: 0 | I34: 1 | J34: 1 | K34: 1 | L34: 0 | M34: 7 | N34: 0 | O34: 0 | P34: 0 | Q34: 0 | R34: 0 | S34: 0 | T34: 0
A35: QHM | B35: RTR | C35: SOUTH TEES HOSPITALS NHS FOUNDATION TRUST | D35: 18 | E35: 1 | F35: 0 | G35: 15 | H35: 3 | I35: 0 | J35: 0 | K35: 0 | L35: 0 | M35: 1 | N35: 16 | O35: 0 | P35: 0 | Q35: 0 | R35: 0 | S35: 0 | T35: 1
A36: QJ2 | B36: RFS | C36: CHESTERFIELD ROYAL HOSPITAL NHS FOUNDATION TRUST | D36: 2 | E36: * | F36: * | G36: * | H36: * | I36: * | J36: * | K36: * | L36: * | M36: * | N36: * | O36: * | P36: * | Q36: * | R36: * | S36: * | T36: *
A37: QJ2 | B37: RTG | C37: UNIVERSITY HOSPITALS OF DERBY AND BURTON NHS FOUNDATION TRUST | D37: 93 | E37: 0.8279569892 | F37: 0.1075268817 | G37: * | H37: * | I37: * | J37: * | K37: * | L37: * | M37: * | N37: * | O37: * | P37: * | Q37: * | R37: * | S37: * | T37: *
A38: QJG | B38: RDE | C38: EAST SUFFOLK AND NORTH ESSEX NHS FOUNDATION TRUST | D38: 11 | E38: 1 | F38: 0 | G38: 8 | H38: 3 | I38: 0 | J38: 0 | K38: 0 | L38: 0 | M38: 0 | N38: 0 | O38: 0 | P38: 0 | Q38: 0 | R38: 0 | S38: 11 | T38: 0
A39: QJG | B39: RGR | C39: WEST SUFFOLK NHS FOUNDATION TRUST | D39: 14 | E39: 0.9285714286 | F39: 0 | G39: 10 | H39: 3 | I39: 1 | J39: 0 | K39: 0 | L39: 0 | M39: 0 | N39: 6 | O39: 0 | P39: 0 | Q39: 0 | R39: 0 | S39: 8 | T39: 0
A40: QJK | B40: RK9 | C40: UNIVERSITY HOSPITALS PLYMOUTH NHS TRUST | D40: 8 | E40: 1 | F40: 0 | G40: 7 | H40: 1 | I40: 0 | J40: 0 | K40: 0 | L40: 0 | M40: 0 | N40: 0 | O40: 0 | P40: 8 | Q40: 0 | R40: 0 | S40: 0 | T40: 0
A41: QJK | B41: RH8 | C41: ROYAL DEVON UNIVERSITY HEALTHCARE NHS FOUNDATION TRUST | D41: 16 | E41: 0.5 | F41: 0 | G41: 6 | H41: 2 | I41: 8 | J41: 0 | K41: 0 | L41: 0 | M41: 0 | N41: 0 | O41: 0 | P41: 16 | Q41: 0 | R41: 0 | S41: 0 | T41: 0
A42: QJM | B42: RWD | C42: UNITED LINCOLNSHIRE HOSPITALS NHS TRUST | D42: 0 | E42: NA | F42: NA | G42: 0 | H42: 0 | I42: 0 | J42: 0 | K42: 0 | L42: 0 | M42: 0 | N42: 0 | O42: 0 | P42: 0 | Q42: 0 | R42: 0 | S42: 0 | T42: 0
A43: QK1 | B43: RWE | C43: UNIVERSITY HOSPITALS OF LEICESTER NHS TRUST | D43: 76 | E43: 0.9605263158 | F43: 0.01315789474 | G43: 56 | H43: 17 | I43: 2 | J43: 0 | K43: 1 | L43: 0 | M43: 0 | N43: 72 | O43: 0 | P43: 4 | Q43: 0 | R43: 0 | S43: 0 | T43: 0
A44: QKK | B44: RJZ | C44: KING'S COLLEGE HOSPITAL NHS FOUNDATION TRUST | D44: 32 | E44: 0.71875 | F44: 0.15625 | G44: 10 | H44: 13 | I44: 4 | J44: 1 | K44: 4 | L44: 0 | M44: 7 | N44: 0 | O44: 0 | P44: 0 | Q44: 0 | R44: 0 | S44: 25 | T44: 0
A45: QKK | B45: RJ2 | C45: LEWISHAM AND GREENWICH NHS TRUST | D45: 39 | E45: 0.9743589744 | F45: 0 | G45: 30 | H45: 8 | I45: 1 | J45: 0 | K45: 0 | L45: 0 | M45: 0 | N45: 0 | O45: 0 | P45: 30 | Q45: 0 | R45: 0 | S45: 9 | T45: 0
A46: QKK | B46: RJ1 | C46: GUY'S AND ST THOMAS' NHS FOUNDATION TRUST | D46: 41 | E46: 0.8780487805 | F46: 0.0487804878 | G46: 23 | H46: 13 | I46: 3 | J46: 1 | K46: 1 | L46: 0 | M46: 0 | N46: 0 | O46: 0 | P46: 28 | Q46: 0 | R46: 0 | S46: 13 | T46: 0
A47: QKS | B47: RN7 | C47: DARTFORD AND GRAVESHAM NHS TRUST | D47: 2 | E47: * | F47: * | G47: * | H47: * | I47: * | J47: * | K47: * | L47: * | M47: * | N47: * | O47: * | P47: * | Q47: * | R47: * | S47: * | T47: *
A48: QKS | B48: RWF | C48: MAIDSTONE AND TUNBRIDGE WELLS NHS TRUST | D48: 7 | E48: 0.4285714286 | F48: 0.5714285714 | G48: * | H48: * | I48: * | J48: * | K48: * | L48: * | M48: * | N48: * | O48: * | P48: * | Q48: * | R48: * | S48: * | T48: *
A49: QKS | B49: RPA | C49: MEDWAY NHS FOUNDATION TRUST | D49: 66 | E49: 1 | F49: 0 | G49: 65 | H49: 1 | I49: 0 | J49: 0 | K49: 0 | L49: 0 | M49: 0 | N49: 0 | O49: 0 | P49: 66 | Q49: 0 | R49: 0 | S49: 0 | T49: 0
A50: QKS | B50: RVV | C50: EAST KENT HOSPITALS UNIVERSITY NHS FOUNDATION TRUST | D50: 309 | E50: 0.9417475728 | F50: 0.0355987055 | G50: 210 | H50: 81 | I50: 7 | J50: 6 | K50: 5 | L50: 0 | M50: 309 | N50: 0 | O50: 0 | P50: 0 | Q50: 0 | R50: 0 | S50: 0 | T50: 0
A51: QM7 | B51: RQW | C51: THE PRINCESS ALEXANDRA HOSPITAL NHS TRUST | D51: 0 | E51: NA | F51: NA | G51: 0 | H51: 0 | I51: 0 | J51: 0 | K51: 0 | L51: 0 | M51: 0 | N51: 0 | O51: 0 | P51: 0 | Q51: 0 | R51: 0 | S51: 0 | T51: 0
A52: QM7 | B52: RWH | C52: EAST AND NORTH HERTFORDSHIRE NHS TRUST | D52: 0 | E52: NA | F52: NA | G52: 0 | H52: 0 | I52: 0 | J52: 0 | K52: 0 | L52: 0 | M52: 0 | N52: 0 | O52: 0 | P52: 0 | Q52: 0 | R52: 0 | S52: 0 | T52: 0
A53: QM7 | B53: RWG | C53: WEST HERTFORDSHIRE TEACHING HOSPITALS NHS TRUST | D53: 6 | E53: 1 | F53: 0 | G53: * | H53: * | I53: * | J53: * | K53: * | L53: * | M53: * | N53: * | O53: * | P53: * | Q53: * | R53: * | S53: * | T53: *
A54: QMF | B54: RQX | C54: HOMERTON HEALTHCARE NHS FOUNDATION TRUST | D54: 11 | E54: 0.6363636364 | F54: 0.09090909091 | G54: 5 | H54: 2 | I54: 3 | J54: 1 | K54: 0 | L54: 0 | M54: 11 | N54: 0 | O54: 0 | P54: 0 | Q54: 0 | R54: 0 | S54: 0 | T54: 0
A55: QMF | B55: RF4 | C55: BARKING, HAVERING AND REDBRIDGE UNIVERSITY HOSPITALS NHS TRUST | D55: 23 | E55: 0.8695652174 | F55: 0.08695652174 | G55: 15 | H55: 5 | I55: 1 | J55: 0 | K55: 2 | L55: 0 | M55: 0 | N55: 0 | O55: 0 | P55: 22 | Q55: 0 | R55: 0 | S55: 1 | T55: 0
A56: QMF | B56: R1H | C56: BARTS HEALTH NHS TRUST | D56: 96 | E56: 0.84375 | F56: 0.1145833333 | G56: 57 | H56: 24 | I56: 3 | J56: 5 | K56: 6 | L56: 1 | M56: 31 | N56: 0 | O56: 0 | P56: 38 | Q56: 0 | R56: 0 | S56: 27 | T56: 0
A57: QMJ | B57: RRV | C57: UNIVERSITY COLLEGE LONDON HOSPITALS NHS FOUNDATION TRUST | D57: 2 | E57: * | F57: * | G57: * | H57: * | I57: * | J57: * | K57: * | L57: * | M57: * | N57: * | O57: * | P57: * | Q57: * | R57: * | S57: * | T57: *
A58: QMJ | B58: RAL | C58: ROYAL FREE LONDON NHS FOUNDATION TRUST | D58: 3 | E58: * | F58: * | G58: * | H58: * | I58: * | J58: * | K58: * | L58: * | M58: * | N58: * | O58: * | P58: * | Q58: * | R58: * | S58: * | T58: *
A59: QMJ | B59: RAP | C59: NORTH MIDDLESEX UNIVERSITY HOSPITAL NHS TRUST | D59: 47 | E59: 0.8510638298 | F59: 0.1063829787 | G59: 31 | H59: 9 | I59: 2 | J59: 2 | K59: 3 | L59: 0 | M59: 47 | N59: 0 | O59: 0 | P59: 0 | Q59: 0 | R59: 0 | S59: 0 | T59: 0
A60: QMM | B60: RGP | C60: JAMES PAGET UNIVERSITY HOSPITALS NHS FOUNDATION TRUST | D60: 0 | E60: NA | F60: NA | G60: 0 | H60: 0 | I60: 0 | J60: 0 | K60: 0 | L60: 0 | M60: 0 | N60: 0 | O60: 0 | P60: 0 | Q60: 0 | R60: 0 | S60: 0 | T60: 0
A61: QMM | B61: RM1 | C61: NORFOLK AND NORWICH UNIVERSITY HOSPITALS NHS FOUNDATION TRUST | D61: 31 | E61: 0.8709677419 | F61: 0.03225806452 | G61: 17 | H61: 10 | I61: 3 | J61: 0 | K61: 1 | L61: 0 | M61: 0 | N61: 0 | O61: 0 | P61: 0 | Q61: 0 | R61: 0 | S61: 31 | T61: 0
A62: QMM | B62: RCX | C62: THE QUEEN ELIZABETH HOSPITAL, KING'S LYNN, NHS FOUNDATION TRUST | D62: 48 | E62: 1 | F62: 0 | G62: 45 | H62: 3 | I62: 0 | J62: 0 | K62: 0 | L62: 0 | M62: 0 | N62: 0 | O62: 0 | P62: 48 | Q62: 0 | R62: 0 | S62: 0 | T62: 0
A63: QNC | B63: RJE | C63: UNIVERSITY HOSPITALS OF NORTH MIDLANDS NHS TRUST | D63: 1 | E63: * | F63: * | G63: * | H63: * | I63: * | J63: * | K63: * | L63: * | M63: * | N63: * | O63: * | P63: * | Q63: * | R63: * | S63: * | T63: *
A64: QNQ | B64: RDU | C64: FRIMLEY HEALTH NHS FOUNDATION TRUST | D64: 7 | E64: 1 | F64: 0 | G64: 4 | H64: 3 | I64: 0 | J64: 0 | K64: 0 | L64: 0 | M64: 0 | N64: 0 | O64: 0 | P64: 7 | Q64: 0 | R64: 0 | S64: 0 | T64: 0
A65: QNX | B65: RXC | C65: EAST SUSSEX HEALTHCARE NHS TRUST | D65: 0 | E65: NA | F65: NA | G65: 0 | H65: 0 | I65: 0 | J65: 0 | K65: 0 | L65: 0 | M65: 0 | N65: 0 | O65: 0 | P65: 0 | Q65: 0 | R65: 0 | S65: 0 | T65: 0
A66: QNX | B66: RYR | C66: UNIVERSITY HOSPITALS SUSSEX NHS FOUNDATION TRUST | D66: 1 | E66: * | F66: * | G66: * | H66: * | I66: * | J66: * | K66: * | L66: * | M66: * | N66: * | O66: * | P66: * | Q66: * | R66: * | S66: * | T66: *
A67: QOC | B67: RXW | C67: THE SHREWSBURY AND TELFORD HOSPITAL NHS TRUST | D67: 69 | E67: 0.9565217391 | F67: 0.01449275362 | G67: 59 | H67: 7 | I67: 2 | J67: 1 | K67: 0 | L67: 0 | M67: 0 | N67: 0 | O67: 0 | P67: 69 | Q67: 0 | R67: 0 | S67: 0 | T67: 0
A68: QOP | B68: RRF | C68: WRIGHTINGTON, WIGAN AND LEIGH NHS FOUNDATION TRUST | D68: 0 | E68: NA | F68: NA | G68: 0 | H68: 0 | I68: 0 | J68: 0 | K68: 0 | L68: 0 | M68: 0 | N68: 0 | O68: 0 | P68: 0 | Q68: 0 | R68: 0 | S68: 0 | T68: 0
A69: QOP | B69: RM3 | C69: NORTHERN CARE ALLIANCE NHS FOUNDATION TRUST | D69: 1 | E69: * | F69: * | G69: * | H69: * | I69: * | J69: * | K69: * | L69: * | M69: * | N69: * | O69: * | P69: * | Q69: * | R69: * | S69: * | T69: *
A70: QOP | B70: RWJ | C70: STOCKPORT NHS FOUNDATION TRUST | D70: 4 | E70: * | F70: * | G70: * | H70: * | I70: * | J70: * | K70: * | L70: * | M70: * | N70: * | O70: * | P70: * | Q70: * | R70: * | S70: * | T70: *
A71: QOP | B71: RMC | C71: BOLTON NHS FOUNDATION TRUST | D71: 42 | E71: 0.8095238095 | F71: 0.04761904762 | G71: 18 | H71: 16 | I71: 4 | J71: 2 | K71: 0 | L71: 2 | M71: 0 | N71: 42 | O71: 0 | P71: 0 | Q71: 0 | R71: 0 | S71: 0 | T71: 0
A72: QOP | B72: R0A | C72: MANCHESTER UNIVERSITY NHS FOUNDATION TRUST | D72: 181 | E72: 0.7016574586 | F72: 0.2209944751 | G72: 79 | H72: 48 | I72: 13 | J72: 18 | K72: 22 | L72: 1 | M72: 0 | N72: 33 | O72: 0 | P72: 146 | Q72: 0 | R72: 0 | S72: 2 | T72: 0
A73: QOQ | B73: RCB | C73: YORK AND SCARBOROUGH TEACHING HOSPITALS NHS FOUNDATION TRUST | D73: 0 | E73: NA | F73: NA | G73: 0 | H73: 0 | I73: 0 | J73: 0 | K73: 0 | L73: 0 | M73: 0 | N73: 0 | O73: 0 | P73: 0 | Q73: 0 | R73: 0 | S73: 0 | T73: 0
A74: QOQ | B74: RCD | C74: HARROGATE AND DISTRICT NHS FOUNDATION TRUST | D74: 1 | E74: * | F74: * | G74: * | H74: * | I74: * | J74: * | K74: * | L74: * | M74: * | N74: * | O74: * | P74: * | Q74: * | R74: * | S74: * | T74: *
A75: QOQ | B75: RWA | C75: HULL UNIVERSITY TEACHING HOSPITALS NHS TRUST | D75: 4 | E75: * | F75: * | G75: * | H75: * | I75: * | J75: * | K75: * | L75: * | M75: * | N75: * | O75: * | P75: * | Q75: * | R75: * | S75: * | T75: *
A76: QOQ | B76: RJL | C76: NORTHERN LINCOLNSHIRE AND GOOLE NHS FOUNDATION TRUST | D76: 16 | E76: 0.875 | F76: 0.125 | G76: 13 | H76: 1 | I76: 0 | J76: 1 | K76: 1 | L76: 0 | M76: 0 | N76: 0 | O76: 0 | P76: 15 | Q76: 0 | R76: 0 | S76: 1 | T76: 0
A77: QOX | B77: RNZ | C77: SALISBURY NHS FOUNDATION TRUST | D77: 1 | E77: * | F77: * | G77: * | H77: * | I77: * | J77: * | K77: * | L77: * | M77: * | N77: * | O77: * | P77: * | Q77: * | R77: * | S77: * | T77: *
A78: QOX | B78: RD1 | C78: ROYAL UNITED HOSPITALS BATH NHS FOUNDATION TRUST | D78: 2 | E78: * | F78: * | G78: * | H78: * | I78: * | J78: * | K78: * | L78: * | M78: * | N78: * | O78: * | P78: * | Q78: * | R78: * | S78: * | T78: *
A79: QOX | B79: RN3 | C79: GREAT WESTERN HOSPITALS NHS FOUNDATION TRUST | D79: 39 | E79: 0.9487179487 | F79: 0.05128205128 | G79: 34 | H79: 3 | I79: 0 | J79: 2 | K79: 0 | L79: 0 | M79: 39 | N79: 0 | O79: 0 | P79: 0 | Q79: 0 | R79: 0 | S79: 0 | T79: 0
A80: QPM | B80: RNQ | C80: KETTERING GENERAL HOSPITAL NHS FOUNDATION TRUST | D80: 1 | E80: * | F80: * | G80: * | H80: * | I80: * | J80: * | K80: * | L80: * | M80: * | N80: * | O80: * | P80: * | Q80: * | R80: * | S80: * | T80: *
A81: QPM | B81: RNS | C81: NORTHAMPTON GENERAL HOSPITAL NHS TRUST | D81: 2 | E81: * | F81: * | G81: * | H81: * | I81: * | J81: * | K81: * | L81: * | M81: * | N81: * | O81: * | P81: * | Q81: * | R81: * | S81: * | T81: *
A82: QRL | B82: R1F | C82: ISLE OF WIGHT NHS TRUST | D82: 9 | E82: 1 | F82: 0 | G82: 9 | H82: 0 | I82: 0 | J82: 0 | K82: 0 | L82: 0 | M82: 0 | N82: 0 | O82: 0 | P82: 9 | Q82: 0 | R82: 0 | S82: 0 | T82: 0
A83: QRL | B83: RN5 | C83: HAMPSHIRE HOSPITALS NHS FOUNDATION TRUST | D83: 24 | E83: 1 | F83: 0 | G83: 17 | H83: 7 | I83: 0 | J83: 0 | K83: 0 | L83: 0 | M83: 0 | N83: 0 | O83: 0 | P83: 22 | Q83: 0 | R83: 0 | S83: 2 | T83: 0
A84: QRL | B84: RHU | C84: PORTSMOUTH HOSPITALS UNIVERSITY NATIONAL HEALTH SERVICE TRUST | D84: 55 | E84: 1 | F84: 0 | G84: 44 | H84: 11 | I84: 0 | J84: 0 | K84: 0 | L84: 0 | M84: 0 | N84: 0 | O84: 0 | P84: 55 | Q84: 0 | R84: 0 | S84: 0 | T84: 0
A85: QRL | B85: RHM | C85: UNIVERSITY HOSPITAL SOUTHAMPTON NHS FOUNDATION TRUST | D85: 111 | E85: 0.9459459459 | F85: 0.01801801802 | G85: 64 | H85: 41 | I85: 3 | J85: 2 | K85: 0 | L85: 1 | M85: 0 | N85: 0 | O85: 0 | P85: 0 | Q85: 18 | R85: 0 | S85: 93 | T85: 0
A86: QRV | B86: R1K | C86: LONDON NORTH WEST UNIVERSITY HEALTHCARE NHS TRUST | D86: 1 | E86: * | F86: * | G86: * | H86: * | I86: * | J86: * | K86: * | L86: * | M86: * | N86: * | O86: * | P86: * | Q86: * | R86: * | S86: * | T86: *
A87: QRV | B87: RQM | C87: CHELSEA AND WESTMINSTER HOSPITAL NHS FOUNDATION TRUST | D87: 41 | E87: 0.7073170732 | F87: 0.1951219512 | G87: * | H87: * | I87: * | J87: * | K87: * | L87: * | M87: * | N87: * | O87: * | P87: * | Q87: * | R87: * | S87: * | T87: *
A88: QRV | B88: RYJ | C88: IMPERIAL COLLEGE HEALTHCARE NHS TRUST | D88: 77 | E88: 0.8831168831 | F88: 0.06493506494 | G88: 59 | H88: 9 | I88: 4 | J88: 1 | K88: 4 | L88: 0 | M88: 0 | N88: 3 | O88: 0 | P88: 0 | Q88: 0 | R88: 0 | S88: 74 | T88: 0
A89: QRV | B89: RAS | C89: THE HILLINGDON HOSPITALS NHS FOUNDATION TRUST | D89: 121 | E89: 0.9338842975 | F89: 0.03305785124 | G89: 85 | H89: 28 | I89: 4 | J89: 1 | K89: 3 | L89: 0 | M89: 0 | N89: 0 | O89: 0 | P89: 0 | Q89: 0 | R89: 0 | S89: 121 | T89: 0
A90: QSL | B90: RH5 | C90: SOMERSET NHS FOUNDATION TRUST | D90: 0 | E90: NA | F90: NA | G90: 0 | H90: 0 | I90: 0 | J90: 0 | K90: 0 | L90: 0 | M90: 0 | N90: 0 | O90: 0 | P90: 0 | Q90: 0 | R90: 0 | S90: 0 | T90: 0
A91: QSL | B91: RA4 | C91: YEOVIL DISTRICT HOSPITAL NHS FOUNDATION TRUST | D91: 23 | E91: 0.9130434783 | F91: 0.08695652174 | G91: 17 | H91: 4 | I91: 0 | J91: 1 | K91: 1 | L91: 0 | M91: 0 | N91: 23 | O91: 0 | P91: 0 | Q91: 0 | R91: 0 | S91: 0 | T91: 0
A92: QT1 | B92: RK5 | C92: SHERWOOD FOREST HOSPITALS NHS FOUNDATION TRUST | D92: 0 | E92: NA | F92: NA | G92: 0 | H92: 0 | I92: 0 | J92: 0 | K92: 0 | L92: 0 | M92: 0 | N92: 0 | O92: 0 | P92: 0 | Q92: 0 | R92: 0 | S92: 0 | T92: 0
A93: QT1 | B93: RX1 | C93: NOTTINGHAM UNIVERSITY HOSPITALS NHS TRUST | D93: 241 | E93: 0.9377593361 | F93: 0.02074688797 | G93: 182 | H93: 44 | I93: 9 | J93: 3 | K93: 2 | L93: 1 | M93: 0 | N93: 0 | O93: 0 | P93: 0 | Q93: 231 | R93: 0 | S93: 10 | T93: 0
A94: QT6 | B94: REF | C94: ROYAL CORNWALL HOSPITALS NHS TRUST | D94: 35 | E94: 0.9714285714 | F94: 0.02857142857 | G94: 23 | H94: 11 | I94: 0 | J94: 0 | K94: 1 | L94: 0 | M94: 0 | N94: 35 | O94: 0 | P94: 0 | Q94: 0 | R94: 0 | S94: 0 | T94: 0
A95: QU9 | B95: RTH | C95: OXFORD UNIVERSITY HOSPITALS NHS FOUNDATION TRUST | D95: 5 | E95: 0.8 | F95: 0.2 | G95: 3 | H95: 1 | I95: 0 | J95: 1 | K95: 0 | L95: 0 | M95: 0 | N95: 0 | O95: 0 | P95: 0 | Q95: 0 | R95: 0 | S95: 5 | T95: 0
A96: QU9 | B96: RHW | C96: ROYAL BERKSHIRE NHS FOUNDATION TRUST | D96: 6 | E96: 1 | F96: 0 | G96: 5 | H96: 1 | I96: 0 | J96: 0 | K96: 0 | L96: 0 | M96: 1 | N96: 0 | O96: 0 | P96: 4 | Q96: 0 | R96: 0 | S96: 1 | T96: 0
A97: QU9 | B97: RXQ | C97: BUCKINGHAMSHIRE HEALTHCARE NHS TRUST | D97: 137 | E97: 0.8321167883 | F97: 0.1167883212 | G97: 93 | H97: 21 | I97: 7 | J97: 12 | K97: 4 | L97: 0 | M97: 137 | N97: 0 | O97: 0 | P97: 0 | Q97: 0 | R97: 0 | S97: 0 | T97: 0
A98: QUA | B98: RNA | C98: THE DUDLEY GROUP NHS FOUNDATION TRUST | D98: 50 | E98: 0.96 | F98: 0 | G98: 39 | H98: 9 | I98: 0 | J98: 0 | K98: 0 | L98: 2 | M98: 11 | N98: 0 | O98: 0 | P98: 37 | Q98: 0 | R98: 0 | S98: 2 | T98: 0
A99: QUA | B99: RL4 | C99: THE ROYAL WOLVERHAMPTON NHS TRUST | D99: 57 | E99: 0.8245614035 | F99: 0.1754385965 | G99: 42 | H99: 5 | I99: 0 | J99: 7 | K99: 3 | L99: 0 | M99: 57 | N99: 0 | O99: 0 | P99: 0 | Q99: 0 | R99: 0 | S99: 0 | T99: 0
A100: QUA | B100: RBK | C100: WALSALL HEALTHCARE NHS TRUST | D100: 95 | E100: 0.9263157895 | F100: 0.04210526316 | G100: 66 | H100: 22 | I100: 2 | J100: 1 | K100: 3 | L100: 1 | M100: 93 | N100: 1 | O100: 0 | P100: 0 | Q100: 0 | R100: 1 | S100: 0 | T100: 0
A101: QUE | B101: RGT | C101: CAMBRIDGE UNIVERSITY HOSPITALS NHS FOUNDATION TRUST | D101: 5 | E101: 0.8 | F101: 0 | G101: 3 | H101: 1 | I101: 1 | J101: 0 | K101: 0 | L101: 0 | M101: 0 | N101: 4 | O101: 0 | P101: 0 | Q101: 0 | R101: 0 | S101: 1 | T101: 0
A102: QUE | B102: RGN | C102: NORTH WEST ANGLIA NHS FOUNDATION TRUST | D102: 398 | E102: 0.9623115578 | F102: 0.01005025126 | G102: 324 | H102: 59 | I102: 4 | J102: 2 | K102: 2 | L102: 7 | M102: 0 | N102: 0 | O102: 0 | P102: 396 | Q102: 0 | R102: 0 | S102: 2 | T102: 0
A103: QUY | B103: RVJ | C103: NORTH BRISTOL NHS TRUST | D103: 0 | E103: NA | F103: NA | G103: 0 | H103: 0 | I103: 0 | J103: 0 | K103: 0 | L103: 0 | M103: 0 | N103: 0 | O103: 0 | P103: 0 | Q103: 0 | R103: 0 | S103: 0 | T103: 0
A104: QUY | B104: RA7 | C104: UNIVERSITY HOSPITALS BRISTOL AND WESTON NHS FOUNDATION TRUST | D104: 17 | E104: 1 | F104: 0 | G104: 16 | H104: 1 | I104: 0 | J104: 0 | K104: 0 | L104: 0 | M104: 0 | N104: 0 | O104: 0 | P104: 17 | Q104: 0 | R104: 0 | S104: 0 | T104: 0
A105: QVV | B105: RBD | C105: DORSET COUNTY HOSPITAL NHS FOUNDATION TRUST | D105: 21 | E105: 1 | F105: 0 | G105: 17 | H105: 4 | I105: 0 | J105: 0 | K105: 0 | L105: 0 | M105: 21 | N105: 0 | O105: 0 | P105: 0 | Q105: 0 | R105: 0 | S105: 0 | T105: 0
A106: QVV | B106: R0D | C106: UNIVERSITY HOSPITALS DORSET NHS FOUNDATION TRUST | D106: 26 | E106: 0.9230769231 | F106: 0 | G106: 15 | H106: 9 | I106: 2 | J106: 0 | K106: 0 | L106: 0 | M106: 26 | N106: 0 | O106: 0 | P106: 0 | Q106: 0 | R106: 0 | S106: 0 | T106: 0
A107: QWE | B107: RJ7 | C107: ST GEORGE'S UNIVERSITY HOSPITALS NHS FOUNDATION TRUST | D107: 2 | E107: * | F107: * | G107: * | H107: * | I107: * | J107: * | K107: * | L107: * | M107: * | N107: * | O107: * | P107: * | Q107: * | R107: * | S107: * | T107: *
A108: QWE | B108: RVR | C108: EPSOM AND ST HELIER UNIVERSITY HOSPITALS NHS TRUST | D108: 10 | E108: 1 | F108: 0 | G108: * | H108: * | I108: * | J108: * | K108: * | L108: * | M108: * | N108: * | O108: * | P108: * | Q108: * | R108: * | S108: * | T108: *
A109: QWE | B109: RAX | C109: KINGSTON HOSPITAL NHS FOUNDATION TRUST | D109: 39 | E109: 0.8461538462 | F109: 0.1282051282 | G109: 32 | H109: 1 | I109: 1 | J109: 0 | K109: 5 | L109: 0 | M109: 0 | N109: 0 | O109: 0 | P109: 0 | Q109: 0 | R109: 0 | S109: 39 | T109: 0
A110: QWE | B110: RJ6 | C110: CROYDON HEALTH SERVICES NHS TRUST | D110: 65 | E110: 0.8307692308 | F110: 0.07692307692 | G110: 35 | H110: 19 | I110: 2 | J110: 3 | K110: 2 | L110: 4 | M110: 65 | N110: 0 | O110: 0 | P110: 0 | Q110: 0 | R110: 0 | S110: 0 | T110: 0
A111: QWO | B111: RAE | C111: BRADFORD TEACHING HOSPITALS NHS FOUNDATION TRUST | D111: 1 | E111: * | F111: * | G111: * | H111: * | I111: * | J111: * | K111: * | L111: * | M111: * | N111: * | O111: * | P111: * | Q111: * | R111: * | S111: * | T111: *
A112: QWO | B112: RR8 | C112: LEEDS TEACHING HOSPITALS NHS TRUST | D112: 69 | E112: 0.9565217391 | F112: 0.01449275362 | G112: * | H112: * | I112: * | J112: * | K112: * | L112: * | M112: * | N112: * | O112: * | P112: * | Q112: * | R112: * | S112: * | T112: *
A113: QWO | B113: RWY | C113: CALDERDALE AND HUDDERSFIELD NHS FOUNDATION TRUST | D113: 79 | E113: 0.9493670886 | F113: 0.01265822785 | G113: 66 | H113: 9 | I113: 2 | J113: 0 | K113: 1 | L113: 1 | M113: 0 | N113: 0 | O113: 0 | P113: 0 | Q113: 0 | R113: 0 | S113: 79 | T113: 0
A114: QWO | B114: RXF | C114: MID YORKSHIRE HOSPITALS NHS TRUST | D114: 556 | E114: 0.9622302158 | F114: 0.02338129496 | G114: 440 | H114: 95 | I114: 8 | J114: 6 | K114: 7 | L114: 0 | M114: 50 | N114: 0 | O114: 0 | P114: 486 | Q114: 0 | R114: 0 | S114: 20 | T114: 0
A115: QWU | B115: RJC | C115: SOUTH WARWICKSHIRE UNIVERSITY NHS FOUNDATION TRUST | D115: 21 | E115: 0.8095238095 | F115: 0.1428571429 | G115: 17 | H115: 0 | I115: 0 | J115: 0 | K115: 3 | L115: 1 | M115: 0 | N115: 0 | O115: 0 | P115: 21 | Q115: 0 | R115: 0 | S115: 0 | T115: 0
A116: QWU | B116: RKB | C116: UNIVERSITY HOSPITALS COVENTRY AND WARWICKSHIRE NHS TRUST | D116: 213 | E116: 0.9201877934 | F116: 0.06572769953 | G116: 131 | H116: 65 | I116: 3 | J116: 2 | K116: 12 | L116: 0 | M116: 51 | N116: 142 | O116: 0 | P116: 0 | Q116: 0 | R116: 0 | S116: 20 | T116: 0
A117: QXU | B117: RTK | C117: ASHFORD AND ST PETER'S HOSPITALS NHS FOUNDATION TRUST | D117: 0 | E117: NA | F117: NA | G117: 0 | H117: 0 | I117: 0 | J117: 0 | K117: 0 | L117: 0 | M117: 0 | N117: 0 | O117: 0 | P117: 0 | Q117: 0 | R117: 0 | S117: 0 | T117: 0
A118: QXU | B118: RA2 | C118: ROYAL SURREY COUNTY HOSPITAL NHS FOUNDATION TRUST | D118: 1 | E118: * | F118: * | G118: * | H118: * | I118: * | J118: * | K118: * | L118: * | M118: * | N118: * | O118: * | P118: * | Q118: * | R118: * | S118: * | T118: *
A119: QXU | B119: RTP | C119: SURREY AND SUSSEX HEALTHCARE NHS TRUST | D119: 25 | E119: 1 | F119: 0 | G119: * | H119: * | I119: * | J119: * | K119: * | L119: * | M119: * | N119: * | O119: * | P119: * | Q119: * | R119: * | S119: * | T119: *
A120: QYG | B120: RJN | C120: EAST CHESHIRE NHS TRUST | D120: 0 | E120: NA | F120: NA | G120: 0 | H120: 0 | I120: 0 | J120: 0 | K120: 0 | L120: 0 | M120: 0 | N120: 0 | O120: 0 | P120: 0 | Q120: 0 | R120: 0 | S120: 0 | T120: 0
A121: QYG | B121: RVY | C121: SOUTHPORT AND ORMSKIRK HOSPITAL NHS TRUST | D121: 2 | E121: * | F121: * | G121: * | H121: * | I121: * | J121: * | K121: * | L121: * | M121: * | N121: * | O121: * | P121: * | Q121: * | R121: * | S121: * | T121: *
A122: QYG | B122: REP | C122: LIVERPOOL WOMEN'S NHS FOUNDATION TRUST | D122: 19 | E122: 0.8421052632 | F122: 0.1578947368 | G122: * | H122: * | I122: * | J122: * | K122: * | L122: * | M122: * | N122: * | O122: * | P122: * | Q122: * | R122: * | S122: * | T122: *
A123: QYG | B123: RBN | C123: ST HELENS AND KNOWSLEY TEACHING HOSPITALS NHS TRUST | D123: 26 | E123: 0.9615384615 | F123: 0.03846153846 | G123: 20 | H123: 5 | I123: 0 | J123: 1 | K123: 0 | L123: 0 | M123: 0 | N123: 0 | O123: 0 | P123: 17 | Q123: 0 | R123: 0 | S123: 9 | T123: 0
A124: QYG | B124: RBT | C124: MID CHESHIRE HOSPITALS NHS FOUNDATION TRUST | D124: 31 | E124: 0.9032258065 | F124: 0.06451612903 | G124: 23 | H124: 5 | I124: 0 | J124: 1 | K124: 1 | L124: 1 | M124: 31 | N124: 0 | O124: 0 | P124: 0 | Q124: 0 | R124: 0 | S124: 0 | T124: 0
A125: QYG | B125: RBL | C125: WIRRAL UNIVERSITY TEACHING HOSPITAL NHS FOUNDATION TRUST | D125: 42 | E125: 0.880952381 | F125: 0.07142857143 | G125: 34 | H125: 3 | I125: 2 | J125: 2 | K125: 1 | L125: 0 | M125: 31 | N125: 0 | O125: 0 | P125: 11 | Q125: 0 | R125: 0 | S125: 0 | T125: 0

Sheet Sites Q1
B6: Sort data by:
A9: ICB Code | B9: Trust Code | C9: Trust Name | D9: Site Code | E9: Site Name | F9: Total Responses | G9: Percentage Positive | H9: Percentage Negative | I9: Breakdown of Responses
I10: Very Good | J10: Good | K10: Neither Good nor Poor | L10: Poor | M10: Very Poor | N10: Don't Know
E11: England (including Independent Sector providers) | F11: 4892 | G11: 0.9045380213 | H11: 0.05621422731 | I11: 3438 | J11: 987 | K11: 156 | L11: 125 | M11: 150 | N11: 36
E12: England (excluding Independent Sector providers) | F12: 4892 | G12: 0.9045380213 | H12: 0.05621422731 | I12: 3438 | J12: 987 | K12: 156 | L12: 125 | M12: 150 | N12: 36
E13: Selection (excluding suppressed data) | F13: =SUBTOTAL(9,F14:F297) -> 4892 | G13: =IFERROR((I13+J13)/SUM(I13:N13), "-") -> 0.9081287998 | H13: =IFERROR((L13+M13)/SUM(I13:N13), "-") -> 0.0526908354 | I13: =SUBTOTAL(9,I14:I297) -> 3131 | J13: 902 | K13: 139 | L13: 103 | M13: 131 | N13: 35
A14: QE1 | B14: RXL | C14: BLACKPOOL TEACHING HOSPITALS NHS FOUNDATION TRUST | D14: RXL01 | E14: Blackpool Victoria Hospital | F14: 17 | G14: 0.7647058824 | H14: 0.1176470588 | I14: 9 | J14: 4 | K14: 2 | L14: 0 | M14: 2 | N14: 0
A15: QE1 | B15: RXR | C15: EAST LANCASHIRE HOSPITALS NHS TRUST | D15: RXR20 | E15: Royal Blackburn Hospital | F15: 83 | G15: 0.9518072289 | H15: 0.03614457831 | I15: 66 | J15: 13 | K15: 0 | L15: 1 | M15: 2 | N15: 1
A16: QE1 | B16: RXN | C16: LANCASHIRE TEACHING HOSPITALS NHS FOUNDATION TRUST | D16: RXN01 | E16: Chorley and South Ribble Hospital | F16: 0 | G16: NA | H16: NA | I16: 0 | J16: 0 | K16: 0 | L16: 0 | M16: 0 | N16: 0
A17: QE1 | B17: RXN | C17: LANCASHIRE TEACHING HOSPITALS NHS FOUNDATION TRUST | D17: RXN02 | E17: Royal Preston Hospital | F17: 17 | G17: 0.7058823529 | H17: 0.2352941176 | I17: 6 | J17: 6 | K17: 1 | L17: 1 | M17: 3 | N17: 0
A18: QE1 | B18: RTX | C18: UNIVERSITY HOSPITALS OF MORECAMBE BAY NHS FOUNDATION TRUST | D18: RTXBU | E18: Furness General Hospital | F18: 4 | G18: * | H18: * | I18: * | J18: * | K18: * | L18: * | M18: * | N18: *
A19: QE1 | B19: RTX | C19: UNIVERSITY HOSPITALS OF MORECAMBE BAY NHS FOUNDATION TRUST | D19: RTX02 | E19: Royal Lancaster Infirmary | F19: 2 | G19: * | H19: * | I19: * | J19: * | K19: * | L19: * | M19: * | N19: *
A20: QF7 | B20: RFF | C20: BARNSLEY HOSPITAL NHS FOUNDATION TRUST | D20: RFFAA | E20: Barnsley Hospital NHS Foundation Trust HQ | F20: 1 | G20: * | H20: * | I20: * | J20: * | K20: * | L20: * | M20: * | N20: *
A21: QF7 | B21: RP5 | C21: DONCASTER AND BASSETLAW TEACHING HOSPITALS NHS FOUNDATION TRUST | D21: RP5BA | E21: Bassetlaw Hospital | F21: 0 | G21: NA | H21: NA | I21: 0 | J21: 0 | K21: 0 | L21: 0 | M21: 0 | N21: 0
A22: QF7 | B22: RP5 | C22: DONCASTER AND BASSETLAW TEACHING HOSPITALS NHS FOUNDATION TRUST | D22: RP5DR | E22: Doncaster Royal Infirmary | F22: 2 | G22: * | H22: * | I22: * | J22: * | K22: * | L22: * | M22: * | N22: *
A23: QF7 | B23: RP5 | C23: DONCASTER AND BASSETLAW TEACHING HOSPITALS NHS FOUNDATION TRUST | D23: RP5XXX | E23: Non-hospital site | F23: 5 | G23: 1 | H23: 0 | I23: * | J23: * | K23: * | L23: * | M23: * | N23: *
A24: QF7 | B24: RHQ | C24: SHEFFIELD TEACHING HOSPITALS NHS FOUNDATION TRUST | D24: RHQHH | E24: Royal Hallamshire Hospital | F24: 53 | G24: 0.8490566038 | H24: 0.09433962264 | I24: 37 | J24: 8 | K24: 3 | L24: 3 | M24: 2 | N24: 0
A25: QF7 | B25: RFR | C25: THE ROTHERHAM NHS FOUNDATION TRUST | D25: RFRPA | E25: Rotherham District General Hospital | F25: 18 | G25: 0.9444444444 | H25: 0 | I25: 15 | J25: 2 | K25: 1 | L25: 0 | M25: 0 | N25: 0
A26: QGH | B26: RWP | C26: WORCESTERSHIRE ACUTE HOSPITALS NHS TRUST | D26: RWP01 | E26: Alexandra Hospital | F26: 0 | G26: NA | H26: NA | I26: 0 | J26: 0 | K26: 0 | L26: 0 | M26: 0 | N26: 0
A27: QGH | B27: RWP | C27: WORCESTERSHIRE ACUTE HOSPITALS NHS TRUST | D27: RWP31 | E27: Kidderminster Hospital | F27: 0 | G27: NA | H27: NA | I27: 0 | J27: 0 | K27: 0 | L27: 0 | M27: 0 | N27: 0
A28: QGH | B28: RWP | C28: WORCESTERSHIRE ACUTE HOSPITALS NHS TRUST | D28: RWP50 | E28: Worcestershire Royal Hospital | F28: 0 | G28: NA | H28: NA | I28: 0 | J28: 0 | K28: 0 | L28: 0 | M28: 0 | N28: 0
A29: QGH | B29: RLQ | C29: WYE VALLEY NHS TRUST | D29: RLQ01 | E29: Hereford County Hospital | F29: 0 | G29: NA | H29: NA | I29: 0 | J29: 0 | K29: 0 | L29: 0 | M29: 0 | N29: 0
A30: QH8 | B30: RAJ | C30: MID AND SOUTH ESSEX NHS FOUNDATION TRUST | D30: RAJ12 | E30: BASILDON HOSPITAL | F30: 0 | G30: NA | H30: NA | I30: 0 | J30: 0 | K30: 0 | L30: 0 | M30: 0 | N30: 0
A31: QH8 | B31: RAJ | C31: MID AND SOUTH ESSEX NHS FOUNDATION TRUST | D31: RAJ32 | E31: MID ESSEX HOSPITAL | F31: 1 | G31: * | H31: * | I31: * | J31: * | K31: * | L31: * | M31: * | N31: *
A32: QH8 | B32: RAJ | C32: MID AND SOUTH ESSEX NHS FOUNDATION TRUST | D32: RAJ01 | E32: Southend Hospital | F32: 0 | G32: NA | H32: NA | I32: 0 | J32: 0 | K32: 0 | L32: 0 | M32: 0 | N32: 0
A33: QHG | B33: RC9 | C33: BEDFORDSHIRE HOSPITALS NHS FOUNDATION TRUST | D33: RC979 | E33: BEDFORD HOSPITAL SOUTH WING | F33: 0 | G33: NA | H33: NA | I33: 0 | J33: 0 | K33: 0 | L33: 0 | M33: 0 | N33: 0
A34: QHG | B34: RC9 | C34: BEDFORDSHIRE HOSPITALS NHS FOUNDATION TRUST | D34: RC971 | E34: Luton and Dunstable Hospital | F34: 28 | G34: 0.7142857143 | H34: 0.1071428571 | I34: 7 | J34: 13 | K34: 5 | L34: 1 | M34: 2 | N34: 0
A35: QHG | B35: RD8 | C35: MILTON KEYNES UNIVERSITY HOSPITAL NHS FOUNDATION TRUST | D35: RD816 | E35: Milton Keynes Hospital | F35: 220 | G35: 0.9318181818 | H35: 0.02272727273 | I35: 154 | J35: 51 | K35: 8 | L35: 1 | M35: 4 | N35: 2
A36: QHL | B36: RQ3 | C36: BIRMINGHAM WOMEN'S AND CHILDREN'S NHS FOUNDATION TRUST | D36: RQ370 | E36: Birmingham Women's Hospital | F36: 137 | G36: 0.9124087591 | H36: 0.06569343066 | I36: 93 | J36: 32 | K36: 3 | L36: 6 | M36: 3 | N36: 0
A37: QHL | B37: RXK | C37: SANDWELL AND WEST BIRMINGHAM HOSPITALS NHS TRUST | D37: RXK02 | E37: City Hospital | F37: 117 | G37: 0.7777777778 | H37: 0.1282051282 | I37: 69 | J37: 22 | K37: 5 | L37: 3 | M37: 12 | N37: 6
A38: QHL | B38: RXK | C38: SANDWELL AND WEST BIRMINGHAM HOSPITALS NHS TRUST | D38: RXK01 | E38: Sandwell General Hospital | F38: 43 | G38: 0.8604651163 | H38: 0.04651162791 | I38: 27 | J38: 10 | K38: 1 | L38: 2 | M38: 0 | N38: 3
A39: QHL | B39: RRK | C39: UNIVERSITY HOSPITALS BIRMINGHAM NHS FOUNDATION TRUST | D39: RRK98 | E39: Good Hope Hospital | F39: 0 | G39: NA | H39: NA | I39: 0 | J39: 0 | K39: 0 | L39: 0 | M39: 0 | N39: 0
A40: QHL | B40: RRK | C40: UNIVERSITY HOSPITALS BIRMINGHAM NHS FOUNDATION TRUST | D40: RRK97 | E40: Heartlands Hospital | F40: 0 | G40: NA | H40: NA | I40: 0 | J40: 0 | K40: 0 | L40: 0 | M40: 0 | N40: 0
A41: QHL | B41: RRK | C41: UNIVERSITY HOSPITALS BIRMINGHAM NHS FOUNDATION TRUST | D41: RRK99 | E41: Solihull Hospital | F41: 0 | G41: NA | H41: NA | I41: 0 | J41: 0 | K41: 0 | L41: 0 | M41: 0 | N41: 0
A42: QHM | B42: RR7 | C42: GATESHEAD HEALTH NHS FOUNDATION TRUST | D42: RR7EN | E42: Queen Elizabeth Hospital | F42: 2 | G42: * | H42: * | I42: * | J42: * | K42: * | L42: * | M42: * | N42: *
A43: QHM | B43: RVW | C43: NORTH TEES AND HARTLEPOOL NHS FOUNDATION TRUST | D43: RVWAE | E43: University Hospital Of North Tees | F43: 7 | G43: 0.5714285714 | H43: 0.2857142857 | I43: 4 | J43: 0 | K43: 1 | L43: 1 | M43: 1 | N43: 0
A44: QHM | B44: RTF | C44: NORTHUMBRIA HEALTHCARE NHS FOUNDATION TRUST | D44: RTFXXX | E44: Non-hospital site | F44: 0 | G44: NA | H44: NA | I44: 0 | J44: 0 | K44: 0 | L44: 0 | M44: 0 | N44: 0
A45: QHM | B45: RTR | C45: SOUTH TEES HOSPITALS NHS FOUNDATION TRUST | D45: RTR45 | E45: Friarage Hospital Site | F45: 1 | G45: * | H45: * | I45: * | J45: * | K45: * | L45: * | M45: * | N45: *
A46: QHM | B46: RTR | C46: SOUTH TEES HOSPITALS NHS FOUNDATION TRUST | D46: RTRAT | E46: The James Cook University Hospital | F46: 17 | G46: 1 | H46: 0 | I46: * | J46: * | K46: * | L46: * | M46: * | N46: *
A47: QHM | B47: R0B | C47: SOUTH TYNESIDE AND SUNDERLAND NHS FOUNDATION TRUST | D47: R0BXXX | E47: Non-hospital site | F47: 2 | G47: * | H47: * | I47: * | J47: * | K47: * | L47: * | M47: * | N47: *
A48: QHM | B48: R0B | C48: SOUTH TYNESIDE AND SUNDERLAND NHS FOUNDATION TRUST | D48: R0B0Q | E48: South Tyneside District Hospital | F48: 1 | G48: * | H48: * | I48: * | J48: * | K48: * | L48: * | M48: * | N48: *
A49: QHM | B49: R0B | C49: SOUTH TYNESIDE AND SUNDERLAND NHS FOUNDATION TRUST | D49: R0B01 | E49: Sunderland Royal Hospital | F49: 3 | G49: * | H49: * | I49: * | J49: * | K49: * | L49: * | M49: * | N49: *
A50: QHM | B50: RTD | C50: THE NEWCASTLE UPON TYNE HOSPITALS NHS FOUNDATION TRUST | D50: RTD02 | E50: The Royal Victoria Infirmary | F50: 0 | G50: NA | H50: NA | I50: 0 | J50: 0 | K50: 0 | L50: 0 | M50: 0 | N50: 0
A51: QJ2 | B51: RFS | C51: CHESTERFIELD ROYAL HOSPITAL NHS FOUNDATION TRUST | D51: RFSDA | E51: Chesterfield Royal Hospital | F51: 2 | G51: * | H51: * | I51: * | J51: * | K51: * | L51: * | M51: * | N51: *
A52: QJ2 | B52: RTG | C52: UNIVERSITY HOSPITALS OF DERBY AND BURTON NHS FOUNDATION TRUST | D52: RTG02 | E52: Queens Hospital, Burton Upon Trent | F52: 45 | G52: 0.7777777778 | H52: 0.1333333333 | I52: * | J52: * | K52: * | L52: * | M52: * | N52: *
A53: QJ2 | B53: RTG | C53: UNIVERSITY HOSPITALS OF DERBY AND BURTON NHS FOUNDATION TRUST | D53: RTGFG | E53: Royal Derby Hospital | F53: 48 | G53: 0.875 | H53: 0.08333333333 | I53: * | J53: * | K53: * | L53: * | M53: * | N53: *
A54: QJG | B54: RDE | C54: EAST SUFFOLK AND NORTH ESSEX NHS FOUNDATION TRUST | D54: RDEE4 | E54: Colchester General Hospital | F54: 0 | G54: NA | H54: NA | I54: 0 | J54: 0 | K54: 0 | L54: 0 | M54: 0 | N54: 0
A55: QJG | B55: RDE | C55: EAST SUFFOLK AND NORTH ESSEX NHS FOUNDATION TRUST | D55: RDE03 | E55: Ipswich Hospital | F55: 11 | G55: 1 | H55: 0 | I55: 8 | J55: 3 | K55: 0 | L55: 0 | M55: 0 | N55: 0
A56: QJG | B56: RGR | C56: WEST SUFFOLK NHS FOUNDATION TRUST | D56: RGR50 | E56: West Suffolk Hospital | F56: 14 | G56: 0.9285714286 | H56: 0 | I56: 10 | J56: 3 | K56: 1 | L56: 0 | M56: 0 | N56: 0
A57: QJK | B57: RH8 | C57: ROYAL DEVON UNIVERSITY HEALTHCARE NHS FOUNDATION TRUST | D57: RH880 | E57: North Devon District Hospital | F57: 6 | G57: 1 | H57: 0 | I57: 6 | J57: 0 | K57: 0 | L57: 0 | M57: 0 | N57: 0
A58: QJK | B58: RH8 | C58: ROYAL DEVON UNIVERSITY HEALTHCARE NHS FOUNDATION TRUST | D58: RH801 | E58: Royal Devon and Exeter Hospital (Wonford) | F58: 10 | G58: 0.2 | H58: 0 | I58: 0 | J58: 2 | K58: 8 | L58: 0 | M58: 0 | N58: 0
A59: QJK | B59: RK9 | C59: UNIVERSITY HOSPITALS PLYMOUTH NHS TRUST | D59: RK950 | E59: Derriford Hospital | F59: 0 | G59: NA | H59: NA | I59: 0 | J59: 0 | K59: 0 | L59: 0 | M59: 0 | N59: 0
A60: QJK | B60: RK9 | C60: UNIVERSITY HOSPITALS PLYMOUTH NHS TRUST | D60: RK9XXX | E60: Non-hospital site | F60: 8 | G60: 1 | H60: 0 | I60: 7 | J60: 1 | K60: 0 | L60: 0 | M60: 0 | N60: 0
A61: QJM | B61: RWD | C61: UNITED LINCOLNSHIRE HOSPITALS NHS TRUST | D61: RWDLP | E61: Grantham and District Hospital | F61: 0 | G61: NA | H61: NA | I61: 0 | J61: 0 | K61: 0 | L61: 0 | M61: 0 | N61: 0
A62: QJM | B62: RWD | C62: UNITED LINCOLNSHIRE HOSPITALS NHS TRUST | D62: RWDDA | E62: Lincoln County Hospital | F62: 0 | G62: NA | H62: NA | I62: 0 | J62: 0 | K62: 0 | L62: 0 | M62: 0 | N62: 0
A63: QJM | B63: RWD | C63: UNITED LINCOLNSHIRE HOSPITALS NHS TRUST | D63: RWDLA | E63: Pilgrim Hospital | F63: 0 | G63: NA | H63: NA | I63: 0 | J63: 0 | K63: 0 | L63: 0 | M63: 0 | N63: 0
A64: QK1 | B64: RWE | C64: UNIVERSITY HOSPITALS OF LEICESTER NHS TRUST | D64: RWEAK | E64: Leicester General Hospital | F64: 30 | G64: 0.9666666667 | H64: 0.03333333333 | I64: 25 | J64: 4 | K64: 0 | L64: 0 | M64: 1 | N64: 0
A65: QK1 | B65: RWE | C65: UNIVERSITY HOSPITALS OF LEICESTER NHS TRUST | D65: RWEAA | E65: Leicester Royal Infirmary | F65: 35 | G65: 0.9714285714 | H65: 0 | I65: 22 | J65: 12 | K65: 1 | L65: 0 | M65: 0 | N65: 0
A66: QK1 | B66: RWE | C66: UNIVERSITY HOSPITALS OF LEICESTER NHS TRUST | D66: RWEXXX | E66: Non-hospital site | F66: 11 | G66: 0.9090909091 | H66: 0 | I66: 9 | J66: 1 | K66: 1 | L66: 0 | M66: 0 | N66: 0
A67: QKK | B67: RJ1 | C67: GUY'S AND ST THOMAS' NHS FOUNDATION TRUST | D67: RJ122 | E67: St Thomas' Hospital | F67: 41 | G67: 0.8780487805 | H67: 0.0487804878 | I67: 23 | J67: 13 | K67: 3 | L67: 1 | M67: 1 | N67: 0
A68: QKK | B68: RJZ | C68: KING'S COLLEGE HOSPITAL NHS FOUNDATION TRUST | D68: RJZ01 | E68: King's College Hospital (Denmark Hill) | F68: 12 | G68: 0.9166666667 | H68: 0.08333333333 | I68: 2 | J68: 9 | K68: 0 | L68: 1 | M68: 0 | N68: 0
A69: QKK | B69: RJZ | C69: KING'S COLLEGE HOSPITAL NHS FOUNDATION TRUST | D69: RJZ30 | E69: Princess Royal University Hospital | F69: 20 | G69: 0.6 | H69: 0.2 | I69: 8 | J69: 4 | K69: 4 | L69: 0 | M69: 4 | N69: 0
A70: QKK | B70: RJ2 | C70: LEWISHAM AND GREENWICH NHS TRUST | D70: RJ231 | E70: Queen Elizabeth Hospital | F70: 2 | G70: * | H70: * | I70: * | J70: * | K70: * | L70: * | M70: * | N70: *
A71: QKK | B71: RJ2 | C71: LEWISHAM AND GREENWICH NHS TRUST | D71: RJ224 | E71: University Hospital Lewisham | F71: 37 | G71: 0.972972973 | H71: 0 | I71: * | J71: * | K71: * | L71: * | M71: * | N71: *
A72: QKS | B72: RN7 | C72: DARTFORD AND GRAVESHAM NHS TRUST | D72: RN707 | E72: Darent Valley Hospital | F72: 2 | G72: * | H72: * | I72: * | J72: * | K72: * | L72: * | M72: * | N72: *
A73: QKS | B73: RVV | C73: EAST KENT HOSPITALS UNIVERSITY NHS FOUNDATION TRUST | D73: RVV01 | E73: William Harvey Hospital (Ashford) | F73: 309 | G73: 0.9417475728 | H73: 0.0355987055 | I73: 210 | J73: 81 | K73: 7 | L73: 6 | M73: 5 | N73: 0
A74: QKS | B74: RWF | C74: MAIDSTONE AND TUNBRIDGE WELLS NHS TRUST | D74: RWF03 | E74: Maidstone District General Hospital | F74: 1 | G74: * | H74: * | I74: * | J74: * | K74: * | L74: * | M74: * | N74: *
A75: QKS | B75: RWF | C75: MAIDSTONE AND TUNBRIDGE WELLS NHS TRUST | D75: RWFXXX | E75: Non-hospital site | F75: 3 | G75: * | H75: * | I75: * | J75: * | K75: * | L75: * | M75: * | N75: *
A76: QKS | B76: RWF | C76: MAIDSTONE AND TUNBRIDGE WELLS NHS TRUST | D76: RWFTW | E76: The Tunbridge Wells Hospital | F76: 3 | G76: * | H76: * | I76: * | J76: * | K76: * | L76: * | M76: * | N76: *
A77: QKS | B77: RPA | C77: MEDWAY NHS FOUNDATION TRUST | D77: RPA02 | E77: Medway Maritime Hospital | F77: 66 | G77: 1 | H77: 0 | I77: 65 | J77: 1 | K77: 0 | L77: 0 | M77: 0 | N77: 0
A78: QM7 | B78: RWH | C78: EAST AND NORTH HERTFORDSHIRE NHS TRUST | D78: RWH01 | E78: Lister Hospital | F78: 0 | G78: NA | H78: NA | I78: 0 | J78: 0 | K78: 0 | L78: 0 | M78: 0 | N78: 0
A79: QM7 | B79: RWH | C79: EAST AND NORTH HERTFORDSHIRE NHS TRUST | D79: RWHXXX | E79: Non-hospital site | F79: 0 | G79: NA | H79: NA | I79: 0 | J79: 0 | K79: 0 | L79: 0 | M79: 0 | N79: 0
A80: QM7 | B80: RQW | C80: THE PRINCESS ALEXANDRA HOSPITAL NHS TRUST | D80: RQWG0 | E80: Princess Alexandra Hospital | F80: 0 | G80: NA | H80: NA | I80: 0 | J80: 0 | K80: 0 | L80: 0 | M80: 0 | N80: 0
A81: QM7 | B81: RWG | C81: WEST HERTFORDSHIRE TEACHING HOSPITALS NHS TRUST | D81: RWG02 | E81: Watford General Hospital | F81: 6 | G81: 1 | H81: 0 | I81: * | J81: * | K81: * | L81: * | M81: * | N81: *
A82: QMF | B82: RF4 | C82: BARKING, HAVERING AND REDBRIDGE UNIVERSITY HOSPITALS NHS TRUST | D82: RF4XXX | E82: Non-hospital site | F82: 23 | G82: 0.8695652174 | H82: 0.08695652174 | I82: 15 | J82: 5 | K82: 1 | L82: 0 | M82: 2 | N82: 0
A83: QMF | B83: R1H | C83: BARTS HEALTH NHS TRUST | D83: R1HNH | E83: Newham General Hospital | F83: 47 | G83: 0.8085106383 | H83: 0.1489361702 | I83: 28 | J83: 10 | K83: 1 | L83: 5 | M83: 2 | N83: 1
A84: QMF | B84: R1H | C84: BARTS HEALTH NHS TRUST | D84: R1H12 | E84: The Royal London Hospital | F84: 26 | G84: 0.7692307692 | H84: 0.1538461538 | I84: 11 | J84: 9 | K84: 2 | L84: 0 | M84: 4 | N84: 0
A85: QMF | B85: R1H | C85: BARTS HEALTH NHS TRUST | D85: R1HKH | E85: Whipps Cross University Hospital | F85: 23 | G85: 1 | H85: 0 | I85: 18 | J85: 5 | K85: 0 | L85: 0 | M85: 0 | N85: 0
A86: QMF | B86: RQX | C86: HOMERTON HEALTHCARE NHS FOUNDATION TRUST | D86: RQXM1 | E86: Homerton University Hospital | F86: 11 | G86: 0.6363636364 | H86: 0.09090909091 | I86: 5 | J86: 2 | K86: 3 | L86: 1 | M86: 0 | N86: 0
A87: QMJ | B87: RAP | C87: NORTH MIDDLESEX UNIVERSITY HOSPITAL NHS TRUST | D87: RAPNM | E87: North Middlesex Hospital | F87: 47 | G87: 0.8510638298 | H87: 0.1063829787 | I87: 31 | J87: 9 | K87: 2 | L87: 2 | M87: 3 | N87: 0
A88: QMJ | B88: RAL | C88: ROYAL FREE LONDON NHS FOUNDATION TRUST | D88: RAL26 | E88: Barnet Hospital | F88: 0 | G88: NA | H88: NA | I88: 0 | J88: 0 | K88: 0 | L88: 0 | M88: 0 | N88: 0
A89: QMJ | B89: RAL | C89: ROYAL FREE LONDON NHS FOUNDATION TRUST | D89: RAL01 | E89: Royal Free Hospital | F89: 3 | G89: * | H89: * | I89: * | J89: * | K89: * | L89: * | M89: * | N89: *
A90: QMJ | B90: RRV | C90: UNIVERSITY COLLEGE LONDON HOSPITALS NHS FOUNDATION TRUST | D90: RRV11 | E90: University College Hospital Elizabeth Garrett Anderson Wing | F90: 2 | G90: * | H90: * | I90: * | J90: * | K90: * | L90: * | M90: * | N90: *
A91: QMM | B91: RGP | C91: JAMES PAGET UNIVERSITY HOSPITALS NHS FOUNDATION TRUST | D91: RGP75 | E91: James Paget University Hospital | F91: 0 | G91: NA | H91: NA | I91: 0 | J91: 0 | K91: 0 | L91: 0 | M91: 0 | N91: 0
A92: QMM | B92: RM1 | C92: NORFOLK AND NORWICH UNIVERSITY HOSPITALS NHS FOUNDATION TRUST | D92: RM102 | E92: Norfolk and Norwich University Hospital | F92: 31 | G92: 0.8709677419 | H92: 0.03225806452 | I92: 17 | J92: 10 | K92: 3 | L92: 0 | M92: 1 | N92: 0
A93: QMM | B93: RCX | C93: THE QUEEN ELIZABETH HOSPITAL, KING'S LYNN, NHS FOUNDATION TRUST | D93: RCXXXX | E93: Non-hospital site | F93: 48 | G93: 1 | H93: 0 | I93: 45 | J93: 3 | K93: 0 | L93: 0 | M93: 0 | N93: 0
A94: QMM | B94: RCX | C94: THE QUEEN ELIZABETH HOSPITAL, KING'S LYNN, NHS FOUNDATION TRUST | D94: RCX66 | E94: North Cambridgeshire Hospital | F94: 0 | G94: NA | H94: NA | I94: 0 | J94: 0 | K94: 0 | L94: 0 | M94: 0 | N94: 0
A95: QMM | B95: RCX | C95: THE QUEEN ELIZABETH HOSPITAL, KING'S LYNN, NHS FOUNDATION TRUST | D95: RCX70 | E95: The Queen Elizabeth Hospital | F95: 0 | G95: NA | H95: NA | I95: 0 | J95: 0 | K95: 0 | L95: 0 | M95: 0 | N95: 0
A96: QNC | B96: RJE | C96: UNIVERSITY HOSPITALS OF NORTH MIDLANDS NHS TRUST | D96: RJE01 | E96: Royal Stoke University Hospital | F96: 1 | G96: * | H96: * | I96: * | J96: * | K96: * | L96: * | M96: * | N96: *
A97: QNQ | B97: RDU | C97: FRIMLEY HEALTH NHS FOUNDATION TRUST | D97: RDU01 | E97: Frimley Park Hospital | F97: 6 | G97: 1 | H97: 0 | I97: * | J97: * | K97: * | L97: * | M97: * | N97: *
A98: QNQ | B98: RDU | C98: FRIMLEY HEALTH NHS FOUNDATION TRUST | D98: RDU50 | E98: Wexham Park Hospital | F98: 1 | G98: * | H98: * | I98: * | J98: * | K98: * | L98: * | M98: * | N98: *
A99: QNX | B99: RXC | C99: EAST SUSSEX HEALTHCARE NHS TRUST | D99: RXC01 | E99: Conquest Hospital | F99: 0 | G99: NA | H99: NA | I99: 0 | J99: 0 | K99: 0 | L99: 0 | M99: 0 | N99: 0
A100: QNX | B100: RXC | C100: EAST SUSSEX HEALTHCARE NHS TRUST | D100: RXC02 | E100: Eastbourne District General Hospital | F100: 0 | G100: NA | H100: NA | I100: 0 | J100: 0 | K100: 0 | L100: 0 | M100: 0 | N100: 0
A101: QNX | B101: RXC | C101: EAST SUSSEX HEALTHCARE NHS TRUST | D101: RXCXXX | E101: Non-hospital site | F101: 0 | G101: NA | H101: NA | I101: 0 | J101: 0 | K101: 0 | L101: 0 | M101: 0 | N101: 0
A102: QNX | B102: RYR | C102: UNIVERSITY HOSPITALS SUSSEX NHS FOUNDATION TRUST | D102: E0A3H | E102: Royal Sussex County Hospital | F102: 1 | G102: * | H102: * | I102: * | J102: * | K102: * | L102: * | M102: * | N102: *
A103: QOC | B103: RXW | C103: THE SHREWSBURY AND TELFORD HOSPITAL NHS TRUST | D103: RXWXXX | E103: Non-hospital site | F103: 69 | G103: 0.9565217391 | H103: 0.01449275362 | I103: 59 | J103: 7 | K103: 2 | L103: 1 | M103: 0 | N103: 0
A104: QOP | B104: RMC | C104: BOLTON NHS FOUNDATION TRUST | D104: RMC01 | E104: Royal Bolton Hospital | F104: 42 | G104: 0.8095238095 | H104: 0.04761904762 | I104: 18 | J104: 16 | K104: 4 | L104: 2 | M104: 0 | N104: 2
A105: QOP | B105: R0A | C105: MANCHESTER UNIVERSITY NHS FOUNDATION TRUST | D105: R0A05 | E105: St Mary's Hospital | F105: 181 | G105: 0.7016574586 | H105: 0.2209944751 | I105: 79 | J105: 48 | K105: 13 | L105: 18 | M105: 22 | N105: 1
A106: QOP | B106: RM3 | C106: NORTHERN CARE ALLIANCE NHS FOUNDATION TRUST | D106: RW603 | E106: Royal Oldham Hospital | F106: 1 | G106: * | H106: * | I106: * | J106: * | K106: * | L106: * | M106: * | N106: *
A107: QOP | B107: RWJ | C107: STOCKPORT NHS FOUNDATION TRUST | D107: RWJ09 | E107: Stepping Hill Hospital | F107: 4 | G107: * | H107: * | I107: * | J107: * | K107: * | L107: * | M107: * | N107: *
A108: QOP | B108: RRF | C108: WRIGHTINGTON, WIGAN AND LEIGH NHS FOUNDATION TRUST | D108: RRF02 | E108: Royal Albert Edward Infirmary | F108: 0 | G108: NA | H108: NA | I108: 0 | J108: 0 | K108: 0 | L108: 0 | M108: 0 | N108: 0
A109: QOQ | B109: RCD | C109: HARROGATE AND DISTRICT NHS FOUNDATION TRUST | D109: RCD01 | E109: Harrogate District Hospital | F109: 1 | G109: * | H109: * | I109: * | J109: * | K109: * | L109: * | M109: * | N109: *
A110: QOQ | B110: RWA | C110: HULL UNIVERSITY TEACHING HOSPITALS NHS TRUST | D110: RWA01 | E110: Hull Royal Infirmary | F110: 4 | G110: * | H110: * | I110: * | J110: * | K110: * | L110: * | M110: * | N110: *
A111: QOQ | B111: RJL | C111: NORTHERN LINCOLNSHIRE AND GOOLE NHS FOUNDATION TRUST | D111: RJL30 | E111: Diana, Princess Of Wales Hospital | F111: 1 | G111: * | H111: * | I111: * | J111: * | K111: * | L111: * | M111: * | N111: *
A112: QOQ | B112: RJL | C112: NORTHERN LINCOLNSHIRE AND GOOLE NHS FOUNDATION TRUST | D112: RJL32 | E112: Scunthorpe General Hospital | F112: 15 | G112: 0.9333333333 | H112: 0.06666666667 | I112: * | J112: * | K112: * | L112: * | M112: * | N112: *
A113: QOQ | B113: RCB | C113: YORK AND SCARBOROUGH TEACHING HOSPITALS NHS FOUNDATION TRUST | D113: RCBCA | E113: Scarborough General Hospital | F113: 0 | G113: NA | H113: NA | I113: 0 | J113: 0 | K113: 0 | L113: 0 | M113: 0 | N113: 0
A114: QOQ | B114: RCB | C114: YORK AND SCARBOROUGH TEACHING HOSPITALS NHS FOUNDATION TRUST | D114: RCB55 | E114: York Hospital | F114: 0 | G114: NA | H114: NA | I114: 0 | J114: 0 | K114: 0 | L114: 0 | M114: 0 | N114: 0
A115: QOX | B115: RN3 | C115: GREAT WESTERN HOSPITALS NHS FOUNDATION TRUST | D115: RN325 | E115: The Great Western Hospital | F115: 39 | G115: 0.9487179487 | H115: 0.05128205128 | I115: 34 | J115: 3 | K115: 0 | L115: 2 | M115: 0 | N115: 0
A116: QOX | B116: RD1 | C116: ROYAL UNITED HOSPITALS BATH NHS FOUNDATION TRUST | D116: RD121 | E116: Frome Community Hospital | F116: 1 | G116: * | H116: * | I116: * | J116: * | K116: * | L116: * | M116: * | N116: *
A117: QOX | B117: RD1 | C117: ROYAL UNITED HOSPITALS BATH NHS FOUNDATION TRUST | D117: RD130 | E117: Princess Anne Wing RUH | F117: 1 | G117: * | H117: * | I117: * | J117: * | K117: * | L117: * | M117: * | N117: *
A118: QOX | B118: RNZ | C118: SALISBURY NHS FOUNDATION TRUST | D118: RNZ02 | E118: Salisbury District Hospital | F118: 1 | G118: * | H118: * | I118: * | J118: * | K118: * | L118: * | M118: * | N118: *
A119: QPM | B119: RNQ | C119: KETTERING GENERAL HOSPITAL NHS FOUNDATION TRUST | D119: RNQ51 | E119: Kettering General Hospital | F119: 1 | G119: * | H119: * | I119: * | J119: * | K119: * | L119: * | M119: * | N119: *
A120: QPM | B120: RNS | C120: NORTHAMPTON GENERAL HOSPITAL NHS TRUST | D120: RNS01 | E120: Northampton General Hospital (Acute) | F120: 2 | G120: * | H120: * | I120: * | J120: * | K120: * | L120: * | M120: * | N120: *
A121: QRL | B121: RN5 | C121: HAMPSHIRE HOSPITALS NHS FOUNDATION TRUST | D121: RN542 | E121: Andover War Memorial Hospital | F121: 0 | G121: NA | H121: NA | I121: 0 | J121: 0 | K121: 0 | L121: 0 | M121: 0 | N121: 0
A122: QRL | B122: RN5 | C122: HAMPSHIRE HOSPITALS NHS FOUNDATION TRUST | D122: RN506 | E122: Basingstoke and North Hampshire Hospital | F122: 22 | G122: 1 | H122: 0 | I122: * | J122: * | K122: * | L122: * | M122: * | N122: *
A123: QRL | B123: RN5 | C123: HAMPSHIRE HOSPITALS NHS FOUNDATION TRUST | D123: RN5XXX | E123: Non-hospital site | F123: 0 | G123: NA | H123: NA | I123: 0 | J123: 0 | K123: 0 | L123: 0 | M123: 0 | N123: 0
A124: QRL | B124: RN5 | C124: HAMPSHIRE HOSPITALS NHS FOUNDATION TRUST | D124: RN541 | E124: Royal Hampshire County Hospital | F124: 2 | G124: * | H124: * | I124: * | J124: * | K124: * | L124: * | M124: * | N124: *
A125: QRL | B125: R1F | C125: ISLE OF WIGHT NHS TRUST | D125: R1F01 | E125: St Mary's Hospital | F125: 9 | G125: 1 | H125: 0 | I125: 9 | J125: 0 | K125: 0 | L125: 0 | M125: 0 | N125: 0
A126: QRL | B126: RHU | C126: PORTSMOUTH HOSPITALS UNIVERSITY NATIONAL HEALTH SERVICE TRUST | D126: RHU10 | E126: Gosport War Memorial Hospital | F126: 8 | G126: 1 | H126: 0 | I126: 5 | J126: 3 | K126: 0 | L126: 0 | M126: 0 | N126: 0
A127: QRL | B127: RHU | C127: PORTSMOUTH HOSPITALS UNIVERSITY NATIONAL HEALTH SERVICE TRUST | D127: RHU04 | E127: Petersfield Community Hospital | F127: 5 | G127: 1 | H127: 0 | I127: 4 | J127: 1 | K127: 0 | L127: 0 | M127: 0 | N127: 0
A128: QRL | B128: RHU | C128: PORTSMOUTH HOSPITALS UNIVERSITY NATIONAL HEALTH SERVICE TRUST | D128: RHU03 | E128: Queen Alexandra Hospital | F128: 22 | G128: 1 | H128: 0 | I128: 20 | J128: 2 | K128: 0 | L128: 0 | M128: 0 | N128: 0
A129: QRL | B129: RHU | C129: PORTSMOUTH HOSPITALS UNIVERSITY NATIONAL HEALTH SERVICE TRUST | D129: RHU02 | E129: St Mary's Hospital | F129: 20 | G129: 1 | H129: 0 | I129: 15 | J129: 5 | K129: 0 | L129: 0 | M129: 0 | N129: 0
A130: QRL | B130: RHM | C130: UNIVERSITY HOSPITAL SOUTHAMPTON NHS FOUNDATION TRUST | D130: RHM01 | E130: Southampton General Hospital | F130: 111 | G130: 0.9459459459 | H130: 0.01801801802 | I130: 64 | J130: 41 | K130: 3 | L130: 2 | M130: 0 | N130: 1
A131: QRV | B131: RQM | C131: CHELSEA AND WESTMINSTER HOSPITAL NHS FOUNDATION TRUST | D131: RQM01 | E131: Chelsea and Westminster Hospital | F131: 28 | G131: 0.7142857143 | H131: 0.2142857143 | I131: * | J131: * | K131: * | L131: * | M131: * | N131: *
A132: QRV | B132: RQM | C132: CHELSEA AND WESTMINSTER HOSPITAL NHS FOUNDATION TRUST | D132: RQM91 | E132: West Middlesex University Hospital | F132: 13 | G132: 0.6923076923 | H132: 0.1538461538 | I132: * | J132: * | K132: * | L132: * | M132: * | N132: *
A133: QRV | B133: RYJ | C133: IMPERIAL COLLEGE HEALTHCARE NHS TRUST | D133: RYJ04 | E133: Queen Charlotte's Hospital | F133: 41 | G133: 0.9268292683 | H133: 0 | I133: 33 | J133: 5 | K133: 3 | L133: 0 | M133: 0 | N133: 0
A134: QRV | B134: RYJ | C134: IMPERIAL COLLEGE HEALTHCARE NHS TRUST | D134: RYJ01 | E134: St Mary's Hospital (HQ) | F134: 36 | G134: 0.8333333333 | H134: 0.1388888889 | I134: 26 | J134: 4 | K134: 1 | L134: 1 | M134: 4 | N134: 0
A135: QRV | B135: R1K | C135: LONDON NORTH WEST UNIVERSITY HEALTHCARE NHS TRUST | D135: R1K01 | E135: Northwick Park Hospital | F135: 1 | G135: * | H135: * | I135: * | J135: * | K135: * | L135: * | M135: * | N135: *
A136: QRV | B136: RAS | C136: THE HILLINGDON HOSPITALS NHS FOUNDATION TRUST | D136: RAS01 | E136: Hillingdon Hospital | F136: 121 | G136: 0.9338842975 | H136: 0.03305785124 | I136: 85 | J136: 28 | K136: 4 | L136: 1 | M136: 3 | N136: 0
A137: QSL | B137: RH5 | C137: SOMERSET NHS FOUNDATION TRUST | D137: RH5K6 | E137: Bridgwater Hospital | F137: 0 | G137: NA | H137: NA | I137: 0 | J137: 0 | K137: 0 | L137: 0 | M137: 0 | N137: 0
A138: QSL | B138: RH5 | C138: SOMERSET NHS FOUNDATION TRUST | D138: RH5A8 | E138: MUSGROVE PARK HOSPITAL | F138: 0 | G138: NA | H138: NA | I138: 0 | J138: 0 | K138: 0 | L138: 0 | M138: 0 | N138: 0
A139: QSL | B139: RH5 | C139: SOMERSET NHS FOUNDATION TRUST | D139: RH5XXX | E139: WiC MIU - RH5XXX | F139: 0 | G139: NA | H139: NA | I139: 0 | J139: 0 | K139: 0 | L139: 0 | M139: 0 | N139: 0
A140: QSL | B140: RA4 | C140: YEOVIL DISTRICT HOSPITAL NHS FOUNDATION TRUST | D140: RA430 | E140: Yeovil District Hospital | F140: 23 | G140: 0.9130434783 | H140: 0.08695652174 | I140: 17 | J140: 4 | K140: 0 | L140: 1 | M140: 1 | N140: 0
A141: QT1 | B141: RX1 | C141: NOTTINGHAM UNIVERSITY HOSPITALS NHS TRUST | D141: RX1XXX | E141: Non-hospital site | F141: 241 | G141: 0.9377593361 | H141: 0.02074688797 | I141: 182 | J141: 44 | K141: 9 | L141: 3 | M141: 2 | N141: 1
A142: QT1 | B142: RK5 | C142: SHERWOOD FOREST HOSPITALS NHS FOUNDATION TRUST | D142: RK5BC | E142: King's Mill Hospital | F142: 0 | G142: NA | H142: NA | I142: 0 | J142: 0 | K142: 0 | L142: 0 | M142: 0 | N142: 0
A143: QT6 | B143: REF | C143: ROYAL CORNWALL HOSPITALS NHS TRUST | D143: REFXXX | E143: Non-hospital site | F143: 5 | G143: 1 | H143: 0 | I143: 4 | J143: 1 | K143: 0 | L143: 0 | M143: 0 | N143: 0
A144: QT6 | B144: REF | C144: ROYAL CORNWALL HOSPITALS NHS TRUST | D144: REF12 | E144: Royal Cornwall Hospital (Treliske) | F144: 30 | G144: 0.9666666667 | H144: 0.03333333333 | I144: 19 | J144: 10 | K144: 0 | L144: 0 | M144: 1 | N144: 0
A145: QU9 | B145: RXQ | C145: BUCKINGHAMSHIRE HEALTHCARE NHS TRUST | D145: RXQ02 | E145: Stoke Mandeville Hospital | F145: 73 | G145: 0.8356164384 | H145: 0.1095890411 | I145: 48 | J145: 13 | K145: 4 | L145: 4 | M145: 4 | N145: 0
A146: QU9 | B146: RXQ | C146: BUCKINGHAMSHIRE HEALTHCARE NHS TRUST | D146: RXQ50 | E146: Wycombe Hospital | F146: 64 | G146: 0.828125 | H146: 0.125 | I146: 45 | J146: 8 | K146: 3 | L146: 8 | M146: 0 | N146: 0
A147: QU9 | B147: RTH | C147: OXFORD UNIVERSITY HOSPITALS NHS FOUNDATION TRUST | D147: RTH05 | E147: Horton General Hospital | F147: 4 | G147: * | H147: * | I147: * | J147: * | K147: * | L147: * | M147: * | N147: *
A148: QU9 | B148: RTH | C148: OXFORD UNIVERSITY HOSPITALS NHS FOUNDATION TRUST | D148: RTH08 | E148: John Radcliffe Hospital | F148: 1 | G148: * | H148: * | I148: * | J148: * | K148: * | L148: * | M148: * | N148: *
A149: QU9 | B149: RHW | C149: ROYAL BERKSHIRE NHS FOUNDATION TRUST | D149: RHW01 | E149: Royal Berkshire Hospital | F149: 6 | G149: 1 | H149: 0 | I149: 5 | J149: 1 | K149: 0 | L149: 0 | M149: 0 | N149: 0
A150: QUA | B150: RNA | C150: THE DUDLEY GROUP NHS FOUNDATION TRUST | D150: RNA01 | E150: Russells Hall Hospital | F150: 50 | G150: 0.96 | H150: 0 | I150: 39 | J150: 9 | K150: 0 | L150: 0 | M150: 0 | N150: 2
A151: QUA | B151: RL4 | C151: THE ROYAL WOLVERHAMPTON NHS TRUST | D151: RL403 | E151: New Cross Hospital | F151: 57 | G151: 0.8245614035 | H151: 0.1754385965 | I151: 42 | J151: 5 | K151: 0 | L151: 7 | M151: 3 | N151: 0
A152: QUA | B152: RBK | C152: WALSALL HEALTHCARE NHS TRUST | D152: RBK02 | E152: Manor Hospital | F152: 95 | G152: 0.9263157895 | H152: 0.04210526316 | I152: 66 | J152: 22 | K152: 2 | L152: 1 | M152: 3 | N152: 1
A153: QUE | B153: RGT | C153: CAMBRIDGE UNIVERSITY HOSPITALS NHS FOUNDATION TRUST | D153: RGT32 | E153: Rosie Hospital | F153: 5 | G153: 0.8 | H153: 0 | I153: 3 | J153: 1 | K153: 1 | L153: 0 | M153: 0 | N153: 0
A154: QUE | B154: RGN | C154: NORTH WEST ANGLIA NHS FOUNDATION TRUST | D154: RGN90 | E154: Hinchingbrooke Hospital | F154: 274 | G154: 0.9817518248 | H154: 0.003649635036 | I154: 257 | J154: 12 | K154: 1 | L154: 0 | M154: 1 | N154: 3
A155: QUE | B155: RGN | C155: NORTH WEST ANGLIA NHS FOUNDATION TRUST | D155: RGN80 | E155: Peterborough City Hospital | F155: 124 | G155: 0.9193548387 | H155: 0.02419354839 | I155: 67 | J155: 47 | K155: 3 | L155: 2 | M155: 1 | N155: 4
A156: QUY | B156: RVJ | C156: NORTH BRISTOL NHS TRUST | D156: RVJ01 | E156: Southmead Hospital | F156: 0 | G156: NA | H156: NA | I156: 0 | J156: 0 | K156: 0 | L156: 0 | M156: 0 | N156: 0
A157: QUY | B157: RA7 | C157: UNIVERSITY HOSPITALS BRISTOL AND WESTON NHS FOUNDATION TRUST | D157: RA707 | E157: St Michael's Hospital | F157: 17 | G157: 1 | H157: 0 | I157: 16 | J157: 1 | K157: 0 | L157: 0 | M157: 0 | N157: 0
A158: QVV | B158: RBD | C158: DORSET COUNTY HOSPITAL NHS FOUNDATION TRUST | D158: RBD01 | E158: Dorset County Hospital | F158: 21 | G158: 1 | H158: 0 | I158: 17 | J158: 4 | K158: 0 | L158: 0 | M158: 0 | N158: 0
A159: QVV | B159: R0D | C159: UNIVERSITY HOSPITALS DORSET NHS FOUNDATION TRUST | D159: R0D01 | E159: Poole Hospital | F159: 26 | G159: 0.9230769231 | H159: 0 | I159: 15 | J159: 9 | K159: 2 | L159: 0 | M159: 0 | N159: 0
A160: QVV | B160: R0D | C160: UNIVERSITY HOSPITALS DORSET NHS FOUNDATION TRUST | D160: R0D02 | E160: Royal Bournemouth Hospital | F160: 0 | G160: NA | H160: NA | I160: 0 | J160: 0 | K160: 0 | L160: 0 | M160: 0 | N160: 0
A161: QWE | B161: RJ6 | C161: CROYDON HEALTH SERVICES NHS TRUST | D161: RJ611 | E161: Croydon University Hospital | F161: 65 | G161: 0.8307692308 | H161: 0.07692307692 | I161: 35 | J161: 19 | K161: 2 | L161: 3 | M161: 2 | N161: 4
A162: QWE | B162: RVR | C162: EPSOM AND ST HELIER UNIVERSITY HOSPITALS NHS TRUST | D162: RVR50 | E162: Epsom Hospital | F162: 1 | G162: * | H162: * | I162: * | J162: * | K162: * | L162: * | M162: * | N162: *
A163: QWE | B163: RVR | C163: EPSOM AND ST HELIER UNIVERSITY HOSPITALS NHS TRUST | D163: RVRXXX | E163: Non-hospital site | F163: 0 | G163: NA | H163: NA | I163: 0 | J163: 0 | K163: 0 | L163: 0 | M163: 0 | N163: 0
A164: QWE | B164: RVR | C164: EPSOM AND ST HELIER UNIVERSITY HOSPITALS NHS TRUST | D164: RVR05 | E164: St Helier Hospital | F164: 9 | G164: 1 | H164: 0 | I164: * | J164: * | K164: * | L164: * | M164: * | N164: *
A165: QWE | B165: RAX | C165: KINGSTON HOSPITAL NHS FOUNDATION TRUST | D165: RAX01 | E165: Kingston Hospital | F165: 39 | G165: 0.8461538462 | H165: 0.1282051282 | I165: 32 | J165: 1 | K165: 1 | L165: 0 | M165: 5 | N165: 0
A166: QWE | B166: RJ7 | C166: ST GEORGE'S UNIVERSITY HOSPITALS NHS FOUNDATION TRUST | D166: RJ701 | E166: St George's Hospital (Tooting) | F166: 2 | G166: * | H166: * | I166: * | J166: * | K166: * | L166: * | M166: * | N166: *
A167: QWO | B167: RAE | C167: BRADFORD TEACHING HOSPITALS NHS FOUNDATION TRUST | D167: RAE01 | E167: Bradford Royal Infirmary | F167: 1 | G167: * | H167: * | I167: * | J167: * | K167: * | L167: * | M167: * | N167: *
A168: QWO | B168: RWY | C168: CALDERDALE AND HUDDERSFIELD NHS FOUNDATION TRUST | D168: RWY02 | E168: Calderdale Royal Hospital | F168: 64 | G168: 0.953125 | H168: 0.015625 | I168: 54 | J168: 7 | K168: 1 | L168: 0 | M168: 1 | N168: 1
A169: QWO | B169: RWY | C169: CALDERDALE AND HUDDERSFIELD NHS FOUNDATION TRUST | D169: RWY01 | E169: Huddersfield Royal Infirmary | F169: 14 | G169: 0.9285714286 | H169: 0 | I169: * | J169: * | K169: * | L169: * | M169: * | N169: *
A170: QWO | B170: RWY | C170: CALDERDALE AND HUDDERSFIELD NHS FOUNDATION TRUST | D170: RWYXXX | E170: Non-hospital site | F170: 1 | G170: * | H170: * | I170: * | J170: * | K170: * | L170: * | M170: * | N170: *
A171: QWO | B171: RR8 | C171: LEEDS TEACHING HOSPITALS NHS TRUST | D171: RR801 | E171: Leeds General Infirmary | F171: 0 | G171: NA | H171: NA | I171: 0 | J171: 0 | K171: 0 | L171: 0 | M171: 0 | N171: 0
A172: QWO | B172: RR8 | C172: LEEDS TEACHING HOSPITALS NHS TRUST | D172: RR8XXX | E172: Non-hospital site | F172: 69 | G172: 0.9565217391 | H172: 0.01449275362 | I172: * | J172: * | K172: * | L172: * | M172: * | N172: *
A173: QWO | B173: RR8 | C173: LEEDS TEACHING HOSPITALS NHS TRUST | D173: RR813 | E173: St James's University Hospital | F173: 0 | G173: NA | H173: NA | I173: 0 | J173: 0 | K173: 0 | L173: 0 | M173: 0 | N173: 0
A174: QWO | B174: RXF | C174: MID YORKSHIRE HOSPITALS NHS TRUST | D174: RXF10 | E174: Dewsbury and District Hospital | F174: 274 | G174: 0.9781021898 | H174: 0.003649635036 | I174: 208 | J174: 60 | K174: 5 | L174: 1 | M174: 0 | N174: 0
A175: QWO | B175: RXF | C175: MID YORKSHIRE HOSPITALS NHS TRUST | D175: RXF05 | E175: Pinderfields General Hospital | F175: 146 | G175: 0.9452054795 | H175: 0.04794520548 | I175: 121 | J175: 17 | K175: 1 | L175: 2 | M175: 5 | N175: 0
A176: QWO | B176: RXF | C176: MID YORKSHIRE HOSPITALS NHS TRUST | D176: RXF03 | E176: Pontefract General Infirmary | F176: 136 | G176: 0.9485294118 | H176: 0.03676470588 | I176: 111 | J176: 18 | K176: 2 | L176: 3 | M176: 2 | N176: 0
A177: QWU | B177: RJC | C177: SOUTH WARWICKSHIRE UNIVERSITY NHS FOUNDATION TRUST | D177: RJCXXX | E177: Non-hospital site | F177: 0 | G177: NA | H177: NA | I177: 0 | J177: 0 | K177: 0 | L177: 0 | M177: 0 | N177: 0
A178: QWU | B178: RJC | C178: SOUTH WARWICKSHIRE UNIVERSITY NHS FOUNDATION TRUST | D178: RJC02 | E178: Warwick Hospital | F178: 21 | G178: 0.8095238095 | H178: 0.1428571429 | I178: 17 | J178: 0 | K178: 0 | L178: 0 | M178: 3 | N178: 1
A179: QWU | B179: RKB | C179: UNIVERSITY HOSPITALS COVENTRY AND WARWICKSHIRE NHS TRUST | D179: RKB03 | E179: Hospital Of St Cross | F179: 0 | G179: NA | H179: NA | I179: 0 | J179: 0 | K179: 0 | L179: 0 | M179: 0 | N179: 0
A180: QWU | B180: RKB | C180: UNIVERSITY HOSPITALS COVENTRY AND WARWICKSHIRE NHS TRUST | D180: RKBXXX | E180: Non-hospital site | F180: 34 | G180: 0.9411764706 | H180: 0.05882352941 | I180: 26 | J180: 6 | K180: 0 | L180: 0 | M180: 2 | N180: 0
A181: QWU | B181: RKB | C181: UNIVERSITY HOSPITALS COVENTRY AND WARWICKSHIRE NHS TRUST | D181: RKB01 | E181: University Hospital (Coventry) | F181: 179 | G181: 0.9162011173 | H181: 0.06703910615 | I181: 105 | J181: 59 | K181: 3 | L181: 2 | M181: 10 | N181: 0
A182: QXU | B182: RTK | C182: ASHFORD AND ST PETER'S HOSPITALS NHS FOUNDATION TRUST | D182: RTK02 | E182: Ashford Hospital | F182: 0 | G182: NA | H182: NA | I182: 0 | J182: 0 | K182: 0 | L182: 0 | M182: 0 | N182: 0
A183: QXU | B183: RA2 | C183: ROYAL SURREY COUNTY HOSPITAL NHS FOUNDATION TRUST | D183: RA201 | E183: Royal Surrey County Hospital | F183: 1 | G183: * | H183: * | I183: * | J183: * | K183: * | L183: * | M183: * | N183: *
A184: QXU | B184: RTP | C184: SURREY AND SUSSEX HEALTHCARE NHS TRUST | D184: RTP04 | E184: East Surrey Hospital | F184: 25 | G184: 1 | H184: 0 | I184: * | J184: * | K184: * | L184: * | M184: * | N184: *
A185: QYG | B185: RJN | C185: EAST CHESHIRE NHS TRUST | D185: RJN71 | E185: Macclesfield District General Hospital | F185: 0 | G185: NA | H185: NA | I185: 0 | J185: 0 | K185: 0 | L185: 0 | M185: 0 | N185: 0
A186: QYG | B186: REP | C186: LIVERPOOL WOMEN'S NHS FOUNDATION TRUST | D186: REP01 | E186: Liverpool Womens Hospital | F186: 19 | G186: 0.8421052632 | H186: 0.1578947368 | I186: * | J186: * | K186: * | L186: * | M186: * | N186: *
A187: QYG | B187: RBT | C187: MID CHESHIRE HOSPITALS NHS FOUNDATION TRUST | D187: RBT20 | E187: Leighton Hospital | F187: 31 | G187: 0.9032258065 | H187: 0.06451612903 | I187: 23 | J187: 5 | K187: 0 | L187: 1 | M187: 1 | N187: 1
A188: QYG | B188: RVY | C188: SOUTHPORT AND ORMSKIRK HOSPITAL NHS TRUST | D188: RVY02 | E188: Ormskirk and District General Hospital | F188: 2 | G188: * | H188: * | I188: * | J188: * | K188: * | L188: * | M188: * | N188: *
A189: QYG | B189: RBN | C189: ST HELENS AND KNOWSLEY TEACHING HOSPITALS NHS TRUST | D189: RBN01 | E189: Whiston Hospital | F189: 26 | G189: 0.9615384615 | H189: 0.03846153846 | I189: 20 | J189: 5 | K189: 0 | L189: 1 | M189: 0 | N189: 0
A190: QYG | B190: RBL | C190: WIRRAL UNIVERSITY TEACHING HOSPITAL NHS FOUNDATION TRUST | D190: RBL14 | E190: Arrowe Park Hospital | F190: 42 | G190: 0.880952381 | H190: 0.07142857143 | I190: 34 | J190: 3 | K190: 2 | L190: 2 | M190: 1 | N190: 0

Sheet ICB Q2
B6: Sort data by:
A9: ICB Code | B9: ICB Name | C9: Total Responses | D9: Total Eligible | E9: Percentage Positive | F9: Percentage Negative | G9: Breakdown of Responses
G10: Very Good | H10: Good | I10: Neither Good nor Poor | J10: Poor | K10: Very Poor | L10: Don't Know
B11: England (including Independent Sector providers) | C11: 5494 | D11: 43445 | E11: 0.9251911176 | F11: 0.04368401893 | G11: 4272 | H11: 811 | I11: 144 | J11: 109 | K11: 131 | L11: 27
B12: England (excluding Independent Sector providers) | C12: 5494 | D12: 43445 | E12: 0.9251911176 | F12: 0.04368401893 | G12: 4272 | H12: 811 | I12: 144 | J12: 109 | K12: 131 | L12: 27
B13: Selection (excluding suppressed data) | C13: =SUBTOTAL(9,C14:C55) -> 5494 | D13: =SUBTOTAL(9,D14:D55) -> 43445 | E13: =IFERROR((G13+H13)/SUM(G13:L13), "-") -> 0.9254329991 | F13: =IFERROR((J13+K13)/SUM(G13:L13), "-") -> 0.04357338195 | G13: =SUBTOTAL(9,G14:G55) -> 4267 | H13: =SUBTOTAL(9,H14:H55) -> 809 | I13: 143 | J13: 108 | K13: 131 | L13: 27
A14: QE1 | B14: LANCASHIRE AND SOUTH CUMBRIA ICB | C14: 129 | D14: 1061 | E14: 0.9302325581 | F14: 0.02325581395 | G14: 106 | H14: 14 | I14: 3 | J14: 2 | K14: 1 | L14: 3
A15: QF7 | B15: SOUTH YORKSHIRE ICB | C15: 115 | D15: 1336 | E15: 0.9391304348 | F15: 0.0347826087 | G15: 96 | H15: 12 | I15: 2 | J15: 1 | K15: 3 | L15: 1
A16: QGH | B16: HEREFORDSHIRE AND WORCESTERSHIRE ICB | C16: 11 | D16: 173 | E16: 1 | F16: 0 | G16: 9 | H16: 2 | I16: 0 | J16: 0 | K16: 0 | L16: 0
A17: QH8 | B17: MID AND SOUTH ESSEX ICB | C17: 159 | D17: 509 | E17: 0.8867924528 | F17: 0.05031446541 | G17: 127 | H17: 14 | I17: 9 | J17: 4 | K17: 4 | L17: 1
A18: QHG | B18: BEDFORDSHIRE, LUTON AND MILTON KEYNES ICB | C18: 180 | D18: 1393 | E18: 0.9333333333 | F18: 0.04444444444 | G18: 128 | H18: 40 | I18: 4 | J18: 2 | K18: 6 | L18: 0
A19: QHL | B19: BIRMINGHAM AND SOLIHULL ICB | C19: 101 | D19: 1879 | E19: 0.8415841584 | F19: 0.1188118812 | G19: 71 | H19: 14 | I19: 3 | J19: 2 | K19: 10 | L19: 1
A20: QHM | B20: NORTH EAST AND NORTH CUMBRIA ICB | C20: 208 | D20: 2386 | E20: 0.9182692308 | F20: 0.03846153846 | G20: 156 | H20: 35 | I20: 9 | J20: 5 | K20: 3 | L20: 0
A21: QJ2 | B21: DERBY AND DERBYSHIRE ICB | C21: 6 | D21: 755 | E21: 0.8333333333 | F21: 0.1666666667 | G21: * | H21: * | I21: * | J21: * | K21: * | L21: *
A22: QJG | B22: SUFFOLK AND NORTH EAST ESSEX ICB | C22: 59 | D22: 936 | E22: 0.9661016949 | F22: 0.01694915254 | G22: 47 | H22: 10 | I22: 1 | J22: 0 | K22: 1 | L22: 0
A23: QJK | B23: DEVON ICB | C23: 1 | D23: 622 | E23: * | F23: * | G23: * | H23: * | I23: * | J23: * | K23: * | L23: *
A24: QJM | B24: LINCOLNSHIRE ICB | C24: 11 | D24: 354 | E24: 0.9090909091 | F24: 0 | G24: 9 | H24: 1 | I24: 0 | J24: 0 | K24: 0 | L24: 1
A25: QK1 | B25: LEICESTER, LEICESTERSHIRE AND RUTLAND ICB | C25: 221 | D25: 742 | E25: 0.9230769231 | F25: 0.02714932127 | G25: 170 | H25: 34 | I25: 8 | J25: 4 | K25: 2 | L25: 3
A26: QKK | B26: SOUTH EAST LONDON ICB | C26: 284 | D26: 1438 | E26: 0.8943661972 | F26: 0.05985915493 | G26: 189 | H26: 65 | I26: 11 | J26: 10 | K26: 7 | L26: 2
A27: QKS | B27: KENT AND MEDWAY ICB | C27: 106 | D27: 1300 | E27: 0.9716981132 | F27: 0.01886792453 | G27: 96 | H27: 7 | I27: 1 | J27: 0 | K27: 2 | L27: 0
A28: QM7 | B28: HERTFORDSHIRE AND WEST ESSEX ICB | C28: 52 | D28: 1082 | E28: 0.8269230769 | F28: 0.07692307692 | G28: 25 | H28: 18 | I28: 5 | J28: 2 | K28: 2 | L28: 0
A29: QMF | B29: NORTH EAST LONDON ICB | C29: 386 | D29: 2328 | E29: 0.9300518135 | F29: 0.04404145078 | G29: 294 | H29: 65 | I29: 9 | J29: 4 | K29: 13 | L29: 1
A30: QMJ | B30: NORTH CENTRAL LONDON ICB | C30: 303 | D30: 1138 | E30: 0.9075907591 | F30: 0.05280528053 | G30: 178 | H30: 97 | I30: 11 | J30: 8 | K30: 8 | L30: 1
A31: QMM | B31: NORFOLK AND WAVENEY ICB | C31: 47 | D31: 758 | E31: 0.9574468085 | F31: 0.04255319149 | G31: 42 | H31: 3 | I31: 0 | J31: 1 | K31: 1 | L31: 0
A32: QNC | B32: STAFFORDSHIRE AND STOKE-ON-TRENT ICB | C32: 2 | D32: 415 | E32: * | F32: * | G32: * | H32: * | I32: * | J32: * | K32: * | L32: *
A33: QNQ | B33: FRIMLEY ICB | C33: 9 | D33: 0 | E33: 1 | F33: 0 | G33: 9 | H33: 0 | I33: 0 | J33: 0 | K33: 0 | L33: 0
A34: QNX | B34: SUSSEX ICB | C34: 165 | D34: 1023 | E34: 0.9333333333 | F34: 0.02424242424 | G34: 136 | H34: 18 | I34: 7 | J34: 1 | K34: 3 | L34: 0
A35: QOC | B35: SHROPSHIRE, TELFORD AND WREKIN ICB | C35: 22 | D35: 356 | E35: 1 | F35: 0 | G35: 22 | H35: 0 | I35: 0 | J35: 0 | K35: 0 | L35: 0
A36: QOP | B36: GREATER MANCHESTER ICB | C36: 253 | D36: 2537 | E36: 0.8418972332 | F36: 0.1185770751 | G36: 185 | H36: 28 | I36: 10 | J36: 13 | K36: 17 | L36: 0
A37: QOQ | B37: HUMBER AND NORTH YORKSHIRE ICB | C37: 66 | D37: 1220 | E37: 0.9848484848 | F37: 0 | G37: 62 | H37: 3 | I37: 0 | J37: 0 | K37: 0 | L37: 1
A38: QOX | B38: BATH AND NORTH EAST SOMERSET, SWINDON AND WILTSHIRE ICB | C38: 95 | D38: 855 | E38: 0.9473684211 | F38: 0.02105263158 | G38: 80 | H38: 10 | I38: 3 | J38: 0 | K38: 2 | L38: 0
A39: QPM | B39: NORTHAMPTONSHIRE ICB | C39: 56 | D39: 655 | E39: 0.9107142857 | F39: 0.07142857143 | G39: 40 | H39: 11 | I39: 1 | J39: 3 | K39: 1 | L39: 0
A40: QR1 | B40: GLOUCESTERSHIRE ICB | C40: 51 | D40: 67 | E40: 0.9607843137 | F40: 0 | G40: 38 | H40: 11 | I40: 2 | J40: 0 | K40: 0 | L40: 0
A41: QRL | B41: HAMPSHIRE AND ISLE OF WIGHT ICB | C41: 217 | D41: 1394 | E41: 0.9861751152 | F41: 0.009216589862 | G41: 187 | H41: 27 | I41: 1 | J41: 1 | K41: 1 | L41: 0
A42: QRV | B42: NORTH WEST LONDON ICB | C42: 192 | D42: 1578 | E42: 0.9322916667 | F42: 0.03125 | G42: 148 | H42: 31 | I42: 7 | J42: 2 | K42: 4 | L42: 0
A43: QSL | B43: SOMERSET ICB | C43: 12 | D43: 232 | E43: 1 | F43: 0 | G43: 10 | H43: 2 | I43: 0 | J43: 0 | K43: 0 | L43: 0
A44: QT1 | B44: NOTTINGHAM AND NOTTINGHAMSHIRE ICB | C44: 82 | D44: 917 | E44: 0.9390243902 | F44: 0.0487804878 | G44: 64 | H44: 13 | I44: 1 | J44: 4 | K44: 0 | L44: 0
A45: QT6 | B45: CORNWALL AND THE ISLES OF SCILLY ICB | C45: 12 | D45: 337 | E45: 1 | F45: 0 | G45: 12 | H45: 0 | I45: 0 | J45: 0 | K45: 0 | L45: 0
A46: QU9 | B46: BUCKINGHAMSHIRE, OXFORDSHIRE AND BERKSHIRE WEST ICB | C46: 201 | D46: 1265 | E46: 0.8955223881 | F46: 0.05472636816 | G46: 144 | H46: 36 | I46: 10 | J46: 6 | K46: 5 | L46: 0
A47: QUA | B47: BLACK COUNTRY ICB | C47: 183 | D47: 985 | E47: 0.868852459 | F47: 0.07103825137 | G47: 130 | H47: 29 | I47: 7 | J47: 10 | K47: 3 | L47: 4
A48: QUE | B48: CAMBRIDGESHIRE AND PETERBOROUGH ICB | C48: 115 | D48: 1122 | E48: 0.9739130435 | F48: 0.02608695652 | G48: 105 | H48: 7 | I48: 0 | J48: 2 | K48: 1 | L48: 0
A49: QUY | B49: BRISTOL, NORTH SOMERSET AND SOUTH GLOUCESTERSHIRE ICB | C49: 153 | D49: 888 | E49: 0.9411764706 | F49: 0.03921568627 | G49: 125 | H49: 19 | I49: 3 | J49: 2 | K49: 4 | L49: 0
A50: QVV | B50: DORSET ICB | C50: 174 | D50: 466 | E50: 0.9425287356 | F50: 0.02873563218 | G50: 133 | H50: 31 | I50: 2 | J50: 2 | K50: 3 | L50: 3
A51: QWE | B51: SOUTH WEST LONDON ICB | C51: 89 | D51: 1268 | E51: 0.9213483146 | F51: 0.05617977528 | G51: 69 | H51: 13 | I51: 2 | J51: 2 | K51: 3 | L51: 0
A52: QWO | B52: WEST YORKSHIRE ICB | C52: 470 | D52: 2000 | E52: 0.9574468085 | F52: 0.02765957447 | G52: 407 | H52: 43 | I52: 5 | J52: 5 | K52: 8 | L52: 2
A53: QWU | B53: COVENTRY AND WARWICKSHIRE ICB | C53: 211 | D53: 1046 | E53: 0.9289099526 | F53: 0.04739336493 | G53: 178 | H53: 18 | I53: 2 | J53: 4 | K53: 6 | L53: 3
A54: QXU | B54: SURREY HEARTLANDS ICB | C54: 11 | D54: 956 | E54: 1 | F54: 0 | G54: 11 | H54: 0 | I54: 0 | J54: 0 | K54: 0 | L54: 0
A55: QYG | B55: CHESHIRE AND MERSEYSIDE ICB | C55: 274 | D55: 1673 | E55: 0.9379562044 | F55: 0.04744525547 | G55: 229 | H55: 28 | I55: 4 | J55: 6 | K55: 7 | L55: 0

Sheet Trusts Q2
B6: Sort data by:
A9: ICB Code | B9: Trust Code | C9: Trust Name | D9: Total Responses | E9: Total Eligible | F9: Percentage Positive | G9: Percentage Negative | H9: Breakdown of Responses | N9: Mode of Collection
H10: Very Good | I10: Good | J10: Neither Good nor Poor | K10: Poor | L10: Very Poor | M10: Don't Know | N10: Mode SMS | O10: Mode Electronic Discharge | P10: Mode Electronic Home | Q10: Mode Paper Discharge | R10: Mode Paper Home | S10: Mode Telephone | T10: Mode Online | U10: Mode Other
C11: England (including Independent Sector providers) | D11: 5494 | E11: 43445 | F11: 0.9251911176 | G11: 0.04368401893 | H11: 4272 | I11: 811 | J11: 144 | K11: 109 | L11: 131 | M11: 27 | N11: 2636 | O11: 983 | P11: 27 | Q11: 1097 | R11: 47 | S11: 0 | T11: 618 | U11: 86
C12: England (excluding Independent Sector providers) | D12: 5494 | E12: 43445 | F12: 0.9251911176 | G12: 0.04368401893 | H12: 4272 | I12: 811 | J12: 144 | K12: 109 | L12: 131 | M12: 27 | N12: 2636 | O12: 983 | P12: 27 | Q12: 1097 | R12: 47 | S12: 0 | T12: 618 | U12: 86
C13: Selection (excluding suppressed data) | D13: =SUBTOTAL(9,D14:D299) -> 5494 | E13: =SUBTOTAL(9,E14:E299) -> 43445 | F13: =IFERROR((H13+I13)/SUM(H13:M13), "-") -> 0.9262263422 | G13: =IFERROR((K13+L13)/SUM(H13:M13), "-") -> 0.04345307068 | H13: =SUBTOTAL(9,H14:H299) -> 4021 | I13: =SUBTOTAL(9,I14:I299) -> 775 | J13: 130 | K13: 100 | L13: 125 | M13: 27 | N13: 2416 | O13: 976 | P13: 27 | Q13: 1057 | R13: 47 | S13: 0 | T13: 584 | U13: 71
A14: QE1 | B14: RXL | C14: BLACKPOOL TEACHING HOSPITALS NHS FOUNDATION TRUST | D14: 15 | E14: 234 | F14: 0.7333333333 | G14: 0.2 | H14: 10 | I14: 1 | J14: 1 | K14: 2 | L14: 1 | M14: 0 | N14: 15 | O14: 0 | P14: 0 | Q14: 0 | R14: 0 | S14: 0 | T14: 0 | U14: 0
A15: QE1 | B15: RXR | C15: EAST LANCASHIRE HOSPITALS NHS TRUST | D15: 58 | E15: 462 | F15: 0.9137931034 | G15: 0 | H15: 45 | I15: 8 | J15: 2 | K15: 0 | L15: 0 | M15: 3 | N15: 49 | O15: 0 | P15: 0 | Q15: 9 | R15: 0 | S15: 0 | T15: 0 | U15: 0
A16: QE1 | B16: RXN | C16: LANCASHIRE TEACHING HOSPITALS NHS FOUNDATION TRUST | D16: 14 | E16: 207 | F16: 1 | G16: 0 | H16: 13 | I16: 1 | J16: 0 | K16: 0 | L16: 0 | M16: 0 | N16: 14 | O16: 0 | P16: 0 | Q16: 0 | R16: 0 | S16: 0 | T16: 0 | U16: 0
A17: QE1 | B17: RTX | C17: UNIVERSITY HOSPITALS OF MORECAMBE BAY NHS FOUNDATION TRUST | D17: 42 | E17: 158 | F17: 1 | G17: 0 | H17: 38 | I17: 4 | J17: 0 | K17: 0 | L17: 0 | M17: 0 | N17: 39 | O17: 0 | P17: 0 | Q17: 0 | R17: 0 | S17: 0 | T17: 3 | U17: 0
A18: QF7 | B18: RFF | C18: BARNSLEY HOSPITAL NHS FOUNDATION TRUST | D18: 2 | E18: 250 | F18: * | G18: * | H18: * | I18: * | J18: * | K18: * | L18: * | M18: * | N18: * | O18: * | P18: * | Q18: * | R18: * | S18: * | T18: * | U18: *
A19: QF7 | B19: RP5 | C19: DONCASTER AND BASSETLAW TEACHING HOSPITALS NHS FOUNDATION TRUST | D19: 1 | E19: 404 | F19: * | G19: * | H19: * | I19: * | J19: * | K19: * | L19: * | M19: * | N19: * | O19: * | P19: * | Q19: * | R19: * | S19: * | T19: * | U19: *
A20: QF7 | B20: RHQ | C20: SHEFFIELD TEACHING HOSPITALS NHS FOUNDATION TRUST | D20: 105 | E20: 456 | F20: 0.9333333333 | G20: 0.0380952381 | H20: 86 | I20: 12 | J20: 2 | K20: 1 | L20: 3 | M20: 1 | N20: 52 | O20: 0 | P20: 0 | Q20: 52 | R20: 0 | S20: 0 | T20: 1 | U20: 0
A21: QF7 | B21: RFR | C21: THE ROTHERHAM NHS FOUNDATION TRUST | D21: 7 | E21: 226 | F21: 1 | G21: 0 | H21: 7 | I21: 0 | J21: 0 | K21: 0 | L21: 0 | M21: 0 | N21: 0 | O21: 0 | P21: 0 | Q21: 6 | R21: 0 | S21: 0 | T21: 1 | U21: 0
A22: QGH | B22: RWP | C22: WORCESTERSHIRE ACUTE HOSPITALS NHS TRUST | D22: 11 | E22: 173 | F22: 1 | G22: 0 | H22: 9 | I22: 2 | J22: 0 | K22: 0 | L22: 0 | M22: 0 | N22: 0 | O22: 11 | P22: 0 | Q22: 0 | R22: 0 | S22: 0 | T22: 0 | U22: 0
A23: QH8 | B23: RAJ | C23: MID AND SOUTH ESSEX NHS FOUNDATION TRUST | D23: 159 | E23: 509 | F23: 0.8867924528 | G23: 0.05031446541 | H23: 127 | I23: 14 | J23: 9 | K23: 4 | L23: 4 | M23: 1 | N23: 158 | O23: 0 | P23: 0 | Q23: 0 | R23: 0 | S23: 0 | T23: 1 | U23: 0
A24: QHG | B24: RC9 | C24: BEDFORDSHIRE HOSPITALS NHS FOUNDATION TRUST | D24: 138 | E24: 1086 | F24: 0.9492753623 | G24: 0.02898550725 | H24: 100 | I24: 31 | J24: 3 | K24: 1 | L24: 3 | M24: 0 | N24: 0 | O24: 135 | P24: 0 | Q24: 0 | R24: 0 | S24: 0 | T24: 3 | U24: 0
A25: QHG | B25: RD8 | C25: MILTON KEYNES UNIVERSITY HOSPITAL NHS FOUNDATION TRUST | D25: 42 | E25: 307 | F25: 0.880952381 | G25: 0.09523809524 | H25: 28 | I25: 9 | J25: 1 | K25: 1 | L25: 3 | M25: 0 | N25: 15 | O25: 0 | P25: 0 | Q25: 21 | R25: 0 | S25: 0 | T25: 0 | U25: 6
A26: QHL | B26: RQ3 | C26: BIRMINGHAM WOMEN'S AND CHILDREN'S NHS FOUNDATION TRUST | D26: 9 | E26: 578 | F26: 1 | G26: 0 | H26: 8 | I26: 1 | J26: 0 | K26: 0 | L26: 0 | M26: 0 | N26: 0 | O26: 0 | P26: 0 | Q26: 0 | R26: 0 | S26: 0 | T26: 9 | U26: 0
A27: QHL | B27: RXK | C27: SANDWELL AND WEST BIRMINGHAM HOSPITALS NHS TRUST | D27: 40 | E27: 442 | F27: 0.775 | G27: 0.175 | H27: 25 | I27: 6 | J27: 1 | K27: 1 | L27: 6 | M27: 1 | N27: 40 | O27: 0 | P27: 0 | Q27: 0 | R27: 0 | S27: 0 | T27: 0 | U27: 0
A28: QHL | B28: RRK | C28: UNIVERSITY HOSPITALS BIRMINGHAM NHS FOUNDATION TRUST | D28: 52 | E28: 859 | F28: 0.8653846154 | G28: 0.09615384615 | H28: 38 | I28: 7 | J28: 2 | K28: 1 | L28: 4 | M28: 0 | N28: 49 | O28: 0 | P28: 0 | Q28: 3 | R28: 0 | S28: 0 | T28: 0 | U28: 0
A29: QHM | B29: RXP | C29: COUNTY DURHAM AND DARLINGTON NHS FOUNDATION TRUST | D29: 25 | E29: 351 | F29: 0.96 | G29: 0 | H29: 22 | I29: 2 | J29: 1 | K29: 0 | L29: 0 | M29: 0 | N29: 0 | O29: 0 | P29: 0 | Q29: 25 | R29: 0 | S29: 0 | T29: 0 | U29: 0
A30: QHM | B30: RR7 | C30: GATESHEAD HEALTH NHS FOUNDATION TRUST | D30: 2 | E30: 144 | F30: * | G30: * | H30: * | I30: * | J30: * | K30: * | L30: * | M30: * | N30: * | O30: * | P30: * | Q30: * | R30: * | S30: * | T30: * | U30: *
A31: QHM | B31: RNN | C31: NORTH CUMBRIA INTEGRATED CARE NHS FOUNDATION TRUST | D31: 8 | E31: 222 | F31: 1 | G31: 0 | H31: 8 | I31: 0 | J31: 0 | K31: 0 | L31: 0 | M31: 0 | N31: 0 | O31: 0 | P31: 0 | Q31: 8 | R31: 0 | S31: 0 | T31: 0 | U31: 0
A32: QHM | B32: RVW | C32: NORTH TEES AND HARTLEPOOL NHS FOUNDATION TRUST | D32: 6 | E32: 248 | F32: 1 | G32: 0 | H32: * | I32: * | J32: * | K32: * | L32: * | M32: * | N32: * | O32: * | P32: * | Q32: * | R32: * | S32: * | T32: * | U32: *
A33: QHM | B33: RTF | C33: NORTHUMBRIA HEALTHCARE NHS FOUNDATION TRUST | D33: 66 | E33: 265 | F33: 0.9242424242 | G33: 0.01515151515 | H33: 48 | I33: 13 | J33: 4 | K33: 0 | L33: 1 | M33: 0 | N33: 43 | O33: 0 | P33: 0 | Q33: 23 | R33: 0 | S33: 0 | T33: 0 | U33: 0
A34: QHM | B34: RTR | C34: SOUTH TEES HOSPITALS NHS FOUNDATION TRUST | D34: 66 | E34: 337 | F34: 0.8636363636 | G34: 0.09090909091 | H34: 42 | I34: 15 | J34: 3 | K34: 4 | L34: 2 | M34: 0 | N34: 63 | O34: 0 | P34: 0 | Q34: 0 | R34: 0 | S34: 0 | T34: 0 | U34: 3
A35: QHM | B35: R0B | C35: SOUTH TYNESIDE AND SUNDERLAND NHS FOUNDATION TRUST | D35: 20 | E35: 270 | F35: 1 | G35: 0 | H35: 16 | I35: 4 | J35: 0 | K35: 0 | L35: 0 | M35: 0 | N35: 0 | O35: 0 | P35: 0 | Q35: 12 | R35: 0 | S35: 0 | T35: 8 | U35: 0
A36: QHM | B36: RTD | C36: THE NEWCASTLE UPON TYNE HOSPITALS NHS FOUNDATION TRUST | D36: 15 | E36: 549 | F36: 0.9333333333 | G36: 0 | H36: 13 | I36: 1 | J36: 1 | K36: 0 | L36: 0 | M36: 0 | N36: 0 | O36: 0 | P36: 0 | Q36: 15 | R36: 0 | S36: 0 | T36: 0 | U36: 0
A37: QJ2 | B37: RFS | C37: CHESTERFIELD ROYAL HOSPITAL NHS FOUNDATION TRUST | D37: 3 | E37: 0 | F37: * | G37: * | H37: * | I37: * | J37: * | K37: * | L37: * | M37: * | N37: * | O37: * | P37: * | Q37: * | R37: * | S37: * | T37: * | U37: *
A38: QJ2 | B38: RTG | C38: UNIVERSITY HOSPITALS OF DERBY AND BURTON NHS FOUNDATION TRUST | D38: 3 | E38: 755 | F38: * | G38: * | H38: * | I38: * | J38: * | K38: * | L38: * | M38: * | N38: * | O38: * | P38: * | Q38: * | R38: * | S38: * | T38: * | U38: *
A39: QJG | B39: RDE | C39: EAST SUFFOLK AND NORTH ESSEX NHS FOUNDATION TRUST | D39: 29 | E39: 562 | F39: 0.9655172414 | G39: 0.03448275862 | H39: 26 | I39: 2 | J39: 0 | K39: 0 | L39: 1 | M39: 0 | N39: 0 | O39: 0 | P39: 0 | Q39: 0 | R39: 0 | S39: 0 | T39: 29 | U39: 0
A40: QJG | B40: RGR | C40: WEST SUFFOLK NHS FOUNDATION TRUST | D40: 30 | E40: 374 | F40: 0.9666666667 | G40: 0 | H40: 21 | I40: 8 | J40: 1 | K40: 0 | L40: 0 | M40: 0 | N40: 0 | O40: 30 | P40: 0 | Q40: 0 | R40: 0 | S40: 0 | T40: 0 | U40: 0
A41: QJK | B41: RH8 | C41: ROYAL DEVON UNIVERSITY HEALTHCARE NHS FOUNDATION TRUST | D41: 0 | E41: 412 | F41: NA | G41: NA | H41: 0 | I41: 0 | J41: 0 | K41: 0 | L41: 0 | M41: 0 | N41: 0 | O41: 0 | P41: 0 | Q41: 0 | R41: 0 | S41: 0 | T41: 0 | U41: 0
A42: QJK | B42: RA9 | C42: TORBAY AND SOUTH DEVON NHS FOUNDATION TRUST | D42: 0 | E42: 176 | F42: NA | G42: NA | H42: 0 | I42: 0 | J42: 0 | K42: 0 | L42: 0 | M42: 0 | N42: 0 | O42: 0 | P42: 0 | Q42: 0 | R42: 0 | S42: 0 | T42: 0 | U42: 0
A43: QJK | B43: RK9 | C43: UNIVERSITY HOSPITALS PLYMOUTH NHS TRUST | D43: 1 | E43: 34 | F43: * | G43: * | H43: * | I43: * | J43: * | K43: * | L43: * | M43: * | N43: * | O43: * | P43: * | Q43: * | R43: * | S43: * | T43: * | U43: *
A44: QJM | B44: RWD | C44: UNITED LINCOLNSHIRE HOSPITALS NHS TRUST | D44: 11 | E44: 354 | F44: 0.9090909091 | G44: 0 | H44: 9 | I44: 1 | J44: 0 | K44: 0 | L44: 0 | M44: 1 | N44: 0 | O44: 0 | P44: 0 | Q44: 11 | R44: 0 | S44: 0 | T44: 0 | U44: 0
A45: QK1 | B45: RWE | C45: UNIVERSITY HOSPITALS OF LEICESTER NHS TRUST | D45: 221 | E45: 742 | F45: 0.9230769231 | G45: 0.02714932127 | H45: 170 | I45: 34 | J45: 8 | K45: 4 | L45: 2 | M45: 3 | N45: 0 | O45: 221 | P45: 0 | Q45: 0 | R45: 0 | S45: 0 | T45: 0 | U45: 0
A46: QKK | B46: RJ1 | C46: GUY'S AND ST THOMAS' NHS FOUNDATION TRUST | D46: 76 | E46: 579 | F46: 0.9210526316 | G46: 0 | H46: 50 | I46: 20 | J46: 5 | K46: 0 | L46: 0 | M46: 1 | N46: 0 | O46: 0 | P46: 0 | Q46: 59 | R46: 0 | S46: 0 | T46: 17 | U46: 0
A47: QKK | B47: RJZ | C47: KING'S COLLEGE HOSPITAL NHS FOUNDATION TRUST | D47: 178 | E47: 593 | F47: 0.8876404494 | G47: 0.07865168539 | H47: 117 | I47: 41 | J47: 6 | K47: 8 | L47: 6 | M47: 0 | N47: 61 | O47: 106 | P47: 0 | Q47: 0 | R47: 0 | S47: 0 | T47: 11 | U47: 0
A48: QKK | B48: RJ2 | C48: LEWISHAM AND GREENWICH NHS TRUST | D48: 30 | E48: 266 | F48: 0.8666666667 | G48: 0.1 | H48: 22 | I48: 4 | J48: 0 | K48: 2 | L48: 1 | M48: 1 | N48: 0 | O48: 0 | P48: 0 | Q48: 0 | R48: 5 | S48: 0 | T48: 25 | U48: 0
A49: QKS | B49: RN7 | C49: DARTFORD AND GRAVESHAM NHS TRUST | D49: 11 | E49: 392 | F49: 0.9090909091 | G49: 0 | H49: 8 | I49: 2 | J49: 1 | K49: 0 | L49: 0 | M49: 0 | N49: 0 | O49: 1 | P49: 0 | Q49: 0 | R49: 0 | S49: 0 | T49: 10 | U49: 0
A50: QKS | B50: RWF | C50: MAIDSTONE AND TUNBRIDGE WELLS NHS TRUST | D50: 55 | E50: 509 | F50: 1 | G50: 0 | H50: 53 | I50: 2 | J50: 0 | K50: 0 | L50: 0 | M50: 0 | N50: 0 | O50: 15 | P50: 0 | Q50: 0 | R50: 0 | S50: 0 | T50: 40 | U50: 0
A51: QKS | B51: RPA | C51: MEDWAY NHS FOUNDATION TRUST | D51: 40 | E51: 399 | F51: 0.95 | G51: 0.05 | H51: 35 | I51: 3 | J51: 0 | K51: 0 | L51: 2 | M51: 0 | N51: 0 | O51: 0 | P51: 0 | Q51: 11 | R51: 0 | S51: 0 | T51: 29 | U51: 0
A52: QM7 | B52: RWH | C52: EAST AND NORTH HERTFORDSHIRE NHS TRUST | D52: 2 | E52: 439 | F52: * | G52: * | H52: * | I52: * | J52: * | K52: * | L52: * | M52: * | N52: * | O52: * | P52: * | Q52: * | R52: * | S52: * | T52: * | U52: *
A53: QM7 | B53: RQW | C53: THE PRINCESS ALEXANDRA HOSPITAL NHS TRUST | D53: 15 | E53: 307 | F53: 0.6 | G53: 0.1333333333 | H53: * | I53: * | J53: * | K53: * | L53: * | M53: * | N53: * | O53: * | P53: * | Q53: * | R53: * | S53: * | T53: * | U53: *
A54: QM7 | B54: RWG | C54: WEST HERTFORDSHIRE TEACHING HOSPITALS NHS TRUST | D54: 35 | E54: 336 | F54: 0.9142857143 | G54: 0.05714285714 | H54: 16 | I54: 16 | J54: 1 | K54: 1 | L54: 1 | M54: 0 | N54: 0 | O54: 35 | P54: 0 | Q54: 0 | R54: 0 | S54: 0 | T54: 0 | U54: 0
A55: QMF | B55: RF4 | C55: BARKING, HAVERING AND REDBRIDGE UNIVERSITY HOSPITALS NHS TRUST | D55: 168 | E55: 602 | F55: 0.9880952381 | G55: 0.0119047619 | H55: 143 | I55: 23 | J55: 0 | K55: 0 | L55: 2 | M55: 0 | N55: 0 | O55: 71 | P55: 0 | Q55: 97 | R55: 0 | S55: 0 | T55: 0 | U55: 0
A56: QMF | B56: R1H | C56: BARTS HEALTH NHS TRUST | D56: 160 | E56: 1231 | F56: 0.88125 | G56: 0.06875 | H56: 106 | I56: 35 | J56: 7 | K56: 3 | L56: 8 | M56: 1 | N56: 13 | O56: 0 | P56: 0 | Q56: 141 | R56: 0 | S56: 0 | T56: 6 | U56: 0
A57: QMF | B57: RQX | C57: HOMERTON HEALTHCARE NHS FOUNDATION TRUST | D57: 58 | E57: 495 | F57: 0.8965517241 | G57: 0.06896551724 | H57: 45 | I57: 7 | J57: 2 | K57: 1 | L57: 3 | M57: 0 | N57: 58 | O57: 0 | P57: 0 | Q57: 0 | R57: 0 | S57: 0 | T57: 0 | U57: 0
A58: QMJ | B58: RAP | C58: NORTH MIDDLESEX UNIVERSITY HOSPITAL NHS TRUST | D58: 31 | E58: 325 | F58: 0.7096774194 | G58: 0.1935483871 | H58: 21 | I58: 1 | J58: 2 | K58: 1 | L58: 5 | M58: 1 | N58: 25 | O58: 0 | P58: 0 | Q58: 6 | R58: 0 | S58: 0 | T58: 0 | U58: 0
A59: QMJ | B59: RAL | C59: ROYAL FREE LONDON NHS FOUNDATION TRUST | D59: 217 | E59: 667 | F59: 0.9447004608 | G59: 0.02304147465 | H59: 117 | I59: 88 | J59: 7 | K59: 4 | L59: 1 | M59: 0 | N59: 0 | O59: 216 | P59: 0 | Q59: 0 | R59: 0 | S59: 0 | T59: 1 | U59: 0
A60: QMJ | B60: RRV | C60: UNIVERSITY COLLEGE LONDON HOSPITALS NHS FOUNDATION TRUST | D60: 55 | E60: 146 | F60: 0.8727272727 | G60: 0.09090909091 | H60: 40 | I60: 8 | J60: 2 | K60: 3 | L60: 2 | M60: 0 | N60: 54 | O60: 0 | P60: 0 | Q60: 0 | R60: 0 | S60: 0 | T60: 1 | U60: 0
A61: QMM | B61: RGP | C61: JAMES PAGET UNIVERSITY HOSPITALS NHS FOUNDATION TRUST | D61: 28 | E61: 148 | F61: 1 | G61: 0 | H61: 26 | I61: 2 | J61: 0 | K61: 0 | L61: 0 | M61: 0 | N61: 0 | O61: 0 | P61: 0 | Q61: 28 | R61: 0 | S61: 0 | T61: 0 | U61: 0
A62: QMM | B62: RM1 | C62: NORFOLK AND NORWICH UNIVERSITY HOSPITALS NHS FOUNDATION TRUST | D62: 4 | E62: 452 | F62: * | G62: * | H62: * | I62: * | J62: * | K62: * | L62: * | M62: * | N62: * | O62: * | P62: * | Q62: * | R62: * | S62: * | T62: * | U62: *
A63: QMM | B63: RCX | C63: THE QUEEN ELIZABETH HOSPITAL, KING'S LYNN, NHS FOUNDATION TRUST | D63: 15 | E63: 158 | F63: 1 | G63: 0 | H63: * | I63: * | J63: * | K63: * | L63: * | M63: * | N63: * | O63: * | P63: * | Q63: * | R63: * | S63: * | T63: * | U63: *
A64: QNC | B64: RJE | C64: UNIVERSITY HOSPITALS OF NORTH MIDLANDS NHS TRUST | D64: 2 | E64: 415 | F64: * | G64: * | H64: * | I64: * | J64: * | K64: * | L64: * | M64: * | N64: * | O64: * | P64: * | Q64: * | R64: * | S64: * | T64: * | U64: *
A65: QNQ | B65: RDU | C65: FRIMLEY HEALTH NHS FOUNDATION TRUST | D65: 9 | E65: 0 | F65: 1 | G65: 0 | H65: 9 | I65: 0 | J65: 0 | K65: 0 | L65: 0 | M65: 0 | N65: 0 | O65: 0 | P65: 0 | Q65: 9 | R65: 0 | S65: 0 | T65: 0 | U65: 0
A66: QNX | B66: RXC | C66: EAST SUSSEX HEALTHCARE NHS TRUST | D66: 3 | E66: 227 | F66: * | G66: * | H66: * | I66: * | J66: * | K66: * | L66: * | M66: * | N66: * | O66: * | P66: * | Q66: * | R66: * | S66: * | T66: * | U66: *
A67: QNX | B67: RYR | C67: UNIVERSITY HOSPITALS SUSSEX NHS FOUNDATION TRUST | D67: 162 | E67: 796 | F67: 0.9320987654 | G67: 0.02469135802 | H67: * | I67: * | J67: * | K67: * | L67: * | M67: * | N67: * | O67: * | P67: * | Q67: * | R67: * | S67: * | T67: * | U67: *
A68: QOC | B68: RXW | C68: THE SHREWSBURY AND TELFORD HOSPITAL NHS TRUST | D68: 22 | E68: 356 | F68: 1 | G68: 0 | H68: 22 | I68: 0 | J68: 0 | K68: 0 | L68: 0 | M68: 0 | N68: 0 | O68: 0 | P68: 0 | Q68: 22 | R68: 0 | S68: 0 | T68: 0 | U68: 0
A69: QOP | B69: RMC | C69: BOLTON NHS FOUNDATION TRUST | D69: 130 | E69: 856 | F69: 0.8461538462 | G69: 0.1076923077 | H69: 93 | I69: 17 | J69: 6 | K69: 5 | L69: 9 | M69: 0 | N69: 128 | O69: 2 | P69: 0 | Q69: 0 | R69: 0 | S69: 0 | T69: 0 | U69: 0
A70: QOP | B70: R0A | C70: MANCHESTER UNIVERSITY NHS FOUNDATION TRUST | D70: 42 | E70: 758 | F70: 0.880952381 | G70: 0.09523809524 | H70: 32 | I70: 5 | J70: 1 | K70: 2 | L70: 2 | M70: 0 | N70: 0 | O70: 1 | P70: 0 | Q70: 0 | R70: 24 | S70: 0 | T70: 17 | U70: 0
A71: QOP | B71: RM3 | C71: NORTHERN CARE ALLIANCE NHS FOUNDATION TRUST | D71: 65 | E71: 399 | F71: 0.8 | G71: 0.1692307692 | H71: 46 | I71: 6 | J71: 2 | K71: 5 | L71: 6 | M71: 0 | N71: 65 | O71: 0 | P71: 0 | Q71: 0 | R71: 0 | S71: 0 | T71: 0 | U71: 0
A72: QOP | B72: RWJ | C72: STOCKPORT NHS FOUNDATION TRUST | D72: 12 | E72: 292 | F72: 0.8333333333 | G72: 0.08333333333 | H72: * | I72: * | J72: * | K72: * | L72: * | M72: * | N72: * | O72: * | P72: * | Q72: * | R72: * | S72: * | T72: * | U72: *
A73: QOP | B73: RRF | C73: WRIGHTINGTON, WIGAN AND LEIGH NHS FOUNDATION TRUST | D73: 4 | E73: 232 | F73: * | G73: * | H73: * | I73: * | J73: * | K73: * | L73: * | M73: * | N73: * | O73: * | P73: * | Q73: * | R73: * | S73: * | T73: * | U73: *
A74: QOQ | B74: RCD | C74: HARROGATE AND DISTRICT NHS FOUNDATION TRUST | D74: 2 | E74: 134 | F74: * | G74: * | H74: * | I74: * | J74: * | K74: * | L74: * | M74: * | N74: * | O74: * | P74: * | Q74: * | R74: * | S74: * | T74: * | U74: *
A75: QOQ | B75: RWA | C75: HULL UNIVERSITY TEACHING HOSPITALS NHS TRUST | D75: 1 | E75: 418 | F75: * | G75: * | H75: * | I75: * | J75: * | K75: * | L75: * | M75: * | N75: * | O75: * | P75: * | Q75: * | R75: * | S75: * | T75: * | U75: *
A76: QOQ | B76: RJL | C76: NORTHERN LINCOLNSHIRE AND GOOLE NHS FOUNDATION TRUST | D76: 25 | E76: 295 | F76: 1 | G76: 0 | H76: 25 | I76: 0 | J76: 0 | K76: 0 | L76: 0 | M76: 0 | N76: 0 | O76: 0 | P76: 0 | Q76: 21 | R76: 0 | S76: 0 | T76: 4 | U76: 0
A77: QOQ | B77: RCB | C77: YORK AND SCARBOROUGH TEACHING HOSPITALS NHS FOUNDATION TRUST | D77: 38 | E77: 373 | F77: 0.9736842105 | G77: 0 | H77: 34 | I77: 3 | J77: 0 | K77: 0 | L77: 0 | M77: 1 | N77: 0 | O77: 0 | P77: 0 | Q77: 38 | R77: 0 | S77: 0 | T77: 0 | U77: 0
A78: QOX | B78: RN3 | C78: GREAT WESTERN HOSPITALS NHS FOUNDATION TRUST | D78: 86 | E78: 297 | F78: 0.9418604651 | G78: 0.02325581395 | H78: 73 | I78: 8 | J78: 3 | K78: 0 | L78: 2 | M78: 0 | N78: 86 | O78: 0 | P78: 0 | Q78: 0 | R78: 0 | S78: 0 | T78: 0 | U78: 0
A79: QOX | B79: RD1 | C79: ROYAL UNITED HOSPITALS BATH NHS FOUNDATION TRUST | D79: 8 | E79: 376 | F79: 1 | G79: 0 | H79: * | I79: * | J79: * | K79: * | L79: * | M79: * | N79: * | O79: * | P79: * | Q79: * | R79: * | S79: * | T79: * | U79: *
A80: QOX | B80: RNZ | C80: SALISBURY NHS FOUNDATION TRUST | D80: 1 | E80: 182 | F80: * | G80: * | H80: * | I80: * | J80: * | K80: * | L80: * | M80: * | N80: * | O80: * | P80: * | Q80: * | R80: * | S80: * | T80: * | U80: *
A81: QPM | B81: RNQ | C81: KETTERING GENERAL HOSPITAL NHS FOUNDATION TRUST | D81: 3 | E81: 304 | F81: * | G81: * | H81: * | I81: * | J81: * | K81: * | L81: * | M81: * | N81: * | O81: * | P81: * | Q81: * | R81: * | S81: * | T81: * | U81: *
A82: QPM | B82: RNS | C82: NORTHAMPTON GENERAL HOSPITAL NHS TRUST | D82: 53 | E82: 351 | F82: 0.9245283019 | G82: 0.07547169811 | H82: * | I82: * | J82: * | K82: * | L82: * | M82: * | N82: * | O82: * | P82: * | Q82: * | R82: * | S82: * | T82: * | U82: *
A83: QR1 | B83: RTE | C83: GLOUCESTERSHIRE HOSPITALS NHS FOUNDATION TRUST | D83: 51 | E83: 67 | F83: 0.9607843137 | G83: 0 | H83: 38 | I83: 11 | J83: 2 | K83: 0 | L83: 0 | M83: 0 | N83: 51 | O83: 0 | P83: 0 | Q83: 0 | R83: 0 | S83: 0 | T83: 0 | U83: 0
A84: QRL | B84: RN5 | C84: HAMPSHIRE HOSPITALS NHS FOUNDATION TRUST | D84: 62 | E84: 385 | F84: 1 | G84: 0 | H84: 54 | I84: 8 | J84: 0 | K84: 0 | L84: 0 | M84: 0 | N84: 0 | O84: 0 | P84: 0 | Q84: 54 | R84: 0 | S84: 0 | T84: 8 | U84: 0
A85: QRL | B85: R1F | C85: ISLE OF WIGHT NHS TRUST | D85: 10 | E85: 66 | F85: 1 | G85: 0 | H85: 7 | I85: 3 | J85: 0 | K85: 0 | L85: 0 | M85: 0 | N85: 0 | O85: 0 | P85: 0 | Q85: 10 | R85: 0 | S85: 0 | T85: 0 | U85: 0
A86: QRL | B86: RHU | C86: PORTSMOUTH HOSPITALS UNIVERSITY NATIONAL HEALTH SERVICE TRUST | D86: 34 | E86: 486 | F86: 1 | G86: 0 | H86: 31 | I86: 3 | J86: 0 | K86: 0 | L86: 0 | M86: 0 | N86: 0 | O86: 0 | P86: 0 | Q86: 34 | R86: 0 | S86: 0 | T86: 0 | U86: 0
A87: QRL | B87: RHM | C87: UNIVERSITY HOSPITAL SOUTHAMPTON NHS FOUNDATION TRUST | D87: 111 | E87: 457 | F87: 0.972972973 | G87: 0.01801801802 | H87: 95 | I87: 13 | J87: 1 | K87: 1 | L87: 1 | M87: 0 | N87: 0 | O87: 0 | P87: 0 | Q87: 0 | R87: 18 | S87: 0 | T87: 93 | U87: 0
A88: QRV | B88: RQM | C88: CHELSEA AND WESTMINSTER HOSPITAL NHS FOUNDATION TRUST | D88: 50 | E88: 167 | F88: 0.94 | G88: 0.02 | H88: 43 | I88: 4 | J88: 2 | K88: 0 | L88: 1 | M88: 0 | N88: 43 | O88: 0 | P88: 0 | Q88: 0 | R88: 0 | S88: 0 | T88: 7 | U88: 0
A89: QRV | B89: RYJ | C89: IMPERIAL COLLEGE HEALTHCARE NHS TRUST | D89: 64 | E89: 731 | F89: 0.984375 | G89: 0 | H89: 56 | I89: 7 | J89: 1 | K89: 0 | L89: 0 | M89: 0 | N89: 0 | O89: 0 | P89: 0 | Q89: 55 | R89: 0 | S89: 0 | T89: 9 | U89: 0
A90: QRV | B90: R1K | C90: LONDON NORTH WEST UNIVERSITY HEALTHCARE NHS TRUST | D90: 49 | E90: 333 | F90: 0.9183673469 | G90: 0.02040816327 | H90: 28 | I90: 17 | J90: 3 | K90: 1 | L90: 0 | M90: 0 | N90: 45 | O90: 0 | P90: 0 | Q90: 4 | R90: 0 | S90: 0 | T90: 0 | U90: 0
A91: QRV | B91: RAS | C91: THE HILLINGDON HOSPITALS NHS FOUNDATION TRUST | D91: 29 | E91: 347 | F91: 0.8275862069 | G91: 0.1379310345 | H91: 21 | I91: 3 | J91: 1 | K91: 1 | L91: 3 | M91: 0 | N91: 0 | O91: 0 | P91: 0 | Q91: 1 | R91: 0 | S91: 0 | T91: 28 | U91: 0
A92: QSL | B92: RH5 | C92: SOMERSET NHS FOUNDATION TRUST | D92: 0 | E92: 232 | F92: NA | G92: NA | H92: 0 | I92: 0 | J92: 0 | K92: 0 | L92: 0 | M92: 0 | N92: 0 | O92: 0 | P92: 0 | Q92: 0 | R92: 0 | S92: 0 | T92: 0 | U92: 0
A93: QSL | B93: RA4 | C93: YEOVIL DISTRICT HOSPITAL NHS FOUNDATION TRUST | D93: 12 | E93: 0 | F93: 1 | G93: 0 | H93: 10 | I93: 2 | J93: 0 | K93: 0 | L93: 0 | M93: 0 | N93: 0 | O93: 12 | P93: 0 | Q93: 0 | R93: 0 | S93: 0 | T93: 0 | U93: 0
A94: QT1 | B94: RX1 | C94: NOTTINGHAM UNIVERSITY HOSPITALS NHS TRUST | D94: 38 | E94: 635 | F94: 1 | G94: 0 | H94: 37 | I94: 1 | J94: 0 | K94: 0 | L94: 0 | M94: 0 | N94: 0 | O94: 2 | P94: 0 | Q94: 0 | R94: 0 | S94: 0 | T94: 36 | U94: 0
A95: QT1 | B95: RK5 | C95: SHERWOOD FOREST HOSPITALS NHS FOUNDATION TRUST | D95: 44 | E95: 282 | F95: 0.8863636364 | G95: 0.09090909091 | H95: 27 | I95: 12 | J95: 1 | K95: 4 | L95: 0 | M95: 0 | N95: 0 | O95: 0 | P95: 0 | Q95: 0 | R95: 0 | S95: 0 | T95: 44 | U95: 0
A96: QT6 | B96: REF | C96: ROYAL CORNWALL HOSPITALS NHS TRUST | D96: 12 | E96: 337 | F96: 1 | G96: 0 | H96: 12 | I96: 0 | J96: 0 | K96: 0 | L96: 0 | M96: 0 | N96: 0 | O96: 12 | P96: 0 | Q96: 0 | R96: 0 | S96: 0 | T96: 0 | U96: 0
A97: QU9 | B97: RXQ | C97: BUCKINGHAMSHIRE HEALTHCARE NHS TRUST | D97: 24 | E97: 261 | F97: 0.7916666667 | G97: 0.125 | H97: 15 | I97: 4 | J97: 2 | K97: 2 | L97: 1 | M97: 0 | N97: 24 | O97: 0 | P97: 0 | Q97: 0 | R97: 0 | S97: 0 | T97: 0 | U97: 0
A98: QU9 | B98: RTH | C98: OXFORD UNIVERSITY HOSPITALS NHS FOUNDATION TRUST | D98: 113 | E98: 607 | F98: 0.8761061947 | G98: 0.06194690265 | H98: 77 | I98: 22 | J98: 7 | K98: 4 | L98: 3 | M98: 0 | N98: 105 | O98: 0 | P98: 0 | Q98: 0 | R98: 0 | S98: 0 | T98: 8 | U98: 0
A99: QU9 | B99: RHW | C99: ROYAL BERKSHIRE NHS FOUNDATION TRUST | D99: 64 | E99: 397 | F99: 0.96875 | G99: 0.015625 | H99: 52 | I99: 10 | J99: 1 | K99: 0 | L99: 1 | M99: 0 | N99: 1 | O99: 0 | P99: 0 | Q99: 63 | R99: 0 | S99: 0 | T99: 0 | U99: 0
A100: QUA | B100: RNA | C100: THE DUDLEY GROUP NHS FOUNDATION TRUST | D100: 27 | E100: 298 | F100: 0.9259259259 | G100: 0 | H100: 21 | I100: 4 | J100: 1 | K100: 0 | L100: 0 | M100: 1 | N100: 0 | O100: 0 | P100: 27 | Q100: 0 | R100: 0 | S100: 0 | T100: 0 | U100: 0
A101: QUA | B101: RL4 | C101: THE ROYAL WOLVERHAMPTON NHS TRUST | D101: 108 | E101: 429 | F101: 0.8796296296 | G101: 0.06481481481 | H101: 80 | I101: 15 | J101: 4 | K101: 6 | L101: 1 | M101: 2 | N101: 95 | O101: 0 | P101: 0 | Q101: 0 | R101: 0 | S101: 0 | T101: 13 | U101: 0
A102: QUA | B102: RBK | C102: WALSALL HEALTHCARE NHS TRUST | D102: 48 | E102: 258 | F102: 0.8125 | G102: 0.125 | H102: 29 | I102: 10 | J102: 2 | K102: 4 | L102: 2 | M102: 1 | N102: 44 | O102: 4 | P102: 0 | Q102: 0 | R102: 0 | S102: 0 | T102: 0 | U102: 0
A103: QUE | B103: RGT | C103: CAMBRIDGE UNIVERSITY HOSPITALS NHS FOUNDATION TRUST | D103: 68 | E103: 498 | F103: 0.9558823529 | G103: 0.04411764706 | H103: 60 | I103: 5 | J103: 0 | K103: 2 | L103: 1 | M103: 0 | N103: 0 | O103: 65 | P103: 0 | Q103: 2 | R103: 0 | S103: 0 | T103: 1 | U103: 0
A104: QUE | B104: RGN | C104: NORTH WEST ANGLIA NHS FOUNDATION TRUST | D104: 47 | E104: 624 | F104: 1 | G104: 0 | H104: 45 | I104: 2 | J104: 0 | K104: 0 | L104: 0 | M104: 0 | N104: 0 | O104: 0 | P104: 0 | Q104: 47 | R104: 0 | S104: 0 | T104: 0 | U104: 0
A105: QUY | B105: RVJ | C105: NORTH BRISTOL NHS TRUST | D105: 114 | E105: 501 | F105: 0.9298245614 | G105: 0.05263157895 | H105: 87 | I105: 19 | J105: 2 | K105: 2 | L105: 4 | M105: 0 | N105: 114 | O105: 0 | P105: 0 | Q105: 0 | R105: 0 | S105: 0 | T105: 0 | U105: 0
A106: QUY | B106: RA7 | C106: UNIVERSITY HOSPITALS BRISTOL AND WESTON NHS FOUNDATION TRUST | D106: 39 | E106: 387 | F106: 0.9743589744 | G106: 0 | H106: 38 | I106: 0 | J106: 1 | K106: 0 | L106: 0 | M106: 0 | N106: 0 | O106: 0 | P106: 0 | Q106: 39 | R106: 0 | S106: 0 | T106: 0 | U106: 0
A107: QVV | B107: RBD | C107: DORSET COUNTY HOSPITAL NHS FOUNDATION TRUST | D107: 47 | E107: 119 | F107: 0.9574468085 | G107: 0.04255319149 | H107: 37 | I107: 8 | J107: 0 | K107: 1 | L107: 1 | M107: 0 | N107: 47 | O107: 0 | P107: 0 | Q107: 0 | R107: 0 | S107: 0 | T107: 0 | U107: 0
A108: QVV | B108: R0D | C108: UNIVERSITY HOSPITALS DORSET NHS FOUNDATION TRUST | D108: 127 | E108: 347 | F108: 0.937007874 | G108: 0.02362204724 | H108: 96 | I108: 23 | J108: 2 | K108: 1 | L108: 2 | M108: 3 | N108: 127 | O108: 0 | P108: 0 | Q108: 0 | R108: 0 | S108: 0 | T108: 0 | U108: 0
A109: QWE | B109: RJ6 | C109: CROYDON HEALTH SERVICES NHS TRUST | D109: 29 | E109: 272 | F109: 0.8965517241 | G109: 0.1034482759 | H109: 19 | I109: 7 | J109: 0 | K109: 2 | L109: 1 | M109: 0 | N109: 29 | O109: 0 | P109: 0 | Q109: 0 | R109: 0 | S109: 0 | T109: 0 | U109: 0
A110: QWE | B110: RVR | C110: EPSOM AND ST HELIER UNIVERSITY HOSPITALS NHS TRUST | D110: 23 | E110: 319 | F110: 1 | G110: 0 | H110: 23 | I110: 0 | J110: 0 | K110: 0 | L110: 0 | M110: 0 | N110: 13 | O110: 8 | P110: 0 | Q110: 0 | R110: 0 | S110: 0 | T110: 2 | U110: 0
A111: QWE | B111: RAX | C111: KINGSTON HOSPITAL NHS FOUNDATION TRUST | D111: 8 | E111: 457 | F111: 1 | G111: 0 | H111: 7 | I111: 1 | J111: 0 | K111: 0 | L111: 0 | M111: 0 | N111: 0 | O111: 0 | P111: 0 | Q111: 0 | R111: 0 | S111: 0 | T111: 8 | U111: 0
A112: QWE | B112: RJ7 | C112: ST GEORGE'S UNIVERSITY HOSPITALS NHS FOUNDATION TRUST | D112: 29 | E112: 220 | F112: 0.8620689655 | G112: 0.06896551724 | H112: 20 | I112: 5 | J112: 2 | K112: 0 | L112: 2 | M112: 0 | N112: 0 | O112: 0 | P112: 0 | Q112: 0 | R112: 0 | S112: 0 | T112: 29 | U112: 0
A113: QWO | B113: RCF | C113: AIREDALE NHS FOUNDATION TRUST | D113: 48 | E113: 143 | F113: 0.9375 | G113: 0.04166666667 | H113: 40 | I113: 5 | J113: 1 | K113: 1 | L113: 1 | M113: 0 | N113: 48 | O113: 0 | P113: 0 | Q113: 0 | R113: 0 | S113: 0 | T113: 0 | U113: 0
A114: QWO | B114: RAE | C114: BRADFORD TEACHING HOSPITALS NHS FOUNDATION TRUST | D114: 47 | E114: 364 | F114: 1 | G114: 0 | H114: 45 | I114: 2 | J114: 0 | K114: 0 | L114: 0 | M114: 0 | N114: 0 | O114: 0 | P114: 0 | Q114: 44 | R114: 0 | S114: 0 | T114: 1 | U114: 2
A115: QWO | B115: RWY | C115: CALDERDALE AND HUDDERSFIELD NHS FOUNDATION TRUST | D115: 60 | E115: 348 | F115: 0.9166666667 | G115: 0.03333333333 | H115: 43 | I115: 12 | J115: 1 | K115: 0 | L115: 2 | M115: 2 | N115: 0 | O115: 0 | P115: 0 | Q115: 0 | R115: 0 | S115: 0 | T115: 60 | U115: 0
A116: QWO | B116: RR8 | C116: LEEDS TEACHING HOSPITALS NHS TRUST | D116: 238 | E116: 667 | F116: 0.974789916 | G116: 0.02100840336 | H116: 213 | I116: 19 | J116: 1 | K116: 3 | L116: 2 | M116: 0 | N116: 209 | O116: 29 | P116: 0 | Q116: 0 | R116: 0 | S116: 0 | T116: 0 | U116: 0
A117: QWO | B117: RXF | C117: MID YORKSHIRE HOSPITALS NHS TRUST | D117: 77 | E117: 478 | F117: 0.9220779221 | G117: 0.05194805195 | H117: 66 | I117: 5 | J117: 2 | K117: 1 | L117: 3 | M117: 0 | N117: 38 | O117: 0 | P117: 0 | Q117: 31 | R117: 0 | S117: 0 | T117: 8 | U117: 0
A118: QWU | B118: RLT | C118: GEORGE ELIOT HOSPITAL NHS TRUST | D118: 92 | E118: 254 | F118: 0.9456521739 | G118: 0.03260869565 | H118: 74 | I118: 13 | J118: 1 | K118: 2 | L118: 1 | M118: 1 | N118: 92 | O118: 0 | P118: 0 | Q118: 0 | R118: 0 | S118: 0 | T118: 0 | U118: 0
A119: QWU | B119: RJC | C119: SOUTH WARWICKSHIRE UNIVERSITY NHS FOUNDATION TRUST | D119: 36 | E119: 311 | F119: 0.8611111111 | G119: 0.08333333333 | H119: 30 | I119: 1 | J119: 0 | K119: 1 | L119: 2 | M119: 2 | N119: 0 | O119: 0 | P119: 0 | Q119: 25 | R119: 0 | S119: 0 | T119: 11 | U119: 0
A120: QWU | B120: RKB | C120: UNIVERSITY HOSPITALS COVENTRY AND WARWICKSHIRE NHS TRUST | D120: 83 | E120: 481 | F120: 0.9397590361 | G120: 0.04819277108 | H120: 74 | I120: 4 | J120: 1 | K120: 1 | L120: 3 | M120: 0 | N120: 82 | O120: 0 | P120: 0 | Q120: 0 | R120: 0 | S120: 0 | T120: 1 | U120: 0
A121: QXU | B121: RTK | C121: ASHFORD AND ST PETER'S HOSPITALS NHS FOUNDATION TRUST | D121: 0 | E121: 265 | F121: NA | G121: NA | H121: 0 | I121: 0 | J121: 0 | K121: 0 | L121: 0 | M121: 0 | N121: 0 | O121: 0 | P121: 0 | Q121: 0 | R121: 0 | S121: 0 | T121: 0 | U121: 0
A122: QXU | B122: RA2 | C122: ROYAL SURREY COUNTY HOSPITAL NHS FOUNDATION TRUST | D122: 1 | E122: 293 | F122: * | G122: * | H122: * | I122: * | J122: * | K122: * | L122: * | M122: * | N122: * | O122: * | P122: * | Q122: * | R122: * | S122: * | T122: * | U122: *
A123: QXU | B123: RTP | C123: SURREY AND SUSSEX HEALTHCARE NHS TRUST | D123: 10 | E123: 398 | F123: 1 | G123: 0 | H123: * | I123: * | J123: * | K123: * | L123: * | M123: * | N123: * | O123: * | P123: * | Q123: * | R123: * | S123: * | T123: * | U123: *
A124: QYG | B124: RJN | C124: EAST CHESHIRE NHS TRUST | D124: 0 | E124: 0 | F124: NA | G124: NA | H124: 0 | I124: 0 | J124: 0 | K124: 0 | L124: 0 | M124: 0 | N124: 0 | O124: 0 | P124: 0 | Q124: 0 | R124: 0 | S124: 0 | T124: 0 | U124: 0
A125: QYG | B125: REP | C125: LIVERPOOL WOMEN'S NHS FOUNDATION TRUST | D125: 60 | E125: 635 | F125: 0.8666666667 | G125: 0.1 | H125: 40 | I125: 12 | J125: 2 | K125: 4 | L125: 2 | M125: 0 | N125: 0 | O125: 0 | P125: 0 | Q125: 0 | R125: 0 | S125: 0 | T125: 0 | U125: 60
A126: QYG | B126: RBT | C126: MID CHESHIRE HOSPITALS NHS FOUNDATION TRUST | D126: 88 | E126: 301 | F126: 0.9431818182 | G126: 0.04545454545 | H126: 78 | I126: 5 | J126: 1 | K126: 1 | L126: 3 | M126: 0 | N126: 75 | O126: 0 | P126: 0 | Q126: 13 | R126: 0 | S126: 0 | T126: 0 | U126: 0
A127: QYG | B127: RVY | C127: SOUTHPORT AND ORMSKIRK HOSPITAL NHS TRUST | D127: 68 | E127: 182 | F127: 0.9705882353 | G127: 0.02941176471 | H127: 61 | I127: 5 | J127: 0 | K127: 0 | L127: 2 | M127: 0 | N127: 67 | O127: 0 | P127: 0 | Q127: 0 | R127: 0 | S127: 0 | T127: 1 | U127: 0
A128: QYG | B128: RBN | C128: ST HELENS AND KNOWSLEY TEACHING HOSPITALS NHS TRUST | D128: 40 | E128: 322 | F128: 0.95 | G128: 0.025 | H128: 33 | I128: 5 | J128: 1 | K128: 1 | L128: 0 | M128: 0 | N128: 40 | O128: 0 | P128: 0 | Q128: 0 | R128: 0 | S128: 0 | T128: 0 | U128: 0
A129: QYG | B129: RWW | C129: WARRINGTON AND HALTON TEACHING HOSPITALS NHS FOUNDATION TRUST | D129: 0 | E129: 233 | F129: NA | G129: NA | H129: 0 | I129: 0 | J129: 0 | K129: 0 | L129: 0 | M129: 0 | N129: 0 | O129: 0 | P129: 0 | Q129: 0 | R129: 0 | S129: 0 | T129: 0 | U129: 0
A130: QYG | B130: RBL | C130: WIRRAL UNIVERSITY TEACHING HOSPITAL NHS FOUNDATION TRUST | D130: 18 | E130: 0 | F130: 1 | G130: 0 | H130: 17 | I130: 1 | J130: 0 | K130: 0 | L130: 0 | M130: 0 | N130: 0 | O130: 0 | P130: 0 | Q130: 18 | R130: 0 | S130: 0 | T130: 0 | U130: 0

Sheet Sites Q2
B6: Sort data by:
A9: ICB Code | B9: Trust Code | C9: Trust Name | D9: Site Code | E9: Site Name | F9: Total Responses | G9: Percentage Positive | H9: Percentage Negative | I9: Breakdown of Responses
I10: Very Good | J10: Good | K10: Neither Good nor Poor | L10: Poor | M10: Very Poor | N10: Don't Know
E11: England (including Independent Sector providers) | F11: 5494 | G11: 0.9251911176 | H11: 0.04368401893 | I11: 4272 | J11: 811 | K11: 144 | L11: 109 | M11: 131 | N11: 27
E12: England (excluding Independent Sector providers) | F12: 5494 | G12: 0.9251911176 | H12: 0.04368401893 | I12: 4272 | J12: 811 | K12: 144 | L12: 109 | M12: 131 | N12: 27
E13: Selection (excluding suppressed data) | F13: =SUBTOTAL(9,F14:F299) -> 5494 | G13: =IFERROR((I13+J13)/SUM(I13:N13), "-") -> 0.9263133955 | H13: =IFERROR((L13+M13)/SUM(I13:N13), "-") -> 0.04252899704 | I13: =SUBTOTAL(9,I14:I299) -> 3401 | J13: =SUBTOTAL(9,J14:J299) -> 672 | K13: 113 | L13: 85 | M13: 102 | N13: 24
A14: QE1 | B14: RXL | C14: BLACKPOOL TEACHING HOSPITALS NHS FOUNDATION TRUST | D14: RXL01 | E14: Blackpool Victoria Hospital | F14: 15 | G14: 0.7333333333 | H14: 0.2 | I14: 10 | J14: 1 | K14: 1 | L14: 2 | M14: 1 | N14: 0
A15: QE1 | B15: RXR | C15: EAST LANCASHIRE HOSPITALS NHS TRUST | D15: RXR20 | E15: Royal Blackburn Hospital | F15: 58 | G15: 0.9137931034 | H15: 0 | I15: 45 | J15: 8 | K15: 2 | L15: 0 | M15: 0 | N15: 3
A16: QE1 | B16: RXN | C16: LANCASHIRE TEACHING HOSPITALS NHS FOUNDATION TRUST | D16: RXN01 | E16: Chorley and South Ribble Hospital | F16: 0 | G16: NA | H16: NA | I16: 0 | J16: 0 | K16: 0 | L16: 0 | M16: 0 | N16: 0
A17: QE1 | B17: RXN | C17: LANCASHIRE TEACHING HOSPITALS NHS FOUNDATION TRUST | D17: RXN02 | E17: Royal Preston Hospital | F17: 14 | G17: 1 | H17: 0 | I17: 13 | J17: 1 | K17: 0 | L17: 0 | M17: 0 | N17: 0
A18: QE1 | B18: RTX | C18: UNIVERSITY HOSPITALS OF MORECAMBE BAY NHS FOUNDATION TRUST | D18: RTXBU | E18: Furness General Hospital | F18: 27 | G18: 1 | H18: 0 | I18: 24 | J18: 3 | K18: 0 | L18: 0 | M18: 0 | N18: 0
A19: QE1 | B19: RTX | C19: UNIVERSITY HOSPITALS OF MORECAMBE BAY NHS FOUNDATION TRUST | D19: RTX02 | E19: Royal Lancaster Infirmary | F19: 15 | G19: 1 | H19: 0 | I19: 14 | J19: 1 | K19: 0 | L19: 0 | M19: 0 | N19: 0
A20: QE1 | B20: RTX | C20: UNIVERSITY HOSPITALS OF MORECAMBE BAY NHS FOUNDATION TRUST | D20: RTXBW | E20: Westmorland General Hospital | F20: 0 | G20: NA | H20: NA | I20: 0 | J20: 0 | K20: 0 | L20: 0 | M20: 0 | N20: 0
A21: QF7 | B21: RFF | C21: BARNSLEY HOSPITAL NHS FOUNDATION TRUST | D21: RFFAA | E21: Barnsley Hospital NHS Foundation Trust HQ | F21: 2 | G21: * | H21: * | I21: * | J21: * | K21: * | L21: * | M21: * | N21: *
A22: QF7 | B22: RP5 | C22: DONCASTER AND BASSETLAW TEACHING HOSPITALS NHS FOUNDATION TRUST | D22: RP5BA | E22: Bassetlaw Hospital | F22: 0 | G22: NA | H22: NA | I22: 0 | J22: 0 | K22: 0 | L22: 0 | M22: 0 | N22: 0
A23: QF7 | B23: RP5 | C23: DONCASTER AND BASSETLAW TEACHING HOSPITALS NHS FOUNDATION TRUST | D23: RP5DR | E23: Doncaster Royal Infirmary | F23: 1 | G23: * | H23: * | I23: * | J23: * | K23: * | L23: * | M23: * | N23: *
A24: QF7 | B24: RP5 | C24: DONCASTER AND BASSETLAW TEACHING HOSPITALS NHS FOUNDATION TRUST | D24: RP5XXX | E24: Non-hospital site | F24: 0 | G24: NA | H24: NA | I24: 0 | J24: 0 | K24: 0 | L24: 0 | M24: 0 | N24: 0
A25: QF7 | B25: RHQ | C25: SHEFFIELD TEACHING HOSPITALS NHS FOUNDATION TRUST | D25: RHQHH | E25: Royal Hallamshire Hospital | F25: 105 | G25: 0.9333333333 | H25: 0.0380952381 | I25: 86 | J25: 12 | K25: 2 | L25: 1 | M25: 3 | N25: 1
A26: QF7 | B26: RFR | C26: THE ROTHERHAM NHS FOUNDATION TRUST | D26: RFRPA | E26: Rotherham District General Hospital | F26: 7 | G26: 1 | H26: 0 | I26: 7 | J26: 0 | K26: 0 | L26: 0 | M26: 0 | N26: 0
A27: QGH | B27: RWP | C27: WORCESTERSHIRE ACUTE HOSPITALS NHS TRUST | D27: RWP50 | E27: Worcestershire Royal Hospital | F27: 11 | G27: 1 | H27: 0 | I27: 9 | J27: 2 | K27: 0 | L27: 0 | M27: 0 | N27: 0
A28: QH8 | B28: RAJ | C28: MID AND SOUTH ESSEX NHS FOUNDATION TRUST | D28: RAJ12 | E28: BASILDON HOSPITAL | F28: 9 | G28: 0.5555555556 | H28: 0.1111111111 | I28: 3 | J28: 2 | K28: 2 | L28: 1 | M28: 0 | N28: 1
A29: QH8 | B29: RAJ | C29: MID AND SOUTH ESSEX NHS FOUNDATION TRUST | D29: RAJ32 | E29: MID ESSEX HOSPITAL | F29: 65 | G29: 0.8923076923 | H29: 0.07692307692 | I29: 52 | J29: 6 | K29: 2 | L29: 2 | M29: 3 | N29: 0
A30: QH8 | B30: RAJ | C30: MID AND SOUTH ESSEX NHS FOUNDATION TRUST | D30: RAJ01 | E30: Southend Hospital | F30: 85 | G30: 0.9176470588 | H30: 0.02352941176 | I30: 72 | J30: 6 | K30: 5 | L30: 1 | M30: 1 | N30: 0
A31: QHG | B31: RC9 | C31: BEDFORDSHIRE HOSPITALS NHS FOUNDATION TRUST | D31: RC979 | E31: BEDFORD HOSPITAL SOUTH WING | F31: 18 | G31: 1 | H31: 0 | I31: 18 | J31: 0 | K31: 0 | L31: 0 | M31: 0 | N31: 0
A32: QHG | B32: RC9 | C32: BEDFORDSHIRE HOSPITALS NHS FOUNDATION TRUST | D32: RC971 | E32: Luton and Dunstable Hospital | F32: 120 | G32: 0.9416666667 | H32: 0.03333333333 | I32: 82 | J32: 31 | K32: 3 | L32: 1 | M32: 3 | N32: 0
A33: QHG | B33: RD8 | C33: MILTON KEYNES UNIVERSITY HOSPITAL NHS FOUNDATION TRUST | D33: RD816 | E33: Milton Keynes Hospital | F33: 42 | G33: 0.880952381 | H33: 0.09523809524 | I33: 28 | J33: 9 | K33: 1 | L33: 1 | M33: 3 | N33: 0
A34: QHL | B34: RQ3 | C34: BIRMINGHAM WOMEN'S AND CHILDREN'S NHS FOUNDATION TRUST | D34: RQ370 | E34: Birmingham Women's Hospital | F34: 9 | G34: 1 | H34: 0 | I34: 8 | J34: 1 | K34: 0 | L34: 0 | M34: 0 | N34: 0
A35: QHL | B35: RXK | C35: SANDWELL AND WEST BIRMINGHAM HOSPITALS NHS TRUST | D35: RXK02 | E35: City Hospital | F35: 40 | G35: 0.775 | H35: 0.175 | I35: 25 | J35: 6 | K35: 1 | L35: 1 | M35: 6 | N35: 1
A36: QHL | B36: RRK | C36: UNIVERSITY HOSPITALS BIRMINGHAM NHS FOUNDATION TRUST | D36: RRK98 | E36: Good Hope Hospital | F36: 22 | G36: 0.9090909091 | H36: 0.09090909091 | I36: 17 | J36: 3 | K36: 0 | L36: 0 | M36: 2 | N36: 0
A37: QHL | B37: RRK | C37: UNIVERSITY HOSPITALS BIRMINGHAM NHS FOUNDATION TRUST | D37: RRK97 | E37: Heartlands Hospital | F37: 30 | G37: 0.8333333333 | H37: 0.1 | I37: 21 | J37: 4 | K37: 2 | L37: 1 | M37: 2 | N37: 0
A38: QHL | B38: RRK | C38: UNIVERSITY HOSPITALS BIRMINGHAM NHS FOUNDATION TRUST | D38: RRK99 | E38: Solihull Hospital | F38: 0 | G38: NA | H38: NA | I38: 0 | J38: 0 | K38: 0 | L38: 0 | M38: 0 | N38: 0
A39: QHM | B39: RXP | C39: COUNTY DURHAM AND DARLINGTON NHS FOUNDATION TRUST | D39: RXPDA | E39: Darlington Memorial Hospital | F39: 15 | G39: 1 | H39: 0 | I39: 14 | J39: 1 | K39: 0 | L39: 0 | M39: 0 | N39: 0
A40: QHM | B40: RXP | C40: COUNTY DURHAM AND DARLINGTON NHS FOUNDATION TRUST | D40: RXPCP | E40: University Hospital Of North Durham | F40: 10 | G40: 0.9 | H40: 0 | I40: 8 | J40: 1 | K40: 1 | L40: 0 | M40: 0 | N40: 0
A41: QHM | B41: RR7 | C41: GATESHEAD HEALTH NHS FOUNDATION TRUST | D41: RR7EN | E41: Queen Elizabeth Hospital | F41: 2 | G41: * | H41: * | I41: * | J41: * | K41: * | L41: * | M41: * | N41: *
A42: QHM | B42: RNN | C42: NORTH CUMBRIA INTEGRATED CARE NHS FOUNDATION TRUST | D42: RNN62 | E42: Cumberland Infirmary | F42: 7 | G42: 1 | H42: 0 | I42: * | J42: * | K42: * | L42: * | M42: * | N42: *
A43: QHM | B43: RNN | C43: NORTH CUMBRIA INTEGRATED CARE NHS FOUNDATION TRUST | D43: RNNXXX | E43: Non-hospital site | F43: 0 | G43: NA | H43: NA | I43: 0 | J43: 0 | K43: 0 | L43: 0 | M43: 0 | N43: 0
A44: QHM | B44: RNN | C44: NORTH CUMBRIA INTEGRATED CARE NHS FOUNDATION TRUST | D44: RNNKV | E44: Penrith Hospital | F44: 0 | G44: NA | H44: NA | I44: 0 | J44: 0 | K44: 0 | L44: 0 | M44: 0 | N44: 0
A45: QHM | B45: RNN | C45: NORTH CUMBRIA INTEGRATED CARE NHS FOUNDATION TRUST | D45: RNNBX | E45: West Cumberland Hospital | F45: 1 | G45: * | H45: * | I45: * | J45: * | K45: * | L45: * | M45: * | N45: *
A46: QHM | B46: RVW | C46: NORTH TEES AND HARTLEPOOL NHS FOUNDATION TRUST | D46: RVWAE | E46: University Hospital Of North Tees | F46: 6 | G46: 1 | H46: 0 | I46: * | J46: * | K46: * | L46: * | M46: * | N46: *
A47: QHM | B47: RTF | C47: NORTHUMBRIA HEALTHCARE NHS FOUNDATION TRUST | D47: RTFDJ | E47: Alnwick Infirmary | F47: 0 | G47: NA | H47: NA | I47: 0 | J47: 0 | K47: 0 | L47: 0 | M47: 0 | N47: 0
A48: QHM | B48: RTF | C48: NORTHUMBRIA HEALTHCARE NHS FOUNDATION TRUST | D48: RTFDH | E48: Berwick Infirmary | F48: 1 | G48: * | H48: * | I48: * | J48: * | K48: * | L48: * | M48: * | N48: *
A49: QHM | B49: RTF | C49: NORTHUMBRIA HEALTHCARE NHS FOUNDATION TRUST | D49: RTFDR | E49: Hexham General Hospital | F49: 1 | G49: * | H49: * | I49: * | J49: * | K49: * | L49: * | M49: * | N49: *
A50: QHM | B50: RTF | C50: NORTHUMBRIA HEALTHCARE NHS FOUNDATION TRUST | D50: RTFXXX | E50: Non-hospital site | F50: 0 | G50: NA | H50: NA | I50: 0 | J50: 0 | K50: 0 | L50: 0 | M50: 0 | N50: 0
A51: QHM | B51: RTF | C51: NORTHUMBRIA HEALTHCARE NHS FOUNDATION TRUST | D51: RTF86 | E51: The Northumbria | F51: 64 | G51: 0.921875 | H51: 0.015625 | I51: 46 | J51: 13 | K51: 4 | L51: 0 | M51: 1 | N51: 0
A52: QHM | B52: RTR | C52: SOUTH TEES HOSPITALS NHS FOUNDATION TRUST | D52: RTR45 | E52: Friarage Hospital Site | F52: 3 | G52: * | H52: * | I52: * | J52: * | K52: * | L52: * | M52: * | N52: *
A53: QHM | B53: RTR | C53: SOUTH TEES HOSPITALS NHS FOUNDATION TRUST | D53: RTRAT | E53: The James Cook University Hospital | F53: 63 | G53: 0.8571428571 | H53: 0.09523809524 | I53: * | J53: * | K53: * | L53: * | M53: * | N53: *
A54: QHM | B54: R0B | C54: SOUTH TYNESIDE AND SUNDERLAND NHS FOUNDATION TRUST | D54: R0BXXX | E54: Non-hospital site | F54: 1 | G54: * | H54: * | I54: * | J54: * | K54: * | L54: * | M54: * | N54: *
A55: QHM | B55: R0B | C55: SOUTH TYNESIDE AND SUNDERLAND NHS FOUNDATION TRUST | D55: R0B0Q | E55: South Tyneside District Hospital | F55: 0 | G55: NA | H55: NA | I55: 0 | J55: 0 | K55: 0 | L55: 0 | M55: 0 | N55: 0
A56: QHM | B56: R0B | C56: SOUTH TYNESIDE AND SUNDERLAND NHS FOUNDATION TRUST | D56: R0B01 | E56: Sunderland Royal Hospital | F56: 19 | G56: 1 | H56: 0 | I56: * | J56: * | K56: * | L56: * | M56: * | N56: *
A57: QHM | B57: RTD | C57: THE NEWCASTLE UPON TYNE HOSPITALS NHS FOUNDATION TRUST | D57: RTD02 | E57: The Royal Victoria Infirmary | F57: 15 | G57: 0.9333333333 | H57: 0 | I57: 13 | J57: 1 | K57: 1 | L57: 0 | M57: 0 | N57: 0
A58: QJ2 | B58: RFS | C58: CHESTERFIELD ROYAL HOSPITAL NHS FOUNDATION TRUST | D58: RFSDA | E58: Chesterfield Royal Hospital | F58: 3 | G58: * | H58: * | I58: * | J58: * | K58: * | L58: * | M58: * | N58: *
A59: QJ2 | B59: RTG | C59: UNIVERSITY HOSPITALS OF DERBY AND BURTON NHS FOUNDATION TRUST | D59: RTG02 | E59: Queens Hospital, Burton Upon Trent | F59: 1 | G59: * | H59: * | I59: * | J59: * | K59: * | L59: * | M59: * | N59: *
A60: QJ2 | B60: RTG | C60: UNIVERSITY HOSPITALS OF DERBY AND BURTON NHS FOUNDATION TRUST | D60: RTGFG | E60: Royal Derby Hospital | F60: 2 | G60: * | H60: * | I60: * | J60: * | K60: * | L60: * | M60: * | N60: *
A61: QJG | B61: RDE | C61: EAST SUFFOLK AND NORTH ESSEX NHS FOUNDATION TRUST | D61: RDEE2 | E61: Clacton and District Hospital | F61: 0 | G61: NA | H61: NA | I61: 0 | J61: 0 | K61: 0 | L61: 0 | M61: 0 | N61: 0
A62: QJG | B62: RDE | C62: EAST SUFFOLK AND NORTH ESSEX NHS FOUNDATION TRUST | D62: RDEE4 | E62: Colchester General Hospital | F62: 1 | G62: * | H62: * | I62: * | J62: * | K62: * | L62: * | M62: * | N62: *
A63: QJG | B63: RDE | C63: EAST SUFFOLK AND NORTH ESSEX NHS FOUNDATION TRUST | D63: RDE03 | E63: Ipswich Hospital | F63: 28 | G63: 0.9642857143 | H63: 0.03571428571 | I63: * | J63: * | K63: * | L63: * | M63: * | N63: *
A64: QJG | B64: RDE | C64: EAST SUFFOLK AND NORTH ESSEX NHS FOUNDATION TRUST | D64: RDEXXX | E64: Non-hospital site | F64: 0 | G64: NA | H64: NA | I64: 0 | J64: 0 | K64: 0 | L64: 0 | M64: 0 | N64: 0
A65: QJG | B65: RGR | C65: WEST SUFFOLK NHS FOUNDATION TRUST | D65: RGR50 | E65: West Suffolk Hospital | F65: 30 | G65: 0.9666666667 | H65: 0 | I65: 21 | J65: 8 | K65: 1 | L65: 0 | M65: 0 | N65: 0
A66: QJK | B66: RH8 | C66: ROYAL DEVON UNIVERSITY HEALTHCARE NHS FOUNDATION TRUST | D66: RH8XXX | E66: Non-hospital site | F66: 0 | G66: NA | H66: NA | I66: 0 | J66: 0 | K66: 0 | L66: 0 | M66: 0 | N66: 0
A67: QJK | B67: RH8 | C67: ROYAL DEVON UNIVERSITY HEALTHCARE NHS FOUNDATION TRUST | D67: RH880 | E67: North Devon District Hospital | F67: 0 | G67: NA | H67: NA | I67: 0 | J67: 0 | K67: 0 | L67: 0 | M67: 0 | N67: 0
A68: QJK | B68: RH8 | C68: ROYAL DEVON UNIVERSITY HEALTHCARE NHS FOUNDATION TRUST | D68: RH801 | E68: Royal Devon and Exeter Hospital (Wonford) | F68: 0 | G68: NA | H68: NA | I68: 0 | J68: 0 | K68: 0 | L68: 0 | M68: 0 | N68: 0
A69: QJK | B69: RA9 | C69: TORBAY AND SOUTH DEVON NHS FOUNDATION TRUST | D69: RA901 | E69: Torbay Hospital | F69: 0 | G69: NA | H69: NA | I69: 0 | J69: 0 | K69: 0 | L69: 0 | M69: 0 | N69: 0
A70: QJK | B70: RK9 | C70: UNIVERSITY HOSPITALS PLYMOUTH NHS TRUST | D70: RK950 | E70: Derriford Hospital | F70: 1 | G70: * | H70: * | I70: * | J70: * | K70: * | L70: * | M70: * | N70: *
A71: QJK | B71: RK9 | C71: UNIVERSITY HOSPITALS PLYMOUTH NHS TRUST | D71: RK9XXX | E71: Non-hospital site | F71: 0 | G71: NA | H71: NA | I71: 0 | J71: 0 | K71: 0 | L71: 0 | M71: 0 | N71: 0
A72: QJM | B72: RWD | C72: UNITED LINCOLNSHIRE HOSPITALS NHS TRUST | D72: RWDLP | E72: Grantham and District Hospital | F72: 0 | G72: NA | H72: NA | I72: 0 | J72: 0 | K72: 0 | L72: 0 | M72: 0 | N72: 0
A73: QJM | B73: RWD | C73: UNITED LINCOLNSHIRE HOSPITALS NHS TRUST | D73: RWDDA | E73: Lincoln County Hospital | F73: 11 | G73: 0.9090909091 | H73: 0 | I73: 9 | J73: 1 | K73: 0 | L73: 0 | M73: 0 | N73: 1
A74: QJM | B74: RWD | C74: UNITED LINCOLNSHIRE HOSPITALS NHS TRUST | D74: RWDLA | E74: Pilgrim Hospital | F74: 0 | G74: NA | H74: NA | I74: 0 | J74: 0 | K74: 0 | L74: 0 | M74: 0 | N74: 0
A75: QK1 | B75: RWE | C75: UNIVERSITY HOSPITALS OF LEICESTER NHS TRUST | D75: RWEAK | E75: Leicester General Hospital | F75: 107 | G75: 0.9439252336 | H75: 0.01869158879 | I75: 95 | J75: 6 | K75: 3 | L75: 1 | M75: 1 | N75: 1
A76: QK1 | B76: RWE | C76: UNIVERSITY HOSPITALS OF LEICESTER NHS TRUST | D76: RWEAA | E76: Leicester Royal Infirmary | F76: 91 | G76: 0.9120879121 | H76: 0.03296703297 | I76: 61 | J76: 22 | K76: 3 | L76: 3 | M76: 0 | N76: 2
A77: QK1 | B77: RWE | C77: UNIVERSITY HOSPITALS OF LEICESTER NHS TRUST | D77: RWEXXX | E77: Non-hospital site | F77: 22 | G77: 0.8636363636 | H77: 0.04545454545 | I77: * | J77: * | K77: * | L77: * | M77: * | N77: *
A78: QK1 | B78: RWE | C78: UNIVERSITY HOSPITALS OF LEICESTER NHS TRUST | D78: RWE10 | E78: St Mary's Hospital | F78: 1 | G78: * | H78: * | I78: * | J78: * | K78: * | L78: * | M78: * | N78: *
A79: QKK | B79: RJ1 | C79: GUY'S AND ST THOMAS' NHS FOUNDATION TRUST | D79: RJ1XXX | E79: Non-hospital site | F79: 0 | G79: NA | H79: NA | I79: 0 | J79: 0 | K79: 0 | L79: 0 | M79: 0 | N79: 0
A80: QKK | B80: RJ1 | C80: GUY'S AND ST THOMAS' NHS FOUNDATION TRUST | D80: RJ122 | E80: St Thomas' Hospital | F80: 76 | G80: 0.9210526316 | H80: 0 | I80: 50 | J80: 20 | K80: 5 | L80: 0 | M80: 0 | N80: 1
A81: QKK | B81: RJZ | C81: KING'S COLLEGE HOSPITAL NHS FOUNDATION TRUST | D81: RJZ01 | E81: King's College Hospital (Denmark Hill) | F81: 49 | G81: 0.7959183673 | H81: 0.1428571429 | I81: 26 | J81: 13 | K81: 3 | L81: 5 | M81: 2 | N81: 0
A82: QKK | B82: RJZ | C82: KING'S COLLEGE HOSPITAL NHS FOUNDATION TRUST | D82: RJZ30 | E82: Princess Royal University Hospital | F82: 129 | G82: 0.9224806202 | H82: 0.05426356589 | I82: 91 | J82: 28 | K82: 3 | L82: 3 | M82: 4 | N82: 0
A83: QKK | B83: RJ2 | C83: LEWISHAM AND GREENWICH NHS TRUST | D83: RJ2XXX | E83: Non-hospital site | F83: 5 | G83: 1 | H83: 0 | I83: * | J83: * | K83: * | L83: * | M83: * | N83: *
A84: QKK | B84: RJ2 | C84: LEWISHAM AND GREENWICH NHS TRUST | D84: RJ231 | E84: Queen Elizabeth Hospital | F84: 3 | G84: * | H84: * | I84: * | J84: * | K84: * | L84: * | M84: * | N84: *
A85: QKK | B85: RJ2 | C85: LEWISHAM AND GREENWICH NHS TRUST | D85: RJ224 | E85: University Hospital Lewisham | F85: 22 | G85: 0.8181818182 | H85: 0.1363636364 | I85: 15 | J85: 3 | K85: 0 | L85: 2 | M85: 1 | N85: 1
A86: QKS | B86: RN7 | C86: DARTFORD AND GRAVESHAM NHS TRUST | D86: RN707 | E86: Darent Valley Hospital | F86: 11 | G86: 0.9090909091 | H86: 0 | I86: 8 | J86: 2 | K86: 1 | L86: 0 | M86: 0 | N86: 0
A87: QKS | B87: RWF | C87: MAIDSTONE AND TUNBRIDGE WELLS NHS TRUST | D87: RWF08 | E87: Crowborough Birthing Centre | F87: 15 | G87: 1 | H87: 0 | I87: 15 | J87: 0 | K87: 0 | L87: 0 | M87: 0 | N87: 0
A88: QKS | B88: RWF | C88: MAIDSTONE AND TUNBRIDGE WELLS NHS TRUST | D88: RWF03 | E88: Maidstone District General Hospital | F88: 30 | G88: 1 | H88: 0 | I88: 30 | J88: 0 | K88: 0 | L88: 0 | M88: 0 | N88: 0
A89: QKS | B89: RWF | C89: MAIDSTONE AND TUNBRIDGE WELLS NHS TRUST | D89: RWFXXX | E89: Non-hospital site | F89: 0 | G89: NA | H89: NA | I89: 0 | J89: 0 | K89: 0 | L89: 0 | M89: 0 | N89: 0
A90: QKS | B90: RWF | C90: MAIDSTONE AND TUNBRIDGE WELLS NHS TRUST | D90: RWFTW | E90: The Tunbridge Wells Hospital | F90: 10 | G90: 1 | H90: 0 | I90: 8 | J90: 2 | K90: 0 | L90: 0 | M90: 0 | N90: 0
A91: QKS | B91: RPA | C91: MEDWAY NHS FOUNDATION TRUST | D91: RPA02 | E91: Medway Maritime Hospital | F91: 40 | G91: 0.95 | H91: 0.05 | I91: 35 | J91: 3 | K91: 0 | L91: 0 | M91: 2 | N91: 0
A92: QM7 | B92: RWH | C92: EAST AND NORTH HERTFORDSHIRE NHS TRUST | D92: RWH01 | E92: Lister Hospital | F92: 2 | G92: * | H92: * | I92: * | J92: * | K92: * | L92: * | M92: * | N92: *
A93: QM7 | B93: RWH | C93: EAST AND NORTH HERTFORDSHIRE NHS TRUST | D93: RWHXXX | E93: Non-hospital site | F93: 0 | G93: NA | H93: NA | I93: 0 | J93: 0 | K93: 0 | L93: 0 | M93: 0 | N93: 0
A94: QM7 | B94: RQW | C94: THE PRINCESS ALEXANDRA HOSPITAL NHS TRUST | D94: RQWG0 | E94: Princess Alexandra Hospital | F94: 15 | G94: 0.6 | H94: 0.1333333333 | I94: * | J94: * | K94: * | L94: * | M94: * | N94: *
A95: QM7 | B95: RWG | C95: WEST HERTFORDSHIRE TEACHING HOSPITALS NHS TRUST | D95: RWG02 | E95: Watford General Hospital | F95: 35 | G95: 0.9142857143 | H95: 0.05714285714 | I95: 16 | J95: 16 | K95: 1 | L95: 1 | M95: 1 | N95: 0
A96: QMF | B96: RF4 | C96: BARKING, HAVERING AND REDBRIDGE UNIVERSITY HOSPITALS NHS TRUST | D96: RF4QH | E96: Queen's Hospital | F96: 168 | G96: 0.9880952381 | H96: 0.0119047619 | I96: 143 | J96: 23 | K96: 0 | L96: 0 | M96: 2 | N96: 0
A97: QMF | B97: R1H | C97: BARTS HEALTH NHS TRUST | D97: R1HNH | E97: Newham General Hospital | F97: 25 | G97: 0.76 | H97: 0.16 | I97: 14 | J97: 5 | K97: 1 | L97: 0 | M97: 4 | N97: 1
A98: QMF | B98: R1H | C98: BARTS HEALTH NHS TRUST | D98: R1H12 | E98: The Royal London Hospital | F98: 29 | G98: 0.8620689655 | H98: 0.06896551724 | I98: 13 | J98: 12 | K98: 2 | L98: 1 | M98: 1 | N98: 0
A99: QMF | B99: R1H | C99: BARTS HEALTH NHS TRUST | D99: R1HKH | E99: Whipps Cross University Hospital | F99: 106 | G99: 0.9150943396 | H99: 0.04716981132 | I99: 79 | J99: 18 | K99: 4 | L99: 2 | M99: 3 | N99: 0
A100: QMF | B100: RQX | C100: HOMERTON HEALTHCARE NHS FOUNDATION TRUST | D100: RQXM1 | E100: Homerton University Hospital | F100: 58 | G100: 0.8965517241 | H100: 0.06896551724 | I100: 45 | J100: 7 | K100: 2 | L100: 1 | M100: 3 | N100: 0
A101: QMJ | B101: RAP | C101: NORTH MIDDLESEX UNIVERSITY HOSPITAL NHS TRUST | D101: RAPNM | E101: North Middlesex Hospital | F101: 31 | G101: 0.7096774194 | H101: 0.1935483871 | I101: 21 | J101: 1 | K101: 2 | L101: 1 | M101: 5 | N101: 1
A102: QMJ | B102: RAL | C102: ROYAL FREE LONDON NHS FOUNDATION TRUST | D102: RAL26 | E102: Barnet Hospital | F102: 128 | G102: 0.9453125 | H102: 0.015625 | I102: 61 | J102: 60 | K102: 5 | L102: 1 | M102: 1 | N102: 0
A103: QMJ | B103: RAL | C103: ROYAL FREE LONDON NHS FOUNDATION TRUST | D103: RAL01 | E103: Royal Free Hospital | F103: 89 | G103: 0.9438202247 | H103: 0.03370786517 | I103: 56 | J103: 28 | K103: 2 | L103: 3 | M103: 0 | N103: 0
A104: QMJ | B104: RRV | C104: UNIVERSITY COLLEGE LONDON HOSPITALS NHS FOUNDATION TRUST | D104: RRV11 | E104: University College Hospital Elizabeth Garrett Anderson Wing | F104: 55 | G104: 0.8727272727 | H104: 0.09090909091 | I104: 40 | J104: 8 | K104: 2 | L104: 3 | M104: 2 | N104: 0
A105: QMM | B105: RGP | C105: JAMES PAGET UNIVERSITY HOSPITALS NHS FOUNDATION TRUST | D105: RGP75 | E105: James Paget University Hospital | F105: 28 | G105: 1 | H105: 0 | I105: 26 | J105: 2 | K105: 0 | L105: 0 | M105: 0 | N105: 0
A106: QMM | B106: RM1 | C106: NORFOLK AND NORWICH UNIVERSITY HOSPITALS NHS FOUNDATION TRUST | D106: RM102 | E106: Norfolk and Norwich University Hospital | F106: 4 | G106: * | H106: * | I106: * | J106: * | K106: * | L106: * | M106: * | N106: *
A107: QMM | B107: RCX | C107: THE QUEEN ELIZABETH HOSPITAL, KING'S LYNN, NHS FOUNDATION TRUST | D107: RCXXXX | E107: Non-hospital site | F107: 0 | G107: NA | H107: NA | I107: 0 | J107: 0 | K107: 0 | L107: 0 | M107: 0 | N107: 0
A108: QMM | B108: RCX | C108: THE QUEEN ELIZABETH HOSPITAL, KING'S LYNN, NHS FOUNDATION TRUST | D108: RCX70 | E108: The Queen Elizabeth Hospital | F108: 15 | G108: 1 | H108: 0 | I108: * | J108: * | K108: * | L108: * | M108: * | N108: *
A109: QNC | B109: RJE | C109: UNIVERSITY HOSPITALS OF NORTH MIDLANDS NHS TRUST | D109: RJE01 | E109: Royal Stoke University Hospital | F109: 2 | G109: * | H109: * | I109: * | J109: * | K109: * | L109: * | M109: * | N109: *
A110: QNQ | B110: RDU | C110: FRIMLEY HEALTH NHS FOUNDATION TRUST | D110: RDU01 | E110: Frimley Park Hospital | F110: 9 | G110: 1 | H110: 0 | I110: 9 | J110: 0 | K110: 0 | L110: 0 | M110: 0 | N110: 0
A111: QNQ | B111: RDU | C111: FRIMLEY HEALTH NHS FOUNDATION TRUST | D111: RDU50 | E111: Wexham Park Hospital | F111: 0 | G111: NA | H111: NA | I111: 0 | J111: 0 | K111: 0 | L111: 0 | M111: 0 | N111: 0
A112: QNX | B112: RXC | C112: EAST SUSSEX HEALTHCARE NHS TRUST | D112: RXC01 | E112: Conquest Hospital | F112: 0 | G112: NA | H112: NA | I112: 0 | J112: 0 | K112: 0 | L112: 0 | M112: 0 | N112: 0
A113: QNX | B113: RXC | C113: EAST SUSSEX HEALTHCARE NHS TRUST | D113: RXC02 | E113: Eastbourne District General Hospital | F113: 3 | G113: * | H113: * | I113: * | J113: * | K113: * | L113: * | M113: * | N113: *
A114: QNX | B114: RXC | C114: EAST SUSSEX HEALTHCARE NHS TRUST | D114: RXCXXX | E114: Non-hospital site | F114: 0 | G114: NA | H114: NA | I114: 0 | J114: 0 | K114: 0 | L114: 0 | M114: 0 | N114: 0
A115: QNX | B115: RYR | C115: UNIVERSITY HOSPITALS SUSSEX NHS FOUNDATION TRUST | D115: RYRXXX | E115: Non-hospital site | F115: 0 | G115: NA | H115: NA | I115: 0 | J115: 0 | K115: 0 | L115: 0 | M115: 0 | N115: 0
A116: QNX | B116: RYR | C116: UNIVERSITY HOSPITALS SUSSEX NHS FOUNDATION TRUST | D116: N6J7V | E116: Princess Royal Hospital | F116: 11 | G116: 1 | H116: 0 | I116: * | J116: * | K116: * | L116: * | M116: * | N116: *
A117: QNX | B117: RYR | C117: UNIVERSITY HOSPITALS SUSSEX NHS FOUNDATION TRUST | D117: E0A3H | E117: Royal Sussex County Hospital | F117: 41 | G117: 0.9268292683 | H117: 0.0487804878 | I117: * | J117: * | K117: * | L117: * | M117: * | N117: *
A118: QNX | B118: RYR | C118: UNIVERSITY HOSPITALS SUSSEX NHS FOUNDATION TRUST | D118: RYR16 | E118: St Richard's Hospital | F118: 51 | G118: 0.9607843137 | H118: 0 | I118: 42 | J118: 7 | K118: 2 | L118: 0 | M118: 0 | N118: 0
A119: QNX | B119: RYR | C119: UNIVERSITY HOSPITALS SUSSEX NHS FOUNDATION TRUST | D119: RYR18 | E119: Worthing Hospital | F119: 59 | G119: 0.8983050847 | H119: 0.03389830508 | I119: 46 | J119: 7 | K119: 4 | L119: 1 | M119: 1 | N119: 0
A120: QOC | B120: RXW | C120: THE SHREWSBURY AND TELFORD HOSPITAL NHS TRUST | D120: RXWMB | E120: Bridgnorth Hospital (Maternity) | F120: 0 | G120: NA | H120: NA | I120: 0 | J120: 0 | K120: 0 | L120: 0 | M120: 0 | N120: 0
A121: QOC | B121: RXW | C121: THE SHREWSBURY AND TELFORD HOSPITAL NHS TRUST | D121: RXWML | E121: Ludlow Hospital (Maternity) | F121: 0 | G121: NA | H121: NA | I121: 0 | J121: 0 | K121: 0 | L121: 0 | M121: 0 | N121: 0
A122: QOC | B122: RXW | C122: THE SHREWSBURY AND TELFORD HOSPITAL NHS TRUST | D122: RXWXXX | E122: Non-hospital site | F122: 0 | G122: NA | H122: NA | I122: 0 | J122: 0 | K122: 0 | L122: 0 | M122: 0 | N122: 0
A123: QOC | B123: RXW | C123: THE SHREWSBURY AND TELFORD HOSPITAL NHS TRUST | D123: RXWMJ | E123: Robert Jones & Agnes Hunt Orthopaedic & District Hospital | F123: 0 | G123: NA | H123: NA | I123: 0 | J123: 0 | K123: 0 | L123: 0 | M123: 0 | N123: 0
A124: QOC | B124: RXW | C124: THE SHREWSBURY AND TELFORD HOSPITAL NHS TRUST | D124: RXWAS | E124: Royal Shrewsbury Hospital | F124: 0 | G124: NA | H124: NA | I124: 0 | J124: 0 | K124: 0 | L124: 0 | M124: 0 | N124: 0
A125: QOC | B125: RXW | C125: THE SHREWSBURY AND TELFORD HOSPITAL NHS TRUST | D125: RXWAT | E125: The Princess Royal Hospital | F125: 22 | G125: 1 | H125: 0 | I125: 22 | J125: 0 | K125: 0 | L125: 0 | M125: 0 | N125: 0
A126: QOP | B126: RMC | C126: BOLTON NHS FOUNDATION TRUST | D126: RMC01 | E126: Royal Bolton Hospital | F126: 130 | G126: 0.8461538462 | H126: 0.1076923077 | I126: 93 | J126: 17 | K126: 6 | L126: 5 | M126: 9 | N126: 0
A127: QOP | B127: R0A | C127: MANCHESTER UNIVERSITY NHS FOUNDATION TRUST | D127: R0A05 | E127: St Mary's Hospital | F127: 42 | G127: 0.880952381 | H127: 0.09523809524 | I127: 32 | J127: 5 | K127: 1 | L127: 2 | M127: 2 | N127: 0
A128: QOP | B128: RM3 | C128: NORTHERN CARE ALLIANCE NHS FOUNDATION TRUST | D128: RW604 | E128: Rochdale Infirmary | F128: 1 | G128: * | H128: * | I128: * | J128: * | K128: * | L128: * | M128: * | N128: *
A129: QOP | B129: RM3 | C129: NORTHERN CARE ALLIANCE NHS FOUNDATION TRUST | D129: RW603 | E129: Royal Oldham Hospital | F129: 64 | G129: 0.796875 | H129: 0.171875 | I129: * | J129: * | K129: * | L129: * | M129: * | N129: *
A130: QOP | B130: RWJ | C130: STOCKPORT NHS FOUNDATION TRUST | D130: RWJXXX | E130: Non-hospital site | F130: 0 | G130: NA | H130: NA | I130: 0 | J130: 0 | K130: 0 | L130: 0 | M130: 0 | N130: 0
A131: QOP | B131: RWJ | C131: STOCKPORT NHS FOUNDATION TRUST | D131: RWJ09 | E131: Stepping Hill Hospital | F131: 12 | G131: 0.8333333333 | H131: 0.08333333333 | I131: * | J131: * | K131: * | L131: * | M131: * | N131: *
A132: QOP | B132: RRF | C132: WRIGHTINGTON, WIGAN AND LEIGH NHS FOUNDATION TRUST | D132: RRF02 | E132: Royal Albert Edward Infirmary | F132: 4 | G132: * | H132: * | I132: * | J132: * | K132: * | L132: * | M132: * | N132: *
A133: QOQ | B133: RCD | C133: HARROGATE AND DISTRICT NHS FOUNDATION TRUST | D133: RCD01 | E133: Harrogate District Hospital | F133: 2 | G133: * | H133: * | I133: * | J133: * | K133: * | L133: * | M133: * | N133: *
A134: QOQ | B134: RWA | C134: HULL UNIVERSITY TEACHING HOSPITALS NHS TRUST | D134: RWA01 | E134: Hull Royal Infirmary | F134: 1 | G134: * | H134: * | I134: * | J134: * | K134: * | L134: * | M134: * | N134: *
A135: QOQ | B135: RJL | C135: NORTHERN LINCOLNSHIRE AND GOOLE NHS FOUNDATION TRUST | D135: RJL30 | E135: Diana, Princess Of Wales Hospital | F135: 24 | G135: 1 | H135: 0 | I135: * | J135: * | K135: * | L135: * | M135: * | N135: *
A136: QOQ | B136: RJL | C136: NORTHERN LINCOLNSHIRE AND GOOLE NHS FOUNDATION TRUST | D136: RJL32 | E136: Scunthorpe General Hospital | F136: 1 | G136: * | H136: * | I136: * | J136: * | K136: * | L136: * | M136: * | N136: *
A137: QOQ | B137: RCB | C137: YORK AND SCARBOROUGH TEACHING HOSPITALS NHS FOUNDATION TRUST | D137: RCBCA | E137: Scarborough General Hospital | F137: 37 | G137: 0.972972973 | H137: 0 | I137: * | J137: * | K137: * | L137: * | M137: * | N137: *
A138: QOQ | B138: RCB | C138: YORK AND SCARBOROUGH TEACHING HOSPITALS NHS FOUNDATION TRUST | D138: RCB55 | E138: York Hospital | F138: 1 | G138: * | H138: * | I138: * | J138: * | K138: * | L138: * | M138: * | N138: *
A139: QOX | B139: RN3 | C139: GREAT WESTERN HOSPITALS NHS FOUNDATION TRUST | D139: RN3XXX | E139: Non-hospital site | F139: 1 | G139: * | H139: * | I139: * | J139: * | K139: * | L139: * | M139: * | N139: *
A140: QOX | B140: RN3 | C140: GREAT WESTERN HOSPITALS NHS FOUNDATION TRUST | D140: RN325 | E140: The Great Western Hospital | F140: 85 | G140: 0.9411764706 | H140: 0.02352941176 | I140: * | J140: * | K140: * | L140: * | M140: * | N140: *
A141: QOX | B141: RD1 | C141: ROYAL UNITED HOSPITALS BATH NHS FOUNDATION TRUST | D141: RD1XXX | E141: Non Hospital Site | F141: 0 | G141: NA | H141: NA | I141: 0 | J141: 0 | K141: 0 | L141: 0 | M141: 0 | N141: 0
A142: QOX | B142: RD1 | C142: ROYAL UNITED HOSPITALS BATH NHS FOUNDATION TRUST | D142: RD129 | E142: Paulton Memorial Hospital | F142: 0 | G142: NA | H142: NA | I142: 0 | J142: 0 | K142: 0 | L142: 0 | M142: 0 | N142: 0
A143: QOX | B143: RD1 | C143: ROYAL UNITED HOSPITALS BATH NHS FOUNDATION TRUST | D143: RD130 | E143: Princess Anne Wing RUH | F143: 8 | G143: 1 | H143: 0 | I143: * | J143: * | K143: * | L143: * | M143: * | N143: *
A144: QOX | B144: RD1 | C144: ROYAL UNITED HOSPITALS BATH NHS FOUNDATION TRUST | D144: RD108 | E144: Trowbridge Community Hospital | F144: 0 | G144: NA | H144: NA | I144: 0 | J144: 0 | K144: 0 | L144: 0 | M144: 0 | N144: 0
A145: QOX | B145: RNZ | C145: SALISBURY NHS FOUNDATION TRUST | D145: RNZXXX | E145: Non-hospital site | F145: 0 | G145: NA | H145: NA | I145: 0 | J145: 0 | K145: 0 | L145: 0 | M145: 0 | N145: 0
A146: QOX | B146: RNZ | C146: SALISBURY NHS FOUNDATION TRUST | D146: RNZ02 | E146: Salisbury District Hospital | F146: 1 | G146: * | H146: * | I146: * | J146: * | K146: * | L146: * | M146: * | N146: *
A147: QPM | B147: RNQ | C147: KETTERING GENERAL HOSPITAL NHS FOUNDATION TRUST | D147: RNQ51 | E147: Kettering General Hospital | F147: 3 | G147: * | H147: * | I147: * | J147: * | K147: * | L147: * | M147: * | N147: *
A148: QPM | B148: RNS | C148: NORTHAMPTON GENERAL HOSPITAL NHS TRUST | D148: RNS01 | E148: Northampton General Hospital (Acute) | F148: 53 | G148: 0.9245283019 | H148: 0.07547169811 | I148: * | J148: * | K148: * | L148: * | M148: * | N148: *
A149: QR1 | B149: RTE | C149: GLOUCESTERSHIRE HOSPITALS NHS FOUNDATION TRUST | D149: RTE03 | E149: Gloucestershire Royal Hospital | F149: 47 | G149: 0.9574468085 | H149: 0 | I149: * | J149: * | K149: * | L149: * | M149: * | N149: *
A150: QR1 | B150: RTE | C150: GLOUCESTERSHIRE HOSPITALS NHS FOUNDATION TRUST | D150: RTE27 | E150: Stroud Maternity Hospital | F150: 4 | G150: * | H150: * | I150: * | J150: * | K150: * | L150: * | M150: * | N150: *
A151: QRL | B151: RN5 | C151: HAMPSHIRE HOSPITALS NHS FOUNDATION TRUST | D151: RN542 | E151: Andover War Memorial Hospital | F151: 1 | G151: * | H151: * | I151: * | J151: * | K151: * | L151: * | M151: * | N151: *
A152: QRL | B152: RN5 | C152: HAMPSHIRE HOSPITALS NHS FOUNDATION TRUST | D152: RN506 | E152: Basingstoke and North Hampshire Hospital | F152: 58 | G152: 1 | H152: 0 | I152: 51 | J152: 7 | K152: 0 | L152: 0 | M152: 0 | N152: 0
A153: QRL | B153: RN5 | C153: HAMPSHIRE HOSPITALS NHS FOUNDATION TRUST | D153: RN541 | E153: Royal Hampshire County Hospital | F153: 3 | G153: * | H153: * | I153: * | J153: * | K153: * | L153: * | M153: * | N153: *
A154: QRL | B154: R1F | C154: ISLE OF WIGHT NHS TRUST | D154: R1F01 | E154: St Mary's Hospital | F154: 10 | G154: 1 | H154: 0 | I154: 7 | J154: 3 | K154: 0 | L154: 0 | M154: 0 | N154: 0
A155: QRL | B155: RHU | C155: PORTSMOUTH HOSPITALS UNIVERSITY NATIONAL HEALTH SERVICE TRUST | D155: RHU10 | E155: Gosport War Memorial Hospital | F155: 0 | G155: NA | H155: NA | I155: 0 | J155: 0 | K155: 0 | L155: 0 | M155: 0 | N155: 0
A156: QRL | B156: RHU | C156: PORTSMOUTH HOSPITALS UNIVERSITY NATIONAL HEALTH SERVICE TRUST | D156: RHU04 | E156: Petersfield Community Hospital | F156: 0 | G156: NA | H156: NA | I156: 0 | J156: 0 | K156: 0 | L156: 0 | M156: 0 | N156: 0
A157: QRL | B157: RHU | C157: PORTSMOUTH HOSPITALS UNIVERSITY NATIONAL HEALTH SERVICE TRUST | D157: RHU03 | E157: Queen Alexandra Hospital | F157: 34 | G157: 1 | H157: 0 | I157: 31 | J157: 3 | K157: 0 | L157: 0 | M157: 0 | N157: 0
A158: QRL | B158: RHU | C158: PORTSMOUTH HOSPITALS UNIVERSITY NATIONAL HEALTH SERVICE TRUST | D158: RHU02 | E158: St Mary's Hospital | F158: 0 | G158: NA | H158: NA | I158: 0 | J158: 0 | K158: 0 | L158: 0 | M158: 0 | N158: 0
A159: QRL | B159: RHM | C159: UNIVERSITY HOSPITAL SOUTHAMPTON NHS FOUNDATION TRUST | D159: RHM01 | E159: Southampton General Hospital | F159: 111 | G159: 0.972972973 | H159: 0.01801801802 | I159: 95 | J159: 13 | K159: 1 | L159: 1 | M159: 1 | N159: 0
A160: QRV | B160: RQM | C160: CHELSEA AND WESTMINSTER HOSPITAL NHS FOUNDATION TRUST | D160: RQM01 | E160: Chelsea and Westminster Hospital | F160: 36 | G160: 0.9444444444 | H160: 0.02777777778 | I160: 33 | J160: 1 | K160: 1 | L160: 0 | M160: 1 | N160: 0
A161: QRV | B161: RQM | C161: CHELSEA AND WESTMINSTER HOSPITAL NHS FOUNDATION TRUST | D161: RQM91 | E161: West Middlesex University Hospital | F161: 14 | G161: 0.9285714286 | H161: 0 | I161: 10 | J161: 3 | K161: 1 | L161: 0 | M161: 0 | N161: 0
A162: QRV | B162: RYJ | C162: IMPERIAL COLLEGE HEALTHCARE NHS TRUST | D162: RYJ04 | E162: Queen Charlotte's Hospital | F162: 51 | G162: 0.9803921569 | H162: 0 | I162: 45 | J162: 5 | K162: 1 | L162: 0 | M162: 0 | N162: 0
A163: QRV | B163: RYJ | C163: IMPERIAL COLLEGE HEALTHCARE NHS TRUST | D163: RYJ01 | E163: St Mary's Hospital (HQ) | F163: 13 | G163: 1 | H163: 0 | I163: 11 | J163: 2 | K163: 0 | L163: 0 | M163: 0 | N163: 0
A164: QRV | B164: R1K | C164: LONDON NORTH WEST UNIVERSITY HEALTHCARE NHS TRUST | D164: R1K01 | E164: Northwick Park Hospital | F164: 49 | G164: 0.9183673469 | H164: 0.02040816327 | I164: 28 | J164: 17 | K164: 3 | L164: 1 | M164: 0 | N164: 0
A165: QRV | B165: RAS | C165: THE HILLINGDON HOSPITALS NHS FOUNDATION TRUST | D165: RAS01 | E165: Hillingdon Hospital | F165: 29 | G165: 0.8275862069 | H165: 0.1379310345 | I165: 21 | J165: 3 | K165: 1 | L165: 1 | M165: 3 | N165: 0
A166: QSL | B166: RH5 | C166: SOMERSET NHS FOUNDATION TRUST | D166: RH5K6 | E166: Bridgwater Hospital | F166: 0 | G166: NA | H166: NA | I166: 0 | J166: 0 | K166: 0 | L166: 0 | M166: 0 | N166: 0
A167: QSL | B167: RH5 | C167: SOMERSET NHS FOUNDATION TRUST | D167: RH5A8 | E167: MUSGROVE PARK HOSPITAL | F167: 0 | G167: NA | H167: NA | I167: 0 | J167: 0 | K167: 0 | L167: 0 | M167: 0 | N167: 0
A168: QSL | B168: RH5 | C168: SOMERSET NHS FOUNDATION TRUST | D168: RH5XXXX | E168: Non-hospital site home/in-transit births | F168: 0 | G168: NA | H168: NA | I168: 0 | J168: 0 | K168: 0 | L168: 0 | M168: 0 | N168: 0
A169: QSL | B169: RA4 | C169: YEOVIL DISTRICT HOSPITAL NHS FOUNDATION TRUST | D169: RA430 | E169: Yeovil District Hospital | F169: 12 | G169: 1 | H169: 0 | I169: 10 | J169: 2 | K169: 0 | L169: 0 | M169: 0 | N169: 0
A170: QT1 | B170: RX1 | C170: NOTTINGHAM UNIVERSITY HOSPITALS NHS TRUST | D170: RX1XXX | E170: Non-hospital site | F170: 0 | G170: NA | H170: NA | I170: 0 | J170: 0 | K170: 0 | L170: 0 | M170: 0 | N170: 0
A171: QT1 | B171: RX1 | C171: NOTTINGHAM UNIVERSITY HOSPITALS NHS TRUST | D171: RX1CC | E171: Nottingham University Hospitals NHS Trust - City Campus | F171: 2 | G171: * | H171: * | I171: * | J171: * | K171: * | L171: * | M171: * | N171: *
A172: QT1 | B172: RX1 | C172: NOTTINGHAM UNIVERSITY HOSPITALS NHS TRUST | D172: RX1RA | E172: Nottingham University Hospitals NHS Trust - Queen's Medical Centre Campus | F172: 36 | G172: 1 | H172: 0 | I172: * | J172: * | K172: * | L172: * | M172: * | N172: *
A173: QT1 | B173: RK5 | C173: SHERWOOD FOREST HOSPITALS NHS FOUNDATION TRUST | D173: RK5BC | E173: King's Mill Hospital | F173: 44 | G173: 0.8863636364 | H173: 0.09090909091 | I173: 27 | J173: 12 | K173: 1 | L173: 4 | M173: 0 | N173: 0
A174: QT1 | B174: RK5 | C174: SHERWOOD FOREST HOSPITALS NHS FOUNDATION TRUST | D174: RK5XXX | E174: Non-hospital site | F174: 0 | G174: NA | H174: NA | I174: 0 | J174: 0 | K174: 0 | L174: 0 | M174: 0 | N174: 0
A175: QT6 | B175: REF | C175: ROYAL CORNWALL HOSPITALS NHS TRUST | D175: REFXXX | E175: Non-hospital site | F175: 0 | G175: NA | H175: NA | I175: 0 | J175: 0 | K175: 0 | L175: 0 | M175: 0 | N175: 0
A176: QT6 | B176: REF | C176: ROYAL CORNWALL HOSPITALS NHS TRUST | D176: REF12 | E176: Royal Cornwall Hospital (Treliske) | F176: 12 | G176: 1 | H176: 0 | I176: 12 | J176: 0 | K176: 0 | L176: 0 | M176: 0 | N176: 0
A177: QU9 | B177: RXQ | C177: BUCKINGHAMSHIRE HEALTHCARE NHS TRUST | D177: RXQ02 | E177: Stoke Mandeville Hospital | F177: 24 | G177: 0.7916666667 | H177: 0.125 | I177: 15 | J177: 4 | K177: 2 | L177: 2 | M177: 1 | N177: 0
A178: QU9 | B178: RTH | C178: OXFORD UNIVERSITY HOSPITALS NHS FOUNDATION TRUST | D178: RTH05 | E178: Horton General Hospital | F178: 1 | G178: * | H178: * | I178: * | J178: * | K178: * | L178: * | M178: * | N178: *
A179: QU9 | B179: RTH | C179: OXFORD UNIVERSITY HOSPITALS NHS FOUNDATION TRUST | D179: RTH08 | E179: John Radcliffe Hospital | F179: 112 | G179: 0.875 | H179: 0.0625 | I179: * | J179: * | K179: * | L179: * | M179: * | N179: *
A180: QU9 | B180: RTH | C180: OXFORD UNIVERSITY HOSPITALS NHS FOUNDATION TRUST | D180: RTH16 | E180: Wallingford Community Hospital | F180: 0 | G180: NA | H180: NA | I180: 0 | J180: 0 | K180: 0 | L180: 0 | M180: 0 | N180: 0
A181: QU9 | B181: RHW | C181: ROYAL BERKSHIRE NHS FOUNDATION TRUST | D181: RHW01 | E181: Royal Berkshire Hospital | F181: 64 | G181: 0.96875 | H181: 0.015625 | I181: 52 | J181: 10 | K181: 1 | L181: 0 | M181: 1 | N181: 0
A182: QUA | B182: RNA | C182: THE DUDLEY GROUP NHS FOUNDATION TRUST | D182: RNA01 | E182: Russells Hall Hospital | F182: 27 | G182: 0.9259259259 | H182: 0 | I182: 21 | J182: 4 | K182: 1 | L182: 0 | M182: 0 | N182: 1
A183: QUA | B183: RL4 | C183: THE ROYAL WOLVERHAMPTON NHS TRUST | D183: RL403 | E183: New Cross Hospital | F183: 108 | G183: 0.8796296296 | H183: 0.06481481481 | I183: 80 | J183: 15 | K183: 4 | L183: 6 | M183: 1 | N183: 2
A184: QUA | B184: RBK | C184: WALSALL HEALTHCARE NHS TRUST | D184: RBK02 | E184: Manor Hospital | F184: 48 | G184: 0.8125 | H184: 0.125 | I184: 29 | J184: 10 | K184: 2 | L184: 4 | M184: 2 | N184: 1
A185: QUE | B185: RGT | C185: CAMBRIDGE UNIVERSITY HOSPITALS NHS FOUNDATION TRUST | D185: RGT32 | E185: Rosie Hospital | F185: 68 | G185: 0.9558823529 | H185: 0.04411764706 | I185: 60 | J185: 5 | K185: 0 | L185: 2 | M185: 1 | N185: 0
A186: QUE | B186: RGN | C186: NORTH WEST ANGLIA NHS FOUNDATION TRUST | D186: RGN90 | E186: Hinchingbrooke Hospital | F186: 1 | G186: * | H186: * | I186: * | J186: * | K186: * | L186: * | M186: * | N186: *
A187: QUE | B187: RGN | C187: NORTH WEST ANGLIA NHS FOUNDATION TRUST | D187: RGN80 | E187: Peterborough City Hospital | F187: 46 | G187: 1 | H187: 0 | I187: * | J187: * | K187: * | L187: * | M187: * | N187: *
A188: QUY | B188: RVJ | C188: NORTH BRISTOL NHS TRUST | D188: RVJ21 | E188: Cossham Hospital | F188: 0 | G188: NA | H188: NA | I188: 0 | J188: 0 | K188: 0 | L188: 0 | M188: 0 | N188: 0
A189: QUY | B189: RVJ | C189: NORTH BRISTOL NHS TRUST | D189: RVJXXX | E189: Non-hospital site | F189: 1 | G189: * | H189: * | I189: * | J189: * | K189: * | L189: * | M189: * | N189: *
A190: QUY | B190: RVJ | C190: NORTH BRISTOL NHS TRUST | D190: RVJ01 | E190: Southmead Hospital | F190: 113 | G190: 0.9292035398 | H190: 0.05309734513 | I190: * | J190: * | K190: * | L190: * | M190: * | N190: *
A191: QUY | B191: RA7 | C191: UNIVERSITY HOSPITALS BRISTOL AND WESTON NHS FOUNDATION TRUST | D191: RA707 | E191: St Michael's Hospital | F191: 39 | G191: 0.9743589744 | H191: 0 | I191: 38 | J191: 0 | K191: 1 | L191: 0 | M191: 0 | N191: 0
A192: QVV | B192: RBD | C192: DORSET COUNTY HOSPITAL NHS FOUNDATION TRUST | D192: RBD01 | E192: Dorset County Hospital | F192: 47 | G192: 0.9574468085 | H192: 0.04255319149 | I192: 37 | J192: 8 | K192: 0 | L192: 1 | M192: 1 | N192: 0
A193: QVV | B193: R0D | C193: UNIVERSITY HOSPITALS DORSET NHS FOUNDATION TRUST | D193: R0D01 | E193: Poole Hospital | F193: 127 | G193: 0.937007874 | H193: 0.02362204724 | I193: 96 | J193: 23 | K193: 2 | L193: 1 | M193: 2 | N193: 3
A194: QVV | B194: R0D | C194: UNIVERSITY HOSPITALS DORSET NHS FOUNDATION TRUST | D194: R0D02 | E194: Royal Bournemouth Hospital | F194: 0 | G194: NA | H194: NA | I194: 0 | J194: 0 | K194: 0 | L194: 0 | M194: 0 | N194: 0
A195: QWE | B195: RJ6 | C195: CROYDON HEALTH SERVICES NHS TRUST | D195: RJ611 | E195: Croydon University Hospital | F195: 29 | G195: 0.8965517241 | H195: 0.1034482759 | I195: 19 | J195: 7 | K195: 0 | L195: 2 | M195: 1 | N195: 0
A196: QWE | B196: RVR | C196: EPSOM AND ST HELIER UNIVERSITY HOSPITALS NHS TRUST | D196: RVR50 | E196: Epsom Hospital | F196: 15 | G196: 1 | H196: 0 | I196: 15 | J196: 0 | K196: 0 | L196: 0 | M196: 0 | N196: 0
A197: QWE | B197: RVR | C197: EPSOM AND ST HELIER UNIVERSITY HOSPITALS NHS TRUST | D197: RVRXXX | E197: Non-hospital site | F197: 1 | G197: * | H197: * | I197: * | J197: * | K197: * | L197: * | M197: * | N197: *
A198: QWE | B198: RVR | C198: EPSOM AND ST HELIER UNIVERSITY HOSPITALS NHS TRUST | D198: RVR05 | E198: St Helier Hospital | F198: 7 | G198: 1 | H198: 0 | I198: * | J198: * | K198: * | L198: * | M198: * | N198: *
A199: QWE | B199: RAX | C199: KINGSTON HOSPITAL NHS FOUNDATION TRUST | D199: RAX01 | E199: Kingston Hospital | F199: 8 | G199: 1 | H199: 0 | I199: 7 | J199: 1 | K199: 0 | L199: 0 | M199: 0 | N199: 0
A200: QWE | B200: RJ7 | C200: ST GEORGE'S UNIVERSITY HOSPITALS NHS FOUNDATION TRUST | D200: RJ701 | E200: St George's Hospital (Tooting) | F200: 29 | G200: 0.8620689655 | H200: 0.06896551724 | I200: 20 | J200: 5 | K200: 2 | L200: 0 | M200: 2 | N200: 0
A201: QWO | B201: RCF | C201: AIREDALE NHS FOUNDATION TRUST | D201: RCF22 | E201: Airedale General Hospital | F201: 48 | G201: 0.9375 | H201: 0.04166666667 | I201: 40 | J201: 5 | K201: 1 | L201: 1 | M201: 1 | N201: 0
A202: QWO | B202: RAE | C202: BRADFORD TEACHING HOSPITALS NHS FOUNDATION TRUST | D202: RAE01 | E202: Bradford Royal Infirmary | F202: 47 | G202: 1 | H202: 0 | I202: 45 | J202: 2 | K202: 0 | L202: 0 | M202: 0 | N202: 0
A203: QWO | B203: RWY | C203: CALDERDALE AND HUDDERSFIELD NHS FOUNDATION TRUST | D203: RWY02 | E203: Calderdale Royal Hospital | F203: 59 | G203: 0.9322033898 | H203: 0.01694915254 | I203: * | J203: * | K203: * | L203: * | M203: * | N203: *
A204: QWO | B204: RWY | C204: CALDERDALE AND HUDDERSFIELD NHS FOUNDATION TRUST | D204: RWYXXX | E204: Non-hospital site | F204: 1 | G204: * | H204: * | I204: * | J204: * | K204: * | L204: * | M204: * | N204: *
A205: QWO | B205: RR8 | C205: LEEDS TEACHING HOSPITALS NHS TRUST | D205: RR801 | E205: Leeds General Infirmary | F205: 136 | G205: 0.9779411765 | H205: 0.02205882353 | I205: 121 | J205: 12 | K205: 0 | L205: 1 | M205: 2 | N205: 0
A206: QWO | B206: RR8 | C206: LEEDS TEACHING HOSPITALS NHS TRUST | D206: RR8XXX | E206: Non-hospital site | F206: 0 | G206: NA | H206: NA | I206: 0 | J206: 0 | K206: 0 | L206: 0 | M206: 0 | N206: 0
A207: QWO | B207: RR8 | C207: LEEDS TEACHING HOSPITALS NHS TRUST | D207: RR813 | E207: St James's University Hospital | F207: 102 | G207: 0.9705882353 | H207: 0.01960784314 | I207: 92 | J207: 7 | K207: 1 | L207: 2 | M207: 0 | N207: 0
... 19 more rows

Sheet ICB Q3
B6: Sort data by:
A9: ICB Code | B9: ICB Name | C9: Total Responses | D9: Percentage Positive | E9: Percentage Negative | F9: Breakdown of Responses
F10: Very Good | G10: Good | H10: Neither Good nor Poor | I10: Poor | J10: Very Poor | K10: Don't Know
B11: England (including Independent Sector providers) | C11: 6214 | D11: 0.9169616994 | E11: 0.04409398133 | F11: 4409 | G11: 1289 | H11: 211 | I11: 147 | J11: 127 | K11: 31
B12: England (excluding Independent Sector providers) | C12: 6214 | D12: 0.9169616994 | E12: 0.04409398133 | F12: 4409 | G12: 1289 | H12: 211 | I12: 147 | J12: 127 | K12: 31
B13: Selection (excluding suppressed data) | C13: =SUBTOTAL(9,C14:C55) -> 6214 | D13: =IFERROR((F13+G13)/SUM(F13:K13), "-") -> 0.9169890393 | E13: =IFERROR((I13+J13)/SUM(F13:K13), "-") -> 0.04400386847 | F13: =SUBTOTAL(9,F14:F55) -> 4400 | G13: =SUBTOTAL(9,G14:G55) -> 1289 | H13: 211 | I13: 146 | J13: 127 | K13: 31
A14: QE1 | B14: LANCASHIRE AND SOUTH CUMBRIA ICB | C14: 280 | D14: 0.9178571429 | E14: 0.03928571429 | F14: 218 | G14: 39 | H14: 7 | I14: 8 | J14: 3 | K14: 5
A15: QF7 | B15: SOUTH YORKSHIRE ICB | C15: 149 | D15: 0.9530201342 | E15: 0.03355704698 | F15: 115 | G15: 27 | H15: 2 | I15: 2 | J15: 3 | K15: 0
A16: QGH | B16: HEREFORDSHIRE AND WORCESTERSHIRE ICB | C16: 34 | D16: 1 | E16: 0 | F16: 31 | G16: 3 | H16: 0 | I16: 0 | J16: 0 | K16: 0
A17: QH8 | B17: MID AND SOUTH ESSEX ICB | C17: 104 | D17: 0.7884615385 | E17: 0.1153846154 | F17: 62 | G17: 20 | H17: 10 | I17: 4 | J17: 8 | K17: 0
A18: QHG | B18: BEDFORDSHIRE, LUTON AND MILTON KEYNES ICB | C18: 279 | D18: 0.9534050179 | E18: 0.0394265233 | F18: 199 | G18: 67 | H18: 2 | I18: 7 | J18: 4 | K18: 0
A19: QHL | B19: BIRMINGHAM AND SOLIHULL ICB | C19: 27 | D19: 0.8518518519 | E19: 0.1111111111 | F19: 20 | G19: 3 | H19: 0 | I19: 1 | J19: 2 | K19: 1
A20: QHM | B20: NORTH EAST AND NORTH CUMBRIA ICB | C20: 268 | D20: 0.9701492537 | E20: 0.01492537313 | F20: 216 | G20: 44 | H20: 4 | I20: 3 | J20: 1 | K20: 0
A21: QJ2 | B21: DERBY AND DERBYSHIRE ICB | C21: 39 | D21: 0.9230769231 | E21: 0.05128205128 | F21: 26 | G21: 10 | H21: 1 | I21: 2 | J21: 0 | K21: 0
A22: QJG | B22: SUFFOLK AND NORTH EAST ESSEX ICB | C22: 187 | D22: 0.9518716578 | E22: 0.01604278075 | F22: 139 | G22: 39 | H22: 6 | I22: 3 | J22: 0 | K22: 0
A23: QJK | B23: DEVON ICB | C23: 29 | D23: 0.6896551724 | E23: 0 | F23: 16 | G23: 4 | H23: 9 | I23: 0 | J23: 0 | K23: 0
A24: QJM | B24: LINCOLNSHIRE ICB | C24: 0 | D24: NA | E24: NA | F24: 0 | G24: 0 | H24: 0 | I24: 0 | J24: 0 | K24: 0
A25: QK1 | B25: LEICESTER, LEICESTERSHIRE AND RUTLAND ICB | C25: 202 | D25: 0.9356435644 | E25: 0.0396039604 | F25: 148 | G25: 41 | H25: 5 | I25: 3 | J25: 5 | K25: 0
A26: QKK | B26: SOUTH EAST LONDON ICB | C26: 97 | D26: 0.8762886598 | E26: 0.0206185567 | F26: 45 | G26: 40 | H26: 8 | I26: 1 | J26: 1 | K26: 2
A27: QKS | B27: KENT AND MEDWAY ICB | C27: 116 | D27: 0.974137931 | E27: 0.02586206897 | F27: 91 | G27: 22 | H27: 0 | I27: 1 | J27: 2 | K27: 0
A28: QM7 | B28: HERTFORDSHIRE AND WEST ESSEX ICB | C28: 52 | D28: 0.8076923077 | E28: 0.05769230769 | F28: 27 | G28: 15 | H28: 7 | I28: 1 | J28: 2 | K28: 0
A29: QMF | B29: NORTH EAST LONDON ICB | C29: 415 | D29: 0.8891566265 | E29: 0.06024096386 | F29: 260 | G29: 109 | H29: 20 | I29: 13 | J29: 12 | K29: 1
A30: QMJ | B30: NORTH CENTRAL LONDON ICB | C30: 456 | D30: 0.899122807 | E30: 0.04824561404 | F30: 272 | G30: 138 | H30: 22 | I30: 13 | J30: 9 | K30: 2
A31: QMM | B31: NORFOLK AND WAVENEY ICB | C31: 49 | D31: 0.9591836735 | E31: 0 | F31: 44 | G31: 3 | H31: 2 | I31: 0 | J31: 0 | K31: 0
A32: QNC | B32: STAFFORDSHIRE AND STOKE-ON-TRENT ICB | C32: 2 | D32: * | E32: * | F32: * | G32: * | H32: * | I32: * | J32: * | K32: *
A33: QNQ | B33: FRIMLEY ICB | C33: 1 | D33: * | E33: * | F33: * | G33: * | H33: * | I33: * | J33: * | K33: *
A34: QNX | B34: SUSSEX ICB | C34: 59 | D34: 0.9322033898 | E34: 0.06779661017 | F34: 48 | G34: 7 | H34: 0 | I34: 2 | J34: 2 | K34: 0
A35: QOC | B35: SHROPSHIRE, TELFORD AND WREKIN ICB | C35: 7 | D35: 1 | E35: 0 | F35: * | G35: * | H35: * | I35: * | J35: * | K35: *
A36: QOP | B36: GREATER MANCHESTER ICB | C36: 488 | D36: 0.9200819672 | E36: 0.0512295082 | F36: 272 | G36: 177 | H36: 14 | I36: 11 | J36: 14 | K36: 0
A37: QOQ | B37: HUMBER AND NORTH YORKSHIRE ICB | C37: 251 | D37: 0.9760956175 | E37: 0.01195219124 | F37: 213 | G37: 32 | H37: 3 | I37: 2 | J37: 1 | K37: 0
A38: QOX | B38: BATH AND NORTH EAST SOMERSET, SWINDON AND WILTSHIRE ICB | C38: 103 | D38: 0.932038835 | E38: 0.04854368932 | F38: 84 | G38: 12 | H38: 2 | I38: 3 | J38: 2 | K38: 0
A39: QPM | B39: NORTHAMPTONSHIRE ICB | C39: 40 | D39: 0.9 | E39: 0.075 | F39: 30 | G39: 6 | H39: 1 | I39: 3 | J39: 0 | K39: 0
A40: QR1 | B40: GLOUCESTERSHIRE ICB | C40: 27 | D40: 0.6666666667 | E40: 0.1111111111 | F40: 10 | G40: 8 | H40: 6 | I40: 2 | J40: 1 | K40: 0
A41: QRL | B41: HAMPSHIRE AND ISLE OF WIGHT ICB | C41: 269 | D41: 0.9405204461 | E41: 0.01858736059 | F41: 195 | G41: 58 | H41: 9 | I41: 5 | J41: 0 | K41: 2
A42: QRV | B42: NORTH WEST LONDON ICB | C42: 412 | D42: 0.9077669903 | E42: 0.05339805825 | F42: 303 | G42: 71 | H42: 16 | I42: 10 | J42: 12 | K42: 0
A43: QSL | B43: SOMERSET ICB | C43: 41 | D43: 0.9512195122 | E43: 0 | F43: 36 | G43: 3 | H43: 2 | I43: 0 | J43: 0 | K43: 0
A44: QT1 | B44: NOTTINGHAM AND NOTTINGHAMSHIRE ICB | C44: 90 | D44: 0.8666666667 | E44: 0.05555555556 | F44: 60 | G44: 18 | H44: 7 | I44: 3 | J44: 2 | K44: 0
A45: QT6 | B45: CORNWALL AND THE ISLES OF SCILLY ICB | C45: 13 | D45: 0.9230769231 | E45: 0.07692307692 | F45: 8 | G45: 4 | H45: 0 | I45: 1 | J45: 0 | K45: 0
A46: QU9 | B46: BUCKINGHAMSHIRE, OXFORDSHIRE AND BERKSHIRE WEST ICB | C46: 84 | D46: 0.9404761905 | E46: 0.02380952381 | F46: 67 | G46: 12 | H46: 3 | I46: 2 | J46: 0 | K46: 0
A47: QUA | B47: BLACK COUNTRY ICB | C47: 149 | D47: 0.7919463087 | E47: 0.1208053691 | F47: 97 | G47: 21 | H47: 9 | I47: 14 | J47: 4 | K47: 4
A48: QUE | B48: CAMBRIDGESHIRE AND PETERBOROUGH ICB | C48: 255 | D48: 0.937254902 | E48: 0.02352941176 | F48: 200 | G48: 39 | H48: 8 | I48: 3 | J48: 3 | K48: 2
A49: QUY | B49: BRISTOL, NORTH SOMERSET AND SOUTH GLOUCESTERSHIRE ICB | C49: 147 | D49: 0.9387755102 | E49: 0.04081632653 | F49: 115 | G49: 23 | H49: 3 | I49: 2 | J49: 4 | K49: 0
A50: QVV | B50: DORSET ICB | C50: 164 | D50: 0.8536585366 | E50: 0.04268292683 | F50: 100 | G50: 40 | H50: 7 | I50: 4 | J50: 3 | K50: 10
A51: QWE | B51: SOUTH WEST LONDON ICB | C51: 112 | D51: 0.9285714286 | E51: 0.03571428571 | F51: 79 | G51: 25 | H51: 4 | I51: 2 | J51: 2 | K51: 0
A52: QWO | B52: WEST YORKSHIRE ICB | C52: 338 | D52: 0.9201183432 | E52: 0.06213017751 | F52: 263 | G52: 48 | H52: 6 | I52: 11 | J52: 10 | K52: 0
A53: QWU | B53: COVENTRY AND WARWICKSHIRE ICB | C53: 135 | D53: 0.9111111111 | E53: 0.07407407407 | F53: 95 | G53: 28 | H53: 0 | I53: 1 | J53: 9 | K53: 2
A54: QXU | B54: SURREY HEARTLANDS ICB | C54: 64 | D54: 0.953125 | E54: 0.046875 | F54: 47 | G54: 14 | H54: 0 | I54: 0 | J54: 3 | K54: 0
A55: QYG | B55: CHESHIRE AND MERSEYSIDE ICB | C55: 180 | D55: 0.9333333333 | E55: 0.03333333333 | F55: 149 | G55: 19 | H55: 6 | I55: 3 | J55: 3 | K55: 0

Sheet Trusts Q3
B6: Sort data by:
A9: ICB Code | B9: Trust Code | C9: Trust Name | D9: Total Responses | E9: Percentage Positive | F9: Percentage Negative | G9: Breakdown of Responses | M9: Mode of Collection
G10: Very Good | H10: Good | I10: Neither Good nor Poor | J10: Poor | K10: Very Poor | L10: Don't Know | M10: Mode SMS | N10: Mode Electronic Discharge | O10: Mode Electronic Home | P10: Mode Paper Discharge | Q10: Mode Paper Home | R10: Mode Telephone | S10: Mode Online | T10: Mode Other
C11: England (including Independent Sector providers) | D11: 6214 | E11: 0.9169616994 | F11: 0.04409398133 | G11: 4409 | H11: 1289 | I11: 211 | J11: 147 | K11: 127 | L11: 31 | M11: 1564 | N11: 1259 | O11: 5 | P11: 2604 | Q11: 43 | R11: 0 | S11: 673 | T11: 66
C12: England (excluding Independent Sector providers) | D12: 6214 | E12: 0.9169616994 | F12: 0.04409398133 | G12: 4409 | H12: 1289 | I12: 211 | J12: 147 | K12: 127 | L12: 31 | M12: 1564 | N12: 1259 | O12: 5 | P12: 2604 | Q12: 43 | R12: 0 | S12: 673 | T12: 66
C13: Selection (excluding suppressed data) | D13: =SUBTOTAL(9,D14:D299) -> 6214 | E13: =IFERROR((G13+H13)/SUM(G13:L13), "-") -> 0.9164075993 | F13: =IFERROR((J13+K13)/SUM(G13:L13), "-") -> 0.04283246978 | G13: =SUBTOTAL(9,G14:G299) -> 4068 | H13: 1238 | I13: 205 | J13: 133 | K13: 115 | L13: 31 | M13: 1305 | N13: 1248 | O13: 5 | P13: 2488 | Q13: 31 | R13: 0 | S13: 647 | T13: 66
A14: QE1 | B14: RXN | C14: LANCASHIRE TEACHING HOSPITALS NHS FOUNDATION TRUST | D14: 19 | E14: 1 | F14: 0 | G14: 15 | H14: 4 | I14: 0 | J14: 0 | K14: 0 | L14: 0 | M14: 19 | N14: 0 | O14: 0 | P14: 0 | Q14: 0 | R14: 0 | S14: 0 | T14: 0
A15: QE1 | B15: RTX | C15: UNIVERSITY HOSPITALS OF MORECAMBE BAY NHS FOUNDATION TRUST | D15: 45 | E15: 0.9555555556 | F15: 0.02222222222 | G15: 37 | H15: 6 | I15: 1 | J15: 1 | K15: 0 | L15: 0 | M15: 42 | N15: 0 | O15: 0 | P15: 0 | Q15: 0 | R15: 0 | S15: 3 | T15: 0
A16: QE1 | B16: RXL | C16: BLACKPOOL TEACHING HOSPITALS NHS FOUNDATION TRUST | D16: 86 | E16: 0.9069767442 | F16: 0.05813953488 | G16: 66 | H16: 12 | I16: 2 | J16: 3 | K16: 2 | L16: 1 | M16: 12 | N16: 0 | O16: 0 | P16: 74 | Q16: 0 | R16: 0 | S16: 0 | T16: 0
A17: QE1 | B17: RXR | C17: EAST LANCASHIRE HOSPITALS NHS TRUST | D17: 130 | E17: 0.9 | F17: 0.03846153846 | G17: 100 | H17: 17 | I17: 4 | J17: 4 | K17: 1 | L17: 4 | M17: 46 | N17: 0 | O17: 0 | P17: 0 | Q17: 0 | R17: 0 | S17: 84 | T17: 0
A18: QF7 | B18: RFF | C18: BARNSLEY HOSPITAL NHS FOUNDATION TRUST | D18: 5 | E18: 1 | F18: 0 | G18: 3 | H18: 2 | I18: 0 | J18: 0 | K18: 0 | L18: 0 | M18: 5 | N18: 0 | O18: 0 | P18: 0 | Q18: 0 | R18: 0 | S18: 0 | T18: 0
A19: QF7 | B19: RFR | C19: THE ROTHERHAM NHS FOUNDATION TRUST | D19: 41 | E19: 0.9756097561 | F19: 0.0243902439 | G19: 35 | H19: 5 | I19: 0 | J19: 1 | K19: 0 | L19: 0 | M19: 0 | N19: 0 | O19: 0 | P19: 41 | Q19: 0 | R19: 0 | S19: 0 | T19: 0
A20: QF7 | B20: RP5 | C20: DONCASTER AND BASSETLAW TEACHING HOSPITALS NHS FOUNDATION TRUST | D20: 41 | E20: 0.9268292683 | F20: 0.0487804878 | G20: 31 | H20: 7 | I20: 1 | J20: 1 | K20: 1 | L20: 0 | M20: 0 | N20: 0 | O20: 0 | P20: 41 | Q20: 0 | R20: 0 | S20: 0 | T20: 0
A21: QF7 | B21: RHQ | C21: SHEFFIELD TEACHING HOSPITALS NHS FOUNDATION TRUST | D21: 62 | E21: 0.9516129032 | F21: 0.03225806452 | G21: 46 | H21: 13 | I21: 1 | J21: 0 | K21: 2 | L21: 0 | M21: 22 | N21: 0 | O21: 0 | P21: 38 | Q21: 0 | R21: 0 | S21: 2 | T21: 0
A22: QGH | B22: RWP | C22: WORCESTERSHIRE ACUTE HOSPITALS NHS TRUST | D22: 8 | E22: 1 | F22: 0 | G22: 8 | H22: 0 | I22: 0 | J22: 0 | K22: 0 | L22: 0 | M22: 0 | N22: 8 | O22: 0 | P22: 0 | Q22: 0 | R22: 0 | S22: 0 | T22: 0
A23: QGH | B23: RLQ | C23: WYE VALLEY NHS TRUST | D23: 26 | E23: 1 | F23: 0 | G23: 23 | H23: 3 | I23: 0 | J23: 0 | K23: 0 | L23: 0 | M23: 0 | N23: 0 | O23: 0 | P23: 0 | Q23: 0 | R23: 0 | S23: 26 | T23: 0
A24: QH8 | B24: RAJ | C24: MID AND SOUTH ESSEX NHS FOUNDATION TRUST | D24: 104 | E24: 0.7884615385 | F24: 0.1153846154 | G24: 62 | H24: 20 | I24: 10 | J24: 4 | K24: 8 | L24: 0 | M24: 104 | N24: 0 | O24: 0 | P24: 0 | Q24: 0 | R24: 0 | S24: 0 | T24: 0
A25: QHG | B25: RD8 | C25: MILTON KEYNES UNIVERSITY HOSPITAL NHS FOUNDATION TRUST | D25: 42 | E25: 0.8571428571 | F25: 0.119047619 | G25: 25 | H25: 11 | I25: 1 | J25: 1 | K25: 4 | L25: 0 | M25: 13 | N25: 0 | O25: 0 | P25: 20 | Q25: 0 | R25: 0 | S25: 9 | T25: 0
A26: QHG | B26: RC9 | C26: BEDFORDSHIRE HOSPITALS NHS FOUNDATION TRUST | D26: 237 | E26: 0.970464135 | F26: 0.0253164557 | G26: 174 | H26: 56 | I26: 1 | J26: 6 | K26: 0 | L26: 0 | M26: 0 | N26: 231 | O26: 0 | P26: 0 | Q26: 0 | R26: 0 | S26: 6 | T26: 0
A27: QHL | B27: RXK | C27: SANDWELL AND WEST BIRMINGHAM HOSPITALS NHS TRUST | D27: 1 | E27: * | F27: * | G27: * | H27: * | I27: * | J27: * | K27: * | L27: * | M27: * | N27: * | O27: * | P27: * | Q27: * | R27: * | S27: * | T27: *
A28: QHL | B28: RQ3 | C28: BIRMINGHAM WOMEN'S AND CHILDREN'S NHS FOUNDATION TRUST | D28: 12 | E28: 1 | F28: 0 | G28: * | H28: * | I28: * | J28: * | K28: * | L28: * | M28: * | N28: * | O28: * | P28: * | Q28: * | R28: * | S28: * | T28: *
A29: QHL | B29: RRK | C29: UNIVERSITY HOSPITALS BIRMINGHAM NHS FOUNDATION TRUST | D29: 14 | E29: 0.7857142857 | F29: 0.1428571429 | G29: 11 | H29: 0 | I29: 0 | J29: 1 | K29: 1 | L29: 1 | M29: 0 | N29: 0 | O29: 0 | P29: 14 | Q29: 0 | R29: 0 | S29: 0 | T29: 0
A30: QHM | B30: RR7 | C30: GATESHEAD HEALTH NHS FOUNDATION TRUST | D30: 2 | E30: * | F30: * | G30: * | H30: * | I30: * | J30: * | K30: * | L30: * | M30: * | N30: * | O30: * | P30: * | Q30: * | R30: * | S30: * | T30: *
A31: QHM | B31: RNN | C31: NORTH CUMBRIA INTEGRATED CARE NHS FOUNDATION TRUST | D31: 8 | E31: 1 | F31: 0 | G31: * | H31: * | I31: * | J31: * | K31: * | L31: * | M31: * | N31: * | O31: * | P31: * | Q31: * | R31: * | S31: * | T31: *
A32: QHM | B32: RTD | C32: THE NEWCASTLE UPON TYNE HOSPITALS NHS FOUNDATION TRUST | D32: 13 | E32: 0.8461538462 | F32: 0.1538461538 | G32: 9 | H32: 2 | I32: 0 | J32: 2 | K32: 0 | L32: 0 | M32: 0 | N32: 0 | O32: 0 | P32: 13 | Q32: 0 | R32: 0 | S32: 0 | T32: 0
A33: QHM | B33: R0B | C33: SOUTH TYNESIDE AND SUNDERLAND NHS FOUNDATION TRUST | D33: 20 | E33: 1 | F33: 0 | G33: 16 | H33: 4 | I33: 0 | J33: 0 | K33: 0 | L33: 0 | M33: 0 | N33: 0 | O33: 0 | P33: 20 | Q33: 0 | R33: 0 | S33: 0 | T33: 0
A34: QHM | B34: RTR | C34: SOUTH TEES HOSPITALS NHS FOUNDATION TRUST | D34: 31 | E34: 1 | F34: 0 | G34: 26 | H34: 5 | I34: 0 | J34: 0 | K34: 0 | L34: 0 | M34: 0 | N34: 31 | O34: 0 | P34: 0 | Q34: 0 | R34: 0 | S34: 0 | T34: 0
A35: QHM | B35: RVW | C35: NORTH TEES AND HARTLEPOOL NHS FOUNDATION TRUST | D35: 50 | E35: 1 | F35: 0 | G35: 40 | H35: 10 | I35: 0 | J35: 0 | K35: 0 | L35: 0 | M35: 4 | N35: 0 | O35: 0 | P35: 46 | Q35: 0 | R35: 0 | S35: 0 | T35: 0
A36: QHM | B36: RTF | C36: NORTHUMBRIA HEALTHCARE NHS FOUNDATION TRUST | D36: 66 | E36: 0.9242424242 | F36: 0.01515151515 | G36: 48 | H36: 13 | I36: 4 | J36: 0 | K36: 1 | L36: 0 | M36: 43 | N36: 0 | O36: 0 | P36: 23 | Q36: 0 | R36: 0 | S36: 0 | T36: 0
A37: QHM | B37: RXP | C37: COUNTY DURHAM AND DARLINGTON NHS FOUNDATION TRUST | D37: 78 | E37: 1 | F37: 0 | G37: 68 | H37: 10 | I37: 0 | J37: 0 | K37: 0 | L37: 0 | M37: 0 | N37: 0 | O37: 0 | P37: 78 | Q37: 0 | R37: 0 | S37: 0 | T37: 0
A38: QJ2 | B38: RFS | C38: CHESTERFIELD ROYAL HOSPITAL NHS FOUNDATION TRUST | D38: 14 | E38: 1 | F38: 0 | G38: 11 | H38: 3 | I38: 0 | J38: 0 | K38: 0 | L38: 0 | M38: 0 | N38: 12 | O38: 0 | P38: 0 | Q38: 0 | R38: 0 | S38: 2 | T38: 0
A39: QJ2 | B39: RTG | C39: UNIVERSITY HOSPITALS OF DERBY AND BURTON NHS FOUNDATION TRUST | D39: 25 | E39: 0.88 | F39: 0.08 | G39: 15 | H39: 7 | I39: 1 | J39: 2 | K39: 0 | L39: 0 | M39: 0 | N39: 1 | O39: 0 | P39: 23 | Q39: 0 | R39: 0 | S39: 1 | T39: 0
A40: QJG | B40: RGR | C40: WEST SUFFOLK NHS FOUNDATION TRUST | D40: 50 | E40: 0.9 | F40: 0.04 | G40: 30 | H40: 15 | I40: 3 | J40: 2 | K40: 0 | L40: 0 | M40: 0 | N40: 47 | O40: 0 | P40: 2 | Q40: 0 | R40: 0 | S40: 1 | T40: 0
A41: QJG | B41: RDE | C41: EAST SUFFOLK AND NORTH ESSEX NHS FOUNDATION TRUST | D41: 137 | E41: 0.9708029197 | F41: 0.007299270073 | G41: 109 | H41: 24 | I41: 3 | J41: 1 | K41: 0 | L41: 0 | M41: 0 | N41: 0 | O41: 0 | P41: 0 | Q41: 0 | R41: 0 | S41: 137 | T41: 0
A42: QJK | B42: RA9 | C42: TORBAY AND SOUTH DEVON NHS FOUNDATION TRUST | D42: 5 | E42: 1 | F42: 0 | G42: 5 | H42: 0 | I42: 0 | J42: 0 | K42: 0 | L42: 0 | M42: 0 | N42: 0 | O42: 0 | P42: 5 | Q42: 0 | R42: 0 | S42: 0 | T42: 0
A43: QJK | B43: RK9 | C43: UNIVERSITY HOSPITALS PLYMOUTH NHS TRUST | D43: 11 | E43: 1 | F43: 0 | G43: 8 | H43: 3 | I43: 0 | J43: 0 | K43: 0 | L43: 0 | M43: 0 | N43: 0 | O43: 0 | P43: 11 | Q43: 0 | R43: 0 | S43: 0 | T43: 0
A44: QJK | B44: RH8 | C44: ROYAL DEVON UNIVERSITY HEALTHCARE NHS FOUNDATION TRUST | D44: 13 | E44: 0.3076923077 | F44: 0 | G44: 3 | H44: 1 | I44: 9 | J44: 0 | K44: 0 | L44: 0 | M44: 0 | N44: 0 | O44: 0 | P44: 11 | Q44: 0 | R44: 0 | S44: 2 | T44: 0
A45: QJM | B45: RWD | C45: UNITED LINCOLNSHIRE HOSPITALS NHS TRUST | D45: 0 | E45: NA | F45: NA | G45: 0 | H45: 0 | I45: 0 | J45: 0 | K45: 0 | L45: 0 | M45: 0 | N45: 0 | O45: 0 | P45: 0 | Q45: 0 | R45: 0 | S45: 0 | T45: 0
A46: QK1 | B46: RWE | C46: UNIVERSITY HOSPITALS OF LEICESTER NHS TRUST | D46: 202 | E46: 0.9356435644 | F46: 0.0396039604 | G46: 148 | H46: 41 | I46: 5 | J46: 3 | K46: 5 | L46: 0 | M46: 0 | N46: 202 | O46: 0 | P46: 0 | Q46: 0 | R46: 0 | S46: 0 | T46: 0
A47: QKK | B47: RJ2 | C47: LEWISHAM AND GREENWICH NHS TRUST | D47: 25 | E47: 0.84 | F47: 0.04 | G47: 10 | H47: 11 | I47: 3 | J47: 1 | K47: 0 | L47: 0 | M47: 0 | N47: 0 | O47: 0 | P47: 3 | Q47: 0 | R47: 0 | S47: 22 | T47: 0
A48: QKK | B48: RJ1 | C48: GUY'S AND ST THOMAS' NHS FOUNDATION TRUST | D48: 72 | E48: 0.8888888889 | F48: 0.01388888889 | G48: 35 | H48: 29 | I48: 5 | J48: 0 | K48: 1 | L48: 2 | M48: 0 | N48: 0 | O48: 0 | P48: 57 | Q48: 0 | R48: 0 | S48: 15 | T48: 0
A49: QKS | B49: RWF | C49: MAIDSTONE AND TUNBRIDGE WELLS NHS TRUST | D49: 17 | E49: 1 | F49: 0 | G49: 11 | H49: 6 | I49: 0 | J49: 0 | K49: 0 | L49: 0 | M49: 0 | N49: 0 | O49: 0 | P49: 0 | Q49: 0 | R49: 0 | S49: 17 | T49: 0
A50: QKS | B50: RN7 | C50: DARTFORD AND GRAVESHAM NHS TRUST | D50: 29 | E50: 0.9655172414 | F50: 0.03448275862 | G50: 21 | H50: 7 | I50: 0 | J50: 0 | K50: 1 | L50: 0 | M50: 0 | N50: 1 | O50: 0 | P50: 0 | Q50: 0 | R50: 0 | S50: 28 | T50: 0
A51: QKS | B51: RPA | C51: MEDWAY NHS FOUNDATION TRUST | D51: 70 | E51: 0.9714285714 | F51: 0.02857142857 | G51: 59 | H51: 9 | I51: 0 | J51: 1 | K51: 1 | L51: 0 | M51: 0 | N51: 0 | O51: 0 | P51: 20 | Q51: 0 | R51: 0 | S51: 50 | T51: 0
A52: QM7 | B52: RWH | C52: EAST AND NORTH HERTFORDSHIRE NHS TRUST | D52: 6 | E52: 1 | F52: 0 | G52: 5 | H52: 1 | I52: 0 | J52: 0 | K52: 0 | L52: 0 | M52: 0 | N52: 0 | O52: 5 | P52: 1 | Q52: 0 | R52: 0 | S52: 0 | T52: 0
A53: QM7 | B53: RQW | C53: THE PRINCESS ALEXANDRA HOSPITAL NHS TRUST | D53: 15 | E53: 0.6 | F53: 0.1333333333 | G53: 7 | H53: 2 | I53: 4 | J53: 1 | K53: 1 | L53: 0 | M53: 0 | N53: 0 | O53: 0 | P53: 0 | Q53: 0 | R53: 0 | S53: 0 | T53: 15
A54: QM7 | B54: RWG | C54: WEST HERTFORDSHIRE TEACHING HOSPITALS NHS TRUST | D54: 31 | E54: 0.8709677419 | F54: 0.03225806452 | G54: 15 | H54: 12 | I54: 3 | J54: 0 | K54: 1 | L54: 0 | M54: 0 | N54: 31 | O54: 0 | P54: 0 | Q54: 0 | R54: 0 | S54: 0 | T54: 0
A55: QMF | B55: RQX | C55: HOMERTON HEALTHCARE NHS FOUNDATION TRUST | D55: 17 | E55: 0.7647058824 | F55: 0.1176470588 | G55: 8 | H55: 5 | I55: 2 | J55: 1 | K55: 1 | L55: 0 | M55: 17 | N55: 0 | O55: 0 | P55: 0 | Q55: 0 | R55: 0 | S55: 0 | T55: 0
A56: QMF | B56: RF4 | C56: BARKING, HAVERING AND REDBRIDGE UNIVERSITY HOSPITALS NHS TRUST | D56: 173 | E56: 0.9248554913 | F56: 0.04046242775 | G56: 132 | H56: 28 | I56: 5 | J56: 2 | K56: 5 | L56: 1 | M56: 0 | N56: 0 | O56: 0 | P56: 172 | Q56: 0 | R56: 0 | S56: 1 | T56: 0
A57: QMF | B57: R1H | C57: BARTS HEALTH NHS TRUST | D57: 225 | E57: 0.8711111111 | F57: 0.07111111111 | G57: 120 | H57: 76 | I57: 13 | J57: 10 | K57: 6 | L57: 0 | M57: 9 | N57: 0 | O57: 0 | P57: 208 | Q57: 0 | R57: 0 | S57: 8 | T57: 0
A58: QMJ | B58: RAL | C58: ROYAL FREE LONDON NHS FOUNDATION TRUST | D58: 182 | E58: 0.9505494505 | F58: 0.02197802198 | G58: 127 | H58: 46 | I58: 3 | J58: 3 | K58: 1 | L58: 2 | M58: 0 | N58: 181 | O58: 0 | P58: 0 | Q58: 0 | R58: 0 | S58: 1 | T58: 0
A59: QMJ | B59: RAP | C59: NORTH MIDDLESEX UNIVERSITY HOSPITAL NHS TRUST | D59: 274 | E59: 0.8649635036 | F59: 0.06569343066 | G59: 145 | H59: 92 | I59: 19 | J59: 10 | K59: 8 | L59: 0 | M59: 33 | N59: 238 | O59: 0 | P59: 3 | Q59: 0 | R59: 0 | S59: 0 | T59: 0
A60: QMM | B60: RM1 | C60: NORFOLK AND NORWICH UNIVERSITY HOSPITALS NHS FOUNDATION TRUST | D60: 5 | E60: 0.8 | F60: 0 | G60: 4 | H60: 0 | I60: 1 | J60: 0 | K60: 0 | L60: 0 | M60: 0 | N60: 0 | O60: 0 | P60: 0 | Q60: 0 | R60: 0 | S60: 5 | T60: 0
A61: QMM | B61: RCX | C61: THE QUEEN ELIZABETH HOSPITAL, KING'S LYNN, NHS FOUNDATION TRUST | D61: 19 | E61: 1 | F61: 0 | G61: 18 | H61: 1 | I61: 0 | J61: 0 | K61: 0 | L61: 0 | M61: 0 | N61: 0 | O61: 0 | P61: 15 | Q61: 0 | R61: 0 | S61: 4 | T61: 0
A62: QMM | B62: RGP | C62: JAMES PAGET UNIVERSITY HOSPITALS NHS FOUNDATION TRUST | D62: 25 | E62: 0.96 | F62: 0 | G62: 22 | H62: 2 | I62: 1 | J62: 0 | K62: 0 | L62: 0 | M62: 0 | N62: 0 | O62: 0 | P62: 25 | Q62: 0 | R62: 0 | S62: 0 | T62: 0
A63: QNC | B63: RJE | C63: UNIVERSITY HOSPITALS OF NORTH MIDLANDS NHS TRUST | D63: 2 | E63: * | F63: * | G63: * | H63: * | I63: * | J63: * | K63: * | L63: * | M63: * | N63: * | O63: * | P63: * | Q63: * | R63: * | S63: * | T63: *
A64: QNQ | B64: RDU | C64: FRIMLEY HEALTH NHS FOUNDATION TRUST | D64: 1 | E64: * | F64: * | G64: * | H64: * | I64: * | J64: * | K64: * | L64: * | M64: * | N64: * | O64: * | P64: * | Q64: * | R64: * | S64: * | T64: *
A65: QNX | B65: RXC | C65: EAST SUSSEX HEALTHCARE NHS TRUST | D65: 2 | E65: * | F65: * | G65: * | H65: * | I65: * | J65: * | K65: * | L65: * | M65: * | N65: * | O65: * | P65: * | Q65: * | R65: * | S65: * | T65: *
A66: QNX | B66: RYR | C66: UNIVERSITY HOSPITALS SUSSEX NHS FOUNDATION TRUST | D66: 57 | E66: 0.9298245614 | F66: 0.0701754386 | G66: * | H66: * | I66: * | J66: * | K66: * | L66: * | M66: * | N66: * | O66: * | P66: * | Q66: * | R66: * | S66: * | T66: *
A67: QOC | B67: RXW | C67: THE SHREWSBURY AND TELFORD HOSPITAL NHS TRUST | D67: 7 | E67: 1 | F67: 0 | G67: * | H67: * | I67: * | J67: * | K67: * | L67: * | M67: * | N67: * | O67: * | P67: * | Q67: * | R67: * | S67: * | T67: *
A68: QOP | B68: RRF | C68: WRIGHTINGTON, WIGAN AND LEIGH NHS FOUNDATION TRUST | D68: 5 | E68: 1 | F68: 0 | G68: 4 | H68: 1 | I68: 0 | J68: 0 | K68: 0 | L68: 0 | M68: 0 | N68: 0 | O68: 0 | P68: 5 | Q68: 0 | R68: 0 | S68: 0 | T68: 0
A69: QOP | B69: RWJ | C69: STOCKPORT NHS FOUNDATION TRUST | D69: 25 | E69: 0.92 | F69: 0 | G69: 21 | H69: 2 | I69: 2 | J69: 0 | K69: 0 | L69: 0 | M69: 0 | N69: 0 | O69: 0 | P69: 25 | Q69: 0 | R69: 0 | S69: 0 | T69: 0
A70: QOP | B70: RM3 | C70: NORTHERN CARE ALLIANCE NHS FOUNDATION TRUST | D70: 34 | E70: 0.7352941176 | F70: 0.1764705882 | G70: 21 | H70: 4 | I70: 3 | J70: 3 | K70: 3 | L70: 0 | M70: 33 | N70: 0 | O70: 0 | P70: 0 | Q70: 0 | R70: 0 | S70: 1 | T70: 0
A71: QOP | B71: RMC | C71: BOLTON NHS FOUNDATION TRUST | D71: 51 | E71: 0.7058823529 | F71: 0.1960784314 | G71: 23 | H71: 13 | I71: 5 | J71: 1 | K71: 9 | L71: 0 | M71: 50 | N71: 1 | O71: 0 | P71: 0 | Q71: 0 | R71: 0 | S71: 0 | T71: 0
A72: QOP | B72: R0A | C72: MANCHESTER UNIVERSITY NHS FOUNDATION TRUST | D72: 373 | E72: 0.9651474531 | F72: 0.02412868633 | G72: 203 | H72: 157 | I72: 4 | J72: 7 | K72: 2 | L72: 0 | M72: 0 | N72: 28 | O72: 0 | P72: 343 | Q72: 0 | R72: 0 | S72: 2 | T72: 0
A73: QOQ | B73: RCD | C73: HARROGATE AND DISTRICT NHS FOUNDATION TRUST | D73: 0 | E73: NA | F73: NA | G73: 0 | H73: 0 | I73: 0 | J73: 0 | K73: 0 | L73: 0 | M73: 0 | N73: 0 | O73: 0 | P73: 0 | Q73: 0 | R73: 0 | S73: 0 | T73: 0
A74: QOQ | B74: RJL | C74: NORTHERN LINCOLNSHIRE AND GOOLE NHS FOUNDATION TRUST | D74: 17 | E74: 0.8823529412 | F74: 0.1176470588 | G74: 10 | H74: 5 | I74: 0 | J74: 1 | K74: 1 | L74: 0 | M74: 0 | N74: 0 | O74: 0 | P74: 16 | Q74: 0 | R74: 0 | S74: 1 | T74: 0
A75: QOQ | B75: RCB | C75: YORK AND SCARBOROUGH TEACHING HOSPITALS NHS FOUNDATION TRUST | D75: 234 | E75: 0.9829059829 | F75: 0.004273504274 | G75: 203 | H75: 27 | I75: 3 | J75: 1 | K75: 0 | L75: 0 | M75: 0 | N75: 0 | O75: 0 | P75: 234 | Q75: 0 | R75: 0 | S75: 0 | T75: 0
A76: QOX | B76: RNZ | C76: SALISBURY NHS FOUNDATION TRUST | D76: 2 | E76: * | F76: * | G76: * | H76: * | I76: * | J76: * | K76: * | L76: * | M76: * | N76: * | O76: * | P76: * | Q76: * | R76: * | S76: * | T76: *
A77: QOX | B77: RD1 | C77: ROYAL UNITED HOSPITALS BATH NHS FOUNDATION TRUST | D77: 49 | E77: 1 | F77: 0 | G77: * | H77: * | I77: * | J77: * | K77: * | L77: * | M77: * | N77: * | O77: * | P77: * | Q77: * | R77: * | S77: * | T77: *
A78: QOX | B78: RN3 | C78: GREAT WESTERN HOSPITALS NHS FOUNDATION TRUST | D78: 52 | E78: 0.8653846154 | F78: 0.09615384615 | G78: 37 | H78: 8 | I78: 2 | J78: 3 | K78: 2 | L78: 0 | M78: 52 | N78: 0 | O78: 0 | P78: 0 | Q78: 0 | R78: 0 | S78: 0 | T78: 0
A79: QPM | B79: RNQ | C79: KETTERING GENERAL HOSPITAL NHS FOUNDATION TRUST | D79: 1 | E79: * | F79: * | G79: * | H79: * | I79: * | J79: * | K79: * | L79: * | M79: * | N79: * | O79: * | P79: * | Q79: * | R79: * | S79: * | T79: *
A80: QPM | B80: RNS | C80: NORTHAMPTON GENERAL HOSPITAL NHS TRUST | D80: 39 | E80: 0.8974358974 | F80: 0.07692307692 | G80: * | H80: * | I80: * | J80: * | K80: * | L80: * | M80: * | N80: * | O80: * | P80: * | Q80: * | R80: * | S80: * | T80: *
A81: QR1 | B81: RTE | C81: GLOUCESTERSHIRE HOSPITALS NHS FOUNDATION TRUST | D81: 27 | E81: 0.6666666667 | F81: 0.1111111111 | G81: 10 | H81: 8 | I81: 6 | J81: 2 | K81: 1 | L81: 0 | M81: 27 | N81: 0 | O81: 0 | P81: 0 | Q81: 0 | R81: 0 | S81: 0 | T81: 0
A82: QRL | B82: R1F | C82: ISLE OF WIGHT NHS TRUST | D82: 8 | E82: 1 | F82: 0 | G82: 8 | H82: 0 | I82: 0 | J82: 0 | K82: 0 | L82: 0 | M82: 0 | N82: 0 | O82: 0 | P82: 8 | Q82: 0 | R82: 0 | S82: 0 | T82: 0
A83: QRL | B83: RN5 | C83: HAMPSHIRE HOSPITALS NHS FOUNDATION TRUST | D83: 63 | E83: 0.9365079365 | F83: 0 | G83: 49 | H83: 10 | I83: 2 | J83: 0 | K83: 0 | L83: 2 | M83: 0 | N83: 0 | O83: 0 | P83: 60 | Q83: 0 | R83: 0 | S83: 3 | T83: 0
A84: QRL | B84: RHU | C84: PORTSMOUTH HOSPITALS UNIVERSITY NATIONAL HEALTH SERVICE TRUST | D84: 87 | E84: 0.9885057471 | F84: 0 | G84: 79 | H84: 7 | I84: 1 | J84: 0 | K84: 0 | L84: 0 | M84: 0 | N84: 0 | O84: 0 | P84: 87 | Q84: 0 | R84: 0 | S84: 0 | T84: 0
A85: QRL | B85: RHM | C85: UNIVERSITY HOSPITAL SOUTHAMPTON NHS FOUNDATION TRUST | D85: 111 | E85: 0.9009009009 | F85: 0.04504504505 | G85: 59 | H85: 41 | I85: 6 | J85: 5 | K85: 0 | L85: 0 | M85: 0 | N85: 0 | O85: 0 | P85: 0 | Q85: 18 | R85: 0 | S85: 93 | T85: 0
A86: QRV | B86: RYJ | C86: IMPERIAL COLLEGE HEALTHCARE NHS TRUST | D86: 56 | E86: 0.9821428571 | F86: 0.01785714286 | G86: 48 | H86: 7 | I86: 0 | J86: 1 | K86: 0 | L86: 0 | M86: 0 | N86: 0 | O86: 0 | P86: 55 | Q86: 0 | R86: 0 | S86: 1 | T86: 0
A87: QRV | B87: RAS | C87: THE HILLINGDON HOSPITALS NHS FOUNDATION TRUST | D87: 67 | E87: 0.9104477612 | F87: 0.07462686567 | G87: 52 | H87: 9 | I87: 1 | J87: 2 | K87: 3 | L87: 0 | M87: 0 | N87: 0 | O87: 0 | P87: 47 | Q87: 0 | R87: 0 | S87: 20 | T87: 0
A88: QRV | B88: R1K | C88: LONDON NORTH WEST UNIVERSITY HEALTHCARE NHS TRUST | D88: 137 | E88: 0.9416058394 | F88: 0.007299270073 | G88: 90 | H88: 39 | I88: 7 | J88: 0 | K88: 1 | L88: 0 | M88: 31 | N88: 0 | O88: 0 | P88: 106 | Q88: 0 | R88: 0 | S88: 0 | T88: 0
A89: QRV | B89: RQM | C89: CHELSEA AND WESTMINSTER HOSPITAL NHS FOUNDATION TRUST | D89: 152 | E89: 0.8486842105 | F89: 0.09868421053 | G89: 113 | H89: 16 | I89: 8 | J89: 7 | K89: 8 | L89: 0 | M89: 137 | N89: 0 | O89: 0 | P89: 0 | Q89: 0 | R89: 0 | S89: 15 | T89: 0
A90: QSL | B90: RH5 | C90: SOMERSET NHS FOUNDATION TRUST | D90: 13 | E90: 1 | F90: 0 | G90: 13 | H90: 0 | I90: 0 | J90: 0 | K90: 0 | L90: 0 | M90: 0 | N90: 0 | O90: 0 | P90: 0 | Q90: 13 | R90: 0 | S90: 0 | T90: 0
A91: QSL | B91: RA4 | C91: YEOVIL DISTRICT HOSPITAL NHS FOUNDATION TRUST | D91: 28 | E91: 0.9285714286 | F91: 0 | G91: 23 | H91: 3 | I91: 2 | J91: 0 | K91: 0 | L91: 0 | M91: 0 | N91: 28 | O91: 0 | P91: 0 | Q91: 0 | R91: 0 | S91: 0 | T91: 0
A92: QT1 | B92: RK5 | C92: SHERWOOD FOREST HOSPITALS NHS FOUNDATION TRUST | D92: 8 | E92: 0.75 | F92: 0 | G92: 5 | H92: 1 | I92: 2 | J92: 0 | K92: 0 | L92: 0 | M92: 0 | N92: 0 | O92: 0 | P92: 0 | Q92: 0 | R92: 0 | S92: 8 | T92: 0
A93: QT1 | B93: RX1 | C93: NOTTINGHAM UNIVERSITY HOSPITALS NHS TRUST | D93: 82 | E93: 0.8780487805 | F93: 0.06097560976 | G93: 55 | H93: 17 | I93: 5 | J93: 3 | K93: 2 | L93: 0 | M93: 0 | N93: 19 | O93: 0 | P93: 38 | Q93: 0 | R93: 0 | S93: 25 | T93: 0
A94: QT6 | B94: REF | C94: ROYAL CORNWALL HOSPITALS NHS TRUST | D94: 13 | E94: 0.9230769231 | F94: 0.07692307692 | G94: 8 | H94: 4 | I94: 0 | J94: 1 | K94: 0 | L94: 0 | M94: 0 | N94: 13 | O94: 0 | P94: 0 | Q94: 0 | R94: 0 | S94: 0 | T94: 0
A95: QU9 | B95: RTH | C95: OXFORD UNIVERSITY HOSPITALS NHS FOUNDATION TRUST | D95: 2 | E95: * | F95: * | G95: * | H95: * | I95: * | J95: * | K95: * | L95: * | M95: * | N95: * | O95: * | P95: * | Q95: * | R95: * | S95: * | T95: *
A96: QU9 | B96: RXQ | C96: BUCKINGHAMSHIRE HEALTHCARE NHS TRUST | D96: 22 | E96: 0.9545454545 | F96: 0.04545454545 | G96: * | H96: * | I96: * | J96: * | K96: * | L96: * | M96: * | N96: * | O96: * | P96: * | Q96: * | R96: * | S96: * | T96: *
A97: QU9 | B97: RHW | C97: ROYAL BERKSHIRE NHS FOUNDATION TRUST | D97: 60 | E97: 0.95 | F97: 0 | G97: 50 | H97: 7 | I97: 3 | J97: 0 | K97: 0 | L97: 0 | M97: 0 | N97: 0 | O97: 0 | P97: 60 | Q97: 0 | R97: 0 | S97: 0 | T97: 0
A98: QUA | B98: RBK | C98: WALSALL HEALTHCARE NHS TRUST | D98: 27 | E98: 0.7407407407 | F98: 0.2222222222 | G98: 15 | H98: 5 | I98: 1 | J98: 4 | K98: 2 | L98: 0 | M98: 26 | N98: 1 | O98: 0 | P98: 0 | Q98: 0 | R98: 0 | S98: 0 | T98: 0
A99: QUA | B99: RNA | C99: THE DUDLEY GROUP NHS FOUNDATION TRUST | D99: 27 | E99: 0.7777777778 | F99: 0 | G99: 17 | H99: 4 | I99: 2 | J99: 0 | K99: 0 | L99: 4 | M99: 0 | N99: 0 | O99: 0 | P99: 27 | Q99: 0 | R99: 0 | S99: 0 | T99: 0
A100: QUA | B100: RL4 | C100: THE ROYAL WOLVERHAMPTON NHS TRUST | D100: 95 | E100: 0.8105263158 | F100: 0.1263157895 | G100: 65 | H100: 12 | I100: 6 | J100: 10 | K100: 2 | L100: 0 | M100: 95 | N100: 0 | O100: 0 | P100: 0 | Q100: 0 | R100: 0 | S100: 0 | T100: 0
A101: QUE | B101: RGT | C101: CAMBRIDGE UNIVERSITY HOSPITALS NHS FOUNDATION TRUST | D101: 114 | E101: 0.8771929825 | F101: 0.04385964912 | G101: 73 | H101: 27 | I101: 7 | J101: 3 | K101: 2 | L101: 2 | M101: 0 | N101: 99 | O101: 0 | P101: 12 | Q101: 0 | R101: 0 | S101: 3 | T101: 0
A102: QUE | B102: RGN | C102: NORTH WEST ANGLIA NHS FOUNDATION TRUST | D102: 141 | E102: 0.9858156028 | F102: 0.007092198582 | G102: 127 | H102: 12 | I102: 1 | J102: 0 | K102: 1 | L102: 0 | M102: 0 | N102: 0 | O102: 0 | P102: 139 | Q102: 0 | R102: 0 | S102: 2 | T102: 0
A103: QUY | B103: RA7 | C103: UNIVERSITY HOSPITALS BRISTOL AND WESTON NHS FOUNDATION TRUST | D103: 34 | E103: 0.9705882353 | F103: 0 | G103: 29 | H103: 4 | I103: 1 | J103: 0 | K103: 0 | L103: 0 | M103: 0 | N103: 0 | O103: 0 | P103: 34 | Q103: 0 | R103: 0 | S103: 0 | T103: 0
A104: QUY | B104: RVJ | C104: NORTH BRISTOL NHS TRUST | D104: 113 | E104: 0.9292035398 | F104: 0.05309734513 | G104: 86 | H104: 19 | I104: 2 | J104: 2 | K104: 4 | L104: 0 | M104: 113 | N104: 0 | O104: 0 | P104: 0 | Q104: 0 | R104: 0 | S104: 0 | T104: 0
A105: QVV | B105: RBD | C105: DORSET COUNTY HOSPITAL NHS FOUNDATION TRUST | D105: 35 | E105: 0.8857142857 | F105: 0.05714285714 | G105: 26 | H105: 5 | I105: 1 | J105: 0 | K105: 2 | L105: 1 | M105: 35 | N105: 0 | O105: 0 | P105: 0 | Q105: 0 | R105: 0 | S105: 0 | T105: 0
A106: QVV | B106: R0D | C106: UNIVERSITY HOSPITALS DORSET NHS FOUNDATION TRUST | D106: 129 | E106: 0.8449612403 | F106: 0.03875968992 | G106: 74 | H106: 35 | I106: 6 | J106: 4 | K106: 1 | L106: 9 | M106: 129 | N106: 0 | O106: 0 | P106: 0 | Q106: 0 | R106: 0 | S106: 0 | T106: 0
A107: QWE | B107: RVR | C107: EPSOM AND ST HELIER UNIVERSITY HOSPITALS NHS TRUST | D107: 5 | E107: 1 | F107: 0 | G107: 4 | H107: 1 | I107: 0 | J107: 0 | K107: 0 | L107: 0 | M107: 0 | N107: 5 | O107: 0 | P107: 0 | Q107: 0 | R107: 0 | S107: 0 | T107: 0
A108: QWE | B108: RJ6 | C108: CROYDON HEALTH SERVICES NHS TRUST | D108: 26 | E108: 0.9230769231 | F108: 0.03846153846 | G108: 18 | H108: 6 | I108: 1 | J108: 0 | K108: 1 | L108: 0 | M108: 26 | N108: 0 | O108: 0 | P108: 0 | Q108: 0 | R108: 0 | S108: 0 | T108: 0
A109: QWE | B109: RAX | C109: KINGSTON HOSPITAL NHS FOUNDATION TRUST | D109: 40 | E109: 0.875 | F109: 0.05 | G109: 32 | H109: 3 | I109: 3 | J109: 1 | K109: 1 | L109: 0 | M109: 0 | N109: 0 | O109: 0 | P109: 0 | Q109: 0 | R109: 0 | S109: 40 | T109: 0
A110: QWE | B110: RJ7 | C110: ST GEORGE'S UNIVERSITY HOSPITALS NHS FOUNDATION TRUST | D110: 41 | E110: 0.9756097561 | F110: 0.0243902439 | G110: 25 | H110: 15 | I110: 0 | J110: 1 | K110: 0 | L110: 0 | M110: 0 | N110: 41 | O110: 0 | P110: 0 | Q110: 0 | R110: 0 | S110: 0 | T110: 0
A111: QWO | B111: RAE | C111: BRADFORD TEACHING HOSPITALS NHS FOUNDATION TRUST | D111: 0 | E111: NA | F111: NA | G111: 0 | H111: 0 | I111: 0 | J111: 0 | K111: 0 | L111: 0 | M111: 0 | N111: 0 | O111: 0 | P111: 0 | Q111: 0 | R111: 0 | S111: 0 | T111: 0
A112: QWO | B112: RWY | C112: CALDERDALE AND HUDDERSFIELD NHS FOUNDATION TRUST | D112: 1 | E112: * | F112: * | G112: * | H112: * | I112: * | J112: * | K112: * | L112: * | M112: * | N112: * | O112: * | P112: * | Q112: * | R112: * | S112: * | T112: *
A113: QWO | B113: RR8 | C113: LEEDS TEACHING HOSPITALS NHS TRUST | D113: 152 | E113: 0.8947368421 | F113: 0.07236842105 | G113: * | H113: * | I113: * | J113: * | K113: * | L113: * | M113: * | N113: * | O113: * | P113: * | Q113: * | R113: * | S113: * | T113: *
A114: QWO | B114: RXF | C114: MID YORKSHIRE HOSPITALS NHS TRUST | D114: 185 | E114: 0.9405405405 | F114: 0.05405405405 | G114: 138 | H114: 36 | I114: 1 | J114: 6 | K114: 4 | L114: 0 | M114: 11 | N114: 0 | O114: 0 | P114: 170 | Q114: 0 | R114: 0 | S114: 4 | T114: 0
A115: QWU | B115: RJC | C115: SOUTH WARWICKSHIRE UNIVERSITY NHS FOUNDATION TRUST | D115: 35 | E115: 0.8285714286 | F115: 0.1142857143 | G115: 25 | H115: 4 | I115: 0 | J115: 0 | K115: 4 | L115: 2 | M115: 0 | N115: 0 | O115: 0 | P115: 34 | Q115: 0 | R115: 0 | S115: 1 | T115: 0
A116: QWU | B116: RKB | C116: UNIVERSITY HOSPITALS COVENTRY AND WARWICKSHIRE NHS TRUST | D116: 100 | E116: 0.94 | F116: 0.06 | G116: 70 | H116: 24 | I116: 0 | J116: 1 | K116: 5 | L116: 0 | M116: 68 | N116: 30 | O116: 0 | P116: 0 | Q116: 0 | R116: 0 | S116: 2 | T116: 0
A117: QXU | B117: RTK | C117: ASHFORD AND ST PETER'S HOSPITALS NHS FOUNDATION TRUST | D117: 0 | E117: NA | F117: NA | G117: 0 | H117: 0 | I117: 0 | J117: 0 | K117: 0 | L117: 0 | M117: 0 | N117: 0 | O117: 0 | P117: 0 | Q117: 0 | R117: 0 | S117: 0 | T117: 0
A118: QXU | B118: RA2 | C118: ROYAL SURREY COUNTY HOSPITAL NHS FOUNDATION TRUST | D118: 2 | E118: * | F118: * | G118: * | H118: * | I118: * | J118: * | K118: * | L118: * | M118: * | N118: * | O118: * | P118: * | Q118: * | R118: * | S118: * | T118: *
A119: QXU | B119: RTP | C119: SURREY AND SUSSEX HEALTHCARE NHS TRUST | D119: 62 | E119: 0.9516129032 | F119: 0.04838709677 | G119: * | H119: * | I119: * | J119: * | K119: * | L119: * | M119: * | N119: * | O119: * | P119: * | Q119: * | R119: * | S119: * | T119: *
A120: QYG | B120: RBL | C120: WIRRAL UNIVERSITY TEACHING HOSPITAL NHS FOUNDATION TRUST | D120: 18 | E120: 1 | F120: 0 | G120: 17 | H120: 1 | I120: 0 | J120: 0 | K120: 0 | L120: 0 | M120: 0 | N120: 0 | O120: 0 | P120: 18 | Q120: 0 | R120: 0 | S120: 0 | T120: 0
A121: QYG | B121: RVY | C121: SOUTHPORT AND ORMSKIRK HOSPITAL NHS TRUST | D121: 20 | E121: 0.95 | F121: 0 | G121: 15 | H121: 4 | I121: 1 | J121: 0 | K121: 0 | L121: 0 | M121: 18 | N121: 0 | O121: 0 | P121: 0 | Q121: 0 | R121: 0 | S121: 2 | T121: 0
A122: QYG | B122: RBN | C122: ST HELENS AND KNOWSLEY TEACHING HOSPITALS NHS TRUST | D122: 22 | E122: 0.9545454545 | F122: 0 | G122: 19 | H122: 2 | I122: 1 | J122: 0 | K122: 0 | L122: 0 | M122: 16 | N122: 0 | O122: 0 | P122: 6 | Q122: 0 | R122: 0 | S122: 0 | T122: 0
A123: QYG | B123: REP | C123: LIVERPOOL WOMEN'S NHS FOUNDATION TRUST | D123: 51 | E123: 0.8431372549 | F123: 0.09803921569 | G123: 36 | H123: 7 | I123: 3 | J123: 2 | K123: 3 | L123: 0 | M123: 0 | N123: 0 | O123: 0 | P123: 0 | Q123: 0 | R123: 0 | S123: 0 | T123: 51
A124: QYG | B124: RBT | C124: MID CHESHIRE HOSPITALS NHS FOUNDATION TRUST | D124: 69 | E124: 0.9710144928 | F124: 0.01449275362 | G124: 62 | H124: 5 | I124: 1 | J124: 1 | K124: 0 | L124: 0 | M124: 69 | N124: 0 | O124: 0 | P124: 0 | Q124: 0 | R124: 0 | S124: 0 | T124: 0

Sheet Sites Q3
B6: Sort data by:
A9: ICB Code | B9: Trust Code | C9: Trust Name | D9: Site Code | E9: Site Name | F9: Total Responses | G9: Percentage Positive | H9: Percentage Negative | I9: Breakdown of Responses
I10: Very Good | J10: Good | K10: Neither Good nor Poor | L10: Poor | M10: Very Poor | N10: Don't Know
E11: England (including Independent Sector providers) | F11: 6214 | G11: 0.9169616994 | H11: 0.04409398133 | I11: 4409 | J11: 1289 | K11: 211 | L11: 147 | M11: 127 | N11: 31
E12: England (excluding Independent Sector providers) | F12: 6214 | G12: 0.9169616994 | H12: 0.04409398133 | I12: 4409 | J12: 1289 | K12: 211 | L12: 147 | M12: 127 | N12: 31
E13: Selection (excluding suppressed data) | F13: =SUBTOTAL(9,F14:F298) -> 6214 | G13: =IFERROR((I13+J13)/SUM(I13:N13), "-") -> 0.9181636727 | H13: =IFERROR((L13+M13)/SUM(I13:N13), "-") -> 0.04318635456 | I13: =SUBTOTAL(9,I14:I298) -> 3879 | J13: 1181 | K13: 185 | L13: 126 | M13: 112 | N13: 28
A14: QE1 | B14: RXL | C14: BLACKPOOL TEACHING HOSPITALS NHS FOUNDATION TRUST | D14: RXL01 | E14: Blackpool Victoria Hospital | F14: 86 | G14: 0.9069767442 | H14: 0.05813953488 | I14: 66 | J14: 12 | K14: 2 | L14: 3 | M14: 2 | N14: 1
A15: QE1 | B15: RXR | C15: EAST LANCASHIRE HOSPITALS NHS TRUST | D15: RXR20 | E15: Royal Blackburn Hospital | F15: 130 | G15: 0.9 | H15: 0.03846153846 | I15: 100 | J15: 17 | K15: 4 | L15: 4 | M15: 1 | N15: 4
A16: QE1 | B16: RXN | C16: LANCASHIRE TEACHING HOSPITALS NHS FOUNDATION TRUST | D16: RXN01 | E16: Chorley and South Ribble Hospital | F16: 0 | G16: NA | H16: NA | I16: 0 | J16: 0 | K16: 0 | L16: 0 | M16: 0 | N16: 0
A17: QE1 | B17: RXN | C17: LANCASHIRE TEACHING HOSPITALS NHS FOUNDATION TRUST | D17: RXN02 | E17: Royal Preston Hospital | F17: 19 | G17: 1 | H17: 0 | I17: 15 | J17: 4 | K17: 0 | L17: 0 | M17: 0 | N17: 0
A18: QE1 | B18: RTX | C18: UNIVERSITY HOSPITALS OF MORECAMBE BAY NHS FOUNDATION TRUST | D18: RTXBU | E18: Furness General Hospital | F18: 10 | G18: 1 | H18: 0 | I18: 7 | J18: 3 | K18: 0 | L18: 0 | M18: 0 | N18: 0
A19: QE1 | B19: RTX | C19: UNIVERSITY HOSPITALS OF MORECAMBE BAY NHS FOUNDATION TRUST | D19: RTX02 | E19: Royal Lancaster Infirmary | F19: 35 | G19: 0.9428571429 | H19: 0.02857142857 | I19: 30 | J19: 3 | K19: 1 | L19: 1 | M19: 0 | N19: 0
A20: QF7 | B20: RFF | C20: BARNSLEY HOSPITAL NHS FOUNDATION TRUST | D20: RFFAA | E20: Barnsley Hospital NHS Foundation Trust HQ | F20: 5 | G20: 1 | H20: 0 | I20: 3 | J20: 2 | K20: 0 | L20: 0 | M20: 0 | N20: 0
A21: QF7 | B21: RP5 | C21: DONCASTER AND BASSETLAW TEACHING HOSPITALS NHS FOUNDATION TRUST | D21: RP5BA | E21: Bassetlaw Hospital | F21: 34 | G21: 0.9117647059 | H21: 0.05882352941 | I21: 26 | J21: 5 | K21: 1 | L21: 1 | M21: 1 | N21: 0
A22: QF7 | B22: RP5 | C22: DONCASTER AND BASSETLAW TEACHING HOSPITALS NHS FOUNDATION TRUST | D22: RP5DR | E22: Doncaster Royal Infirmary | F22: 7 | G22: 1 | H22: 0 | I22: 5 | J22: 2 | K22: 0 | L22: 0 | M22: 0 | N22: 0
A23: QF7 | B23: RHQ | C23: SHEFFIELD TEACHING HOSPITALS NHS FOUNDATION TRUST | D23: RHQHH | E23: Royal Hallamshire Hospital | F23: 62 | G23: 0.9516129032 | H23: 0.03225806452 | I23: 46 | J23: 13 | K23: 1 | L23: 0 | M23: 2 | N23: 0
A24: QF7 | B24: RFR | C24: THE ROTHERHAM NHS FOUNDATION TRUST | D24: RFRPA | E24: Rotherham District General Hospital | F24: 41 | G24: 0.9756097561 | H24: 0.0243902439 | I24: 35 | J24: 5 | K24: 0 | L24: 1 | M24: 0 | N24: 0
A25: QGH | B25: RWP | C25: WORCESTERSHIRE ACUTE HOSPITALS NHS TRUST | D25: RWP50 | E25: Worcestershire Royal Hospital | F25: 8 | G25: 1 | H25: 0 | I25: 8 | J25: 0 | K25: 0 | L25: 0 | M25: 0 | N25: 0
A26: QGH | B26: RLQ | C26: WYE VALLEY NHS TRUST | D26: RLQ01 | E26: Hereford County Hospital | F26: 26 | G26: 1 | H26: 0 | I26: 23 | J26: 3 | K26: 0 | L26: 0 | M26: 0 | N26: 0
A27: QH8 | B27: RAJ | C27: MID AND SOUTH ESSEX NHS FOUNDATION TRUST | D27: RAJ12 | E27: BASILDON HOSPITAL | F27: 44 | G27: 0.8181818182 | H27: 0.1363636364 | I27: 26 | J27: 10 | K27: 2 | L27: 1 | M27: 5 | N27: 0
A28: QH8 | B28: RAJ | C28: MID AND SOUTH ESSEX NHS FOUNDATION TRUST | D28: RAJ32 | E28: MID ESSEX HOSPITAL | F28: 24 | G28: 0.875 | H28: 0.08333333333 | I28: 18 | J28: 3 | K28: 1 | L28: 1 | M28: 1 | N28: 0
A29: QH8 | B29: RAJ | C29: MID AND SOUTH ESSEX NHS FOUNDATION TRUST | D29: RAJ01 | E29: Southend Hospital | F29: 36 | G29: 0.6944444444 | H29: 0.1111111111 | I29: 18 | J29: 7 | K29: 7 | L29: 2 | M29: 2 | N29: 0
A30: QHG | B30: RC9 | C30: BEDFORDSHIRE HOSPITALS NHS FOUNDATION TRUST | D30: RC979 | E30: BEDFORD HOSPITAL SOUTH WING | F30: 64 | G30: 0.96875 | H30: 0.03125 | I30: 47 | J30: 15 | K30: 0 | L30: 2 | M30: 0 | N30: 0
A31: QHG | B31: RC9 | C31: BEDFORDSHIRE HOSPITALS NHS FOUNDATION TRUST | D31: RC971 | E31: Luton and Dunstable Hospital | F31: 173 | G31: 0.9710982659 | H31: 0.02312138728 | I31: 127 | J31: 41 | K31: 1 | L31: 4 | M31: 0 | N31: 0
A32: QHG | B32: RD8 | C32: MILTON KEYNES UNIVERSITY HOSPITAL NHS FOUNDATION TRUST | D32: RD816 | E32: Milton Keynes Hospital | F32: 42 | G32: 0.8571428571 | H32: 0.119047619 | I32: 25 | J32: 11 | K32: 1 | L32: 1 | M32: 4 | N32: 0
A33: QHL | B33: RQ3 | C33: BIRMINGHAM WOMEN'S AND CHILDREN'S NHS FOUNDATION TRUST | D33: RQ370 | E33: Birmingham Women's Hospital | F33: 12 | G33: 1 | H33: 0 | I33: * | J33: * | K33: * | L33: * | M33: * | N33: *
A34: QHL | B34: RXK | C34: SANDWELL AND WEST BIRMINGHAM HOSPITALS NHS TRUST | D34: RXKTC | E34: Birmingham Treatment Centre | F34: 1 | G34: * | H34: * | I34: * | J34: * | K34: * | L34: * | M34: * | N34: *
A35: QHL | B35: RXK | C35: SANDWELL AND WEST BIRMINGHAM HOSPITALS NHS TRUST | D35: RXK02 | E35: City Hospital | F35: 0 | G35: NA | H35: NA | I35: 0 | J35: 0 | K35: 0 | L35: 0 | M35: 0 | N35: 0
A36: QHL | B36: RRK | C36: UNIVERSITY HOSPITALS BIRMINGHAM NHS FOUNDATION TRUST | D36: RRK98 | E36: Good Hope Hospital | F36: 13 | G36: 0.8461538462 | H36: 0.07692307692 | I36: * | J36: * | K36: * | L36: * | M36: * | N36: *
A37: QHL | B37: RRK | C37: UNIVERSITY HOSPITALS BIRMINGHAM NHS FOUNDATION TRUST | D37: RRK97 | E37: Heartlands Hospital | F37: 1 | G37: * | H37: * | I37: * | J37: * | K37: * | L37: * | M37: * | N37: *
A38: QHL | B38: RRK | C38: UNIVERSITY HOSPITALS BIRMINGHAM NHS FOUNDATION TRUST | D38: RRK99 | E38: Solihull Hospital | F38: 0 | G38: NA | H38: NA | I38: 0 | J38: 0 | K38: 0 | L38: 0 | M38: 0 | N38: 0
A39: QHM | B39: RXP | C39: COUNTY DURHAM AND DARLINGTON NHS FOUNDATION TRUST | D39: RXPDA | E39: Darlington Memorial Hospital | F39: 43 | G39: 1 | H39: 0 | I39: 36 | J39: 7 | K39: 0 | L39: 0 | M39: 0 | N39: 0
A40: QHM | B40: RXP | C40: COUNTY DURHAM AND DARLINGTON NHS FOUNDATION TRUST | D40: RXPCP | E40: University Hospital Of North Durham | F40: 35 | G40: 1 | H40: 0 | I40: 32 | J40: 3 | K40: 0 | L40: 0 | M40: 0 | N40: 0
A41: QHM | B41: RR7 | C41: GATESHEAD HEALTH NHS FOUNDATION TRUST | D41: RR7EN | E41: Queen Elizabeth Hospital | F41: 2 | G41: * | H41: * | I41: * | J41: * | K41: * | L41: * | M41: * | N41: *
A42: QHM | B42: RNN | C42: NORTH CUMBRIA INTEGRATED CARE NHS FOUNDATION TRUST | D42: RNN62 | E42: Cumberland Infirmary | F42: 7 | G42: 1 | H42: 0 | I42: * | J42: * | K42: * | L42: * | M42: * | N42: *
A43: QHM | B43: RNN | C43: NORTH CUMBRIA INTEGRATED CARE NHS FOUNDATION TRUST | D43: RNNBX | E43: West Cumberland Hospital | F43: 1 | G43: * | H43: * | I43: * | J43: * | K43: * | L43: * | M43: * | N43: *
A44: QHM | B44: RVW | C44: NORTH TEES AND HARTLEPOOL NHS FOUNDATION TRUST | D44: RVWXXX | E44: Non-hospital site | F44: 1 | G44: * | H44: * | I44: * | J44: * | K44: * | L44: * | M44: * | N44: *
A45: QHM | B45: RVW | C45: NORTH TEES AND HARTLEPOOL NHS FOUNDATION TRUST | D45: RVWAE | E45: University Hospital Of North Tees | F45: 49 | G45: 1 | H45: 0 | I45: * | J45: * | K45: * | L45: * | M45: * | N45: *
A46: QHM | B46: RTF | C46: NORTHUMBRIA HEALTHCARE NHS FOUNDATION TRUST | D46: RTFDJ | E46: Alnwick Infirmary | F46: 0 | G46: NA | H46: NA | I46: 0 | J46: 0 | K46: 0 | L46: 0 | M46: 0 | N46: 0
A47: QHM | B47: RTF | C47: NORTHUMBRIA HEALTHCARE NHS FOUNDATION TRUST | D47: RTFDH | E47: Berwick Infirmary | F47: 1 | G47: * | H47: * | I47: * | J47: * | K47: * | L47: * | M47: * | N47: *
A48: QHM | B48: RTF | C48: NORTHUMBRIA HEALTHCARE NHS FOUNDATION TRUST | D48: RTFDR | E48: Hexham General Hospital | F48: 1 | G48: * | H48: * | I48: * | J48: * | K48: * | L48: * | M48: * | N48: *
A49: QHM | B49: RTF | C49: NORTHUMBRIA HEALTHCARE NHS FOUNDATION TRUST | D49: RTF86 | E49: The Northumbria | F49: 64 | G49: 0.921875 | H49: 0.015625 | I49: 46 | J49: 13 | K49: 4 | L49: 0 | M49: 1 | N49: 0
A50: QHM | B50: RTR | C50: SOUTH TEES HOSPITALS NHS FOUNDATION TRUST | D50: RTR45 | E50: Friarage Hospital Site | F50: 0 | G50: NA | H50: NA | I50: 0 | J50: 0 | K50: 0 | L50: 0 | M50: 0 | N50: 0
A51: QHM | B51: RTR | C51: SOUTH TEES HOSPITALS NHS FOUNDATION TRUST | D51: RTRAT | E51: The James Cook University Hospital | F51: 31 | G51: 1 | H51: 0 | I51: 26 | J51: 5 | K51: 0 | L51: 0 | M51: 0 | N51: 0
A52: QHM | B52: R0B | C52: SOUTH TYNESIDE AND SUNDERLAND NHS FOUNDATION TRUST | D52: R0BXXX | E52: Non-hospital site | F52: 0 | G52: NA | H52: NA | I52: 0 | J52: 0 | K52: 0 | L52: 0 | M52: 0 | N52: 0
A53: QHM | B53: R0B | C53: SOUTH TYNESIDE AND SUNDERLAND NHS FOUNDATION TRUST | D53: R0B0Q | E53: South Tyneside District Hospital | F53: 0 | G53: NA | H53: NA | I53: 0 | J53: 0 | K53: 0 | L53: 0 | M53: 0 | N53: 0
A54: QHM | B54: R0B | C54: SOUTH TYNESIDE AND SUNDERLAND NHS FOUNDATION TRUST | D54: R0B01 | E54: Sunderland Royal Hospital | F54: 20 | G54: 1 | H54: 0 | I54: 16 | J54: 4 | K54: 0 | L54: 0 | M54: 0 | N54: 0
A55: QHM | B55: RTD | C55: THE NEWCASTLE UPON TYNE HOSPITALS NHS FOUNDATION TRUST | D55: RTD02 | E55: The Royal Victoria Infirmary | F55: 13 | G55: 0.8461538462 | H55: 0.1538461538 | I55: 9 | J55: 2 | K55: 0 | L55: 2 | M55: 0 | N55: 0
A56: QJ2 | B56: RFS | C56: CHESTERFIELD ROYAL HOSPITAL NHS FOUNDATION TRUST | D56: RFSDA | E56: Chesterfield Royal Hospital | F56: 14 | G56: 1 | H56: 0 | I56: 11 | J56: 3 | K56: 0 | L56: 0 | M56: 0 | N56: 0
A57: QJ2 | B57: RTG | C57: UNIVERSITY HOSPITALS OF DERBY AND BURTON NHS FOUNDATION TRUST | D57: RTG02 | E57: Queens Hospital, Burton Upon Trent | F57: 23 | G57: 0.9565217391 | H57: 0 | I57: * | J57: * | K57: * | L57: * | M57: * | N57: *
A58: QJ2 | B58: RTG | C58: UNIVERSITY HOSPITALS OF DERBY AND BURTON NHS FOUNDATION TRUST | D58: RTGFG | E58: Royal Derby Hospital | F58: 2 | G58: * | H58: * | I58: * | J58: * | K58: * | L58: * | M58: * | N58: *
A59: QJG | B59: RDE | C59: EAST SUFFOLK AND NORTH ESSEX NHS FOUNDATION TRUST | D59: RDEE4 | E59: Colchester General Hospital | F59: 37 | G59: 0.9189189189 | H59: 0.02702702703 | I59: 28 | J59: 6 | K59: 2 | L59: 1 | M59: 0 | N59: 0
A60: QJG | B60: RDE | C60: EAST SUFFOLK AND NORTH ESSEX NHS FOUNDATION TRUST | D60: RDE03 | E60: Ipswich Hospital | F60: 100 | G60: 0.99 | H60: 0 | I60: 81 | J60: 18 | K60: 1 | L60: 0 | M60: 0 | N60: 0
A61: QJG | B61: RGR | C61: WEST SUFFOLK NHS FOUNDATION TRUST | D61: RGR50 | E61: West Suffolk Hospital | F61: 50 | G61: 0.9 | H61: 0.04 | I61: 30 | J61: 15 | K61: 3 | L61: 2 | M61: 0 | N61: 0
A62: QJK | B62: RH8 | C62: ROYAL DEVON UNIVERSITY HEALTHCARE NHS FOUNDATION TRUST | D62: RH880 | E62: North Devon District Hospital | F62: 3 | G62: * | H62: * | I62: * | J62: * | K62: * | L62: * | M62: * | N62: *
A63: QJK | B63: RH8 | C63: ROYAL DEVON UNIVERSITY HEALTHCARE NHS FOUNDATION TRUST | D63: RH801 | E63: Royal Devon and Exeter Hospital (Wonford) | F63: 10 | G63: 0.1 | H63: 0 | I63: * | J63: * | K63: * | L63: * | M63: * | N63: *
A64: QJK | B64: RA9 | C64: TORBAY AND SOUTH DEVON NHS FOUNDATION TRUST | D64: RA901 | E64: Torbay Hospital | F64: 5 | G64: 1 | H64: 0 | I64: 5 | J64: 0 | K64: 0 | L64: 0 | M64: 0 | N64: 0
A65: QJK | B65: RK9 | C65: UNIVERSITY HOSPITALS PLYMOUTH NHS TRUST | D65: RK950 | E65: Derriford Hospital | F65: 11 | G65: 1 | H65: 0 | I65: 8 | J65: 3 | K65: 0 | L65: 0 | M65: 0 | N65: 0
A66: QJM | B66: RWD | C66: UNITED LINCOLNSHIRE HOSPITALS NHS TRUST | D66: RWDLP | E66: Grantham and District Hospital | F66: 0 | G66: NA | H66: NA | I66: 0 | J66: 0 | K66: 0 | L66: 0 | M66: 0 | N66: 0
A67: QJM | B67: RWD | C67: UNITED LINCOLNSHIRE HOSPITALS NHS TRUST | D67: RWDDA | E67: Lincoln County Hospital | F67: 0 | G67: NA | H67: NA | I67: 0 | J67: 0 | K67: 0 | L67: 0 | M67: 0 | N67: 0
A68: QJM | B68: RWD | C68: UNITED LINCOLNSHIRE HOSPITALS NHS TRUST | D68: RWDLA | E68: Pilgrim Hospital | F68: 0 | G68: NA | H68: NA | I68: 0 | J68: 0 | K68: 0 | L68: 0 | M68: 0 | N68: 0
A69: QK1 | B69: RWE | C69: UNIVERSITY HOSPITALS OF LEICESTER NHS TRUST | D69: RWEAK | E69: Leicester General Hospital | F69: 94 | G69: 0.9361702128 | H69: 0.04255319149 | I69: 82 | J69: 6 | K69: 2 | L69: 1 | M69: 3 | N69: 0
A70: QK1 | B70: RWE | C70: UNIVERSITY HOSPITALS OF LEICESTER NHS TRUST | D70: RWEAA | E70: Leicester Royal Infirmary | F70: 92 | G70: 0.9239130435 | H70: 0.04347826087 | I70: 51 | J70: 34 | K70: 3 | L70: 2 | M70: 2 | N70: 0
A71: QK1 | B71: RWE | C71: UNIVERSITY HOSPITALS OF LEICESTER NHS TRUST | D71: RWE10 | E71: St Mary's Hospital | F71: 16 | G71: 1 | H71: 0 | I71: 15 | J71: 1 | K71: 0 | L71: 0 | M71: 0 | N71: 0
A72: QKK | B72: RJ1 | C72: GUY'S AND ST THOMAS' NHS FOUNDATION TRUST | D72: RJ122 | E72: St Thomas' Hospital | F72: 72 | G72: 0.8888888889 | H72: 0.01388888889 | I72: 35 | J72: 29 | K72: 5 | L72: 0 | M72: 1 | N72: 2
A73: QKK | B73: RJ2 | C73: LEWISHAM AND GREENWICH NHS TRUST | D73: RJ231 | E73: Queen Elizabeth Hospital | F73: 2 | G73: * | H73: * | I73: * | J73: * | K73: * | L73: * | M73: * | N73: *
A74: QKK | B74: RJ2 | C74: LEWISHAM AND GREENWICH NHS TRUST | D74: RJ224 | E74: University Hospital Lewisham | F74: 23 | G74: 0.8695652174 | H74: 0.04347826087 | I74: * | J74: * | K74: * | L74: * | M74: * | N74: *
A75: QKS | B75: RN7 | C75: DARTFORD AND GRAVESHAM NHS TRUST | D75: RN707 | E75: Darent Valley Hospital | F75: 29 | G75: 0.9655172414 | H75: 0.03448275862 | I75: 21 | J75: 7 | K75: 0 | L75: 0 | M75: 1 | N75: 0
A76: QKS | B76: RWF | C76: MAIDSTONE AND TUNBRIDGE WELLS NHS TRUST | D76: RWFTW | E76: The Tunbridge Wells Hospital | F76: 17 | G76: 1 | H76: 0 | I76: 11 | J76: 6 | K76: 0 | L76: 0 | M76: 0 | N76: 0
A77: QKS | B77: RPA | C77: MEDWAY NHS FOUNDATION TRUST | D77: RPA02 | E77: Medway Maritime Hospital | F77: 70 | G77: 0.9714285714 | H77: 0.02857142857 | I77: 59 | J77: 9 | K77: 0 | L77: 1 | M77: 1 | N77: 0
A78: QM7 | B78: RWH | C78: EAST AND NORTH HERTFORDSHIRE NHS TRUST | D78: RWH01 | E78: Lister Hospital | F78: 6 | G78: 1 | H78: 0 | I78: 5 | J78: 1 | K78: 0 | L78: 0 | M78: 0 | N78: 0
A79: QM7 | B79: RQW | C79: THE PRINCESS ALEXANDRA HOSPITAL NHS TRUST | D79: RQWG0 | E79: Princess Alexandra Hospital | F79: 15 | G79: 0.6 | H79: 0.1333333333 | I79: 7 | J79: 2 | K79: 4 | L79: 1 | M79: 1 | N79: 0
A80: QM7 | B80: RWG | C80: WEST HERTFORDSHIRE TEACHING HOSPITALS NHS TRUST | D80: RWG02 | E80: Watford General Hospital | F80: 31 | G80: 0.8709677419 | H80: 0.03225806452 | I80: 15 | J80: 12 | K80: 3 | L80: 0 | M80: 1 | N80: 0
A81: QMF | B81: RF4 | C81: BARKING, HAVERING AND REDBRIDGE UNIVERSITY HOSPITALS NHS TRUST | D81: RF4QH | E81: Queen's Hospital | F81: 173 | G81: 0.9248554913 | H81: 0.04046242775 | I81: 132 | J81: 28 | K81: 5 | L81: 2 | M81: 5 | N81: 1
A82: QMF | B82: R1H | C82: BARTS HEALTH NHS TRUST | D82: R1HNH | E82: Newham General Hospital | F82: 40 | G82: 0.925 | H82: 0.075 | I82: 26 | J82: 11 | K82: 0 | L82: 1 | M82: 2 | N82: 0
A83: QMF | B83: R1H | C83: BARTS HEALTH NHS TRUST | D83: R1H12 | E83: The Royal London Hospital | F83: 44 | G83: 0.7954545455 | H83: 0.09090909091 | I83: 20 | J83: 15 | K83: 5 | L83: 2 | M83: 2 | N83: 0
A84: QMF | B84: R1H | C84: BARTS HEALTH NHS TRUST | D84: R1HKH | E84: Whipps Cross University Hospital | F84: 141 | G84: 0.8794326241 | H84: 0.06382978723 | I84: 74 | J84: 50 | K84: 8 | L84: 7 | M84: 2 | N84: 0
A85: QMF | B85: RQX | C85: HOMERTON HEALTHCARE NHS FOUNDATION TRUST | D85: RQXM1 | E85: Homerton University Hospital | F85: 17 | G85: 0.7647058824 | H85: 0.1176470588 | I85: 8 | J85: 5 | K85: 2 | L85: 1 | M85: 1 | N85: 0
A86: QMJ | B86: RAP | C86: NORTH MIDDLESEX UNIVERSITY HOSPITAL NHS TRUST | D86: RAPNM | E86: North Middlesex Hospital | F86: 274 | G86: 0.8649635036 | H86: 0.06569343066 | I86: 145 | J86: 92 | K86: 19 | L86: 10 | M86: 8 | N86: 0
A87: QMJ | B87: RAL | C87: ROYAL FREE LONDON NHS FOUNDATION TRUST | D87: RAL26 | E87: Barnet Hospital | F87: 110 | G87: 0.9727272727 | H87: 0.01818181818 | I87: 82 | J87: 25 | K87: 1 | L87: 1 | M87: 1 | N87: 0
A88: QMJ | B88: RAL | C88: ROYAL FREE LONDON NHS FOUNDATION TRUST | D88: RAL01 | E88: Royal Free Hospital | F88: 72 | G88: 0.9166666667 | H88: 0.02777777778 | I88: 45 | J88: 21 | K88: 2 | L88: 2 | M88: 0 | N88: 2
A89: QMM | B89: RGP | C89: JAMES PAGET UNIVERSITY HOSPITALS NHS FOUNDATION TRUST | D89: RGP75 | E89: James Paget University Hospital | F89: 25 | G89: 0.96 | H89: 0 | I89: 22 | J89: 2 | K89: 1 | L89: 0 | M89: 0 | N89: 0
A90: QMM | B90: RM1 | C90: NORFOLK AND NORWICH UNIVERSITY HOSPITALS NHS FOUNDATION TRUST | D90: RM102 | E90: Norfolk and Norwich University Hospital | F90: 5 | G90: 0.8 | H90: 0 | I90: 4 | J90: 0 | K90: 1 | L90: 0 | M90: 0 | N90: 0
A91: QMM | B91: RCX | C91: THE QUEEN ELIZABETH HOSPITAL, KING'S LYNN, NHS FOUNDATION TRUST | D91: RCX70 | E91: The Queen Elizabeth Hospital | F91: 19 | G91: 1 | H91: 0 | I91: 18 | J91: 1 | K91: 0 | L91: 0 | M91: 0 | N91: 0
A92: QNC | B92: RJE | C92: UNIVERSITY HOSPITALS OF NORTH MIDLANDS NHS TRUST | D92: RJE01 | E92: Royal Stoke University Hospital | F92: 2 | G92: * | H92: * | I92: * | J92: * | K92: * | L92: * | M92: * | N92: *
A93: QNQ | B93: RDU | C93: FRIMLEY HEALTH NHS FOUNDATION TRUST | D93: RDU01 | E93: Frimley Park Hospital | F93: 1 | G93: * | H93: * | I93: * | J93: * | K93: * | L93: * | M93: * | N93: *
A94: QNQ | B94: RDU | C94: FRIMLEY HEALTH NHS FOUNDATION TRUST | D94: RDU50 | E94: Wexham Park Hospital | F94: 0 | G94: NA | H94: NA | I94: 0 | J94: 0 | K94: 0 | L94: 0 | M94: 0 | N94: 0
A95: QNX | B95: RXC | C95: EAST SUSSEX HEALTHCARE NHS TRUST | D95: RXC01 | E95: Conquest Hospital | F95: 0 | G95: NA | H95: NA | I95: 0 | J95: 0 | K95: 0 | L95: 0 | M95: 0 | N95: 0
A96: QNX | B96: RXC | C96: EAST SUSSEX HEALTHCARE NHS TRUST | D96: RXC02 | E96: Eastbourne District General Hospital | F96: 2 | G96: * | H96: * | I96: * | J96: * | K96: * | L96: * | M96: * | N96: *
A97: QNX | B97: RYR | C97: UNIVERSITY HOSPITALS SUSSEX NHS FOUNDATION TRUST | D97: N6J7V | E97: Princess Royal Hospital | F97: 32 | G97: 0.9375 | H97: 0.0625 | I97: * | J97: * | K97: * | L97: * | M97: * | N97: *
A98: QNX | B98: RYR | C98: UNIVERSITY HOSPITALS SUSSEX NHS FOUNDATION TRUST | D98: E0A3H | E98: Royal Sussex County Hospital | F98: 25 | G98: 0.92 | H98: 0.08 | I98: * | J98: * | K98: * | L98: * | M98: * | N98: *
A99: QOC | B99: RXW | C99: THE SHREWSBURY AND TELFORD HOSPITAL NHS TRUST | D99: RXWMB | E99: Bridgnorth Hospital (Maternity) | F99: 0 | G99: NA | H99: NA | I99: 0 | J99: 0 | K99: 0 | L99: 0 | M99: 0 | N99: 0
A100: QOC | B100: RXW | C100: THE SHREWSBURY AND TELFORD HOSPITAL NHS TRUST | D100: RXWML | E100: Ludlow Hospital (Maternity) | F100: 0 | G100: NA | H100: NA | I100: 0 | J100: 0 | K100: 0 | L100: 0 | M100: 0 | N100: 0
A101: QOC | B101: RXW | C101: THE SHREWSBURY AND TELFORD HOSPITAL NHS TRUST | D101: RXWMJ | E101: Robert Jones & Agnes Hunt Orthopaedic & District Hospital | F101: 0 | G101: NA | H101: NA | I101: 0 | J101: 0 | K101: 0 | L101: 0 | M101: 0 | N101: 0
A102: QOC | B102: RXW | C102: THE SHREWSBURY AND TELFORD HOSPITAL NHS TRUST | D102: RXWAS | E102: Royal Shrewsbury Hospital | F102: 0 | G102: NA | H102: NA | I102: 0 | J102: 0 | K102: 0 | L102: 0 | M102: 0 | N102: 0
A103: QOC | B103: RXW | C103: THE SHREWSBURY AND TELFORD HOSPITAL NHS TRUST | D103: RXWAT | E103: The Princess Royal Hospital | F103: 7 | G103: 1 | H103: 0 | I103: * | J103: * | K103: * | L103: * | M103: * | N103: *
A104: QOP | B104: RMC | C104: BOLTON NHS FOUNDATION TRUST | D104: RMC01 | E104: Royal Bolton Hospital | F104: 51 | G104: 0.7058823529 | H104: 0.1960784314 | I104: 23 | J104: 13 | K104: 5 | L104: 1 | M104: 9 | N104: 0
A105: QOP | B105: R0A | C105: MANCHESTER UNIVERSITY NHS FOUNDATION TRUST | D105: R0A05 | E105: St Mary's Hospital | F105: 373 | G105: 0.9651474531 | H105: 0.02412868633 | I105: 203 | J105: 157 | K105: 4 | L105: 7 | M105: 2 | N105: 0
A106: QOP | B106: RM3 | C106: NORTHERN CARE ALLIANCE NHS FOUNDATION TRUST | D106: RW603 | E106: Royal Oldham Hospital | F106: 34 | G106: 0.7352941176 | H106: 0.1764705882 | I106: 21 | J106: 4 | K106: 3 | L106: 3 | M106: 3 | N106: 0
A107: QOP | B107: RWJ | C107: STOCKPORT NHS FOUNDATION TRUST | D107: RWJ09 | E107: Stepping Hill Hospital | F107: 25 | G107: 0.92 | H107: 0 | I107: 21 | J107: 2 | K107: 2 | L107: 0 | M107: 0 | N107: 0
A108: QOP | B108: RRF | C108: WRIGHTINGTON, WIGAN AND LEIGH NHS FOUNDATION TRUST | D108: RRF02 | E108: Royal Albert Edward Infirmary | F108: 5 | G108: 1 | H108: 0 | I108: 4 | J108: 1 | K108: 0 | L108: 0 | M108: 0 | N108: 0
A109: QOQ | B109: RCD | C109: HARROGATE AND DISTRICT NHS FOUNDATION TRUST | D109: RCD01 | E109: Harrogate District Hospital | F109: 0 | G109: NA | H109: NA | I109: 0 | J109: 0 | K109: 0 | L109: 0 | M109: 0 | N109: 0
A110: QOQ | B110: RJL | C110: NORTHERN LINCOLNSHIRE AND GOOLE NHS FOUNDATION TRUST | D110: RJL32 | E110: Scunthorpe General Hospital | F110: 17 | G110: 0.8823529412 | H110: 0.1176470588 | I110: 10 | J110: 5 | K110: 0 | L110: 1 | M110: 1 | N110: 0
A111: QOQ | B111: RCB | C111: YORK AND SCARBOROUGH TEACHING HOSPITALS NHS FOUNDATION TRUST | D111: RCBCA | E111: Scarborough General Hospital | F111: 31 | G111: 0.9677419355 | H111: 0 | I111: 28 | J111: 2 | K111: 1 | L111: 0 | M111: 0 | N111: 0
A112: QOQ | B112: RCB | C112: YORK AND SCARBOROUGH TEACHING HOSPITALS NHS FOUNDATION TRUST | D112: RCB55 | E112: York Hospital | F112: 203 | G112: 0.9852216749 | H112: 0.004926108374 | I112: 175 | J112: 25 | K112: 2 | L112: 1 | M112: 0 | N112: 0
A113: QOX | B113: RN3 | C113: GREAT WESTERN HOSPITALS NHS FOUNDATION TRUST | D113: RN325 | E113: The Great Western Hospital | F113: 52 | G113: 0.8653846154 | H113: 0.09615384615 | I113: 37 | J113: 8 | K113: 2 | L113: 3 | M113: 2 | N113: 0
A114: QOX | B114: RD1 | C114: ROYAL UNITED HOSPITALS BATH NHS FOUNDATION TRUST | D114: RD130 | E114: Princess Anne Wing RUH | F114: 49 | G114: 1 | H114: 0 | I114: * | J114: * | K114: * | L114: * | M114: * | N114: *
A115: QOX | B115: RNZ | C115: SALISBURY NHS FOUNDATION TRUST | D115: RNZ02 | E115: Salisbury District Hospital | F115: 2 | G115: * | H115: * | I115: * | J115: * | K115: * | L115: * | M115: * | N115: *
A116: QPM | B116: RNQ | C116: KETTERING GENERAL HOSPITAL NHS FOUNDATION TRUST | D116: RNQ51 | E116: Kettering General Hospital | F116: 1 | G116: * | H116: * | I116: * | J116: * | K116: * | L116: * | M116: * | N116: *
A117: QPM | B117: RNS | C117: NORTHAMPTON GENERAL HOSPITAL NHS TRUST | D117: RNS01 | E117: Northampton General Hospital (Acute) | F117: 39 | G117: 0.8974358974 | H117: 0.07692307692 | I117: * | J117: * | K117: * | L117: * | M117: * | N117: *
A118: QR1 | B118: RTE | C118: GLOUCESTERSHIRE HOSPITALS NHS FOUNDATION TRUST | D118: RTE03 | E118: Gloucestershire Royal Hospital | F118: 27 | G118: 0.6666666667 | H118: 0.1111111111 | I118: 10 | J118: 8 | K118: 6 | L118: 2 | M118: 1 | N118: 0
A119: QRL | B119: RN5 | C119: HAMPSHIRE HOSPITALS NHS FOUNDATION TRUST | D119: RN506 | E119: Basingstoke and North Hampshire Hospital | F119: 61 | G119: 0.9344262295 | H119: 0 | I119: * | J119: * | K119: * | L119: * | M119: * | N119: *
A120: QRL | B120: RN5 | C120: HAMPSHIRE HOSPITALS NHS FOUNDATION TRUST | D120: RN541 | E120: Royal Hampshire County Hospital | F120: 2 | G120: * | H120: * | I120: * | J120: * | K120: * | L120: * | M120: * | N120: *
A121: QRL | B121: R1F | C121: ISLE OF WIGHT NHS TRUST | D121: R1F01 | E121: St Mary's Hospital | F121: 8 | G121: 1 | H121: 0 | I121: 8 | J121: 0 | K121: 0 | L121: 0 | M121: 0 | N121: 0
A122: QRL | B122: RHU | C122: PORTSMOUTH HOSPITALS UNIVERSITY NATIONAL HEALTH SERVICE TRUST | D122: RHU10 | E122: Gosport War Memorial Hospital | F122: 0 | G122: NA | H122: NA | I122: 0 | J122: 0 | K122: 0 | L122: 0 | M122: 0 | N122: 0
A123: QRL | B123: RHU | C123: PORTSMOUTH HOSPITALS UNIVERSITY NATIONAL HEALTH SERVICE TRUST | D123: RHU04 | E123: Petersfield Community Hospital | F123: 0 | G123: NA | H123: NA | I123: 0 | J123: 0 | K123: 0 | L123: 0 | M123: 0 | N123: 0
A124: QRL | B124: RHU | C124: PORTSMOUTH HOSPITALS UNIVERSITY NATIONAL HEALTH SERVICE TRUST | D124: RHU03 | E124: Queen Alexandra Hospital | F124: 52 | G124: 1 | H124: 0 | I124: 49 | J124: 3 | K124: 0 | L124: 0 | M124: 0 | N124: 0
A125: QRL | B125: RHU | C125: PORTSMOUTH HOSPITALS UNIVERSITY NATIONAL HEALTH SERVICE TRUST | D125: RHU02 | E125: St Mary's Hospital | F125: 35 | G125: 0.9714285714 | H125: 0 | I125: 30 | J125: 4 | K125: 1 | L125: 0 | M125: 0 | N125: 0
A126: QRL | B126: RHM | C126: UNIVERSITY HOSPITAL SOUTHAMPTON NHS FOUNDATION TRUST | D126: RHM01 | E126: Southampton General Hospital | F126: 111 | G126: 0.9009009009 | H126: 0.04504504505 | I126: 59 | J126: 41 | K126: 6 | L126: 5 | M126: 0 | N126: 0
A127: QRV | B127: RQM | C127: CHELSEA AND WESTMINSTER HOSPITAL NHS FOUNDATION TRUST | D127: RQM01 | E127: Chelsea and Westminster Hospital | F127: 84 | G127: 0.8214285714 | H127: 0.08333333333 | I127: 60 | J127: 9 | K127: 8 | L127: 4 | M127: 3 | N127: 0
A128: QRV | B128: RQM | C128: CHELSEA AND WESTMINSTER HOSPITAL NHS FOUNDATION TRUST | D128: RQM91 | E128: West Middlesex University Hospital | F128: 68 | G128: 0.8823529412 | H128: 0.1176470588 | I128: 53 | J128: 7 | K128: 0 | L128: 3 | M128: 5 | N128: 0
A129: QRV | B129: RYJ | C129: IMPERIAL COLLEGE HEALTHCARE NHS TRUST | D129: RYJ04 | E129: Queen Charlotte's Hospital | F129: 43 | G129: 1 | H129: 0 | I129: 36 | J129: 7 | K129: 0 | L129: 0 | M129: 0 | N129: 0
A130: QRV | B130: RYJ | C130: IMPERIAL COLLEGE HEALTHCARE NHS TRUST | D130: RYJ01 | E130: St Mary's Hospital (HQ) | F130: 13 | G130: 0.9230769231 | H130: 0.07692307692 | I130: 12 | J130: 0 | K130: 0 | L130: 1 | M130: 0 | N130: 0
A131: QRV | B131: R1K | C131: LONDON NORTH WEST UNIVERSITY HEALTHCARE NHS TRUST | D131: R1K01 | E131: Northwick Park Hospital | F131: 137 | G131: 0.9416058394 | H131: 0.007299270073 | I131: 90 | J131: 39 | K131: 7 | L131: 0 | M131: 1 | N131: 0
A132: QRV | B132: RAS | C132: THE HILLINGDON HOSPITALS NHS FOUNDATION TRUST | D132: RAS01 | E132: Hillingdon Hospital | F132: 67 | G132: 0.9104477612 | H132: 0.07462686567 | I132: 52 | J132: 9 | K132: 1 | L132: 2 | M132: 3 | N132: 0
A133: QSL | B133: RH5 | C133: SOMERSET NHS FOUNDATION TRUST | D133: RH5K6 | E133: Bridgwater Hospital | F133: 0 | G133: NA | H133: NA | I133: 0 | J133: 0 | K133: 0 | L133: 0 | M133: 0 | N133: 0
A134: QSL | B134: RH5 | C134: SOMERSET NHS FOUNDATION TRUST | D134: RH5A8 | E134: MUSGROVE PARK HOSPITAL | F134: 13 | G134: 1 | H134: 0 | I134: 13 | J134: 0 | K134: 0 | L134: 0 | M134: 0 | N134: 0
A135: QSL | B135: RH5 | C135: SOMERSET NHS FOUNDATION TRUST | D135: RH5XXXX | E135: Non-hospital site home/in-transit births | F135: 0 | G135: NA | H135: NA | I135: 0 | J135: 0 | K135: 0 | L135: 0 | M135: 0 | N135: 0
A136: QSL | B136: RA4 | C136: YEOVIL DISTRICT HOSPITAL NHS FOUNDATION TRUST | D136: RA430 | E136: Yeovil District Hospital | F136: 28 | G136: 0.9285714286 | H136: 0 | I136: 23 | J136: 3 | K136: 2 | L136: 0 | M136: 0 | N136: 0
A137: QT1 | B137: RX1 | C137: NOTTINGHAM UNIVERSITY HOSPITALS NHS TRUST | D137: RX1CC | E137: Nottingham University Hospitals NHS Trust - City Campus | F137: 2 | G137: * | H137: * | I137: * | J137: * | K137: * | L137: * | M137: * | N137: *
A138: QT1 | B138: RX1 | C138: NOTTINGHAM UNIVERSITY HOSPITALS NHS TRUST | D138: RX1RA | E138: Nottingham University Hospitals NHS Trust - Queen's Medical Centre Campus | F138: 80 | G138: 0.8875 | H138: 0.05 | I138: * | J138: * | K138: * | L138: * | M138: * | N138: *
A139: QT1 | B139: RK5 | C139: SHERWOOD FOREST HOSPITALS NHS FOUNDATION TRUST | D139: RK5BC | E139: King's Mill Hospital | F139: 8 | G139: 0.75 | H139: 0 | I139: 5 | J139: 1 | K139: 2 | L139: 0 | M139: 0 | N139: 0
A140: QT6 | B140: REF | C140: ROYAL CORNWALL HOSPITALS NHS TRUST | D140: REF12 | E140: Royal Cornwall Hospital (Treliske) | F140: 13 | G140: 0.9230769231 | H140: 0.07692307692 | I140: 8 | J140: 4 | K140: 0 | L140: 1 | M140: 0 | N140: 0
A141: QU9 | B141: RXQ | C141: BUCKINGHAMSHIRE HEALTHCARE NHS TRUST | D141: RXQ02 | E141: Stoke Mandeville Hospital | F141: 22 | G141: 0.9545454545 | H141: 0.04545454545 | I141: * | J141: * | K141: * | L141: * | M141: * | N141: *
A142: QU9 | B142: RTH | C142: OXFORD UNIVERSITY HOSPITALS NHS FOUNDATION TRUST | D142: RTH05 | E142: Horton General Hospital | F142: 0 | G142: NA | H142: NA | I142: 0 | J142: 0 | K142: 0 | L142: 0 | M142: 0 | N142: 0
A143: QU9 | B143: RTH | C143: OXFORD UNIVERSITY HOSPITALS NHS FOUNDATION TRUST | D143: RTH08 | E143: John Radcliffe Hospital | F143: 2 | G143: * | H143: * | I143: * | J143: * | K143: * | L143: * | M143: * | N143: *
A144: QU9 | B144: RTH | C144: OXFORD UNIVERSITY HOSPITALS NHS FOUNDATION TRUST | D144: RTH16 | E144: Wallingford Community Hospital | F144: 0 | G144: NA | H144: NA | I144: 0 | J144: 0 | K144: 0 | L144: 0 | M144: 0 | N144: 0
A145: QU9 | B145: RHW | C145: ROYAL BERKSHIRE NHS FOUNDATION TRUST | D145: RHW01 | E145: Royal Berkshire Hospital | F145: 60 | G145: 0.95 | H145: 0 | I145: 50 | J145: 7 | K145: 3 | L145: 0 | M145: 0 | N145: 0
A146: QUA | B146: RNA | C146: THE DUDLEY GROUP NHS FOUNDATION TRUST | D146: RNA01 | E146: Russells Hall Hospital | F146: 27 | G146: 0.7777777778 | H146: 0 | I146: 17 | J146: 4 | K146: 2 | L146: 0 | M146: 0 | N146: 4
A147: QUA | B147: RL4 | C147: THE ROYAL WOLVERHAMPTON NHS TRUST | D147: RL403 | E147: New Cross Hospital | F147: 95 | G147: 0.8105263158 | H147: 0.1263157895 | I147: 65 | J147: 12 | K147: 6 | L147: 10 | M147: 2 | N147: 0
A148: QUA | B148: RBK | C148: WALSALL HEALTHCARE NHS TRUST | D148: RBK02 | E148: Manor Hospital | F148: 27 | G148: 0.7407407407 | H148: 0.2222222222 | I148: 15 | J148: 5 | K148: 1 | L148: 4 | M148: 2 | N148: 0
A149: QUE | B149: RGT | C149: CAMBRIDGE UNIVERSITY HOSPITALS NHS FOUNDATION TRUST | D149: RGT32 | E149: Rosie Hospital | F149: 114 | G149: 0.8771929825 | H149: 0.04385964912 | I149: 73 | J149: 27 | K149: 7 | L149: 3 | M149: 2 | N149: 2
A150: QUE | B150: RGN | C150: NORTH WEST ANGLIA NHS FOUNDATION TRUST | D150: RGN90 | E150: Hinchingbrooke Hospital | F150: 96 | G150: 0.9791666667 | H150: 0.01041666667 | I150: 86 | J150: 8 | K150: 1 | L150: 0 | M150: 1 | N150: 0
A151: QUE | B151: RGN | C151: NORTH WEST ANGLIA NHS FOUNDATION TRUST | D151: RGN80 | E151: Peterborough City Hospital | F151: 45 | G151: 1 | H151: 0 | I151: 41 | J151: 4 | K151: 0 | L151: 0 | M151: 0 | N151: 0
A152: QUY | B152: RVJ | C152: NORTH BRISTOL NHS TRUST | D152: RVJ01 | E152: Southmead Hospital | F152: 113 | G152: 0.9292035398 | H152: 0.05309734513 | I152: 86 | J152: 19 | K152: 2 | L152: 2 | M152: 4 | N152: 0
A153: QUY | B153: RA7 | C153: UNIVERSITY HOSPITALS BRISTOL AND WESTON NHS FOUNDATION TRUST | D153: RA707 | E153: St Michael's Hospital | F153: 34 | G153: 0.9705882353 | H153: 0 | I153: 29 | J153: 4 | K153: 1 | L153: 0 | M153: 0 | N153: 0
A154: QVV | B154: RBD | C154: DORSET COUNTY HOSPITAL NHS FOUNDATION TRUST | D154: RBD01 | E154: Dorset County Hospital | F154: 35 | G154: 0.8857142857 | H154: 0.05714285714 | I154: 26 | J154: 5 | K154: 1 | L154: 0 | M154: 2 | N154: 1
A155: QVV | B155: R0D | C155: UNIVERSITY HOSPITALS DORSET NHS FOUNDATION TRUST | D155: R0D01 | E155: Poole Hospital | F155: 129 | G155: 0.8449612403 | H155: 0.03875968992 | I155: 74 | J155: 35 | K155: 6 | L155: 4 | M155: 1 | N155: 9
A156: QVV | B156: R0D | C156: UNIVERSITY HOSPITALS DORSET NHS FOUNDATION TRUST | D156: R0D02 | E156: Royal Bournemouth Hospital | F156: 0 | G156: NA | H156: NA | I156: 0 | J156: 0 | K156: 0 | L156: 0 | M156: 0 | N156: 0
A157: QWE | B157: RJ6 | C157: CROYDON HEALTH SERVICES NHS TRUST | D157: RJ611 | E157: Croydon University Hospital | F157: 26 | G157: 0.9230769231 | H157: 0.03846153846 | I157: 18 | J157: 6 | K157: 1 | L157: 0 | M157: 1 | N157: 0
A158: QWE | B158: RVR | C158: EPSOM AND ST HELIER UNIVERSITY HOSPITALS NHS TRUST | D158: RVR50 | E158: Epsom Hospital | F158: 4 | G158: * | H158: * | I158: * | J158: * | K158: * | L158: * | M158: * | N158: *
A159: QWE | B159: RVR | C159: EPSOM AND ST HELIER UNIVERSITY HOSPITALS NHS TRUST | D159: RVR05 | E159: St Helier Hospital | F159: 1 | G159: * | H159: * | I159: * | J159: * | K159: * | L159: * | M159: * | N159: *
A160: QWE | B160: RAX | C160: KINGSTON HOSPITAL NHS FOUNDATION TRUST | D160: RAXXXX | E160: Non-hospital site | F160: 40 | G160: 0.875 | H160: 0.05 | I160: 32 | J160: 3 | K160: 3 | L160: 1 | M160: 1 | N160: 0
A161: QWE | B161: RJ7 | C161: ST GEORGE'S UNIVERSITY HOSPITALS NHS FOUNDATION TRUST | D161: RJ701 | E161: St George's Hospital (Tooting) | F161: 41 | G161: 0.9756097561 | H161: 0.0243902439 | I161: 25 | J161: 15 | K161: 0 | L161: 1 | M161: 0 | N161: 0
A162: QWO | B162: RAE | C162: BRADFORD TEACHING HOSPITALS NHS FOUNDATION TRUST | D162: RAE01 | E162: Bradford Royal Infirmary | F162: 0 | G162: NA | H162: NA | I162: 0 | J162: 0 | K162: 0 | L162: 0 | M162: 0 | N162: 0
A163: QWO | B163: RWY | C163: CALDERDALE AND HUDDERSFIELD NHS FOUNDATION TRUST | D163: RWY02 | E163: Calderdale Royal Hospital | F163: 1 | G163: * | H163: * | I163: * | J163: * | K163: * | L163: * | M163: * | N163: *
A164: QWO | B164: RR8 | C164: LEEDS TEACHING HOSPITALS NHS TRUST | D164: RR801 | E164: Leeds General Infirmary | F164: 80 | G164: 0.925 | H164: 0.0625 | I164: * | J164: * | K164: * | L164: * | M164: * | N164: *
A165: QWO | B165: RR8 | C165: LEEDS TEACHING HOSPITALS NHS TRUST | D165: RR813 | E165: St James's University Hospital | F165: 72 | G165: 0.8611111111 | H165: 0.08333333333 | I165: * | J165: * | K165: * | L165: * | M165: * | N165: *
A166: QWO | B166: RXF | C166: MID YORKSHIRE HOSPITALS NHS TRUST | D166: RXF05 | E166: Pinderfields General Hospital | F166: 185 | G166: 0.9405405405 | H166: 0.05405405405 | I166: 138 | J166: 36 | K166: 1 | L166: 6 | M166: 4 | N166: 0
A167: QWU | B167: RJC | C167: SOUTH WARWICKSHIRE UNIVERSITY NHS FOUNDATION TRUST | D167: RJC02 | E167: Warwick Hospital | F167: 35 | G167: 0.8285714286 | H167: 0.1142857143 | I167: 25 | J167: 4 | K167: 0 | L167: 0 | M167: 4 | N167: 2
A168: QWU | B168: RKB | C168: UNIVERSITY HOSPITALS COVENTRY AND WARWICKSHIRE NHS TRUST | D168: RKB01 | E168: University Hospital (Coventry) | F168: 100 | G168: 0.94 | H168: 0.06 | I168: 70 | J168: 24 | K168: 0 | L168: 1 | M168: 5 | N168: 0
A169: QXU | B169: RTK | C169: ASHFORD AND ST PETER'S HOSPITALS NHS FOUNDATION TRUST | D169: RTK02 | E169: Ashford Hospital | F169: 0 | G169: NA | H169: NA | I169: 0 | J169: 0 | K169: 0 | L169: 0 | M169: 0 | N169: 0
A170: QXU | B170: RA2 | C170: ROYAL SURREY COUNTY HOSPITAL NHS FOUNDATION TRUST | D170: RA201 | E170: Royal Surrey County Hospital | F170: 2 | G170: * | H170: * | I170: * | J170: * | K170: * | L170: * | M170: * | N170: *
A171: QXU | B171: RTP | C171: SURREY AND SUSSEX HEALTHCARE NHS TRUST | D171: RTP04 | E171: East Surrey Hospital | F171: 62 | G171: 0.9516129032 | H171: 0.04838709677 | I171: * | J171: * | K171: * | L171: * | M171: * | N171: *
A172: QYG | B172: REP | C172: LIVERPOOL WOMEN'S NHS FOUNDATION TRUST | D172: REP01 | E172: Liverpool Womens Hospital | F172: 51 | G172: 0.8431372549 | H172: 0.09803921569 | I172: 36 | J172: 7 | K172: 3 | L172: 2 | M172: 3 | N172: 0
A173: QYG | B173: RBT | C173: MID CHESHIRE HOSPITALS NHS FOUNDATION TRUST | D173: RBT20 | E173: Leighton Hospital | F173: 69 | G173: 0.9710144928 | H173: 0.01449275362 | I173: 62 | J173: 5 | K173: 1 | L173: 1 | M173: 0 | N173: 0
A174: QYG | B174: RVY | C174: SOUTHPORT AND ORMSKIRK HOSPITAL NHS TRUST | D174: RVY02 | E174: Ormskirk and District General Hospital | F174: 20 | G174: 0.95 | H174: 0 | I174: 15 | J174: 4 | K174: 1 | L174: 0 | M174: 0 | N174: 0
A175: QYG | B175: RBN | C175: ST HELENS AND KNOWSLEY TEACHING HOSPITALS NHS TRUST | D175: RBN01 | E175: Whiston Hospital | F175: 22 | G175: 0.9545454545 | H175: 0 | I175: 19 | J175: 2 | K175: 1 | L175: 0 | M175: 0 | N175: 0
A176: QYG | B176: RBL | C176: WIRRAL UNIVERSITY TEACHING HOSPITAL NHS FOUNDATION TRUST | D176: RBL14 | E176: Arrowe Park Hospital | F176: 18 | G176: 1 | H176: 0 | I176: 17 | J176: 1 | K176: 0 | L176: 0 | M176: 0 | N176: 0

Sheet ICB Q4
B6: Sort data by:
A9: ICB Code | B9: ICB Name | C9: Total Responses | D9: Percentage Positive | E9: Percentage Negative | F9: Breakdown of Responses
F10: Very Good | G10: Good | H10: Neither Good nor Poor | I10: Poor | J10: Very Poor | K10: Don't Know
B11: England (including Independent Sector providers) | C11: 1304 | D11: 0.8957055215 | E11: 0.05751533742 | F11: 945 | G11: 223 | H11: 47 | I11: 30 | J11: 45 | K11: 14
B12: England (excluding Independent Sector providers) | C12: 1304 | D12: 0.8957055215 | E12: 0.05751533742 | F12: 945 | G12: 223 | H12: 47 | I12: 30 | J12: 45 | K12: 14
B13: Selection (excluding suppressed data) | C13: =SUBTOTAL(9,C14:C55) -> 1304 | D13: =IFERROR((F13+G13)/SUM(F13:K13), "-") -> 0.8944918542 | E13: =IFERROR((I13+J13)/SUM(F13:K13), "-") -> 0.05818463926 | F13: =SUBTOTAL(9,F14:F55) -> 932 | G13: =SUBTOTAL(9,G14:G55) -> 221 | H13: 47 | I13: 30 | J13: 45 | K13: 14
A14: QE1 | B14: LANCASHIRE AND SOUTH CUMBRIA ICB | C14: 81 | D14: 0.9012345679 | E14: 0 | F14: 56 | G14: 17 | H14: 5 | I14: 0 | J14: 0 | K14: 3
A15: QF7 | B15: SOUTH YORKSHIRE ICB | C15: 80 | D15: 0.825 | E15: 0.1 | F15: 53 | G15: 13 | H15: 6 | I15: 5 | J15: 3 | K15: 0
A16: QGH | B16: HEREFORDSHIRE AND WORCESTERSHIRE ICB | C16: 0 | D16: NA | E16: NA | F16: 0 | G16: 0 | H16: 0 | I16: 0 | J16: 0 | K16: 0
A17: QH8 | B17: MID AND SOUTH ESSEX ICB | C17: 0 | D17: NA | E17: NA | F17: 0 | G17: 0 | H17: 0 | I17: 0 | J17: 0 | K17: 0
A18: QHG | B18: BEDFORDSHIRE, LUTON AND MILTON KEYNES ICB | C18: 22 | D18: 0.9545454545 | E18: 0 | F18: 17 | G18: 4 | H18: 1 | I18: 0 | J18: 0 | K18: 0
A19: QHL | B19: BIRMINGHAM AND SOLIHULL ICB | C19: 74 | D19: 0.8513513514 | E19: 0.09459459459 | F19: 55 | G19: 8 | H19: 2 | I19: 2 | J19: 5 | K19: 2
A20: QHM | B20: NORTH EAST AND NORTH CUMBRIA ICB | C20: 53 | D20: 0.8867924528 | E20: 0.05660377358 | F20: 38 | G20: 9 | H20: 3 | I20: 1 | J20: 2 | K20: 0
A21: QJ2 | B21: DERBY AND DERBYSHIRE ICB | C21: 9 | D21: 1 | E21: 0 | F21: 9 | G21: 0 | H21: 0 | I21: 0 | J21: 0 | K21: 0
A22: QJG | B22: SUFFOLK AND NORTH EAST ESSEX ICB | C22: 16 | D22: 1 | E22: 0 | F22: 14 | G22: 2 | H22: 0 | I22: 0 | J22: 0 | K22: 0
A23: QJK | B23: DEVON ICB | C23: 2 | D23: * | E23: * | F23: * | G23: * | H23: * | I23: * | J23: * | K23: *
A24: QJM | B24: LINCOLNSHIRE ICB | C24: 0 | D24: NA | E24: NA | F24: 0 | G24: 0 | H24: 0 | I24: 0 | J24: 0 | K24: 0
A25: QK1 | B25: LEICESTER, LEICESTERSHIRE AND RUTLAND ICB | C25: 61 | D25: 0.9836065574 | E25: 0 | F25: 56 | G25: 4 | H25: 1 | I25: 0 | J25: 0 | K25: 0
A26: QKK | B26: SOUTH EAST LONDON ICB | C26: 41 | D26: 0.8536585366 | E26: 0.1219512195 | F26: 31 | G26: 4 | H26: 1 | I26: 2 | J26: 3 | K26: 0
A27: QKS | B27: KENT AND MEDWAY ICB | C27: 7 | D27: 0.4285714286 | E27: 0.2857142857 | F27: 3 | G27: 0 | H27: 2 | I27: 2 | J27: 0 | K27: 0
A28: QM7 | B28: HERTFORDSHIRE AND WEST ESSEX ICB | C28: 1 | D28: * | E28: * | F28: * | G28: * | H28: * | I28: * | J28: * | K28: *
A29: QMF | B29: NORTH EAST LONDON ICB | C29: 54 | D29: 0.9074074074 | E29: 0.05555555556 | F29: 37 | G29: 12 | H29: 1 | I29: 1 | J29: 2 | K29: 1
A30: QMJ | B30: NORTH CENTRAL LONDON ICB | C30: 7 | D30: 0.5714285714 | E30: 0.2857142857 | F30: 2 | G30: 2 | H30: 1 | I30: 1 | J30: 1 | K30: 0
A31: QMM | B31: NORFOLK AND WAVENEY ICB | C31: 10 | D31: 1 | E31: 0 | F31: 10 | G31: 0 | H31: 0 | I31: 0 | J31: 0 | K31: 0
A32: QNC | B32: STAFFORDSHIRE AND STOKE-ON-TRENT ICB | C32: 1 | D32: * | E32: * | F32: * | G32: * | H32: * | I32: * | J32: * | K32: *
A33: QNQ | B33: FRIMLEY ICB | C33: 1 | D33: * | E33: * | F33: * | G33: * | H33: * | I33: * | J33: * | K33: *
A34: QNX | B34: SUSSEX ICB | C34: 17 | D34: 0.9411764706 | E34: 0.05882352941 | F34: 15 | G34: 1 | H34: 0 | I34: 1 | J34: 0 | K34: 0
A35: QOC | B35: SHROPSHIRE, TELFORD AND WREKIN ICB | C35: 4 | D35: * | E35: * | F35: * | G35: * | H35: * | I35: * | J35: * | K35: *
A36: QOP | B36: GREATER MANCHESTER ICB | C36: 65 | D36: 0.9230769231 | E36: 0.06153846154 | F36: 49 | G36: 11 | H36: 1 | I36: 0 | J36: 4 | K36: 0
A37: QOQ | B37: HUMBER AND NORTH YORKSHIRE ICB | C37: 1 | D37: * | E37: * | F37: * | G37: * | H37: * | I37: * | J37: * | K37: *
A38: QOX | B38: BATH AND NORTH EAST SOMERSET, SWINDON AND WILTSHIRE ICB | C38: 49 | D38: 0.9387755102 | E38: 0 | F38: 41 | G38: 5 | H38: 2 | I38: 0 | J38: 0 | K38: 1
A39: QPM | B39: NORTHAMPTONSHIRE ICB | C39: 19 | D39: 1 | E39: 0 | F39: 17 | G39: 2 | H39: 0 | I39: 0 | J39: 0 | K39: 0
A40: QR1 | B40: GLOUCESTERSHIRE ICB | C40: 0 | D40: NA | E40: NA | F40: 0 | G40: 0 | H40: 0 | I40: 0 | J40: 0 | K40: 0
A41: QRL | B41: HAMPSHIRE AND ISLE OF WIGHT ICB | C41: 129 | D41: 0.9302325581 | E41: 0 | F41: 73 | G41: 47 | H41: 4 | I41: 0 | J41: 0 | K41: 5
A42: QRV | B42: NORTH WEST LONDON ICB | C42: 36 | D42: 0.8611111111 | E42: 0.1111111111 | F42: 22 | G42: 9 | H42: 1 | I42: 2 | J42: 2 | K42: 0
A43: QSL | B43: SOMERSET ICB | C43: 5 | D43: 1 | E43: 0 | F43: * | G43: * | H43: * | I43: * | J43: * | K43: *
A44: QT1 | B44: NOTTINGHAM AND NOTTINGHAMSHIRE ICB | C44: 29 | D44: 1 | E44: 0 | F44: 27 | G44: 2 | H44: 0 | I44: 0 | J44: 0 | K44: 0
A45: QT6 | B45: CORNWALL AND THE ISLES OF SCILLY ICB | C45: 0 | D45: NA | E45: NA | F45: 0 | G45: 0 | H45: 0 | I45: 0 | J45: 0 | K45: 0
A46: QU9 | B46: BUCKINGHAMSHIRE, OXFORDSHIRE AND BERKSHIRE WEST ICB | C46: 9 | D46: 0.6666666667 | E46: 0.2222222222 | F46: 5 | G46: 1 | H46: 1 | I46: 1 | J46: 1 | K46: 0
A47: QUA | B47: BLACK COUNTRY ICB | C47: 92 | D47: 0.8260869565 | E47: 0.1086956522 | F47: 57 | G47: 19 | H47: 5 | I47: 4 | J47: 6 | K47: 1
A48: QUE | B48: CAMBRIDGESHIRE AND PETERBOROUGH ICB | C48: 11 | D48: 1 | E48: 0 | F48: 11 | G48: 0 | H48: 0 | I48: 0 | J48: 0 | K48: 0
A49: QUY | B49: BRISTOL, NORTH SOMERSET AND SOUTH GLOUCESTERSHIRE ICB | C49: 55 | D49: 0.8909090909 | E49: 0.09090909091 | F49: 41 | G49: 8 | H49: 1 | I49: 1 | J49: 4 | K49: 0
A50: QVV | B50: DORSET ICB | C50: 53 | D50: 0.8679245283 | E50: 0.09433962264 | F50: 35 | G50: 11 | H50: 2 | I50: 2 | J50: 3 | K50: 0
A51: QWE | B51: SOUTH WEST LONDON ICB | C51: 20 | D51: 1 | E51: 0 | F51: 18 | G51: 2 | H51: 0 | I51: 0 | J51: 0 | K51: 0
A52: QWO | B52: WEST YORKSHIRE ICB | C52: 75 | D52: 0.88 | E52: 0.05333333333 | F52: 56 | G52: 10 | H52: 5 | I52: 1 | J52: 3 | K52: 0
A53: QWU | B53: COVENTRY AND WARWICKSHIRE ICB | C53: 54 | D53: 0.8518518519 | E53: 0.1296296296 | F53: 41 | G53: 5 | H53: 0 | I53: 4 | J53: 3 | K53: 1
A54: QXU | B54: SURREY HEARTLANDS ICB | C54: 20 | D54: 1 | E54: 0 | F54: 17 | G54: 3 | H54: 0 | I54: 0 | J54: 0 | K54: 0
A55: QYG | B55: CHESHIRE AND MERSEYSIDE ICB | C55: 41 | D55: 0.8780487805 | E55: 0.07317073171 | F55: 26 | G55: 10 | H55: 2 | I55: 0 | J55: 3 | K55: 0

Sheet Trusts Q4
B6: Sort data by:
A9: ICB Code | B9: Trust Code | C9: Trust Name | D9: Total Responses | E9: Percentage Positive | F9: Percentage Negative | G9: Breakdown of Responses | M9: Mode of Collection
G10: Very Good | H10: Good | I10: Neither Good nor Poor | J10: Poor | K10: Very Poor | L10: Don't Know | M10: Mode SMS | N10: Mode Electronic Discharge | O10: Mode Electronic Home | P10: Mode Paper Discharge | Q10: Mode Paper Home | R10: Mode Telephone | S10: Mode Online | T10: Mode Other
C11: England (including Independent Sector providers) | D11: 1304 | E11: 0.8957055215 | F11: 0.05751533742 | G11: 945 | H11: 223 | I11: 47 | J11: 30 | K11: 45 | L11: 14 | M11: 626 | N11: 53 | O11: 9 | P11: 308 | Q11: 14 | R11: 1 | S11: 260 | T11: 33
C12: England (excluding Independent Sector providers) | D12: 1304 | E12: 0.8957055215 | F12: 0.05751533742 | G12: 945 | H12: 223 | I12: 47 | J12: 30 | K12: 45 | L12: 14 | M12: 626 | N12: 53 | O12: 9 | P12: 308 | Q12: 14 | R12: 1 | S12: 260 | T12: 33
C13: Selection (excluding suppressed data) | D13: =SUBTOTAL(9,D14:D299) -> 1304 | E13: =IFERROR((G13+H13)/SUM(G13:L13), "-") -> 0.8935960591 | F13: =IFERROR((J13+K13)/SUM(G13:L13), "-") -> 0.05812807882 | G13: =SUBTOTAL(9,G14:G299) -> 728 | H13: 179 | I13: 36 | J13: 24 | K13: 35 | L13: 13 | M13: 491 | N13: 28 | O13: 9 | P13: 248 | Q13: 9 | R13: 0 | S13: 197 | T13: 33
A14: QE1 | B14: RTX | C14: UNIVERSITY HOSPITALS OF MORECAMBE BAY NHS FOUNDATION TRUST | D14: 0 | E14: NA | F14: NA | G14: 0 | H14: 0 | I14: 0 | J14: 0 | K14: 0 | L14: 0 | M14: 0 | N14: 0 | O14: 0 | P14: 0 | Q14: 0 | R14: 0 | S14: 0 | T14: 0
A15: QE1 | B15: RXL | C15: BLACKPOOL TEACHING HOSPITALS NHS FOUNDATION TRUST | D15: 12 | E15: 0.5833333333 | F15: 0 | G15: 4 | H15: 3 | I15: 3 | J15: 0 | K15: 0 | L15: 2 | M15: 12 | N15: 0 | O15: 0 | P15: 0 | Q15: 0 | R15: 0 | S15: 0 | T15: 0
A16: QE1 | B16: RXN | C16: LANCASHIRE TEACHING HOSPITALS NHS FOUNDATION TRUST | D16: 25 | E16: 1 | F16: 0 | G16: 21 | H16: 4 | I16: 0 | J16: 0 | K16: 0 | L16: 0 | M16: 25 | N16: 0 | O16: 0 | P16: 0 | Q16: 0 | R16: 0 | S16: 0 | T16: 0
A17: QE1 | B17: RXR | C17: EAST LANCASHIRE HOSPITALS NHS TRUST | D17: 44 | E17: 0.9318181818 | F17: 0 | G17: 31 | H17: 10 | I17: 2 | J17: 0 | K17: 0 | L17: 1 | M17: 0 | N17: 0 | O17: 0 | P17: 44 | Q17: 0 | R17: 0 | S17: 0 | T17: 0
A18: QF7 | B18: RFF | C18: BARNSLEY HOSPITAL NHS FOUNDATION TRUST | D18: 0 | E18: NA | F18: NA | G18: 0 | H18: 0 | I18: 0 | J18: 0 | K18: 0 | L18: 0 | M18: 0 | N18: 0 | O18: 0 | P18: 0 | Q18: 0 | R18: 0 | S18: 0 | T18: 0
A19: QF7 | B19: RP5 | C19: DONCASTER AND BASSETLAW TEACHING HOSPITALS NHS FOUNDATION TRUST | D19: 0 | E19: NA | F19: NA | G19: 0 | H19: 0 | I19: 0 | J19: 0 | K19: 0 | L19: 0 | M19: 0 | N19: 0 | O19: 0 | P19: 0 | Q19: 0 | R19: 0 | S19: 0 | T19: 0
A20: QF7 | B20: RFR | C20: THE ROTHERHAM NHS FOUNDATION TRUST | D20: 11 | E20: 1 | F20: 0 | G20: 9 | H20: 2 | I20: 0 | J20: 0 | K20: 0 | L20: 0 | M20: 0 | N20: 0 | O20: 0 | P20: 11 | Q20: 0 | R20: 0 | S20: 0 | T20: 0
A21: QF7 | B21: RHQ | C21: SHEFFIELD TEACHING HOSPITALS NHS FOUNDATION TRUST | D21: 69 | E21: 0.7971014493 | F21: 0.115942029 | G21: 44 | H21: 11 | I21: 6 | J21: 5 | K21: 3 | L21: 0 | M21: 62 | N21: 0 | O21: 0 | P21: 7 | Q21: 0 | R21: 0 | S21: 0 | T21: 0
A22: QGH | B22: RLQ | C22: WYE VALLEY NHS TRUST | D22: 0 | E22: NA | F22: NA | G22: 0 | H22: 0 | I22: 0 | J22: 0 | K22: 0 | L22: 0 | M22: 0 | N22: 0 | O22: 0 | P22: 0 | Q22: 0 | R22: 0 | S22: 0 | T22: 0
A23: QGH | B23: RWP | C23: WORCESTERSHIRE ACUTE HOSPITALS NHS TRUST | D23: 0 | E23: NA | F23: NA | G23: 0 | H23: 0 | I23: 0 | J23: 0 | K23: 0 | L23: 0 | M23: 0 | N23: 0 | O23: 0 | P23: 0 | Q23: 0 | R23: 0 | S23: 0 | T23: 0
A24: QH8 | B24: RAJ | C24: MID AND SOUTH ESSEX NHS FOUNDATION TRUST | D24: 0 | E24: NA | F24: NA | G24: 0 | H24: 0 | I24: 0 | J24: 0 | K24: 0 | L24: 0 | M24: 0 | N24: 0 | O24: 0 | P24: 0 | Q24: 0 | R24: 0 | S24: 0 | T24: 0
A25: QHG | B25: RC9 | C25: BEDFORDSHIRE HOSPITALS NHS FOUNDATION TRUST | D25: 1 | E25: * | F25: * | G25: * | H25: * | I25: * | J25: * | K25: * | L25: * | M25: * | N25: * | O25: * | P25: * | Q25: * | R25: * | S25: * | T25: *
A26: QHG | B26: RD8 | C26: MILTON KEYNES UNIVERSITY HOSPITAL NHS FOUNDATION TRUST | D26: 21 | E26: 0.9523809524 | F26: 0 | G26: * | H26: * | I26: * | J26: * | K26: * | L26: * | M26: * | N26: * | O26: * | P26: * | Q26: * | R26: * | S26: * | T26: *
A27: QHL | B27: RXK | C27: SANDWELL AND WEST BIRMINGHAM HOSPITALS NHS TRUST | D27: 0 | E27: NA | F27: NA | G27: 0 | H27: 0 | I27: 0 | J27: 0 | K27: 0 | L27: 0 | M27: 0 | N27: 0 | O27: 0 | P27: 0 | Q27: 0 | R27: 0 | S27: 0 | T27: 0
A28: QHL | B28: RQ3 | C28: BIRMINGHAM WOMEN'S AND CHILDREN'S NHS FOUNDATION TRUST | D28: 6 | E28: 1 | F28: 0 | G28: 5 | H28: 1 | I28: 0 | J28: 0 | K28: 0 | L28: 0 | M28: 0 | N28: 0 | O28: 0 | P28: 0 | Q28: 0 | R28: 0 | S28: 6 | T28: 0
A29: QHL | B29: RRK | C29: UNIVERSITY HOSPITALS BIRMINGHAM NHS FOUNDATION TRUST | D29: 68 | E29: 0.8382352941 | F29: 0.1029411765 | G29: 50 | H29: 7 | I29: 2 | J29: 2 | K29: 5 | L29: 2 | M29: 49 | N29: 0 | O29: 0 | P29: 19 | Q29: 0 | R29: 0 | S29: 0 | T29: 0
A30: QHM | B30: R0B | C30: SOUTH TYNESIDE AND SUNDERLAND NHS FOUNDATION TRUST | D30: 0 | E30: NA | F30: NA | G30: 0 | H30: 0 | I30: 0 | J30: 0 | K30: 0 | L30: 0 | M30: 0 | N30: 0 | O30: 0 | P30: 0 | Q30: 0 | R30: 0 | S30: 0 | T30: 0
A31: QHM | B31: RNN | C31: NORTH CUMBRIA INTEGRATED CARE NHS FOUNDATION TRUST | D31: 0 | E31: NA | F31: NA | G31: 0 | H31: 0 | I31: 0 | J31: 0 | K31: 0 | L31: 0 | M31: 0 | N31: 0 | O31: 0 | P31: 0 | Q31: 0 | R31: 0 | S31: 0 | T31: 0
A32: QHM | B32: RR7 | C32: GATESHEAD HEALTH NHS FOUNDATION TRUST | D32: 0 | E32: NA | F32: NA | G32: 0 | H32: 0 | I32: 0 | J32: 0 | K32: 0 | L32: 0 | M32: 0 | N32: 0 | O32: 0 | P32: 0 | Q32: 0 | R32: 0 | S32: 0 | T32: 0
A33: QHM | B33: RTD | C33: THE NEWCASTLE UPON TYNE HOSPITALS NHS FOUNDATION TRUST | D33: 0 | E33: NA | F33: NA | G33: 0 | H33: 0 | I33: 0 | J33: 0 | K33: 0 | L33: 0 | M33: 0 | N33: 0 | O33: 0 | P33: 0 | Q33: 0 | R33: 0 | S33: 0 | T33: 0
A34: QHM | B34: RVW | C34: NORTH TEES AND HARTLEPOOL NHS FOUNDATION TRUST | D34: 0 | E34: NA | F34: NA | G34: 0 | H34: 0 | I34: 0 | J34: 0 | K34: 0 | L34: 0 | M34: 0 | N34: 0 | O34: 0 | P34: 0 | Q34: 0 | R34: 0 | S34: 0 | T34: 0
A35: QHM | B35: RXP | C35: COUNTY DURHAM AND DARLINGTON NHS FOUNDATION TRUST | D35: 0 | E35: NA | F35: NA | G35: 0 | H35: 0 | I35: 0 | J35: 0 | K35: 0 | L35: 0 | M35: 0 | N35: 0 | O35: 0 | P35: 0 | Q35: 0 | R35: 0 | S35: 0 | T35: 0
A36: QHM | B36: RTR | C36: SOUTH TEES HOSPITALS NHS FOUNDATION TRUST | D36: 1 | E36: * | F36: * | G36: * | H36: * | I36: * | J36: * | K36: * | L36: * | M36: * | N36: * | O36: * | P36: * | Q36: * | R36: * | S36: * | T36: *
A37: QHM | B37: RTF | C37: NORTHUMBRIA HEALTHCARE NHS FOUNDATION TRUST | D37: 52 | E37: 0.8846153846 | F37: 0.05769230769 | G37: * | H37: * | I37: * | J37: * | K37: * | L37: * | M37: * | N37: * | O37: * | P37: * | Q37: * | R37: * | S37: * | T37: *
A38: QJ2 | B38: RTG | C38: UNIVERSITY HOSPITALS OF DERBY AND BURTON NHS FOUNDATION TRUST | D38: 0 | E38: NA | F38: NA | G38: 0 | H38: 0 | I38: 0 | J38: 0 | K38: 0 | L38: 0 | M38: 0 | N38: 0 | O38: 0 | P38: 0 | Q38: 0 | R38: 0 | S38: 0 | T38: 0
A39: QJ2 | B39: RFS | C39: CHESTERFIELD ROYAL HOSPITAL NHS FOUNDATION TRUST | D39: 9 | E39: 1 | F39: 0 | G39: 9 | H39: 0 | I39: 0 | J39: 0 | K39: 0 | L39: 0 | M39: 0 | N39: 0 | O39: 9 | P39: 0 | Q39: 0 | R39: 0 | S39: 0 | T39: 0
A40: QJG | B40: RDE | C40: EAST SUFFOLK AND NORTH ESSEX NHS FOUNDATION TRUST | D40: 1 | E40: * | F40: * | G40: * | H40: * | I40: * | J40: * | K40: * | L40: * | M40: * | N40: * | O40: * | P40: * | Q40: * | R40: * | S40: * | T40: *
A41: QJG | B41: RGR | C41: WEST SUFFOLK NHS FOUNDATION TRUST | D41: 15 | E41: 1 | F41: 0 | G41: * | H41: * | I41: * | J41: * | K41: * | L41: * | M41: * | N41: * | O41: * | P41: * | Q41: * | R41: * | S41: * | T41: *
A42: QJK | B42: RA9 | C42: TORBAY AND SOUTH DEVON NHS FOUNDATION TRUST | D42: 0 | E42: NA | F42: NA | G42: 0 | H42: 0 | I42: 0 | J42: 0 | K42: 0 | L42: 0 | M42: 0 | N42: 0 | O42: 0 | P42: 0 | Q42: 0 | R42: 0 | S42: 0 | T42: 0
A43: QJK | B43: RH8 | C43: ROYAL DEVON UNIVERSITY HEALTHCARE NHS FOUNDATION TRUST | D43: 0 | E43: NA | F43: NA | G43: 0 | H43: 0 | I43: 0 | J43: 0 | K43: 0 | L43: 0 | M43: 0 | N43: 0 | O43: 0 | P43: 0 | Q43: 0 | R43: 0 | S43: 0 | T43: 0
A44: QJK | B44: RK9 | C44: UNIVERSITY HOSPITALS PLYMOUTH NHS TRUST | D44: 2 | E44: * | F44: * | G44: * | H44: * | I44: * | J44: * | K44: * | L44: * | M44: * | N44: * | O44: * | P44: * | Q44: * | R44: * | S44: * | T44: *
A45: QJM | B45: RWD | C45: UNITED LINCOLNSHIRE HOSPITALS NHS TRUST | D45: 0 | E45: NA | F45: NA | G45: 0 | H45: 0 | I45: 0 | J45: 0 | K45: 0 | L45: 0 | M45: 0 | N45: 0 | O45: 0 | P45: 0 | Q45: 0 | R45: 0 | S45: 0 | T45: 0
A46: QK1 | B46: RWE | C46: UNIVERSITY HOSPITALS OF LEICESTER NHS TRUST | D46: 61 | E46: 0.9836065574 | F46: 0 | G46: 56 | H46: 4 | I46: 1 | J46: 0 | K46: 0 | L46: 0 | M46: 0 | N46: 27 | O46: 0 | P46: 34 | Q46: 0 | R46: 0 | S46: 0 | T46: 0
A47: QKK | B47: RJ2 | C47: LEWISHAM AND GREENWICH NHS TRUST | D47: 1 | E47: * | F47: * | G47: * | H47: * | I47: * | J47: * | K47: * | L47: * | M47: * | N47: * | O47: * | P47: * | Q47: * | R47: * | S47: * | T47: *
A48: QKK | B48: RJ1 | C48: GUY'S AND ST THOMAS' NHS FOUNDATION TRUST | D48: 10 | E48: 1 | F48: 0 | G48: * | H48: * | I48: * | J48: * | K48: * | L48: * | M48: * | N48: * | O48: * | P48: * | Q48: * | R48: * | S48: * | T48: *
A49: QKK | B49: RJZ | C49: KING'S COLLEGE HOSPITAL NHS FOUNDATION TRUST | D49: 30 | E49: 0.8 | F49: 0.1666666667 | G49: 21 | H49: 3 | I49: 1 | J49: 2 | K49: 3 | L49: 0 | M49: 27 | N49: 0 | O49: 0 | P49: 0 | Q49: 0 | R49: 0 | S49: 3 | T49: 0
A50: QKS | B50: RPA | C50: MEDWAY NHS FOUNDATION TRUST | D50: 0 | E50: NA | F50: NA | G50: 0 | H50: 0 | I50: 0 | J50: 0 | K50: 0 | L50: 0 | M50: 0 | N50: 0 | O50: 0 | P50: 0 | Q50: 0 | R50: 0 | S50: 0 | T50: 0
A51: QKS | B51: RVV | C51: EAST KENT HOSPITALS UNIVERSITY NHS FOUNDATION TRUST | D51: 0 | E51: NA | F51: NA | G51: 0 | H51: 0 | I51: 0 | J51: 0 | K51: 0 | L51: 0 | M51: 0 | N51: 0 | O51: 0 | P51: 0 | Q51: 0 | R51: 0 | S51: 0 | T51: 0
A52: QKS | B52: RWF | C52: MAIDSTONE AND TUNBRIDGE WELLS NHS TRUST | D52: 2 | E52: * | F52: * | G52: * | H52: * | I52: * | J52: * | K52: * | L52: * | M52: * | N52: * | O52: * | P52: * | Q52: * | R52: * | S52: * | T52: *
A53: QKS | B53: RN7 | C53: DARTFORD AND GRAVESHAM NHS TRUST | D53: 5 | E53: 0.2 | F53: 0.4 | G53: * | H53: * | I53: * | J53: * | K53: * | L53: * | M53: * | N53: * | O53: * | P53: * | Q53: * | R53: * | S53: * | T53: *
A54: QM7 | B54: RQW | C54: THE PRINCESS ALEXANDRA HOSPITAL NHS TRUST | D54: 0 | E54: NA | F54: NA | G54: 0 | H54: 0 | I54: 0 | J54: 0 | K54: 0 | L54: 0 | M54: 0 | N54: 0 | O54: 0 | P54: 0 | Q54: 0 | R54: 0 | S54: 0 | T54: 0
A55: QM7 | B55: RWH | C55: EAST AND NORTH HERTFORDSHIRE NHS TRUST | D55: 0 | E55: NA | F55: NA | G55: 0 | H55: 0 | I55: 0 | J55: 0 | K55: 0 | L55: 0 | M55: 0 | N55: 0 | O55: 0 | P55: 0 | Q55: 0 | R55: 0 | S55: 0 | T55: 0
A56: QM7 | B56: RWG | C56: WEST HERTFORDSHIRE TEACHING HOSPITALS NHS TRUST | D56: 1 | E56: * | F56: * | G56: * | H56: * | I56: * | J56: * | K56: * | L56: * | M56: * | N56: * | O56: * | P56: * | Q56: * | R56: * | S56: * | T56: *
A57: QMF | B57: RF4 | C57: BARKING, HAVERING AND REDBRIDGE UNIVERSITY HOSPITALS NHS TRUST | D57: 0 | E57: NA | F57: NA | G57: 0 | H57: 0 | I57: 0 | J57: 0 | K57: 0 | L57: 0 | M57: 0 | N57: 0 | O57: 0 | P57: 0 | Q57: 0 | R57: 0 | S57: 0 | T57: 0
A58: QMF | B58: RQX | C58: HOMERTON HEALTHCARE NHS FOUNDATION TRUST | D58: 14 | E58: 1 | F58: 0 | G58: 11 | H58: 3 | I58: 0 | J58: 0 | K58: 0 | L58: 0 | M58: 14 | N58: 0 | O58: 0 | P58: 0 | Q58: 0 | R58: 0 | S58: 0 | T58: 0
A59: QMF | B59: R1H | C59: BARTS HEALTH NHS TRUST | D59: 40 | E59: 0.875 | F59: 0.075 | G59: 26 | H59: 9 | I59: 1 | J59: 1 | K59: 2 | L59: 1 | M59: 9 | N59: 0 | O59: 0 | P59: 9 | Q59: 0 | R59: 0 | S59: 22 | T59: 0
A60: QMJ | B60: RAP | C60: NORTH MIDDLESEX UNIVERSITY HOSPITAL NHS TRUST | D60: 0 | E60: NA | F60: NA | G60: 0 | H60: 0 | I60: 0 | J60: 0 | K60: 0 | L60: 0 | M60: 0 | N60: 0 | O60: 0 | P60: 0 | Q60: 0 | R60: 0 | S60: 0 | T60: 0
A61: QMJ | B61: RRV | C61: UNIVERSITY COLLEGE LONDON HOSPITALS NHS FOUNDATION TRUST | D61: 0 | E61: NA | F61: NA | G61: 0 | H61: 0 | I61: 0 | J61: 0 | K61: 0 | L61: 0 | M61: 0 | N61: 0 | O61: 0 | P61: 0 | Q61: 0 | R61: 0 | S61: 0 | T61: 0
A62: QMJ | B62: RAL | C62: ROYAL FREE LONDON NHS FOUNDATION TRUST | D62: 7 | E62: 0.5714285714 | F62: 0.2857142857 | G62: 2 | H62: 2 | I62: 1 | J62: 1 | K62: 1 | L62: 0 | M62: 0 | N62: 0 | O62: 0 | P62: 0 | Q62: 0 | R62: 0 | S62: 7 | T62: 0
A63: QMM | B63: RGP | C63: JAMES PAGET UNIVERSITY HOSPITALS NHS FOUNDATION TRUST | D63: 0 | E63: NA | F63: NA | G63: 0 | H63: 0 | I63: 0 | J63: 0 | K63: 0 | L63: 0 | M63: 0 | N63: 0 | O63: 0 | P63: 0 | Q63: 0 | R63: 0 | S63: 0 | T63: 0
A64: QMM | B64: RM1 | C64: NORFOLK AND NORWICH UNIVERSITY HOSPITALS NHS FOUNDATION TRUST | D64: 0 | E64: NA | F64: NA | G64: 0 | H64: 0 | I64: 0 | J64: 0 | K64: 0 | L64: 0 | M64: 0 | N64: 0 | O64: 0 | P64: 0 | Q64: 0 | R64: 0 | S64: 0 | T64: 0
A65: QMM | B65: RCX | C65: THE QUEEN ELIZABETH HOSPITAL, KING'S LYNN, NHS FOUNDATION TRUST | D65: 10 | E65: 1 | F65: 0 | G65: 10 | H65: 0 | I65: 0 | J65: 0 | K65: 0 | L65: 0 | M65: 0 | N65: 0 | O65: 0 | P65: 10 | Q65: 0 | R65: 0 | S65: 0 | T65: 0
A66: QNC | B66: RJE | C66: UNIVERSITY HOSPITALS OF NORTH MIDLANDS NHS TRUST | D66: 1 | E66: * | F66: * | G66: * | H66: * | I66: * | J66: * | K66: * | L66: * | M66: * | N66: * | O66: * | P66: * | Q66: * | R66: * | S66: * | T66: *
A67: QNQ | B67: RDU | C67: FRIMLEY HEALTH NHS FOUNDATION TRUST | D67: 1 | E67: * | F67: * | G67: * | H67: * | I67: * | J67: * | K67: * | L67: * | M67: * | N67: * | O67: * | P67: * | Q67: * | R67: * | S67: * | T67: *
A68: QNX | B68: RXC | C68: EAST SUSSEX HEALTHCARE NHS TRUST | D68: 0 | E68: NA | F68: NA | G68: 0 | H68: 0 | I68: 0 | J68: 0 | K68: 0 | L68: 0 | M68: 0 | N68: 0 | O68: 0 | P68: 0 | Q68: 0 | R68: 0 | S68: 0 | T68: 0
A69: QNX | B69: RYR | C69: UNIVERSITY HOSPITALS SUSSEX NHS FOUNDATION TRUST | D69: 17 | E69: 0.9411764706 | F69: 0.05882352941 | G69: 15 | H69: 1 | I69: 0 | J69: 1 | K69: 0 | L69: 0 | M69: 17 | N69: 0 | O69: 0 | P69: 0 | Q69: 0 | R69: 0 | S69: 0 | T69: 0
A70: QOC | B70: RXW | C70: THE SHREWSBURY AND TELFORD HOSPITAL NHS TRUST | D70: 4 | E70: * | F70: * | G70: * | H70: * | I70: * | J70: * | K70: * | L70: * | M70: * | N70: * | O70: * | P70: * | Q70: * | R70: * | S70: * | T70: *
A71: QOP | B71: R0A | C71: MANCHESTER UNIVERSITY NHS FOUNDATION TRUST | D71: 0 | E71: NA | F71: NA | G71: 0 | H71: 0 | I71: 0 | J71: 0 | K71: 0 | L71: 0 | M71: 0 | N71: 0 | O71: 0 | P71: 0 | Q71: 0 | R71: 0 | S71: 0 | T71: 0
A72: QOP | B72: RM3 | C72: NORTHERN CARE ALLIANCE NHS FOUNDATION TRUST | D72: 0 | E72: NA | F72: NA | G72: 0 | H72: 0 | I72: 0 | J72: 0 | K72: 0 | L72: 0 | M72: 0 | N72: 0 | O72: 0 | P72: 0 | Q72: 0 | R72: 0 | S72: 0 | T72: 0
A73: QOP | B73: RRF | C73: WRIGHTINGTON, WIGAN AND LEIGH NHS FOUNDATION TRUST | D73: 0 | E73: NA | F73: NA | G73: 0 | H73: 0 | I73: 0 | J73: 0 | K73: 0 | L73: 0 | M73: 0 | N73: 0 | O73: 0 | P73: 0 | Q73: 0 | R73: 0 | S73: 0 | T73: 0
A74: QOP | B74: RWJ | C74: STOCKPORT NHS FOUNDATION TRUST | D74: 3 | E74: * | F74: * | G74: * | H74: * | I74: * | J74: * | K74: * | L74: * | M74: * | N74: * | O74: * | P74: * | Q74: * | R74: * | S74: * | T74: *
A75: QOP | B75: RMC | C75: BOLTON NHS FOUNDATION TRUST | D75: 62 | E75: 0.9193548387 | F75: 0.06451612903 | G75: * | H75: * | I75: * | J75: * | K75: * | L75: * | M75: * | N75: * | O75: * | P75: * | Q75: * | R75: * | S75: * | T75: *
A76: QOQ | B76: RCB | C76: YORK AND SCARBOROUGH TEACHING HOSPITALS NHS FOUNDATION TRUST | D76: 0 | E76: NA | F76: NA | G76: 0 | H76: 0 | I76: 0 | J76: 0 | K76: 0 | L76: 0 | M76: 0 | N76: 0 | O76: 0 | P76: 0 | Q76: 0 | R76: 0 | S76: 0 | T76: 0
A77: QOQ | B77: RCD | C77: HARROGATE AND DISTRICT NHS FOUNDATION TRUST | D77: 0 | E77: NA | F77: NA | G77: 0 | H77: 0 | I77: 0 | J77: 0 | K77: 0 | L77: 0 | M77: 0 | N77: 0 | O77: 0 | P77: 0 | Q77: 0 | R77: 0 | S77: 0 | T77: 0
A78: QOQ | B78: RWA | C78: HULL UNIVERSITY TEACHING HOSPITALS NHS TRUST | D78: 0 | E78: NA | F78: NA | G78: 0 | H78: 0 | I78: 0 | J78: 0 | K78: 0 | L78: 0 | M78: 0 | N78: 0 | O78: 0 | P78: 0 | Q78: 0 | R78: 0 | S78: 0 | T78: 0
A79: QOQ | B79: RJL | C79: NORTHERN LINCOLNSHIRE AND GOOLE NHS FOUNDATION TRUST | D79: 1 | E79: * | F79: * | G79: * | H79: * | I79: * | J79: * | K79: * | L79: * | M79: * | N79: * | O79: * | P79: * | Q79: * | R79: * | S79: * | T79: *
A80: QOX | B80: RNZ | C80: SALISBURY NHS FOUNDATION TRUST | D80: 2 | E80: * | F80: * | G80: * | H80: * | I80: * | J80: * | K80: * | L80: * | M80: * | N80: * | O80: * | P80: * | Q80: * | R80: * | S80: * | T80: *
A81: QOX | B81: RD1 | C81: ROYAL UNITED HOSPITALS BATH NHS FOUNDATION TRUST | D81: 9 | E81: 1 | F81: 0 | G81: * | H81: * | I81: * | J81: * | K81: * | L81: * | M81: * | N81: * | O81: * | P81: * | Q81: * | R81: * | S81: * | T81: *
A82: QOX | B82: RN3 | C82: GREAT WESTERN HOSPITALS NHS FOUNDATION TRUST | D82: 38 | E82: 0.9473684211 | F82: 0 | G82: 32 | H82: 4 | I82: 1 | J82: 0 | K82: 0 | L82: 1 | M82: 38 | N82: 0 | O82: 0 | P82: 0 | Q82: 0 | R82: 0 | S82: 0 | T82: 0
A83: QPM | B83: RNS | C83: NORTHAMPTON GENERAL HOSPITAL NHS TRUST | D83: 4 | E83: * | F83: * | G83: * | H83: * | I83: * | J83: * | K83: * | L83: * | M83: * | N83: * | O83: * | P83: * | Q83: * | R83: * | S83: * | T83: *
A84: QPM | B84: RNQ | C84: KETTERING GENERAL HOSPITAL NHS FOUNDATION TRUST | D84: 15 | E84: 1 | F84: 0 | G84: * | H84: * | I84: * | J84: * | K84: * | L84: * | M84: * | N84: * | O84: * | P84: * | Q84: * | R84: * | S84: * | T84: *
A85: QR1 | B85: RTE | C85: GLOUCESTERSHIRE HOSPITALS NHS FOUNDATION TRUST | D85: 0 | E85: NA | F85: NA | G85: 0 | H85: 0 | I85: 0 | J85: 0 | K85: 0 | L85: 0 | M85: 0 | N85: 0 | O85: 0 | P85: 0 | Q85: 0 | R85: 0 | S85: 0 | T85: 0
A86: QRL | B86: R1F | C86: ISLE OF WIGHT NHS TRUST | D86: 0 | E86: NA | F86: NA | G86: 0 | H86: 0 | I86: 0 | J86: 0 | K86: 0 | L86: 0 | M86: 0 | N86: 0 | O86: 0 | P86: 0 | Q86: 0 | R86: 0 | S86: 0 | T86: 0
A87: QRL | B87: RN5 | C87: HAMPSHIRE HOSPITALS NHS FOUNDATION TRUST | D87: 3 | E87: * | F87: * | G87: * | H87: * | I87: * | J87: * | K87: * | L87: * | M87: * | N87: * | O87: * | P87: * | Q87: * | R87: * | S87: * | T87: *
A88: QRL | B88: RHU | C88: PORTSMOUTH HOSPITALS UNIVERSITY NATIONAL HEALTH SERVICE TRUST | D88: 24 | E88: 1 | F88: 0 | G88: * | H88: * | I88: * | J88: * | K88: * | L88: * | M88: * | N88: * | O88: * | P88: * | Q88: * | R88: * | S88: * | T88: *
A89: QRL | B89: RHM | C89: UNIVERSITY HOSPITAL SOUTHAMPTON NHS FOUNDATION TRUST | D89: 102 | E89: 0.9117647059 | F89: 0 | G89: 51 | H89: 42 | I89: 4 | J89: 0 | K89: 0 | L89: 5 | M89: 0 | N89: 0 | O89: 0 | P89: 0 | Q89: 9 | R89: 0 | S89: 93 | T89: 0
A90: QRV | B90: R1K | C90: LONDON NORTH WEST UNIVERSITY HEALTHCARE NHS TRUST | D90: 0 | E90: NA | F90: NA | G90: 0 | H90: 0 | I90: 0 | J90: 0 | K90: 0 | L90: 0 | M90: 0 | N90: 0 | O90: 0 | P90: 0 | Q90: 0 | R90: 0 | S90: 0 | T90: 0
A91: QRV | B91: RQM | C91: CHELSEA AND WESTMINSTER HOSPITAL NHS FOUNDATION TRUST | D91: 1 | E91: * | F91: * | G91: * | H91: * | I91: * | J91: * | K91: * | L91: * | M91: * | N91: * | O91: * | P91: * | Q91: * | R91: * | S91: * | T91: *
A92: QRV | B92: RAS | C92: THE HILLINGDON HOSPITALS NHS FOUNDATION TRUST | D92: 16 | E92: 0.75 | F92: 0.1875 | G92: * | H92: * | I92: * | J92: * | K92: * | L92: * | M92: * | N92: * | O92: * | P92: * | Q92: * | R92: * | S92: * | T92: *
A93: QRV | B93: RYJ | C93: IMPERIAL COLLEGE HEALTHCARE NHS TRUST | D93: 19 | E93: 1 | F93: 0 | G93: 15 | H93: 4 | I93: 0 | J93: 0 | K93: 0 | L93: 0 | M93: 0 | N93: 0 | O93: 0 | P93: 0 | Q93: 0 | R93: 0 | S93: 19 | T93: 0
A94: QSL | B94: RH5 | C94: SOMERSET NHS FOUNDATION TRUST | D94: 0 | E94: NA | F94: NA | G94: 0 | H94: 0 | I94: 0 | J94: 0 | K94: 0 | L94: 0 | M94: 0 | N94: 0 | O94: 0 | P94: 0 | Q94: 0 | R94: 0 | S94: 0 | T94: 0
A95: QSL | B95: RA4 | C95: YEOVIL DISTRICT HOSPITAL NHS FOUNDATION TRUST | D95: 5 | E95: 1 | F95: 0 | G95: * | H95: * | I95: * | J95: * | K95: * | L95: * | M95: * | N95: * | O95: * | P95: * | Q95: * | R95: * | S95: * | T95: *
A96: QT1 | B96: RK5 | C96: SHERWOOD FOREST HOSPITALS NHS FOUNDATION TRUST | D96: 5 | E96: 1 | F96: 0 | G96: 4 | H96: 1 | I96: 0 | J96: 0 | K96: 0 | L96: 0 | M96: 0 | N96: 0 | O96: 0 | P96: 0 | Q96: 0 | R96: 0 | S96: 5 | T96: 0
A97: QT1 | B97: RX1 | C97: NOTTINGHAM UNIVERSITY HOSPITALS NHS TRUST | D97: 24 | E97: 1 | F97: 0 | G97: 23 | H97: 1 | I97: 0 | J97: 0 | K97: 0 | L97: 0 | M97: 0 | N97: 0 | O97: 0 | P97: 24 | Q97: 0 | R97: 0 | S97: 0 | T97: 0
A98: QT6 | B98: REF | C98: ROYAL CORNWALL HOSPITALS NHS TRUST | D98: 0 | E98: NA | F98: NA | G98: 0 | H98: 0 | I98: 0 | J98: 0 | K98: 0 | L98: 0 | M98: 0 | N98: 0 | O98: 0 | P98: 0 | Q98: 0 | R98: 0 | S98: 0 | T98: 0
A99: QU9 | B99: RHW | C99: ROYAL BERKSHIRE NHS FOUNDATION TRUST | D99: 0 | E99: NA | F99: NA | G99: 0 | H99: 0 | I99: 0 | J99: 0 | K99: 0 | L99: 0 | M99: 0 | N99: 0 | O99: 0 | P99: 0 | Q99: 0 | R99: 0 | S99: 0 | T99: 0
A100: QU9 | B100: RTH | C100: OXFORD UNIVERSITY HOSPITALS NHS FOUNDATION TRUST | D100: 0 | E100: NA | F100: NA | G100: 0 | H100: 0 | I100: 0 | J100: 0 | K100: 0 | L100: 0 | M100: 0 | N100: 0 | O100: 0 | P100: 0 | Q100: 0 | R100: 0 | S100: 0 | T100: 0
A101: QU9 | B101: RXQ | C101: BUCKINGHAMSHIRE HEALTHCARE NHS TRUST | D101: 9 | E101: 0.6666666667 | F101: 0.2222222222 | G101: 5 | H101: 1 | I101: 1 | J101: 1 | K101: 1 | L101: 0 | M101: 9 | N101: 0 | O101: 0 | P101: 0 | Q101: 0 | R101: 0 | S101: 0 | T101: 0
A102: QUA | B102: RNA | C102: THE DUDLEY GROUP NHS FOUNDATION TRUST | D102: 2 | E102: * | F102: * | G102: * | H102: * | I102: * | J102: * | K102: * | L102: * | M102: * | N102: * | O102: * | P102: * | Q102: * | R102: * | S102: * | T102: *
A103: QUA | B103: RBK | C103: WALSALL HEALTHCARE NHS TRUST | D103: 12 | E103: 0.6666666667 | F103: 0.25 | G103: * | H103: * | I103: * | J103: * | K103: * | L103: * | M103: * | N103: * | O103: * | P103: * | Q103: * | R103: * | S103: * | T103: *
A104: QUA | B104: RL4 | C104: THE ROYAL WOLVERHAMPTON NHS TRUST | D104: 78 | E104: 0.858974359 | F104: 0.08974358974 | G104: 49 | H104: 18 | I104: 4 | J104: 3 | K104: 4 | L104: 0 | M104: 69 | N104: 0 | O104: 0 | P104: 0 | Q104: 0 | R104: 0 | S104: 9 | T104: 0
A105: QUE | B105: RGT | C105: CAMBRIDGE UNIVERSITY HOSPITALS NHS FOUNDATION TRUST | D105: 0 | E105: NA | F105: NA | G105: 0 | H105: 0 | I105: 0 | J105: 0 | K105: 0 | L105: 0 | M105: 0 | N105: 0 | O105: 0 | P105: 0 | Q105: 0 | R105: 0 | S105: 0 | T105: 0
A106: QUE | B106: RGN | C106: NORTH WEST ANGLIA NHS FOUNDATION TRUST | D106: 11 | E106: 1 | F106: 0 | G106: 11 | H106: 0 | I106: 0 | J106: 0 | K106: 0 | L106: 0 | M106: 0 | N106: 0 | O106: 0 | P106: 11 | Q106: 0 | R106: 0 | S106: 0 | T106: 0
A107: QUY | B107: RA7 | C107: UNIVERSITY HOSPITALS BRISTOL AND WESTON NHS FOUNDATION TRUST | D107: 14 | E107: 1 | F107: 0 | G107: 14 | H107: 0 | I107: 0 | J107: 0 | K107: 0 | L107: 0 | M107: 0 | N107: 0 | O107: 0 | P107: 14 | Q107: 0 | R107: 0 | S107: 0 | T107: 0
A108: QUY | B108: RVJ | C108: NORTH BRISTOL NHS TRUST | D108: 41 | E108: 0.8536585366 | F108: 0.1219512195 | G108: 27 | H108: 8 | I108: 1 | J108: 1 | K108: 4 | L108: 0 | M108: 41 | N108: 0 | O108: 0 | P108: 0 | Q108: 0 | R108: 0 | S108: 0 | T108: 0
A109: QVV | B109: RBD | C109: DORSET COUNTY HOSPITAL NHS FOUNDATION TRUST | D109: 16 | E109: 0.875 | F109: 0.125 | G109: 9 | H109: 5 | I109: 0 | J109: 1 | K109: 1 | L109: 0 | M109: 16 | N109: 0 | O109: 0 | P109: 0 | Q109: 0 | R109: 0 | S109: 0 | T109: 0
A110: QVV | B110: R0D | C110: UNIVERSITY HOSPITALS DORSET NHS FOUNDATION TRUST | D110: 37 | E110: 0.8648648649 | F110: 0.08108108108 | G110: 26 | H110: 6 | I110: 2 | J110: 1 | K110: 2 | L110: 0 | M110: 37 | N110: 0 | O110: 0 | P110: 0 | Q110: 0 | R110: 0 | S110: 0 | T110: 0
A111: QWE | B111: RJ6 | C111: CROYDON HEALTH SERVICES NHS TRUST | D111: 0 | E111: NA | F111: NA | G111: 0 | H111: 0 | I111: 0 | J111: 0 | K111: 0 | L111: 0 | M111: 0 | N111: 0 | O111: 0 | P111: 0 | Q111: 0 | R111: 0 | S111: 0 | T111: 0
A112: QWE | B112: RJ7 | C112: ST GEORGE'S UNIVERSITY HOSPITALS NHS FOUNDATION TRUST | D112: 0 | E112: NA | F112: NA | G112: 0 | H112: 0 | I112: 0 | J112: 0 | K112: 0 | L112: 0 | M112: 0 | N112: 0 | O112: 0 | P112: 0 | Q112: 0 | R112: 0 | S112: 0 | T112: 0
A113: QWE | B113: RVR | C113: EPSOM AND ST HELIER UNIVERSITY HOSPITALS NHS TRUST | D113: 9 | E113: 1 | F113: 0 | G113: 8 | H113: 1 | I113: 0 | J113: 0 | K113: 0 | L113: 0 | M113: 0 | N113: 0 | O113: 0 | P113: 8 | Q113: 0 | R113: 0 | S113: 1 | T113: 0
A114: QWE | B114: RAX | C114: KINGSTON HOSPITAL NHS FOUNDATION TRUST | D114: 11 | E114: 1 | F114: 0 | G114: 10 | H114: 1 | I114: 0 | J114: 0 | K114: 0 | L114: 0 | M114: 0 | N114: 0 | O114: 0 | P114: 0 | Q114: 0 | R114: 0 | S114: 11 | T114: 0
A115: QWO | B115: RAE | C115: BRADFORD TEACHING HOSPITALS NHS FOUNDATION TRUST | D115: 0 | E115: NA | F115: NA | G115: 0 | H115: 0 | I115: 0 | J115: 0 | K115: 0 | L115: 0 | M115: 0 | N115: 0 | O115: 0 | P115: 0 | Q115: 0 | R115: 0 | S115: 0 | T115: 0
A116: QWO | B116: RCF | C116: AIREDALE NHS FOUNDATION TRUST | D116: 0 | E116: NA | F116: NA | G116: 0 | H116: 0 | I116: 0 | J116: 0 | K116: 0 | L116: 0 | M116: 0 | N116: 0 | O116: 0 | P116: 0 | Q116: 0 | R116: 0 | S116: 0 | T116: 0
A117: QWO | B117: RR8 | C117: LEEDS TEACHING HOSPITALS NHS TRUST | D117: 0 | E117: NA | F117: NA | G117: 0 | H117: 0 | I117: 0 | J117: 0 | K117: 0 | L117: 0 | M117: 0 | N117: 0 | O117: 0 | P117: 0 | Q117: 0 | R117: 0 | S117: 0 | T117: 0
A118: QWO | B118: RWY | C118: CALDERDALE AND HUDDERSFIELD NHS FOUNDATION TRUST | D118: 0 | E118: NA | F118: NA | G118: 0 | H118: 0 | I118: 0 | J118: 0 | K118: 0 | L118: 0 | M118: 0 | N118: 0 | O118: 0 | P118: 0 | Q118: 0 | R118: 0 | S118: 0 | T118: 0
A119: QWO | B119: RXF | C119: MID YORKSHIRE HOSPITALS NHS TRUST | D119: 75 | E119: 0.88 | F119: 0.05333333333 | G119: 56 | H119: 10 | I119: 5 | J119: 1 | K119: 3 | L119: 0 | M119: 13 | N119: 0 | O119: 0 | P119: 55 | Q119: 0 | R119: 0 | S119: 7 | T119: 0
A120: QWU | B120: RJC | C120: SOUTH WARWICKSHIRE UNIVERSITY NHS FOUNDATION TRUST | D120: 0 | E120: NA | F120: NA | G120: 0 | H120: 0 | I120: 0 | J120: 0 | K120: 0 | L120: 0 | M120: 0 | N120: 0 | O120: 0 | P120: 0 | Q120: 0 | R120: 0 | S120: 0 | T120: 0
A121: QWU | B121: RLT | C121: GEORGE ELIOT HOSPITAL NHS TRUST | D121: 0 | E121: NA | F121: NA | G121: 0 | H121: 0 | I121: 0 | J121: 0 | K121: 0 | L121: 0 | M121: 0 | N121: 0 | O121: 0 | P121: 0 | Q121: 0 | R121: 0 | S121: 0 | T121: 0
A122: QWU | B122: RKB | C122: UNIVERSITY HOSPITALS COVENTRY AND WARWICKSHIRE NHS TRUST | D122: 54 | E122: 0.8518518519 | F122: 0.1296296296 | G122: 41 | H122: 5 | I122: 0 | J122: 4 | K122: 3 | L122: 1 | M122: 53 | N122: 1 | O122: 0 | P122: 0 | Q122: 0 | R122: 0 | S122: 0 | T122: 0
A123: QXU | B123: RA2 | C123: ROYAL SURREY COUNTY HOSPITAL NHS FOUNDATION TRUST | D123: 0 | E123: NA | F123: NA | G123: 0 | H123: 0 | I123: 0 | J123: 0 | K123: 0 | L123: 0 | M123: 0 | N123: 0 | O123: 0 | P123: 0 | Q123: 0 | R123: 0 | S123: 0 | T123: 0
A124: QXU | B124: RTK | C124: ASHFORD AND ST PETER'S HOSPITALS NHS FOUNDATION TRUST | D124: 0 | E124: NA | F124: NA | G124: 0 | H124: 0 | I124: 0 | J124: 0 | K124: 0 | L124: 0 | M124: 0 | N124: 0 | O124: 0 | P124: 0 | Q124: 0 | R124: 0 | S124: 0 | T124: 0
A125: QXU | B125: RTP | C125: SURREY AND SUSSEX HEALTHCARE NHS TRUST | D125: 20 | E125: 1 | F125: 0 | G125: 17 | H125: 3 | I125: 0 | J125: 0 | K125: 0 | L125: 0 | M125: 0 | N125: 0 | O125: 0 | P125: 2 | Q125: 0 | R125: 0 | S125: 14 | T125: 4
A126: QYG | B126: RBL | C126: WIRRAL UNIVERSITY TEACHING HOSPITAL NHS FOUNDATION TRUST | D126: 0 | E126: NA | F126: NA | G126: 0 | H126: 0 | I126: 0 | J126: 0 | K126: 0 | L126: 0 | M126: 0 | N126: 0 | O126: 0 | P126: 0 | Q126: 0 | R126: 0 | S126: 0 | T126: 0
A127: QYG | B127: RBT | C127: MID CHESHIRE HOSPITALS NHS FOUNDATION TRUST | D127: 0 | E127: NA | F127: NA | G127: 0 | H127: 0 | I127: 0 | J127: 0 | K127: 0 | L127: 0 | M127: 0 | N127: 0 | O127: 0 | P127: 0 | Q127: 0 | R127: 0 | S127: 0 | T127: 0
A128: QYG | B128: RJN | C128: EAST CHESHIRE NHS TRUST | D128: 0 | E128: NA | F128: NA | G128: 0 | H128: 0 | I128: 0 | J128: 0 | K128: 0 | L128: 0 | M128: 0 | N128: 0 | O128: 0 | P128: 0 | Q128: 0 | R128: 0 | S128: 0 | T128: 0
A129: QYG | B129: RWW | C129: WARRINGTON AND HALTON TEACHING HOSPITALS NHS FOUNDATION TRUST | D129: 0 | E129: NA | F129: NA | G129: 0 | H129: 0 | I129: 0 | J129: 0 | K129: 0 | L129: 0 | M129: 0 | N129: 0 | O129: 0 | P129: 0 | Q129: 0 | R129: 0 | S129: 0 | T129: 0
A130: QYG | B130: RVY | C130: SOUTHPORT AND ORMSKIRK HOSPITAL NHS TRUST | D130: 3 | E130: * | F130: * | G130: * | H130: * | I130: * | J130: * | K130: * | L130: * | M130: * | N130: * | O130: * | P130: * | Q130: * | R130: * | S130: * | T130: *
A131: QYG | B131: RBN | C131: ST HELENS AND KNOWSLEY TEACHING HOSPITALS NHS TRUST | D131: 9 | E131: 1 | F131: 0 | G131: * | H131: * | I131: * | J131: * | K131: * | L131: * | M131: * | N131: * | O131: * | P131: * | Q131: * | R131: * | S131: * | T131: *
A132: QYG | B132: REP | C132: LIVERPOOL WOMEN'S NHS FOUNDATION TRUST | D132: 29 | E132: 0.8620689655 | F132: 0.1034482759 | G132: 16 | H132: 9 | I132: 1 | J132: 0 | K132: 3 | L132: 0 | M132: 0 | N132: 0 | O132: 0 | P132: 0 | Q132: 0 | R132: 0 | S132: 0 | T132: 29

Sheet BSQ1 (hidden)
B1: Sort | C1: ICB | D1: ICB | E1: Trusts | F1: Trusts | G1: Sites | H1: Sites | J1: Sort ranges: | K1: Sort range… | L1: Sort range… | M1: Sort range… | N1: Reference Region List: | O1: Code… | P1: Name… | Q1: Linked Region List: | R1: Code… | S1: Name… | T1: Reference Lists: | U1: Code… | V1: Code… | W1: Name… | X1: Code… | Y1: Name… | Z1: Trusts Linked Lists: | AA1: Code… | AB1: Name… | AC1: Site Linked Lists: | AD1: Code… | AE1: Name… | AF1: Code… | AG1: Name…
A2: ICB | B2: 1 | C2: 1 | D2: 1 | E2: - | F2: - | G2: - | H2: - | K2: ICB Code | L2: ICB Code | M2: ICB Code | O2: QE1 | P2: LANCASHIRE AND SOUTH CUMBRIA ICB | R2: QE1 | S2: LANCASHIRE AND SOUTH CUMBRIA ICB | U2: QE1 | V2: RXL | W2: BLACKPOOL TEACHING HOSPITALS NHS FOUNDATION TRUST | X2: RXL01 | Y2: Blackpool Victoria Hospital | AA2: R0A | AB2: ASHFORD AND ST PETER'S HOSPITALS NHS FOUNDATION TRUST | AD2: R0A | AE2: ASHFORD AND ST PETER'S HOSPITALS NHS FOUNDATION TRUST | AF2: E0A3H | AG2: Alexandra Hospital
A3: Trusts | B3: 1 | C3: 1 | D3: 1 | E3: 1 | F3: 1 | G3: - | H3: - | K3: ICB Name | L3: Trust Code | M3: Trust Code | O3: QF7 | P3: SOUTH YORKSHIRE ICB | R3: QF7 | S3: SOUTH YORKSHIRE ICB | U3: QE1 | V3: RXR | W3: EAST LANCASHIRE HOSPITALS NHS TRUST | X3: RXR20 | Y3: Royal Blackburn Hospital | AA3: R0B | AB3: BARKING, HAVERING AND REDBRIDGE UNIVERSITY HOSPITALS NHS TRUST | AD3: R0B | AE3: BARKING, HAVERING AND REDBRIDGE UNIVERSITY HOSPITALS NHS TRUST | AF3: R0A05 | AG3: Andover War Memorial Hospital
A4: Sites | B4: 1 | C4: 1 | D4: 1 | E4: 1 | F4: 1 | G4: 1 | H4: 1 | K4: Total Responses | L4: Trust Name | M4: Trust Name | O4: QGH | P4: HEREFORDSHIRE AND WORCESTERSHIRE ICB | R4: QGH | S4: HEREFORDSHIRE AND WORCESTERSHIRE ICB | U4: QE1 | V4: RXN | W4: LANCASHIRE TEACHING HOSPITALS NHS FOUNDATION TRUST | X4: RXN01 | Y4: Chorley and South Ribble Hospital | AA4: R0D | AB4: BARNSLEY HOSPITAL NHS FOUNDATION TRUST | AD4: R0D | AE4: BARNSLEY HOSPITAL NHS FOUNDATION TRUST | AF4: R0B01 | AG4: Arrowe Park Hospital
K5: Percentage Positive | L5: Total Responses | M5: Site Code | O5: QH8 | P5: MID AND SOUTH ESSEX ICB | R5: QH8 | S5: MID AND SOUTH ESSEX ICB | U5: QE1 | V5: RXN | W5: LANCASHIRE TEACHING HOSPITALS NHS FOUNDATION TRUST | X5: RXN02 | Y5: Royal Preston Hospital | AA5: R1F | AB5: BARTS HEALTH NHS TRUST | AD5: R1F | AE5: BARTS HEALTH NHS TRUST | AF5: R0B0Q | AG5: Ashford Hospital
K6: Percentage Negative | L6: Percentage Positive | M6: Site Name | O6: QHG | P6: BEDFORDSHIRE, LUTON AND MILTON KEYNES ICB | R6: QHG | S6: BEDFORDSHIRE, LUTON AND MILTON KEYNES ICB | U6: QE1 | V6: RTX | W6: UNIVERSITY HOSPITALS OF MORECAMBE BAY NHS FOUNDATION TRUST | X6: RTXBU | Y6: Furness General Hospital | AA6: R1H | AB6: BEDFORDSHIRE HOSPITALS NHS FOUNDATION TRUST | AD6: R1H | AE6: BEDFORDSHIRE HOSPITALS NHS FOUNDATION TRUST | AF6: R0BXXX | AG6: Barnet Hospital
K7: Very Good | L7: Percentage Negative | M7: Total Responses | O7: QHL | P7: BIRMINGHAM AND SOLIHULL ICB | R7: QHL | S7: BIRMINGHAM AND SOLIHULL ICB | U7: QE1 | V7: RTX | W7: UNIVERSITY HOSPITALS OF MORECAMBE BAY NHS FOUNDATION TRUST | X7: RTX02 | Y7: Royal Lancaster Infirmary | AA7: R1K | AB7: BIRMINGHAM WOMEN'S AND CHILDREN'S NHS FOUNDATION TRUST | AD7: R1K | AE7: BIRMINGHAM WOMEN'S AND CHILDREN'S NHS FOUNDATION TRUST | AF7: R0D01 | AG7: Barnsley Hospital NHS Foundation Trust HQ
K8: Good | L8: Very Good | M8: Percentage Positive | O8: QHM | P8: NORTH EAST AND NORTH CUMBRIA ICB | R8: QHM | S8: NORTH EAST AND NORTH CUMBRIA ICB | U8: QF7 | V8: RFF | W8: BARNSLEY HOSPITAL NHS FOUNDATION TRUST | X8: RFFAA | Y8: Barnsley Hospital NHS Foundation Trust HQ | AA8: RA2 | AB8: BLACKPOOL TEACHING HOSPITALS NHS FOUNDATION TRUST | AD8: RA2 | AE8: BLACKPOOL TEACHING HOSPITALS NHS FOUNDATION TRUST | AF8: R0D02 | AG8: BASILDON HOSPITAL
K9: Neither Good nor Poor | L9: Good | M9: Percentage Negative | O9: QJ2 | P9: DERBY AND DERBYSHIRE ICB | R9: QJ2 | S9: DERBY AND DERBYSHIRE ICB | U9: QF7 | V9: RP5 | W9: DONCASTER AND BASSETLAW TEACHING HOSPITALS NHS FOUNDATION TRUST | X9: RP5BA | Y9: Bassetlaw Hospital | AA9: RA4 | AB9: BOLTON NHS FOUNDATION TRUST | AD9: RA4 | AE9: BOLTON NHS FOUNDATION TRUST | AF9: R1F01 | AG9: Basingstoke and North Hampshire Hospital
K10: Poor | L10: Neither Good nor Poor | M10: Very Good | O10: QJG | P10: SUFFOLK AND NORTH EAST ESSEX ICB | R10: QJG | S10: SUFFOLK AND NORTH EAST ESSEX ICB | U10: QF7 | V10: RP5 | W10: DONCASTER AND BASSETLAW TEACHING HOSPITALS NHS FOUNDATION TRUST | X10: RP5DR | Y10: Doncaster Royal Infirmary | AA10: RA7 | AB10: BRADFORD TEACHING HOSPITALS NHS FOUNDATION TRUST | AD10: RA7 | AE10: BRADFORD TEACHING HOSPITALS NHS FOUNDATION TRUST | AF10: R1H12 | AG10: Bassetlaw Hospital
K11: Very Poor | L11: Poor | M11: Good | O11: QJK | P11: DEVON ICB | R11: QJK | S11: DEVON ICB | U11: QF7 | V11: RP5 | W11: DONCASTER AND BASSETLAW TEACHING HOSPITALS NHS FOUNDATION TRUST | X11: RP5XXX | Y11: Non-hospital site | AA11: RAE | AB11: BUCKINGHAMSHIRE HEALTHCARE NHS TRUST | AD11: RAE | AE11: BUCKINGHAMSHIRE HEALTHCARE NHS TRUST | AF11: R1HKH | AG11: BEDFORD HOSPITAL SOUTH WING
K12: Don't Know | L12: Very Poor | M12: Neither Good nor Poor | O12: QJM | P12: LINCOLNSHIRE ICB | R12: QJM | S12: LINCOLNSHIRE ICB | U12: QF7 | V12: RHQ | W12: SHEFFIELD TEACHING HOSPITALS NHS FOUNDATION TRUST | X12: RHQHH | Y12: Royal Hallamshire Hospital | AA12: RAJ | AB12: CALDERDALE AND HUDDERSFIELD NHS FOUNDATION TRUST | AD12: RAJ | AE12: CALDERDALE AND HUDDERSFIELD NHS FOUNDATION TRUST | AF12: R1HNH | AG12: Birmingham Women's Hospital
L13: Don't Know | M13: Poor | O13: QK1 | P13: LEICESTER, LEICESTERSHIRE AND RUTLAND ICB | R13: QK1 | S13: LEICESTER, LEICESTERSHIRE AND RUTLAND ICB | U13: QF7 | V13: RFR | W13: THE ROTHERHAM NHS FOUNDATION TRUST | X13: RFRPA | Y13: Rotherham District General Hospital | AA13: RAL | AB13: CAMBRIDGE UNIVERSITY HOSPITALS NHS FOUNDATION TRUST | AD13: RAL | AE13: CAMBRIDGE UNIVERSITY HOSPITALS NHS FOUNDATION TRUST | AF13: R1K01 | AG13: Blackpool Victoria Hospital
L14: Mode SMS | M14: Very Poor | O14: QKK | P14: SOUTH EAST LONDON ICB | R14: QKK | S14: SOUTH EAST LONDON ICB | U14: QGH | V14: RWP | W14: WORCESTERSHIRE ACUTE HOSPITALS NHS TRUST | X14: RWP01 | Y14: Alexandra Hospital | AA14: RAP | AB14: CHELSEA AND WESTMINSTER HOSPITAL NHS FOUNDATION TRUST | AD14: RAP | AE14: CHELSEA AND WESTMINSTER HOSPITAL NHS FOUNDATION TRUST | AF14: RA201 | AG14: Bradford Royal Infirmary
L15: Mode Electronic Discharge | M15: Don't Know | O15: QKS | P15: KENT AND MEDWAY ICB | R15: QKS | S15: KENT AND MEDWAY ICB | U15: QGH | V15: RWP | W15: WORCESTERSHIRE ACUTE HOSPITALS NHS TRUST | X15: RWP31 | Y15: Kidderminster Hospital | AA15: RAS | AB15: CHESTERFIELD ROYAL HOSPITAL NHS FOUNDATION TRUST | AD15: RAS | AE15: CHESTERFIELD ROYAL HOSPITAL NHS FOUNDATION TRUST | AF15: RA430 | AG15: Bridgwater Hospital
L16: Mode Electronic Home | O16: QM7 | P16: HERTFORDSHIRE AND WEST ESSEX ICB | R16: QM7 | S16: HERTFORDSHIRE AND WEST ESSEX ICB | U16: QGH | V16: RWP | W16: WORCESTERSHIRE ACUTE HOSPITALS NHS TRUST | X16: RWP50 | Y16: Worcestershire Royal Hospital | AA16: RAX | AB16: CROYDON HEALTH SERVICES NHS TRUST | AD16: RAX | AE16: CROYDON HEALTH SERVICES NHS TRUST | AF16: RA707 | AG16: Calderdale Royal Hospital
L17: Mode Paper Discharge | O17: QMF | P17: NORTH EAST LONDON ICB | R17: QMF | S17: NORTH EAST LONDON ICB | U17: QGH | V17: RLQ | W17: WYE VALLEY NHS TRUST | X17: RLQ01 | Y17: Hereford County Hospital | AA17: RBD | AB17: DARTFORD AND GRAVESHAM NHS TRUST | AD17: RBD | AE17: DARTFORD AND GRAVESHAM NHS TRUST | AF17: RAE01 | AG17: Chelsea and Westminster Hospital
L18: Mode Paper Home | O18: QMJ | P18: NORTH CENTRAL LONDON ICB | R18: QMJ | S18: NORTH CENTRAL LONDON ICB | U18: QH8 | V18: RAJ | W18: MID AND SOUTH ESSEX NHS FOUNDATION TRUST | X18: RAJ12 | Y18: BASILDON HOSPITAL | AA18: RBK | AB18: DONCASTER AND BASSETLAW TEACHING HOSPITALS NHS FOUNDATION TRUST | AD18: RBK | AE18: DONCASTER AND BASSETLAW TEACHING HOSPITALS NHS FOUNDATION TRUST | AF18: RAJ01 | AG18: Chesterfield Royal Hospital
L19: Mode Telephone | O19: QMM | P19: NORFOLK AND WAVENEY ICB | R19: QMM | S19: NORFOLK AND WAVENEY ICB | U19: QH8 | V19: RAJ | W19: MID AND SOUTH ESSEX NHS FOUNDATION TRUST | X19: RAJ32 | Y19: MID ESSEX HOSPITAL | AA19: RBL | AB19: DORSET COUNTY HOSPITAL NHS FOUNDATION TRUST | AD19: RBL | AE19: DORSET COUNTY HOSPITAL NHS FOUNDATION TRUST | AF19: RAJ12 | AG19: Chorley and South Ribble Hospital
L20: Mode Online | O20: QNC | P20: STAFFORDSHIRE AND STOKE-ON-TRENT ICB | R20: QNC | S20: STAFFORDSHIRE AND STOKE-ON-TRENT ICB | U20: QH8 | V20: RAJ | W20: MID AND SOUTH ESSEX NHS FOUNDATION TRUST | X20: RAJ01 | Y20: Southend Hospital | AA20: RBN | AB20: EAST AND NORTH HERTFORDSHIRE NHS TRUST | AD20: RBN | AE20: EAST AND NORTH HERTFORDSHIRE NHS TRUST | AF20: RAJ32 | AG20: City Hospital
L21: Mode Other | O21: QNQ | P21: FRIMLEY ICB | R21: QNQ | S21: FRIMLEY ICB | U21: QHG | V21: RC9 | W21: BEDFORDSHIRE HOSPITALS NHS FOUNDATION TRUST | X21: RC979 | Y21: BEDFORD HOSPITAL SOUTH WING | AA21: RBT | AB21: EAST CHESHIRE NHS TRUST | AD21: RBT | AE21: EAST CHESHIRE NHS TRUST | AF21: RAL01 | AG21: Colchester General Hospital
O22: QNX | P22: SUSSEX ICB | R22: QNX | S22: SUSSEX ICB | U22: QHG | V22: RC9 | W22: BEDFORDSHIRE HOSPITALS NHS FOUNDATION TRUST | X22: RC971 | Y22: Luton and Dunstable Hospital | AA22: RC9 | AB22: EAST KENT HOSPITALS UNIVERSITY NHS FOUNDATION TRUST | AD22: RC9 | AE22: EAST KENT HOSPITALS UNIVERSITY NHS FOUNDATION TRUST | AF22: RAL26 | AG22: Conquest Hospital
O23: QOC | P23: SHROPSHIRE, TELFORD AND WREKIN ICB | R23: QOC | S23: SHROPSHIRE, TELFORD AND WREKIN ICB | U23: QHG | V23: RD8 | W23: MILTON KEYNES UNIVERSITY HOSPITAL NHS FOUNDATION TRUST | X23: RD816 | Y23: Milton Keynes Hospital | AA23: RCB | AB23: EAST LANCASHIRE HOSPITALS NHS TRUST | AD23: RCB | AE23: EAST LANCASHIRE HOSPITALS NHS TRUST | AF23: RAPNM | AG23: Croydon University Hospital
O24: QOP | P24: GREATER MANCHESTER ICB | R24: QOP | S24: GREATER MANCHESTER ICB | U24: QHL | V24: RQ3 | W24: BIRMINGHAM WOMEN'S AND CHILDREN'S NHS FOUNDATION TRUST | X24: RQ370 | Y24: Birmingham Women's Hospital | AA24: RCD | AB24: EAST SUFFOLK AND NORTH ESSEX NHS FOUNDATION TRUST | AD24: RCD | AE24: EAST SUFFOLK AND NORTH ESSEX NHS FOUNDATION TRUST | AF24: RAS01 | AG24: Darent Valley Hospital
O25: QOQ | P25: HUMBER AND NORTH YORKSHIRE ICB | R25: QOQ | S25: HUMBER AND NORTH YORKSHIRE ICB | U25: QHL | V25: RXK | W25: SANDWELL AND WEST BIRMINGHAM HOSPITALS NHS TRUST | X25: RXK02 | Y25: City Hospital | AA25: RCX | AB25: EAST SUSSEX HEALTHCARE NHS TRUST | AD25: RCX | AE25: EAST SUSSEX HEALTHCARE NHS TRUST | AF25: RAX01 | AG25: Derriford Hospital
O26: QOX | P26: BATH AND NORTH EAST SOMERSET, SWINDON AND WILTSHIRE ICB | R26: QOX | S26: BATH AND NORTH EAST SOMERSET, SWINDON AND WILTSHIRE ICB | U26: QHL | V26: RXK | W26: SANDWELL AND WEST BIRMINGHAM HOSPITALS NHS TRUST | X26: RXK01 | Y26: Sandwell General Hospital | AA26: RD1 | AB26: EPSOM AND ST HELIER UNIVERSITY HOSPITALS NHS TRUST | AD26: RD1 | AE26: EPSOM AND ST HELIER UNIVERSITY HOSPITALS NHS TRUST | AF26: RBD01 | AG26: Dewsbury and District Hospital
O27: QPM | P27: NORTHAMPTONSHIRE ICB | R27: QPM | S27: NORTHAMPTONSHIRE ICB | U27: QHL | V27: RRK | W27: UNIVERSITY HOSPITALS BIRMINGHAM NHS FOUNDATION TRUST | X27: RRK98 | Y27: Good Hope Hospital | AA27: RD8 | AB27: FRIMLEY HEALTH NHS FOUNDATION TRUST | AD27: RD8 | AE27: FRIMLEY HEALTH NHS FOUNDATION TRUST | AF27: RBK02 | AG27: Diana, Princess Of Wales Hospital
O28: QR1 | P28: GLOUCESTERSHIRE ICB | R28: QR1 | S28: GLOUCESTERSHIRE ICB | U28: QHL | V28: RRK | W28: UNIVERSITY HOSPITALS BIRMINGHAM NHS FOUNDATION TRUST | X28: RRK97 | Y28: Heartlands Hospital | AA28: RDE | AB28: GATESHEAD HEALTH NHS FOUNDATION TRUST | AD28: RDE | AE28: GATESHEAD HEALTH NHS FOUNDATION TRUST | AF28: RBL14 | AG28: Doncaster Royal Infirmary
O29: QRL | P29: HAMPSHIRE AND ISLE OF WIGHT ICB | R29: QRL | S29: HAMPSHIRE AND ISLE OF WIGHT ICB | U29: QHL | V29: RRK | W29: UNIVERSITY HOSPITALS BIRMINGHAM NHS FOUNDATION TRUST | X29: RRK99 | Y29: Solihull Hospital | AA29: RDU | AB29: GREAT WESTERN HOSPITALS NHS FOUNDATION TRUST | AD29: RDU | AE29: GREAT WESTERN HOSPITALS NHS FOUNDATION TRUST | AF29: RBN01 | AG29: Dorset County Hospital
O30: QRV | P30: NORTH WEST LONDON ICB | R30: QRV | S30: NORTH WEST LONDON ICB | U30: QHM | V30: RR7 | W30: GATESHEAD HEALTH NHS FOUNDATION TRUST | X30: RR7EN | Y30: Queen Elizabeth Hospital | AA30: REF | AB30: GUY'S AND ST THOMAS' NHS FOUNDATION TRUST | AD30: REF | AE30: GUY'S AND ST THOMAS' NHS FOUNDATION TRUST | AF30: RBT20 | AG30: East Surrey Hospital
O31: QSL | P31: SOMERSET ICB | R31: QSL | S31: SOMERSET ICB | U31: QHM | V31: RVW | W31: NORTH TEES AND HARTLEPOOL NHS FOUNDATION TRUST | X31: RVWAE | Y31: University Hospital Of North Tees | AA31: REP | AB31: HAMPSHIRE HOSPITALS NHS FOUNDATION TRUST | AD31: REP | AE31: HAMPSHIRE HOSPITALS NHS FOUNDATION TRUST | AF31: RC971 | AG31: Eastbourne District General Hospital
O32: QT1 | P32: NOTTINGHAM AND NOTTINGHAMSHIRE ICB | R32: QT1 | S32: NOTTINGHAM AND NOTTINGHAMSHIRE ICB | U32: QHM | V32: RTF | W32: NORTHUMBRIA HEALTHCARE NHS FOUNDATION TRUST | X32: RTFXXX | Y32: Non-hospital site | AA32: RF4 | AB32: HARROGATE AND DISTRICT NHS FOUNDATION TRUST | AD32: RF4 | AE32: HARROGATE AND DISTRICT NHS FOUNDATION TRUST | AF32: RC979 | AG32: Epsom Hospital
O33: QT6 | P33: CORNWALL AND THE ISLES OF SCILLY ICB | R33: QT6 | S33: CORNWALL AND THE ISLES OF SCILLY ICB | U33: QHM | V33: RTR | W33: SOUTH TEES HOSPITALS NHS FOUNDATION TRUST | X33: RTR45 | Y33: Friarage Hospital Site | AA33: RFF | AB33: HOMERTON HEALTHCARE NHS FOUNDATION TRUST | AD33: RFF | AE33: HOMERTON HEALTHCARE NHS FOUNDATION TRUST | AF33: RCB55 | AG33: Friarage Hospital Site
O34: QU9 | P34: BUCKINGHAMSHIRE, OXFORDSHIRE AND BERKSHIRE WEST ICB | R34: QU9 | S34: BUCKINGHAMSHIRE, OXFORDSHIRE AND BERKSHIRE WEST ICB | U34: QHM | V34: RTR | W34: SOUTH TEES HOSPITALS NHS FOUNDATION TRUST | X34: RTRAT | Y34: The James Cook University Hospital | AA34: RFR | AB34: HULL UNIVERSITY TEACHING HOSPITALS NHS TRUST | AD34: RFR | AE34: HULL UNIVERSITY TEACHING HOSPITALS NHS TRUST | AF34: RCBCA | AG34: Frimley Park Hospital
O35: QUA | P35: BLACK COUNTRY ICB | R35: QUA | S35: BLACK COUNTRY ICB | U35: QHM | V35: R0B | W35: SOUTH TYNESIDE AND SUNDERLAND NHS FOUNDATION TRUST | X35: R0BXXX | Y35: Non-hospital site | AA35: RFS | AB35: IMPERIAL COLLEGE HEALTHCARE NHS TRUST | AD35: RFS | AE35: IMPERIAL COLLEGE HEALTHCARE NHS TRUST | AF35: RCD01 | AG35: Frome Community Hospital
O36: QUE | P36: CAMBRIDGESHIRE AND PETERBOROUGH ICB | R36: QUE | S36: CAMBRIDGESHIRE AND PETERBOROUGH ICB | U36: QHM | V36: R0B | W36: SOUTH TYNESIDE AND SUNDERLAND NHS FOUNDATION TRUST | X36: R0B0Q | Y36: South Tyneside District Hospital | AA36: RGN | AB36: ISLE OF WIGHT NHS TRUST | AD36: RGN | AE36: ISLE OF WIGHT NHS TRUST | AF36: RCX66 | AG36: Furness General Hospital
O37: QUY | P37: BRISTOL, NORTH SOMERSET AND SOUTH GLOUCESTERSHIRE ICB | R37: QUY | S37: BRISTOL, NORTH SOMERSET AND SOUTH GLOUCESTERSHIRE ICB | U37: QHM | V37: R0B | W37: SOUTH TYNESIDE AND SUNDERLAND NHS FOUNDATION TRUST | X37: R0B01 | Y37: Sunderland Royal Hospital | AA37: RGP | AB37: JAMES PAGET UNIVERSITY HOSPITALS NHS FOUNDATION TRUST | AD37: RGP | AE37: JAMES PAGET UNIVERSITY HOSPITALS NHS FOUNDATION TRUST | AF37: RCX70 | AG37: Good Hope Hospital
O38: QVV | P38: DORSET ICB | R38: QVV | S38: DORSET ICB | U38: QHM | V38: RTD | W38: THE NEWCASTLE UPON TYNE HOSPITALS NHS FOUNDATION TRUST | X38: RTD02 | Y38: The Royal Victoria Infirmary | AA38: RGR | AB38: KETTERING GENERAL HOSPITAL NHS FOUNDATION TRUST | AD38: RGR | AE38: KETTERING GENERAL HOSPITAL NHS FOUNDATION TRUST | AF38: RCXXXX | AG38: Gosport War Memorial Hospital
O39: QWE | P39: SOUTH WEST LONDON ICB | R39: QWE | S39: SOUTH WEST LONDON ICB | U39: QJ2 | V39: RFS | W39: CHESTERFIELD ROYAL HOSPITAL NHS FOUNDATION TRUST | X39: RFSDA | Y39: Chesterfield Royal Hospital | AA39: RGT | AB39: KING'S COLLEGE HOSPITAL NHS FOUNDATION TRUST | AD39: RGT | AE39: KING'S COLLEGE HOSPITAL NHS FOUNDATION TRUST | AF39: RD121 | AG39: Grantham and District Hospital
O40: QWO | P40: WEST YORKSHIRE ICB | R40: QWO | S40: WEST YORKSHIRE ICB | U40: QJ2 | V40: RTG | W40: UNIVERSITY HOSPITALS OF DERBY AND BURTON NHS FOUNDATION TRUST | X40: RTG02 | Y40: Queens Hospital, Burton Upon Trent | AA40: RH5 | AB40: KINGSTON HOSPITAL NHS FOUNDATION TRUST | AD40: RH5 | AE40: KINGSTON HOSPITAL NHS FOUNDATION TRUST | AF40: RD130 | AG40: Harrogate District Hospital
O41: QWU | P41: COVENTRY AND WARWICKSHIRE ICB | R41: QWU | S41: COVENTRY AND WARWICKSHIRE ICB | U41: QJ2 | V41: RTG | W41: UNIVERSITY HOSPITALS OF DERBY AND BURTON NHS FOUNDATION TRUST | X41: RTGFG | Y41: Royal Derby Hospital | AA41: RH8 | AB41: LANCASHIRE TEACHING HOSPITALS NHS FOUNDATION TRUST | AD41: RH8 | AE41: LANCASHIRE TEACHING HOSPITALS NHS FOUNDATION TRUST | AF41: RD816 | AG41: Heartlands Hospital
O42: QXU | P42: SURREY HEARTLANDS ICB | R42: QXU | S42: SURREY HEARTLANDS ICB | U42: QJG | V42: RDE | W42: EAST SUFFOLK AND NORTH ESSEX NHS FOUNDATION TRUST | X42: RDEE4 | Y42: Colchester General Hospital | AA42: RHM | AB42: LEEDS TEACHING HOSPITALS NHS TRUST | AD42: RHM | AE42: LEEDS TEACHING HOSPITALS NHS TRUST | AF42: RDE03 | AG42: Hereford County Hospital
O43: QYG | P43: CHESHIRE AND MERSEYSIDE ICB | R43: QYG | S43: CHESHIRE AND MERSEYSIDE ICB | U43: QJG | V43: RDE | W43: EAST SUFFOLK AND NORTH ESSEX NHS FOUNDATION TRUST | X43: RDE03 | Y43: Ipswich Hospital | AA43: RHQ | AB43: LEWISHAM AND GREENWICH NHS TRUST | AD43: RHQ | AE43: LEWISHAM AND GREENWICH NHS TRUST | AF43: RDEE4 | AG43: Hillingdon Hospital
U44: QJG | V44: RGR | W44: WEST SUFFOLK NHS FOUNDATION TRUST | X44: RGR50 | Y44: West Suffolk Hospital | AA44: RHU | AB44: LIVERPOOL WOMEN'S NHS FOUNDATION TRUST | AD44: RHU | AE44: LIVERPOOL WOMEN'S NHS FOUNDATION TRUST | AF44: RDU01 | AG44: Hinchingbrooke Hospital
U45: QJK | V45: RH8 | W45: ROYAL DEVON UNIVERSITY HEALTHCARE NHS FOUNDATION TRUST | X45: RH880 | Y45: North Devon District Hospital | AA45: RHW | AB45: LONDON NORTH WEST UNIVERSITY HEALTHCARE NHS TRUST | AD45: RHW | AE45: LONDON NORTH WEST UNIVERSITY HEALTHCARE NHS TRUST | AF45: RDU50 | AG45: Homerton University Hospital
U46: QJK | V46: RH8 | W46: ROYAL DEVON UNIVERSITY HEALTHCARE NHS FOUNDATION TRUST | X46: RH801 | Y46: Royal Devon and Exeter Hospital (Wonford) | AA46: RJ1 | AB46: MAIDSTONE AND TUNBRIDGE WELLS NHS TRUST | AD46: RJ1 | AE46: MAIDSTONE AND TUNBRIDGE WELLS NHS TRUST | AF46: REF12 | AG46: Horton General Hospital
U47: QJK | V47: RK9 | W47: UNIVERSITY HOSPITALS PLYMOUTH NHS TRUST | X47: RK950 | Y47: Derriford Hospital | AA47: RJ2 | AB47: MANCHESTER UNIVERSITY NHS FOUNDATION TRUST | AD47: RJ2 | AE47: MANCHESTER UNIVERSITY NHS FOUNDATION TRUST | AF47: REFXXX | AG47: Hospital Of St Cross
U48: QJK | V48: RK9 | W48: UNIVERSITY HOSPITALS PLYMOUTH NHS TRUST | X48: RK9XXX | Y48: Non-hospital site | AA48: RJ6 | AB48: MEDWAY NHS FOUNDATION TRUST | AD48: RJ6 | AE48: MEDWAY NHS FOUNDATION TRUST | AF48: REP01 | AG48: Huddersfield Royal Infirmary
U49: QJM | V49: RWD | W49: UNITED LINCOLNSHIRE HOSPITALS NHS TRUST | X49: RWDLP | Y49: Grantham and District Hospital | AA49: RJ7 | AB49: MID AND SOUTH ESSEX NHS FOUNDATION TRUST | AD49: RJ7 | AE49: MID AND SOUTH ESSEX NHS FOUNDATION TRUST | AF49: RF4XXX | AG49: Hull Royal Infirmary
U50: QJM | V50: RWD | W50: UNITED LINCOLNSHIRE HOSPITALS NHS TRUST | X50: RWDDA | Y50: Lincoln County Hospital | AA50: RJC | AB50: MID CHESHIRE HOSPITALS NHS FOUNDATION TRUST | AD50: RJC | AE50: MID CHESHIRE HOSPITALS NHS FOUNDATION TRUST | AF50: RFFAA | AG50: Ipswich Hospital
U51: QJM | V51: RWD | W51: UNITED LINCOLNSHIRE HOSPITALS NHS TRUST | X51: RWDLA | Y51: Pilgrim Hospital | AA51: RJE | AB51: MID YORKSHIRE HOSPITALS NHS TRUST | AD51: RJE | AE51: MID YORKSHIRE HOSPITALS NHS TRUST | AF51: RFRPA | AG51: James Paget University Hospital
U52: QK1 | V52: RWE | W52: UNIVERSITY HOSPITALS OF LEICESTER NHS TRUST | X52: RWEAK | Y52: Leicester General Hospital | AA52: RJL | AB52: MILTON KEYNES UNIVERSITY HOSPITAL NHS FOUNDATION TRUST | AD52: RJL | AE52: MILTON KEYNES UNIVERSITY HOSPITAL NHS FOUNDATION TRUST | AF52: RFSDA | AG52: John Radcliffe Hospital
U53: QK1 | V53: RWE | W53: UNIVERSITY HOSPITALS OF LEICESTER NHS TRUST | X53: RWEAA | Y53: Leicester Royal Infirmary | AA53: RJN | AB53: NORFOLK AND NORWICH UNIVERSITY HOSPITALS NHS FOUNDATION TRUST | AD53: RJN | AE53: NORFOLK AND NORWICH UNIVERSITY HOSPITALS NHS FOUNDATION TRUST | AF53: RGN80 | AG53: Kettering General Hospital
U54: QK1 | V54: RWE | W54: UNIVERSITY HOSPITALS OF LEICESTER NHS TRUST | X54: RWEXXX | Y54: Non-hospital site | AA54: RJZ | AB54: NORTH BRISTOL NHS TRUST | AD54: RJZ | AE54: NORTH BRISTOL NHS TRUST | AF54: RGN90 | AG54: Kidderminster Hospital
U55: QKK | V55: RJ1 | W55: GUY'S AND ST THOMAS' NHS FOUNDATION TRUST | X55: RJ122 | Y55: St Thomas' Hospital | AA55: RK5 | AB55: NORTH MIDDLESEX UNIVERSITY HOSPITAL NHS TRUST | AD55: RK5 | AE55: NORTH MIDDLESEX UNIVERSITY HOSPITAL NHS TRUST | AF55: RGP75 | AG55: King's College Hospital (Denmark Hill)
U56: QKK | V56: RJZ | W56: KING'S COLLEGE HOSPITAL NHS FOUNDATION TRUST | X56: RJZ01 | Y56: King's College Hospital (Denmark Hill) | AA56: RK9 | AB56: NORTH TEES AND HARTLEPOOL NHS FOUNDATION TRUST | AD56: RK9 | AE56: NORTH TEES AND HARTLEPOOL NHS FOUNDATION TRUST | AF56: RGR50 | AG56: King's Mill Hospital
U57: QKK | V57: RJZ | W57: KING'S COLLEGE HOSPITAL NHS FOUNDATION TRUST | X57: RJZ30 | Y57: Princess Royal University Hospital | AA57: RKB | AB57: NORTH WEST ANGLIA NHS FOUNDATION TRUST | AD57: RKB | AE57: NORTH WEST ANGLIA NHS FOUNDATION TRUST | AF57: RGT32 | AG57: Kingston Hospital
U58: QKK | V58: RJ2 | W58: LEWISHAM AND GREENWICH NHS TRUST | X58: RJ231 | Y58: Queen Elizabeth Hospital | AA58: RL4 | AB58: NORTHAMPTON GENERAL HOSPITAL NHS TRUST | AD58: RL4 | AE58: NORTHAMPTON GENERAL HOSPITAL NHS TRUST | AF58: RH5A8 | AG58: Leeds General Infirmary
U59: QKK | V59: RJ2 | W59: LEWISHAM AND GREENWICH NHS TRUST | X59: RJ224 | Y59: University Hospital Lewisham | AA59: RLQ | AB59: NORTHERN CARE ALLIANCE NHS FOUNDATION TRUST | AD59: RLQ | AE59: NORTHERN CARE ALLIANCE NHS FOUNDATION TRUST | AF59: RH5K6 | AG59: Leicester General Hospital
U60: QKS | V60: RN7 | W60: DARTFORD AND GRAVESHAM NHS TRUST | X60: RN707 | Y60: Darent Valley Hospital | AA60: RM1 | AB60: NORTHERN LINCOLNSHIRE AND GOOLE NHS FOUNDATION TRUST | AD60: RM1 | AE60: NORTHERN LINCOLNSHIRE AND GOOLE NHS FOUNDATION TRUST | AF60: RH5XXX | AG60: Leicester Royal Infirmary
U61: QKS | V61: RVV | W61: EAST KENT HOSPITALS UNIVERSITY NHS FOUNDATION TRUST | X61: RVV01 | Y61: William Harvey Hospital (Ashford) | AA61: RM3 | AB61: NORTHUMBRIA HEALTHCARE NHS FOUNDATION TRUST | AD61: RM3 | AE61: NORTHUMBRIA HEALTHCARE NHS FOUNDATION TRUST | AF61: RH801 | AG61: Leighton Hospital
U62: QKS | V62: RWF | W62: MAIDSTONE AND TUNBRIDGE WELLS NHS TRUST | X62: RWF03 | Y62: Maidstone District General Hospital | AA62: RMC | AB62: NOTTINGHAM UNIVERSITY HOSPITALS NHS TRUST | AD62: RMC | AE62: NOTTINGHAM UNIVERSITY HOSPITALS NHS TRUST | AF62: RH880 | AG62: Lincoln County Hospital
U63: QKS | V63: RWF | W63: MAIDSTONE AND TUNBRIDGE WELLS NHS TRUST | X63: RWFXXX | Y63: Non-hospital site | AA63: RN3 | AB63: OXFORD UNIVERSITY HOSPITALS NHS FOUNDATION TRUST | AD63: RN3 | AE63: OXFORD UNIVERSITY HOSPITALS NHS FOUNDATION TRUST | AF63: RHM01 | AG63: Lister Hospital
U64: QKS | V64: RWF | W64: MAIDSTONE AND TUNBRIDGE WELLS NHS TRUST | X64: RWFTW | Y64: The Tunbridge Wells Hospital | AA64: RN5 | AB64: PORTSMOUTH HOSPITALS UNIVERSITY NATIONAL HEALTH SERVICE TRUST | AD64: RN5 | AE64: PORTSMOUTH HOSPITALS UNIVERSITY NATIONAL HEALTH SERVICE TRUST | AF64: RHQHH | AG64: Liverpool Womens Hospital
U65: QKS | V65: RPA | W65: MEDWAY NHS FOUNDATION TRUST | X65: RPA02 | Y65: Medway Maritime Hospital | AA65: RN7 | AB65: ROYAL BERKSHIRE NHS FOUNDATION TRUST | AD65: RN7 | AE65: ROYAL BERKSHIRE NHS FOUNDATION TRUST | AF65: RHU02 | AG65: Luton and Dunstable Hospital
U66: QM7 | V66: RWH | W66: EAST AND NORTH HERTFORDSHIRE NHS TRUST | X66: RWH01 | Y66: Lister Hospital | AA66: RNA | AB66: ROYAL CORNWALL HOSPITALS NHS TRUST | AD66: RNA | AE66: ROYAL CORNWALL HOSPITALS NHS TRUST | AF66: RHU03 | AG66: Macclesfield District General Hospital
U67: QM7 | V67: RWH | W67: EAST AND NORTH HERTFORDSHIRE NHS TRUST | X67: RWHXXX | Y67: Non-hospital site | AA67: RNQ | AB67: ROYAL DEVON UNIVERSITY HEALTHCARE NHS FOUNDATION TRUST | AD67: RNQ | AE67: ROYAL DEVON UNIVERSITY HEALTHCARE NHS FOUNDATION TRUST | AF67: RHU04 | AG67: Maidstone District General Hospital
U68: QM7 | V68: RQW | W68: THE PRINCESS ALEXANDRA HOSPITAL NHS TRUST | X68: RQWG0 | Y68: Princess Alexandra Hospital | AA68: RNS | AB68: ROYAL FREE LONDON NHS FOUNDATION TRUST | AD68: RNS | AE68: ROYAL FREE LONDON NHS FOUNDATION TRUST | AF68: RHU10 | AG68: Manor Hospital
U69: QM7 | V69: RWG | W69: WEST HERTFORDSHIRE TEACHING HOSPITALS NHS TRUST | X69: RWG02 | Y69: Watford General Hospital | AA69: RNZ | AB69: ROYAL SURREY COUNTY HOSPITAL NHS FOUNDATION TRUST | AD69: RNZ | AE69: ROYAL SURREY COUNTY HOSPITAL NHS FOUNDATION TRUST | AF69: RHW01 | AG69: Medway Maritime Hospital
U70: QMF | V70: RF4 | W70: BARKING, HAVERING AND REDBRIDGE UNIVERSITY HOSPITALS NHS TRUST | X70: RF4XXX | Y70: Non-hospital site | AA70: RP5 | AB70: ROYAL UNITED HOSPITALS BATH NHS FOUNDATION TRUST | AD70: RP5 | AE70: ROYAL UNITED HOSPITALS BATH NHS FOUNDATION TRUST | AF70: RJ122 | AG70: MID ESSEX HOSPITAL
U71: QMF | V71: R1H | W71: BARTS HEALTH NHS TRUST | X71: R1HNH | Y71: Newham General Hospital | AA71: RPA | AB71: SALISBURY NHS FOUNDATION TRUST | AD71: RPA | AE71: SALISBURY NHS FOUNDATION TRUST | AF71: RJ224 | AG71: Milton Keynes Hospital
U72: QMF | V72: R1H | W72: BARTS HEALTH NHS TRUST | X72: R1H12 | Y72: The Royal London Hospital | AA72: RQ3 | AB72: SANDWELL AND WEST BIRMINGHAM HOSPITALS NHS TRUST | AD72: RQ3 | AE72: SANDWELL AND WEST BIRMINGHAM HOSPITALS NHS TRUST | AF72: RJ231 | AG72: MUSGROVE PARK HOSPITAL
U73: QMF | V73: R1H | W73: BARTS HEALTH NHS TRUST | X73: R1HKH | Y73: Whipps Cross University Hospital | AA73: RQM | AB73: SHEFFIELD TEACHING HOSPITALS NHS FOUNDATION TRUST | AD73: RQM | AE73: SHEFFIELD TEACHING HOSPITALS NHS FOUNDATION TRUST | AF73: RJ611 | AG73: New Cross Hospital
U74: QMF | V74: RQX | W74: HOMERTON HEALTHCARE NHS FOUNDATION TRUST | X74: RQXM1 | Y74: Homerton University Hospital | AA74: RQW | AB74: SHERWOOD FOREST HOSPITALS NHS FOUNDATION TRUST | AD74: RQW | AE74: SHERWOOD FOREST HOSPITALS NHS FOUNDATION TRUST | AF74: RJ701 | AG74: Newham General Hospital
U75: QMJ | V75: RAP | W75: NORTH MIDDLESEX UNIVERSITY HOSPITAL NHS TRUST | X75: RAPNM | Y75: North Middlesex Hospital | AA75: RQX | AB75: SOMERSET NHS FOUNDATION TRUST | AD75: RQX | AE75: SOMERSET NHS FOUNDATION TRUST | AF75: RJC02 | AG75: Non-hospital site
U76: QMJ | V76: RAL | W76: ROYAL FREE LONDON NHS FOUNDATION TRUST | X76: RAL26 | Y76: Barnet Hospital | AA76: RR7 | AB76: SOUTH TEES HOSPITALS NHS FOUNDATION TRUST | AD76: RR7 | AE76: SOUTH TEES HOSPITALS NHS FOUNDATION TRUST | AF76: RJCXXX | AG76: Non-hospital site
U77: QMJ | V77: RAL | W77: ROYAL FREE LONDON NHS FOUNDATION TRUST | X77: RAL01 | Y77: Royal Free Hospital | AA77: RR8 | AB77: SOUTH TYNESIDE AND SUNDERLAND NHS FOUNDATION TRUST | AD77: RR8 | AE77: SOUTH TYNESIDE AND SUNDERLAND NHS FOUNDATION TRUST | AF77: RJE01 | AG77: Non-hospital site
U78: QMJ | V78: RRV | W78: UNIVERSITY COLLEGE LONDON HOSPITALS NHS FOUNDATION TRUST | X78: RRV11 | Y78: University College Hospital Elizabeth Garrett Anderson Wing | AA78: RRF | AB78: SOUTH WARWICKSHIRE UNIVERSITY NHS FOUNDATION TRUST | AD78: RRF | AE78: SOUTH WARWICKSHIRE UNIVERSITY NHS FOUNDATION TRUST | AF78: RJL30 | AG78: Non-hospital site
U79: QMM | V79: RGP | W79: JAMES PAGET UNIVERSITY HOSPITALS NHS FOUNDATION TRUST | X79: RGP75 | Y79: James Paget University Hospital | AA79: RRK | AB79: SOUTHPORT AND ORMSKIRK HOSPITAL NHS TRUST | AD79: RRK | AE79: SOUTHPORT AND ORMSKIRK HOSPITAL NHS TRUST | AF79: RJL32 | AG79: Non-hospital site
U80: QMM | V80: RM1 | W80: NORFOLK AND NORWICH UNIVERSITY HOSPITALS NHS FOUNDATION TRUST | X80: RM102 | Y80: Norfolk and Norwich University Hospital | AA80: RRV | AB80: ST GEORGE'S UNIVERSITY HOSPITALS NHS FOUNDATION TRUST | AD80: RRV | AE80: ST GEORGE'S UNIVERSITY HOSPITALS NHS FOUNDATION TRUST | AF80: RJN71 | AG80: Non-hospital site
U81: QMM | V81: RCX | W81: THE QUEEN ELIZABETH HOSPITAL, KING'S LYNN, NHS FOUNDATION TRUST | X81: RCXXXX | Y81: Non-hospital site | AA81: RTD | AB81: ST HELENS AND KNOWSLEY TEACHING HOSPITALS NHS TRUST | AD81: RTD | AE81: ST HELENS AND KNOWSLEY TEACHING HOSPITALS NHS TRUST | AF81: RJZ01 | AG81: Non-hospital site
U82: QMM | V82: RCX | W82: THE QUEEN ELIZABETH HOSPITAL, KING'S LYNN, NHS FOUNDATION TRUST | X82: RCX66 | Y82: North Cambridgeshire Hospital | AA82: RTF | AB82: STOCKPORT NHS FOUNDATION TRUST | AD82: RTF | AE82: STOCKPORT NHS FOUNDATION TRUST | AF82: RJZ30 | AG82: Non-hospital site
U83: QMM | V83: RCX | W83: THE QUEEN ELIZABETH HOSPITAL, KING'S LYNN, NHS FOUNDATION TRUST | X83: RCX70 | Y83: The Queen Elizabeth Hospital | AA83: RTG | AB83: SURREY AND SUSSEX HEALTHCARE NHS TRUST | AD83: RTG | AE83: SURREY AND SUSSEX HEALTHCARE NHS TRUST | AF83: RK5BC | AG83: Non-hospital site
U84: QNC | V84: RJE | W84: UNIVERSITY HOSPITALS OF NORTH MIDLANDS NHS TRUST | X84: RJE01 | Y84: Royal Stoke University Hospital | AA84: RTH | AB84: THE DUDLEY GROUP NHS FOUNDATION TRUST | AD84: RTH | AE84: THE DUDLEY GROUP NHS FOUNDATION TRUST | AF84: RK950 | AG84: Non-hospital site
U85: QNQ | V85: RDU | W85: FRIMLEY HEALTH NHS FOUNDATION TRUST | X85: RDU01 | Y85: Frimley Park Hospital | AA85: RTK | AB85: THE HILLINGDON HOSPITALS NHS FOUNDATION TRUST | AD85: RTK | AE85: THE HILLINGDON HOSPITALS NHS FOUNDATION TRUST | AF85: RK9XXX | AG85: Non-hospital site
U86: QNQ | V86: RDU | W86: FRIMLEY HEALTH NHS FOUNDATION TRUST | X86: RDU50 | Y86: Wexham Park Hospital | AA86: RTP | AB86: THE NEWCASTLE UPON TYNE HOSPITALS NHS FOUNDATION TRUST | AD86: RTP | AE86: THE NEWCASTLE UPON TYNE HOSPITALS NHS FOUNDATION TRUST | AF86: RKB01 | AG86: Non-hospital site
U87: QNX | V87: RXC | W87: EAST SUSSEX HEALTHCARE NHS TRUST | X87: RXC01 | Y87: Conquest Hospital | AA87: RTR | AB87: THE PRINCESS ALEXANDRA HOSPITAL NHS TRUST | AD87: RTR | AE87: THE PRINCESS ALEXANDRA HOSPITAL NHS TRUST | AF87: RKB03 | AG87: Non-hospital site
U88: QNX | V88: RXC | W88: EAST SUSSEX HEALTHCARE NHS TRUST | X88: RXC02 | Y88: Eastbourne District General Hospital | AA88: RTX | AB88: THE QUEEN ELIZABETH HOSPITAL, KING'S LYNN, NHS FOUNDATION TRUST | AD88: RTX | AE88: THE QUEEN ELIZABETH HOSPITAL, KING'S LYNN, NHS FOUNDATION TRUST | AF88: RKBXXX | AG88: Non-hospital site
U89: QNX | V89: RXC | W89: EAST SUSSEX HEALTHCARE NHS TRUST | X89: RXCXXX | Y89: Non-hospital site | AA89: RVJ | AB89: THE ROTHERHAM NHS FOUNDATION TRUST | AD89: RVJ | AE89: THE ROTHERHAM NHS FOUNDATION TRUST | AF89: RL403 | AG89: Non-hospital site
U90: QNX | V90: RYR | W90: UNIVERSITY HOSPITALS SUSSEX NHS FOUNDATION TRUST | X90: E0A3H | Y90: Royal Sussex County Hospital | AA90: RVR | AB90: THE ROYAL WOLVERHAMPTON NHS TRUST | AD90: RVR | AE90: THE ROYAL WOLVERHAMPTON NHS TRUST | AF90: RLQ01 | AG90: Non-hospital site
U91: QOC | V91: RXW | W91: THE SHREWSBURY AND TELFORD HOSPITAL NHS TRUST | X91: RXWXXX | Y91: Non-hospital site | AA91: RVV | AB91: THE SHREWSBURY AND TELFORD HOSPITAL NHS TRUST | AD91: RVV | AE91: THE SHREWSBURY AND TELFORD HOSPITAL NHS TRUST | AF91: RM102 | AG91: Non-hospital site
U92: QOP | V92: RMC | W92: BOLTON NHS FOUNDATION TRUST | X92: RMC01 | Y92: Royal Bolton Hospital | AA92: RVW | AB92: UNITED LINCOLNSHIRE HOSPITALS NHS TRUST | AD92: RVW | AE92: UNITED LINCOLNSHIRE HOSPITALS NHS TRUST | AF92: RMC01 | AG92: Non-hospital site
U93: QOP | V93: R0A | W93: MANCHESTER UNIVERSITY NHS FOUNDATION TRUST | X93: R0A05 | Y93: St Mary's Hospital | AA93: RVY | AB93: UNIVERSITY COLLEGE LONDON HOSPITALS NHS FOUNDATION TRUST | AD93: RVY | AE93: UNIVERSITY COLLEGE LONDON HOSPITALS NHS FOUNDATION TRUST | AF93: RN325 | AG93: Non-hospital site
U94: QOP | V94: RM3 | W94: NORTHERN CARE ALLIANCE NHS FOUNDATION TRUST | X94: RW603 | Y94: Royal Oldham Hospital | AA94: RWA | AB94: UNIVERSITY HOSPITAL SOUTHAMPTON NHS FOUNDATION TRUST | AD94: RWA | AE94: UNIVERSITY HOSPITAL SOUTHAMPTON NHS FOUNDATION TRUST | AF94: RN506 | AG94: Norfolk and Norwich University Hospital
U95: QOP | V95: RWJ | W95: STOCKPORT NHS FOUNDATION TRUST | X95: RWJ09 | Y95: Stepping Hill Hospital | AA95: RWD | AB95: UNIVERSITY HOSPITALS BIRMINGHAM NHS FOUNDATION TRUST | AD95: RWD | AE95: UNIVERSITY HOSPITALS BIRMINGHAM NHS FOUNDATION TRUST | AF95: RN541 | AG95: North Cambridgeshire Hospital
U96: QOP | V96: RRF | W96: WRIGHTINGTON, WIGAN AND LEIGH NHS FOUNDATION TRUST | X96: RRF02 | Y96: Royal Albert Edward Infirmary | AA96: RWE | AB96: UNIVERSITY HOSPITALS BRISTOL AND WESTON NHS FOUNDATION TRUST | AD96: RWE | AE96: UNIVERSITY HOSPITALS BRISTOL AND WESTON NHS FOUNDATION TRUST | AF96: RN542 | AG96: North Devon District Hospital
U97: QOQ | V97: RCD | W97: HARROGATE AND DISTRICT NHS FOUNDATION TRUST | X97: RCD01 | Y97: Harrogate District Hospital | AA97: RWF | AB97: UNIVERSITY HOSPITALS COVENTRY AND WARWICKSHIRE NHS TRUST | AD97: RWF | AE97: UNIVERSITY HOSPITALS COVENTRY AND WARWICKSHIRE NHS TRUST | AF97: RN5XXX | AG97: North Middlesex Hospital
